Workbook

Sheet FrontPage
A4: PROFILES estimates of consequences
A5: of malnutrition for nutrition advocacy in
A7: =IF(AND(E46<>"",E47<>"",E48<>""),CONCATENATE(E46," (from ",E47," to ",E48,")"),"") -> 
B25: TABLE OF CONTENTS
B26: STEP 1: Country and Time Period
B27: STEP 2: Demographic/Economic/Education Information
B28: STEP 3: Nutrition Information
B29: Part A: Stunting 0–59 months; Stunting 24–35 months; Wasting 0–59 months; Underweight 0–59 months
B30: Part B: Overweight/obesity; Breastfeeding; Low birth weight
B31: Part C: Vitamin A deficiency; Maternal anemia; Iodine deficiency
B32: Part D: Iodine deficiency; Anemia; Stunting; Low birth weight
B33: Part E: Stunting and Learning/Education potential
B34: Part F: Risk Factors for Stunting
A44: STEP 1. Country and Time Period
B46: Country name (select from drop-down menu): | G46: ←Select country (click on yellow cell)
B47: First year in time period (type year in yellow cell): | G47: =IF(E48=E47," First year and last year cannot be the same","") -> First year and last year cannot be the same
B48: Last year in time period (type year in yellow cell): | G48: =IF((E48-E47)>=16," Time period too long - see Facilitator Guide","") -> 
A51: STEP 2. Demographic/Economic/Education Information
A54: Demographic/economic
A55: information
A61: Part A. Demographic Information | P61: Source(s) and Year(s)
B62: Total Population (millions) - user | E62: =IF(AND(ISNUMBER(J62),J63=""),"Enter year",IF(AND(ISNUMBER(J62),ISTEXT(J63)),"Enter the year","")) ->  | M62: Max 3 decimals
B63: Year of total population estimate - user | E63: =IF(AND(ISNUMBER(J63),J63<2015),"Must be 2015 or later",IF(AND(ISNUMBER(J63),J63>2045),"Must be earlier than 2046","")) -> 
B64: Total population (millions) (if no valid user input, UN informaton is used) | J64: =IF(AND(J63>=2015,J63<=Dem!B55,ISNUMBER(J62),ISNUMBER(J63)),J62,Dem!C54) -> 
B65: Year of total population estimate (if no vaild user input, year of UN estimate) | J65: =IF(AND(J63>=2015,J63<=Dem!B55,ISNUMBER(J62),ISNUMBER(J63)),J63,Dem!B54) -> 
B67: Maternal deaths/100,000 live births (maternal mortality ratio)
B68: Deaths <1 year/1,000 live births (infant mortality rate)
B69: Deaths <5 years/1,000 live births (under-5 mortality rate)
B70: Deaths <1 month /1,000 live births (neonatal mortality rate)
B71: Perinatal deaths /1,000 live births
B72: Average life expectancy at birth ( years ) | J72: =Dem!V27 -> 0
B73: Cumulative survival at life expectancy (click button to recalibrate to 0.5) | J73: =Rel!C89 -> 1
B75: Click button according to instructions above Step 1 →
A76: Part B. Economic and Employment Information | P76: Source(s) and Year(s)
B77: Exchange rate (national currency/US$) (enter 1 for results in national currency)
B79: A. Employed/working-age population (%) - in manual labor
B80: B. In labor force/working-age population (%) (economic activity rate) - all sectors
B82: FEMALES employed/female working-age population (%) - in manual labor
B83: MALES employed/male working-age population (%) - in manual labor
B84: Proportion of manual labor considered heavy:
B86: A. Average annual wage, manual labor (national currency)
B87: B. Average annual wage, all sectors (national currency)
A89: Part C. Education Information
B90: School entry age (in years)
B91: Duration of universal/primary school (years)
B93: Lifetime discounting factor: Mean over age 1-15 (click button to recalculate) | J93: =Rel!C109 -> 14.68559415
B95: Click button according to instructions above Step 1 →
A101: STEP 3. Nutrition Information
A102: Part A.
F104: Enter 1 to view | L104: Enter 1 to view
F105: deaths in status | L105: lives saved in
F106: quo scenario | L106: improved scenario
F107: ↓ | L107: ↓
A108: Stunting | F108: ↓ | L108: ↓
A109: 0-59 months | C109: Status quo | D109: Improved scenario | F109: ↓ | G109: Status quo | J109: Improved | L109: ↓ | M109: Improved
C110: scenario; | D110: Reduced | E110: Target | F110: ↓ | G110: scenario: | J110: scenario: | L110: ↓ | M110: scenario:
C111: starting | D111: by | E111: prevalence, | F111: ↓ | G111: deaths | J111: deaths | L111: ↓ | M111: lives saved
C112: prevalence | E112: reduced to | F112: ↓ | G112: / lives lost | L112: ↓
C113: (%) | D113: (proportion) | E113: (%) | F113: ↓ | G113: (number) | J113: (number) | L113: ↓ | M113: (number)
B114: Mild stunting at 0-59 months (% height/age -1 to -2 SD) | C114: =IF(AND(C115<>"",C116<>"",C117<>""),Prev!C25,"") ->  | E114: =IF(AND(C120<>"",E120<>""),Prev!E25,"") ->  | F114: ↓ | L114: ↓
B115: Moderate stunting at 0-59 months (% height/age -2 to -3 SD) | E115: =IF(AND(C120<>"",E120<>""),Prev!E26,"") ->  | F115: ↓ | L115: ↓
B116: Severe stunting at 0-59 months (% height/age < -3 SD) | E116: =IF(AND(C120<>"",E120<>""),Prev!E27,"") ->  | F116: ↓ | L116: ↓
B117: Mean height/age z-score at 0-59 months | F117: ↓ | L117: ↓
C119: Status quo scenario | D119: Reduced by | E119: Improved scenario | F119: ↓ | L119: ↓ | P119: Source(s) and Year(s)
B120: Moderate + severe stunting at 0-59 months (% height/age <-2 SD) | C120: =IF(C114<>"",Prev!C29,"") ->  | D120: =IF(AND(C120<>"",E120<>""),Prev!D29,"") ->  | G120: =IF(AND(F120=1,C120<>"",ISNUMBER(HAMort!K30)),HAMort!K30,"") ->  | J120: =IF(AND(G120<>"",M120<>""),G120-M120,"") ->  | M120: =IF(AND(L120=1,G120<>"",E120<>"",ISNUMBER(HAMort!P30)),HAMort!P30,"") -> 
A125: Stunting
A126: 24-35 months | C126: Status quo | D126: Improved scenario
C127: scenario; | D127: Reduced | E127: Target
C128: starting | D128: by | E128: prevalence,
C129: prevalence | E129: reduced to
C130: (%) | D130: (proportion) | E130: (%)
B131: Mild stunting at 24-35 months (% height/age -1 to -2 SD) | C131: =IF(AND(C132<>"",C133<>"",C134<>""),Prev!C19,"") ->  | E131: =IF(AND(C137<>"",D137<>""),Prev!E19,"") -> 
B132: Moderate stunting at 24-35 months (% height/age -2 to -3 SD) | E132: =IF(AND(C137<>"",D137<>""),Prev!E20,"") -> 
B133: Severe stunting at 24-35 months (% height/age < -3 SD) | E133: =IF(AND(C137<>"",D137<>""),Prev!E21,"") -> 
B134: Mean height/age z-score at 24-35 months
C136: Status quo scenario | D136: Reduced by | E136: Improved scenario | I136: Source(s) and Year(s)
B137: Moderate + severe stunting at 24-35 months (% height/age <-2 SD) | C137: =IF(C131<>"",Prev!C23,"") ->  | D137: =IF(AND(C137<>"",E137<>""),Prev!D23,"") -> 
F142: Enter 1 to view | L142: Enter 1 to view
F143: deaths in status | L143: lives saved in
F144: quo scenario | L144: improved scenario
F145: ↓ | L145: ↓
A146: Wasting | F146: ↓ | L146: ↓
A147: 0-59 months | C147: Status quo | D147: Improved scenario | F147: ↓ | G147: Status quo | J147: Improved | L147: ↓ | M147: Improved
C148: scenario; | D148: Reduced | E148: Target | F148: ↓ | G148: scenario: | J148: scenario: | L148: ↓ | M148: scenario:
C149: starting | D149: by | E149: prevalence, | F149: ↓ | G149: deaths | J149: deaths | L149: ↓ | M149: lives saved
C150: prevalence | E150: reduced to | F150: ↓ | G150: / lives lost | L150: ↓
C151: (%) | D151: (proportion) | E151: (%) | F151: ↓ | G151: (number) | J151: (number) | L151: ↓ | M151: (number)
B152: Mild wasting at 0-59 months (% weight/height -1 to -2 SD) | C152: =IF(AND(C153<>"",C154<>"",C155<>""),Prev!C31,"") ->  | E152: =IF(AND(C158<>"",E158<>""),Prev!E31,"") ->  | F152: ↓ | L152: ↓
B153: Moderate wasting at 0-59 months (% weight/height -2 to -3 SD) | E153: =IF(AND(C158<>"",E158<>""),Prev!E32,"") ->  | F153: ↓ | L153: ↓
B154: Severe wasting at 0-59 months (% weight/height < -3 SD) | E154: =IF(AND(C158<>"",E158<>""),Prev!E33,"") ->  | F154: ↓ | L154: ↓
B155: Mean weight/height z-score at 0-59 months | F155: ↓ | L155: ↓
C157: Status quo scenario | D157: Reduced by | E157: Improved scenario | F157: ↓ | L157: ↓ | P157: Source(s) and Year(s)
B158: Moderate+ severe wasting at 0-59 months (% weight/height <-2 SD) | C158: =IF(C152<>"",Prev!C35,"") ->  | D158: =IF(AND(C158<>"",E158<>""),Prev!D35,"") ->  | G158: =IF(AND(F158=1,C158<>"",ISNUMBER(WHMort!K30)),WHMort!K30,"") ->  | J158: =IF(AND(G158<>"",M158<>""),G158-M158,"") ->  | M158: =IF(AND(L158=1,G158<>"",E158<>"",ISNUMBER(WHMort!P30)),WHMort!P30,"") -> 
F163: Enter 1 to view | L163: Enter 1 to view
F164: deaths in status | L164: lives saved in
F165: quo scenario | L165: improved scenario
F166: ↓ | L166: ↓
A167: Underweight | F167: ↓ | L167: ↓
A168: 0-59 months | C168: Status quo | D168: Improved scenario | F168: ↓ | G168: Status quo | J168: Improved | L168: ↓ | M168: Improved
C169: scenario; | D169: Reduced | E169: Target | F169: ↓ | G169: scenario: | J169: scenario: | L169: ↓ | M169: scenario:
C170: starting | D170: by | E170: prevalence, | F170: ↓ | G170: deaths | J170: deaths | L170: ↓ | M170: lives saved
C171: prevalence | E171: reduced to | F171: ↓ | G171: / lives lost | L171: ↓
C172: (%) | D172: (proportion) | E172: (%) | F172: ↓ | G172: (number) | J172: (number) | L172: ↓ | M172: (number)
B173: Mild underweight at 0-59 months (% weight/age -1 to -2 SD) | C173: =IF(AND(C174<>"",C175<>"",C176<>""),Prev!C13,"") ->  | E173: =IF(AND(C179<>"",E179<>""),Prev!E13,"") ->  | F173: ↓ | L173: ↓
B174: Moderate underweight at 0-59 months (% weight/age -2 to -3 SD) | E174: =IF(AND(C179<>"",E179<>""),Prev!E14,"") ->  | F174: ↓ | L174: ↓
B175: Severe underweight at 0-59 months (% weight/age < -3 SD) | E175: =IF(AND(C179<>"",E179<>""),Prev!E15,"") ->  | F175: ↓ | L175: ↓
B176: Mean weight/age z-score at 0-59 months | F176: ↓ | L176: ↓
C178: Status quo scenario | D178: Reduced by | E178: Improved scenario | F178: ↓ | L178: ↓ | P178: Source(s) and Year(s)
B179: Moderate + severe underweight at 0-59 months (% weight/age <-2 SD) | C179: =IF(C173<>"",Prev!C17,"") ->  | D179: =IF(AND(C179<>"",E179<>""),Prev!D17,"") ->  | G179: =IF(AND(F179=1,C179<>"",ISNUMBER(WAMort!K30)),WAMort!K30,"") ->  | J179: =IF(AND(G179<>"",M179<>""),G179-M179,"") ->  | M179: =IF(AND(L179=1,G179<>"",E179<>"",ISNUMBER(WAMort!P30)),WAMort!P30,"") -> 
A183: Part B.
A188: Overweight/obesity
C189: Status quo
C190: scenario;
C191: starting
C192: prevalence
C193: (%) | I193: Source(s) and Year(s)
B194: Overweight/obesity at 48-59 months (% weight/height > +2 SD)
C196: =IF(OR(C194>100,E194>100),"Greater than 100% entered - revise entry","") -> 
F197: Enter 1 to view | L197: Enter 1 to view
F198: children affected | L198: overwt./ob. averted
F199: in status quo scen. | L199: improved scenario
F200: ↓ | L200: ↓
A201: Breastfeeding | F201: ↓ | L201: ↓
A202: Suboptimal practices | C202: Status quo | D202: Improved scenario | F202: ↓ | G202: Status quo | J202: Improved | L202: ↓ | M202: Improved
A203: (4-5 months) | C203: scenario; | E203: Target | F203: ↓ | G203: scenario: | J203: scenario: | L203: ↓ | M203: scenario:
C204: starting | E204: prevalence, | F204: ↓ | G204: children | J204: children | L204: ↓ | M204: child
C205: prevalence | E205: changed to | F205: ↓ | G205: overweight | J205: overweight | L205: ↓ | M205: overweight
F206: ↓ | G206: / obese | J206: / obese | L206: ↓ | M206: / obesity averted
C207: (%) | E207: (%) | F207: ↓ | G207: (number) | J207: (number) | L207: ↓ | M207: (number) | P207: Source(s) and Year(s)
B208: Exclusive breastfeeding 4-5 months | G208: =IF(AND(F208=1,C208<>"",ISNUMBER(SBowob!F32)),SBowob!F32,"") ->  | J208: =IF(AND(G208<>"",M208<>""),SBowob!H32,"") ->  | M208: =IF(AND(L208=1,G208<>"",E208<>"",ISNUMBER(SBowob!I32)),SBowob!I32,"") -> 
C210: =IF(OR(C208>100,E208>100),"Greater than 100% entered - revise entry","") -> 
F213: Enter 1 to view | L213: Enter 1 to view
F214: deaths in status | L214: lives saved in
F215: quo scenario | L215: improved scenario
F216: ↓ | L216: ↓
A217: Breastfeeding initiation | F217: ↓ | L217: ↓
C218: Status quo | D218: Improved scenario | F218: ↓ | G218: Status quo | J218: Improved | L218: ↓ | M218: Improved
C219: scenario; | E219: Target | F219: ↓ | G219: scenario: | J219: scenario: | L219: ↓ | M219: scenario:
C220: starting | E220: prevalence, | F220: ↓ | G220: neonatal | J220: neonatal | M220: neonatal
C221: prevalence | E221: changed to | F221: ↓ | G221: deaths | J221: deaths | L221: ↓ | M221: lives saved
F222: ↓ | G222: / lives lost | L222: ↓
C223: (%) | E223: (%) | F223: ↓ | G223: (number) | J223: (number) | L223: ↓ | M223: (number)
B224: Breastfed within 1 hour | F224: ↓ | L224: ↓
F225: ↓ | L225: ↓
B226: Ever breastfed | F226: ↓ | L226: ↓
B227: Never breastfed | C227: =IF(C226<>"",100-C226,"") ->  | E227: =IF(E226<>"",100-E226,"") ->  | F227: ↓ | L227: ↓
B228: =IF(OR(C224>C226,E224>E226),"Ever breastfed must be greater than or same as breastfed within 1 hour","") ->  | P228: Source(s) and Year(s)
B229: =IF(OR(C224<0,C224>100,C226<0,C226>100,E224<0,E224>100,E226<0,E226>100),"Ever breastfed and breastfed within 1 hour: max 100%, min 0%","") ->  | G229: =IF(AND(F229=1,C224<>"",C226<>"",ISNUMBER('LIBmort (neonatal)'!I32),ISNUMBER('LIBmort (neonatal)'!F32)),('LIBmort (neonatal)'!F32+'LIBmort (neonatal)'!I32),"") ->  | J229: =IF(AND(G229<>"",M229<>""),('LIBmort (neonatal)'!G32+'LIBmort (neonatal)'!J32),"") ->  | M229: =IF(AND(L229=1,E224<>"",E226<>"",G229<>"",ISNUMBER('LIBmort (neonatal)'!N32)),('LIBmort (neonatal)'!N32),"") -> 
F239: Enter 1 to view | L239: Enter 1 to view
F240: deaths in status | L240: lives saved in
F241: quo scenario | L241: improved scenario
F242: ↓ | L242: ↓
A243: Breastfeeding | F243: ↓ | L243: ↓
A244: Suboptimal practices | C244: Status quo | D244: Improved scenario | F244: ↓ | G244: Status quo | J244: Improved | L244: ↓ | M244: Improved
A245: (0-5 months and 6-23 months) | C245: scenario; | E245: Target | F245: ↓ | G245: scenario: | J245: scenario: | L245: ↓ | M245: scenario:
C246: starting | E246: prevalence, | F246: ↓ | G246: deaths | J246: deaths | L246: ↓ | M246: lives saved
C247: prevalence | E247: changed to | F247: ↓ | G247: / lives lost | L247: ↓
C248: (%) | E248: (%) | F248: ↓ | G248: (number) | J248: (number) | L248: ↓ | M248: (number)
B249: Exclusive breastfeeding 0-5 months | F249: ↓ | L249: ↓
B250: Predominant breastfeeding 0-5 months | F250: ↓ | L250: ↓
B251: Partial breastfeeding 0-5 months | F251: ↓ | L251: ↓
B252: No breastfeeding 0-5 months | C252: =IF(AND(C249<>"",C250<>"",C251<>""),(100-(C249+C250+C251)),"") ->  | E252: =IF(AND(E249<>"",E250<>"",E251<>""),(100-(E249+E250+E251)),"") ->  | F252: ↓ | L252: ↓
F253: ↓ | L253: ↓
B254: Any breastfeeding 6-23 months | F254: ↓ | L254: ↓
B255: No breastfeeding 6-23 months | C255: =IF(C254<>"",(100-C254),"") ->  | E255: =IF(E254<>"",(100-E254),"") ->  | F255: ↓ | L255: ↓
B256: =IF(OR(SUM(C249:C251)>100,SUM(E249:E251)>100),"Sum of exclusive, predominant, partial cannot be reater than 100%","") ->  | P256: Source(s) and Year(s)
B257: =IF(OR(C254>100,E254>100),"Any breastfeeding cannot be greater than 100%","") ->  | G257: =IF(AND(F257=1,C249<>"",C250<>"",C251<>"",C254<>"",ISNUMBER(SBmort!I32)),SBmort!I32,"") ->  | J257: =IF(AND(G257<>"",M257<>""),G257-M257,"") ->  | M257: =IF(AND(L257=1,G257<>"",E249<>"",E250<>"",E251<>"",E254<>"",ISNUMBER(SBmort!N32)),SBmort!N32,"") -> 
F262: Enter 1 to view | L262: Enter 1 to view
F263: deaths in status | L263: lives saved in
F264: quo scenario | L264: improved scenario
F265: ↓ | L265: ↓
A266: Low birth weight | F266: ↓ | L266: ↓
C267: Status quo | D267: Improved scenario | F267: ↓ | G267: Status quo | J267: Improved | L267: ↓ | M267: Improved
C268: scenario; | D268: Reduced | E268: Target | F268: ↓ | G268: scenario: | J268: scenario: | L268: ↓ | M268: scenario:
C269: starting | D269: by | E269: prevalence, | F269: ↓ | G269: deaths | J269: deaths | L269: ↓ | M269: lives saved
C270: prevalence | E270: reduced to | F270: ↓ | G270: / lives lost | L270: ↓
C271: (%) | D271: (proportion) | E271: (%) | F271: ↓ | G271: (number) | J271: (number) | L271: ↓ | M271: (number) | P271: Source(s) and Year(s)
B272: Babies weighing <2500 g at birth (%) | D272: =IF(AND(C272<>"",E272<>""),Prev!D52,"") ->  | G272: =IF(AND(F272=1,C272<>"",ISNUMBER(LBWmort!G31),ISNUMBER(LBWmort!H31)),LBWmort!G31+LBWmort!H31,"") ->  | J272: =IF(AND(G272<>"",M272<>""),G272-M272,"") ->  | M272: =IF(AND(L272=1,G272<>"",E272<>"",ISNUMBER(LBWmort!P31)),LBWmort!P31,"") -> 
C274: =IF(OR(C272>100,E272>100),"Greater than 100% entered - revise entry","") -> 
A279: Part C.
F281: Enter 1 to view | L281: Enter 1 to view
F282: deaths in status | L282: lives saved in
F283: quo scenario | L283: improved scenario
F284: ↓ | L284: ↓
A285: Vitamin A | F285: ↓ | L285: ↓
A286: deficiency | C286: Status quo | D286: Improved scenario | F286: ↓ | G286: Status quo | J286: Improved | L286: ↓ | M286: Improved
C287: scenario; | D287: Reduced | E287: Target | F287: ↓ | G287: scenario: | J287: scenario: | L287: ↓ | M287: scenario:
C288: starting | D288: by | E288: prevalence, | F288: ↓ | G288: deaths | J288: deaths | L288: ↓ | M288: lives saved
C289: prevalence | E289: reduced to | F289: ↓ | G289: / lives lost | L289: ↓
C290: (%) | D290: (proportion) | E290: (%) | F290: ↓ | G290: (number) | J290: (number) | L290: ↓ | M290: (number) | P290: Source(s) and Year(s)
B291: Population 6-59 months with VAD including subclinical VAD (serum retinol<20) (%) | D291: =IF(AND(C291<>"",E291<>""),Prev!D38,"") ->  | G291: =IF(AND(F291=1,C291<>"",ISNUMBER('VADmort (Child)'!G30)),'VADmort (Child)'!G30,"") ->  | J291: =IF(AND(G291<>"",M291<>""),G291-M291,"") ->  | M291: =IF(AND(L291=1,G291<>"",E291<>"",ISNUMBER('VADmort (Child)'!J30)),'VADmort (Child)'!J30,"") -> 
C293: =IF(OR(C291>100,E291>100),"Greater than 100% entered - revise entry","") -> 
F296: Enter 1 to view | L296: Enter 1 to view
F297: maternal deaths in | L297: maternal lives saved
F298: status quo scenario | L298: in improved scenario
F299: ↓ | L299: ↓
A300: Maternal anemia | F300: ↓ | L300: ↓
A301: Maternal deaths | C301: Status quo | D301: Improved scenario | F301: ↓ | G301: Status quo | J301: Improved | L301: ↓ | M301: Improved
C302: scenario; | D302: Reduced | E302: Target | F302: ↓ | G302: scenario: | J302: scenario: | L302: ↓ | M302: scenario:
C303: starting | D303: by | E303: prevalence, | F303: ↓ | G303: maternal | J303: maternal | L303: ↓ | M303: maternal
... 154 more rows

Sheet TablesFigures
T1: =_xlfn.CONCAT("Reducing Malnutrition in ", FrontPage!$E$46,CHAR(10),"Report of Estimates to Support Nutrition Advocacy") -> Reducing Malnutrition in Report of Estimates to Support Nutrition Advocacy
T2: =CONCATENATE(FrontPage!$E$46," PROFILES (",FrontPage!$E$47," to ",FrontPage!$E$48,")") -> PROFILES ( to )
B11: METHODS TABLE 1.
B12: Estimating Reductions in Death and Disability
B14: Anthropometry | C14: Status quo scenario: starting prevalence (%) | D14: Improved scenario: target reduced by | E14: Improved scenario: target prevalence- reduced to (%)
B16: Stunting (0-59 months) - mild | C16: =FrontPage!$C$114/100 ->  | E16: =FrontPage!$E$114/100 -> 
B17: Stunting (0-59 months) - moderate | C17: =FrontPage!$C$115/100 -> 0 | E17: =FrontPage!$E$115/100 -> 
B18: Stunting (0-59 months) - severe | C18: =FrontPage!$C$116/100 -> 0 | E18: =FrontPage!$E$116/100 -> 
B19: Stunting (0-59 months) - moderate+severe | C19: =FrontPage!$C$120/100 ->  | D19: =FrontPage!$D$120 ->  | E19: =FrontPage!$E$120/100 -> 0
B20: Mean height/age z-score at 0-59 months | C20: =FrontPage!$C$117 -> 0
B22: Underweight (0-59 months) - mild | C22: =FrontPage!$C$173/100 ->  | E22: =FrontPage!$E$173/100 -> 
B23: Underweight (0-59 months) - moderate | C23: =FrontPage!$C$174/100 -> 0 | E23: =FrontPage!$E$174/100 -> 
B24: Underweight (0-59 months) - severe | C24: =FrontPage!$C$175/100 -> 0 | E24: =FrontPage!$E$175/100 -> 
B25: Underweight (0-59 months) - moderate+severe | C25: =FrontPage!$C$179/100 ->  | D25: =FrontPage!$D$179 ->  | E25: =FrontPage!$E$179/100 -> 0
B26: Mean weight/age z-score at 0-59 months | C26: =FrontPage!$C$176 -> 0
B28: Wasting (0-59 months) - mild | C28: =FrontPage!$C$152/100 ->  | E28: =FrontPage!$E$152/100 ->  | H28: return to the top
B29: Wasting (0-59 months) - moderate | C29: =FrontPage!$C$153/100 -> 0 | E29: =FrontPage!$E$153/100 -> 
B30: Wasting (0-59 months) - severe | C30: =FrontPage!$C$154/100 -> 0 | E30: =FrontPage!$E$154/100 -> 
B31: Wasting (0-59 months) - moderate+severe | C31: =FrontPage!$C$158/100 ->  | D31: =FrontPage!$D$158 ->  | E31: =FrontPage!$E$158/100 -> 0
B32: Mean weight/height z-score at 0-59 months | C32: =FrontPage!$C$155 -> 0
B34: Micronutrients
B35: Anemia among pregnant women | C35: =FrontPage!$C$306/100 -> 0 | D35: =FrontPage!$D$306 ->  | E35: =FrontPage!$E$306/100 -> 0
B37: Children 6–59 months with VAD (including subclinical) | C37: =FrontPage!$C$291/100 -> 0 | D37: =FrontPage!$D$291 ->  | E37: =FrontPage!$E$291/100 -> 0
B39: Population with goiter (%) | C39: =FrontPage!$C$335/100 -> 0 | D39: =FrontPage!$D$335 ->  | E39: =FrontPage!$E$335/100 -> 0
B41: METHODS TABLE 1. Continued
B42: Estimating Reductions in Death and Disability
B44: Breastfeeding Practices | C44: Status quo scenario: starting prevalence (%) | D44: Improved scenario: target reduced by | E44: Improved scenario: target prevalence- reduced to (%)
B45: Exclusive breastfeeding 4-5 months | C45: =FrontPage!$C$208/100 -> 0 | E45: =FrontPage!$E$208/100 -> 0
B46: Predominant breastfeeding 0-5 months | C46: =FrontPage!$C$250/100 -> 0 | E46: =FrontPage!$E$250/100 -> 0
B47: Partial breastfeeding 0-5 months | C47: =FrontPage!$C$251/100 -> 0 | E47: =FrontPage!$E$251/100 -> 0
B48: No breastfeeding 0-5 months | C48: =FrontPage!$C$252/100 ->  | E48: =FrontPage!$E$252/100 -> 
B49: Any breastfeeding 6-23 months | C49: =FrontPage!$C$254/100 -> 0 | E49: =FrontPage!$E$254/100 -> 0
B50: No breastfeeding 6-23 months | C50: =FrontPage!$C$255/100 ->  | E50: =FrontPage!$E$255/100 -> 
B52: Low birth weight | C52: =FrontPage!$C$272/100 -> 0 | D52: =FrontPage!$D$272 ->  | E52: =FrontPage!$E$272/100 -> 0
H53: return to the top
B57: METHODS TABLE 2.
B58: Estimating Losses and Gains in Economic Productivity
C60: Status quo scenario: starting prevalence (%) | D60: Improved scenario: target reduced by | E60: Improved scenario: target prevalence- reduced to (%)
B61: Stunting (24-35 months) - moderate | C61: =FrontPage!$C$411/100 ->  | E61: =FrontPage!$E$411/100 -> 
B62: Stunting (24-35 months) - severe | C62: =FrontPage!$C$412/100 ->  | E62: =FrontPage!$E$412/100 -> 
B63: Stunting (24-35 months) - moderate+severe | C63: =FrontPage!$C$413/100 ->  | D63: =FrontPage!$D$413 ->  | E63: =FrontPage!$E$413/100 -> 
B64: Mean height/age z-score at 24-35 months | C64: =FrontPage!C134 -> 0
B66: Non-pregnant women 15–49 years with anemia | C66: =FrontPage!$C$373/100 -> 0 | D66: =FrontPage!$D$373 ->  | E66: =FrontPage!$E$373/100 -> 0
B67: Men 15-64 years with anemia | C67: =FrontPage!$C$374/100 -> 0 | D67: =FrontPage!$D$374 ->  | E67: =FrontPage!$E$374/100 -> 0
B68: Children 6-59 months with anemia | C68: =FrontPage!$C$391/100 -> 0 | D68: =FrontPage!$D$391 ->  | E68: =FrontPage!$E$391/100 -> 0
B69: Children 5-14 years with anemia | C69: =FrontPage!$C$392/100 -> 0 | D69: =FrontPage!$D$392 ->  | E69: =FrontPage!$E$392/100 -> 0
B71: Population with goiter (%) | C71: =FrontPage!$C$354/100 ->  | D71: =FrontPage!$D$354 ->  | E71: =FrontPage!$E$354/100 -> 
H73: return to the top
B75: METHODS TABLE 3.
B76: Estimating Human Capital Losses and Gains in Terms of Learning
C78: Status quo scenario: starting prevalence (%) | D78: Improved scenario: target reduced by | E78: Improved scenario: target prevalence- reduced to (%)
B79: Stunting (24-35 months) - moderate | C79: =FrontPage!$C$411/100 ->  | E79: =FrontPage!$E$411/100 -> 
B80: Stunting (24-35 months) - severe | C80: =FrontPage!$C$412/100 ->  | E80: =FrontPage!$E$412/100 -> 
B81: Stunting (24-35 months) - moderate+severe | C81: =FrontPage!$C$413/100 ->  | D81: =FrontPage!$D$413 ->  | E81: =FrontPage!$E$413/100 -> 
B88: METHODS TABLE 4.
B89: Estimating the Losses and Gains Related to Two Risk Factors for Stunting
C91: Status quo scenario: starting prevalence (%) | D91: Improved scenario: target prevalence- reduced to (%)
B92: Inadequate Dietary Diversity
B93: Inadequate dietary diversity (fewer than 4 foodgroups) 6-23 months (%) | C93: =FrontPage!$G$483/100 -> 0 | D93: =FrontPage!$J$483/100 -> 0 | H93: return to the top
B95: Teenage Pregnancy
B96: Children with mothers <20 years of age at child's birth (%) | C96: =FrontPage!$G$505/100 -> 0 | D96: =FrontPage!$J$505/100 -> 0
B105: RESULTS TABLE 1.
B106: Deaths Attributable to Various Nutrition Problems and Lives Saved Related to Improved Nutrition over the Course of the Time Period
D108: DEATHS if current situation continues | E108: How to refer to the status quo/losses | F108: LIVES SAVED if nutrition situation improves | G108: How to refer to the gains
B109: Anthropometric indicators | C109: Health Outcome | D109: Status quo scenario | F109: Improved scenario
B110: Stunting (severe, moderate, and mild) among children < 5 years of age | C110: Under-five mortality | D110: =FrontPage!$G$120 ->  | E110: Total number of under-5 child deaths related to stunting over the course of the time period | F110: =FrontPage!$M$120 ->  | G110: Total number of under-5 child lives that will be saved by reducing stunting over the course of the time period
B111: Wasting (severe, moderate, and mild) among children < 5 years of age | C111: Under-five mortality | D111: =FrontPage!$G$158 ->  | E111: Total number of under-5 child deaths related to wasting over the course of the time period | F111: =FrontPage!$M$158 ->  | G111: Total number of under-5 child lives that will be saved by reducing wasting over the course of the time period | H111: return to the top
B112: Underweight (severe, moderate, and mild) among children < 5 years of age | C112: Under-five mortality | D112: =FrontPage!$G$179 ->  | E112: Total number of under-5 child deaths related to underweight over the course of the time period | F112: =FrontPage!$M$179 ->  | G112: Total number of under-5 child lives that will be saved by reducing underweight over the course of the time period
B113: Sub-optimal breastfeeding practices | C113: Under-two mortality | D113: =FrontPage!$G$257 ->  | E113: Total number of under-2 child deaths related to suboptimal breastfeeding over the course of the time period | F113: =FrontPage!$M$257 ->  | G113: Total number of under-2 child lives that will be saved by reducing suboptimal breastfeeding over the course of the time period
D114: DEATHS if current situation continues | E114: How to refer to the status quo/losses | F114: LIVES SAVED if nutrition situation improves | G114: How to refer to the gains
C115: Health Outcome | D115: Status quo scenario | F115: Improved scenario
B116: Late initiation of breastfeeding | C116: Neonatal mortality | D116: =FrontPage!$G$229 ->  | E116: Total number of neonatal deaths related to the late initiation of breastfeeding over the course of the time period | F116: =FrontPage!$M$229 ->  | G116: Total number of neonatal deaths that will be averted by reducing the late initiation of breastfeeding over the course of the time period
B117: Low birth weight | C117: Infant mortality | D117: =FrontPage!$G$272 ->  | E117: Total number of infant deaths related to low birth weight over the course of the time period | F117: =FrontPage!$M$272 ->  | G117: Total number of infant lives saved by reducing low birth weight over the course of the time period
B118: Vitamin A deficiency | C118: Under-five mortality | D118: =FrontPage!$G$291 ->  | E118: Total number of under-5 child deaths related to vitamin A deficiency over the course of the time period | F118: =FrontPage!$M$291 ->  | G118: Total number of under-5 child lives saved by reducing vitamin A deficiency over the course of the time period
B119: Maternal Anemia | C119: Maternal mortality | D119: =FrontPage!$G$306 ->  | E119: Total number of maternal deaths related to maternal anemia over the course of the time period | F119: =FrontPage!$M$306 ->  | G119: Total number of maternal lives that will be saved by reducing maternal anemia over the course of the time period
B120: Maternal Anemia | C120: Perinatal mortality | D120: =FrontPage!$G$320 ->  | E120: Total number of perinatal deaths related to maternal anemia over the course of the time period | F120: =FrontPage!$M$320 ->  | G120: Total number of perinatal deaths that will be averted by reducing maternal anemia over the course of the time period
B123: RESULTS FIGURE 1a.
B124: Status Quo Scenario: Number of Deaths for Children under 5 Years of Age Related to Stunting over the Course of the Time Period
B144: Year | C144: severe (N) | D144: moderate(N) | E144: mild (N)
B145: =HAMort!$B$8 ->  | C145: =HAMort!$J$8 -> 0 | D145: =HAMort!$I$8 -> 0 | E145: =HAMort!$H$8 -> 0
B146: =HAMort!$B$9 ->  | C146: =HAMort!$J$9 -> 0 | D146: =HAMort!$I$9 -> 0 | E146: =HAMort!$H$9 -> 0
B147: =HAMort!$B$10 ->  | C147: =HAMort!$J$10 -> 0 | D147: =HAMort!$I$10 -> 0 | E147: =HAMort!$H$10 -> 0
B148: =HAMort!$B$11 ->  | C148: =HAMort!$J$11 -> 0 | D148: =HAMort!$I$11 -> 0 | E148: =HAMort!$H$11 -> 0
B149: =HAMort!$B$12 ->  | C149: =HAMort!$J$12 -> 0 | D149: =HAMort!$I$12 -> 0 | E149: =HAMort!$H$12 -> 0
B150: =HAMort!$B$13 ->  | C150: =HAMort!$J$13 -> 0 | D150: =HAMort!$I$13 -> 0 | E150: =HAMort!$H$13 -> 0
B151: =HAMort!$B$14 ->  | C151: =HAMort!$J$14 -> 0 | D151: =HAMort!$I$14 -> 0 | E151: =HAMort!$H$14 -> 0 | G151: return to the top
B152: =HAMort!$B$15 ->  | C152: =HAMort!$J$15 -> 0 | D152: =HAMort!$I$15 -> 0 | E152: =HAMort!$H$15 -> 0
B153: =HAMort!$B$16 ->  | C153: =HAMort!$J$16 -> 0 | D153: =HAMort!$I$16 -> 0 | E153: =HAMort!$H$16 -> 0
B154: =HAMort!$B$17 ->  | C154: =HAMort!$J$17 -> 0 | D154: =HAMort!$I$17 -> 0 | E154: =HAMort!$H$17 -> 0
B155: =HAMort!$B$18 ->  | C155: =HAMort!$J$18 -> 0 | D155: =HAMort!$I$18 -> 0 | E155: =HAMort!$H$18 -> 0
B156: =HAMort!$B$19 ->  | C156: =HAMort!$J$19 -> 0 | D156: =HAMort!$I$19 -> 0 | E156: =HAMort!$H$19 -> 0
B157: =HAMort!$B$20 ->  | C157: =HAMort!$J$20 -> 0 | D157: =HAMort!$I$20 -> 0 | E157: =HAMort!$H$20 -> 0
B158: =HAMort!$B$21 ->  | C158: =HAMort!$J$21 -> 0 | D158: =HAMort!$I$21 -> 0 | E158: =HAMort!$H$21 -> 0
B159: =HAMort!$B$22 ->  | C159: =HAMort!$J$22 -> 0 | D159: =HAMort!$I$22 -> 0 | E159: =HAMort!$H$22 -> 0
B160: =HAMort!$B$23 ->  | C160: =HAMort!$J$23 -> 0 | D160: =HAMort!$I$23 -> 0 | E160: =HAMort!$H$23 -> 0
B161: =HAMort!$B$24 ->  | C161: =HAMort!$J$24 -> 0 | D161: =HAMort!$I$24 -> 0 | E161: =HAMort!$H$24 -> 0
B162: =HAMort!$B$25 ->  | C162: =HAMort!$J$25 -> 0 | D162: =HAMort!$I$25 -> 0 | E162: =HAMort!$H$25 -> 0
B163: =HAMort!$B$26 ->  | C163: =HAMort!$J$26 -> 0 | D163: =HAMort!$I$26 -> 0 | E163: =HAMort!$H$26 -> 0
B164: =HAMort!$B$27 ->  | C164: =HAMort!$J$27 -> 0 | D164: =HAMort!$I$27 -> 0 | E164: =HAMort!$H$27 -> 0
B167: RESULTS FIGURE 1b.
B168: Improved Scenario: Decreasing Number of Deaths for Children under 5 Years of Age Related to Reduced Stunting over the Course of the Time Period
B189: In the time period [insert first year of time period] to [insert last year of time period], [insert number] deaths related to stunting could be averted | E189: =F110 -> 
B191: Year | C191: severe (N) | D191: moderate (N) | E191: mild (N)
B192: =HAMort!$B$8 ->  | C192: =HAMort!$J$8-HAMort!$O$8 ->  | D192: =HAMort!$I$8-HAMort!$N$8 ->  | E192: =HAMort!$H$8-HAMort!$M$8 -> 0 | H192: return to the top
B193: =HAMort!$B$9 ->  | C193: =HAMort!$J$9-HAMort!$O$9 ->  | D193: =HAMort!$I$9-HAMort!$N$9 ->  | E193: =HAMort!$H$9-HAMort!$M$9 -> 0
B194: =HAMort!$B$10 ->  | C194: =HAMort!$J$10-HAMort!$O$10 ->  | D194: =HAMort!$I$10-HAMort!$N$10 ->  | E194: =HAMort!$H$10-HAMort!$M$10 -> 0
B195: =HAMort!$B$11 ->  | C195: =HAMort!$J$11-HAMort!$O$11 ->  | D195: =HAMort!$I$11-HAMort!$N$11 ->  | E195: =HAMort!$H$11-HAMort!$M$11 -> 0
B196: =HAMort!$B$12 ->  | C196: =HAMort!$J$12-HAMort!$O$12 ->  | D196: =HAMort!$I$12-HAMort!$N$12 ->  | E196: =HAMort!$H$12-HAMort!$M$12 -> 0
B197: =HAMort!$B$13 ->  | C197: =HAMort!$J$13-HAMort!$O$13 ->  | D197: =HAMort!$I$13-HAMort!$N$13 ->  | E197: =HAMort!$H$13-HAMort!$M$13 -> 0
B198: =HAMort!$B$14 ->  | C198: =HAMort!$J$14-HAMort!$O$14 ->  | D198: =HAMort!$I$14-HAMort!$N$14 ->  | E198: =HAMort!$H$14-HAMort!$M$14 -> 0
B199: =HAMort!$B$15 ->  | C199: =HAMort!$J$15-HAMort!$O$15 ->  | D199: =HAMort!$I$15-HAMort!$N$15 ->  | E199: =HAMort!$H$15-HAMort!$M$15 -> 0
B200: =HAMort!$B$16 ->  | C200: =HAMort!$J$16-HAMort!$O$16 ->  | D200: =HAMort!$I$16-HAMort!$N$16 ->  | E200: =HAMort!$H$16-HAMort!$M$16 -> 0
B201: =HAMort!$B$17 ->  | C201: =HAMort!$J$17-HAMort!$O$17 ->  | D201: =HAMort!$I$17-HAMort!$N$17 ->  | E201: =HAMort!$H$17-HAMort!$M$17 -> 0
B202: =HAMort!$B$18 ->  | C202: =HAMort!$J$18-HAMort!$O$18 ->  | D202: =HAMort!$I$18-HAMort!$N$18 ->  | E202: =HAMort!$H$18-HAMort!$M$18 -> 0
B203: =HAMort!$B$19 ->  | C203: =HAMort!$J$19-HAMort!$O$19 ->  | D203: =HAMort!$I$19-HAMort!$N$19 ->  | E203: =HAMort!$H$19-HAMort!$M$19 -> 0
B204: =HAMort!$B$20 ->  | C204: =HAMort!$J$20-HAMort!$O$20 ->  | D204: =HAMort!$I$20-HAMort!$N$20 ->  | E204: =HAMort!$H$20-HAMort!$M$20 -> 0
B205: =HAMort!$B$21 ->  | C205: =HAMort!$J$21-HAMort!$O$21 ->  | D205: =HAMort!$I$21-HAMort!$N$21 ->  | E205: =HAMort!$H$21-HAMort!$M$21 -> 0
B206: =HAMort!$B$22 ->  | C206: =HAMort!$J$22-HAMort!$O$22 ->  | D206: =HAMort!$I$22-HAMort!$N$22 ->  | E206: =HAMort!$H$22-HAMort!$M$22 -> 0
B207: =HAMort!$B$23 ->  | C207: =HAMort!$J$23-HAMort!$O$23 ->  | D207: =HAMort!$I$23-HAMort!$N$23 ->  | E207: =HAMort!$H$23-HAMort!$M$23 -> 0
B208: =HAMort!$B$24 ->  | C208: =HAMort!$J$24-HAMort!$O$24 ->  | D208: =HAMort!$I$24-HAMort!$N$24 ->  | E208: =HAMort!$H$24-HAMort!$M$24 -> 0
B209: =HAMort!$B$25 ->  | C209: =HAMort!$J$25-HAMort!$O$25 ->  | D209: =HAMort!$I$25-HAMort!$N$25 ->  | E209: =HAMort!$H$25-HAMort!$M$25 -> 0
B210: =HAMort!$B$26 ->  | C210: =HAMort!$J$26-HAMort!$O$26 ->  | D210: =HAMort!$I$26-HAMort!$N$26 ->  | E210: =HAMort!$H$26-HAMort!$M$26 -> 0
B211: =HAMort!$B$27 ->  | C211: =HAMort!$J$27-HAMort!$O$27 ->  | D211: =HAMort!$I$27-HAMort!$N$27 ->  | E211: =HAMort!$H$27-HAMort!$M$27 -> 0
B217: RESULTS FIGURE 2a.
B218: Status Quo Scenario: Number of Deaths for Children under 5 Years of Age Related to Wasting over the Course of the Time Period
B235: Year | C235: severe (N) | D235: moderate (N) | E235: mild (N)
B236: =WHMort!$B$8 ->  | C236: =WHMort!$J$8 -> 0 | D236: =WHMort!$I$8 -> 0 | E236: =WHMort!$H$8 -> 0
B237: =WHMort!$B$9 ->  | C237: =WHMort!$J$9 -> 0 | D237: =WHMort!$I$9 -> 0 | E237: =WHMort!$H$9 -> 0
B238: =WHMort!$B$10 ->  | C238: =WHMort!$J$10 -> 0 | D238: =WHMort!$I$10 -> 0 | E238: =WHMort!$H$10 -> 0
B239: =WHMort!$B$11 ->  | C239: =WHMort!$J$11 -> 0 | D239: =WHMort!$I$11 -> 0 | E239: =WHMort!$H$11 -> 0
B240: =WHMort!$B$12 ->  | C240: =WHMort!$J$12 -> 0 | D240: =WHMort!$I$12 -> 0 | E240: =WHMort!$H$12 -> 0
B241: =WHMort!$B$13 ->  | C241: =WHMort!$J$13 -> 0 | D241: =WHMort!$I$13 -> 0 | E241: =WHMort!$H$13 -> 0
B242: =WHMort!$B$14 ->  | C242: =WHMort!$J$14 -> 0 | D242: =WHMort!$I$14 -> 0 | E242: =WHMort!$H$14 -> 0
B243: =WHMort!$B$15 ->  | C243: =WHMort!$J$15 -> 0 | D243: =WHMort!$I$15 -> 0 | E243: =WHMort!$H$15 -> 0
B244: =WHMort!$B$16 ->  | C244: =WHMort!$J$16 -> 0 | D244: =WHMort!$I$16 -> 0 | E244: =WHMort!$H$16 -> 0
B245: =WHMort!$B$17 ->  | C245: =WHMort!$J$17 -> 0 | D245: =WHMort!$I$17 -> 0 | E245: =WHMort!$H$17 -> 0 | H245: return to the top
B246: =WHMort!$B$18 ->  | C246: =WHMort!$J$18 -> 0 | D246: =WHMort!$I$18 -> 0 | E246: =WHMort!$H$18 -> 0
B247: =WHMort!$B$19 ->  | C247: =WHMort!$J$19 -> 0 | D247: =WHMort!$I$19 -> 0 | E247: =WHMort!$H$19 -> 0
B248: =WHMort!$B$20 ->  | C248: =WHMort!$J$20 -> 0 | D248: =WHMort!$I$20 -> 0 | E248: =WHMort!$H$20 -> 0
B249: =WHMort!$B$21 ->  | C249: =WHMort!$J$21 -> 0 | D249: =WHMort!$I$21 -> 0 | E249: =WHMort!$H$21 -> 0
B250: =WHMort!$B$22 ->  | C250: =WHMort!$J$22 -> 0 | D250: =WHMort!$I$22 -> 0 | E250: =WHMort!$H$22 -> 0
B251: =WHMort!$B$23 ->  | C251: =WHMort!$J$23 -> 0 | D251: =WHMort!$I$23 -> 0 | E251: =WHMort!$H$23 -> 0
B252: =WHMort!$B$24 ->  | C252: =WHMort!$J$24 -> 0 | D252: =WHMort!$I$24 -> 0 | E252: =WHMort!$H$24 -> 0
B253: =WHMort!$B$25 ->  | C253: =WHMort!$J$25 -> 0 | D253: =WHMort!$I$25 -> 0 | E253: =WHMort!$H$25 -> 0
B254: =WHMort!$B$26 ->  | C254: =WHMort!$J$26 -> 0 | D254: =WHMort!$I$26 -> 0 | E254: =WHMort!$H$26 -> 0
B255: =WHMort!$B$27 ->  | C255: =WHMort!$J$27 -> 0 | D255: =WHMort!$I$27 -> 0 | E255: =WHMort!$H$27 -> 0
B260: RESULTS FIGURE 2b.
B261: Improved Scenario: Decreasing Number of Deaths for Children under 5 Years of Age Related to Reduced Wasting over the Course of the Time Period
B280: In the time period [insert first year of time period] to [insert last year of time period], [insert number] deaths related to wasting could be averted | E280: =$F$111 -> 
H281: return to the top
B282: Year | C282: severe (N) | D282: moderate (N) | E282: mild (N)
B283: =WHMort!$B$8 ->  | C283: =WHMort!$J$8-WHMort!$O$8 ->  | D283: =WHMort!$I$8-WHMort!$N$8 ->  | E283: =WHMort!$H$8-WHMort!$M$8 -> 0
B284: =WHMort!$B$9 ->  | C284: =WHMort!$J$9-WHMort!$O$9 ->  | D284: =WHMort!$I$9-WHMort!$N$9 ->  | E284: =WHMort!$H$9-WHMort!$M$9 -> 0
B285: =WHMort!$B$10 ->  | C285: =WHMort!$J$10-WHMort!$O$10 ->  | D285: =WHMort!$I$10-WHMort!$N$10 ->  | E285: =WHMort!$H$10-WHMort!$M$10 -> 0
B286: =WHMort!$B$11 ->  | C286: =WHMort!$J$11-WHMort!$O$11 ->  | D286: =WHMort!$I$11-WHMort!$N$11 ->  | E286: =WHMort!$H$11-WHMort!$M$11 -> 0
B287: =WHMort!$B$12 ->  | C287: =WHMort!$J$12-WHMort!$O$12 ->  | D287: =WHMort!$I$12-WHMort!$N$12 ->  | E287: =WHMort!$H$12-WHMort!$M$12 -> 0
B288: =WHMort!$B$13 ->  | C288: =WHMort!$J$13-WHMort!$O$13 ->  | D288: =WHMort!$I$13-WHMort!$N$13 ->  | E288: =WHMort!$H$13-WHMort!$M$13 -> 0
B289: =WHMort!$B$14 ->  | C289: =WHMort!$J$14-WHMort!$O$14 ->  | D289: =WHMort!$I$14-WHMort!$N$14 ->  | E289: =WHMort!$H$14-WHMort!$M$14 -> 0
B290: =WHMort!$B$15 ->  | C290: =WHMort!$J$15-WHMort!$O$15 ->  | D290: =WHMort!$I$15-WHMort!$N$15 ->  | E290: =WHMort!$H$15-WHMort!$M$15 -> 0
B291: =WHMort!$B$16 ->  | C291: =WHMort!$J$16-WHMort!$O$16 ->  | D291: =WHMort!$I$16-WHMort!$N$16 ->  | E291: =WHMort!$H$16-WHMort!$M$16 -> 0
B292: =WHMort!$B$17 ->  | C292: =WHMort!$J$17-WHMort!$O$17 ->  | D292: =WHMort!$I$17-WHMort!$N$17 ->  | E292: =WHMort!$H$17-WHMort!$M$17 -> 0
B293: =WHMort!$B$18 ->  | C293: =WHMort!$J$18-WHMort!$O$18 ->  | D293: =WHMort!$I$18-WHMort!$N$18 ->  | E293: =WHMort!$H$18-WHMort!$M$18 -> 0
B294: =WHMort!$B$19 ->  | C294: =WHMort!$J$19-WHMort!$O$19 ->  | D294: =WHMort!$I$19-WHMort!$N$19 ->  | E294: =WHMort!$H$19-WHMort!$M$19 -> 0
B295: =WHMort!$B$20 ->  | C295: =WHMort!$J$20-WHMort!$O$20 ->  | D295: =WHMort!$I$20-WHMort!$N$20 ->  | E295: =WHMort!$H$20-WHMort!$M$20 -> 0
B296: =WHMort!$B$21 ->  | C296: =WHMort!$J$21-WHMort!$O$21 ->  | D296: =WHMort!$I$21-WHMort!$N$21 ->  | E296: =WHMort!$H$21-WHMort!$M$21 -> 0
B297: =WHMort!$B$22 ->  | C297: =WHMort!$J$22-WHMort!$O$22 ->  | D297: =WHMort!$I$22-WHMort!$N$22 ->  | E297: =WHMort!$H$22-WHMort!$M$22 -> 0
B298: =WHMort!$B$23 ->  | C298: =WHMort!$J$23-WHMort!$O$23 ->  | D298: =WHMort!$I$23-WHMort!$N$23 ->  | E298: =WHMort!$H$23-WHMort!$M$23 -> 0
B299: =WHMort!$B$24 ->  | C299: =WHMort!$J$24-WHMort!$O$24 ->  | D299: =WHMort!$I$24-WHMort!$N$24 ->  | E299: =WHMort!$H$24-WHMort!$M$24 -> 0
B300: =WHMort!$B$25 ->  | C300: =WHMort!$J$25-WHMort!$O$25 ->  | D300: =WHMort!$I$25-WHMort!$N$25 ->  | E300: =WHMort!$H$25-WHMort!$M$25 -> 0
B301: =WHMort!$B$26 ->  | C301: =WHMort!$J$26-WHMort!$O$26 ->  | D301: =WHMort!$I$26-WHMort!$N$26 ->  | E301: =WHMort!$H$26-WHMort!$M$26 -> 0
B302: =WHMort!$B$27 ->  | C302: =WHMort!$J$27-WHMort!$O$27 ->  | D302: =WHMort!$I$27-WHMort!$N$27 ->  | E302: =WHMort!$H$27-WHMort!$M$27 -> 0
B305: RESULTS TABLE 2.
B306: Effect of Suboptimal Breastfeeding Practices on Overweight/ Obesity in Preschool Children (48–59 Months of Age) over the Course of the Time Period
B308: Input — nutrition indicator | C308: Output — development outcome | D308: Number of children 48–59 months of age likely to become overweight / obese related to suboptimal breastfeeding practices | E308: How to refer to the status quo/ losses | F308: Number of children 48–59 months of age prevented from becoming overweight / obese related to improved breastfeeding practices | G308: How to refer to the gains
C309: Health Outcome | D309: Status quo scenario | F309: Improved scenario
B310: Suboptimal breastfeeding practices | C310: Child overweight / obesity among children aged 48-59 months | D310: =FrontPage!$G$208 ->  | E310: Total number of children who may become overweight / obese related to suboptimal breastfeeding practices over the course of time period | F310: =FrontPage!$M$208 ->  | G310: Total number of children for whom overweight / obesity is prevented by reducing suboptimal breastfeeding practices over the course of the time period
B313: RESULTS TABLE 3. | H313: return to the top
B314: Effect of Iodine Deficiency during Pregnancy on Child Development and Disability over the Course of the Time Period
B316: Input—nutrition indicator | C316: Output—development outcome | D316: Number of children born during the time period with permanent disabilities related to mother's iodine deficiency during pregnancy | E316: How to refer to the status quo/ losses | F316: Number of children born during the time period with permanent disabilities averted related a reduction in iodine deficiency during pregnancy | G316: How to refer to the gains
C317: Health Outcome | D317: Status quo scenario | F317: Improved scenario
B318: Iodine deficiency during pregnancy | C318: Permanent disabilities and developmental delays among children born during the time period | D318: =FrontPage!$G$335 ->  | E318: Total number of permanent disabilities related to iodine deficiency in pregnancy over the course of the time period | F318: =FrontPage!$M$335 ->  | G318: Total number of permanent disabilities averted by reducing iodine deficiency in pregnancy over the course of the time period
H319: return to the top
B321: RESULTS TABLE 4.
B322: Human Capital Losses and Gains in Terms of Learning over the Course of the Time Period
C324: Human Capital Outcome | D324: Losses in learning if the current situation continues | E324: How to refer to the status quo/losses | F324: Gains in learning if nutrition situation improves | G324: How to refer to the gains
D325: Status quo scenario by the end of the time period | F325: Improved scenario by the end of the time period
D326: Lost equivalent school years of learning (millions) | F326: Gained equivalent school years of learning (millions)
B327: Stunting | C327: Learning ability among children aged 24-35 months | D327: =FrontPage!$G$452 ->  | E327: Total net present equivalent school years of learning lost related to stunting over the course of the time period | F327: =FrontPage!$M$452 ->  | G327: Total net present equivalent school years of learning that will be gained if stunting is reduced as indicated over the course of the time period
H328: return to the top
B330: RESULTS FIGURE 3.
B331: Improved Scenario: Human Capital Gains in Terms of Learning Related to a Reduction in Stunting Over the Course of the Time Period
H348: return to the top
B351: In the period [insert first year of time period] to [insert last year of time period], [insert number] million equivalent school years of learning gained related to a reduction in stunting. | D351: =STUNTeduc!$J$30 -> 0
B354: Average number of equivalent school years of learning gained per child 2 years of age in final year of the time period by the time they reach the age corresponding to the end of the primary school years: | D354: =STUNTeduc!$M$30 -> 
B356: Year | C356: Status quo scenario | D356: Improved scenario losses
B357: =STUNTeduc!$B$8 ->  | C357: =STUNTeduc!$I$8 -> 0 | D357: =STUNTeduc!$L$8 -> 0
B358: =STUNTeduc!$B$9 ->  | C358: =STUNTeduc!$I$9 -> 0 | D358: =STUNTeduc!$L$9 -> 0
B359: =STUNTeduc!$B$10 ->  | C359: =STUNTeduc!$I$10 -> 0 | D359: =STUNTeduc!$L$10 -> 0
B360: =STUNTeduc!$B$11 ->  | C360: =STUNTeduc!$I$11 -> 0 | D360: =STUNTeduc!$L$11 -> 0
B361: =STUNTeduc!$B$12 ->  | C361: =STUNTeduc!$I$12 -> 0 | D361: =STUNTeduc!$L$12 -> 0
... 132 more rows

Sheet Prev (hidden)
A2: PROFILES Calculator of
A3: the Consequences of Malnutrition in
A4: =FrontPage!A7 -> 
A6: Nutrition Prevalence Data
B10: definition | C10: data | D10: reduced by | E10: target | F10: source (data) | G10: source (target) | H10: Remarks
B12: GROWTH FALTERING
B13: Mild Underweight at 0-59 months (% Weight/Age -1 to -2 SD) | C13: =100*_xlfn.NORM.DIST(-1-C16,0,Rel!C27,TRUE)-C14-C15 -> 15.62234492 | E13: =100*_xlfn.NORM.DIST(-1-E16,0,Rel!C31,TRUE)-E14-E15 -> 
B14: Mod. Underweight at 0-59 months (% Weight/Age -2 to -3 SD) | C14: =FrontPage!C174 -> 0 | E14: =100*_xlfn.NORM.DIST(-2-E16,0,Rel!C31,TRUE)-E15 -> 
B15: Severe Underweight at 0-59 months (% Weight/Age < -3 SD) | C15: =FrontPage!C175 -> 0 | E15: =100*_xlfn.NORM.DIST(-3-E16,0,Rel!C31,TRUE) -> 
B16: Mean Weight/Age Z-score at 0-59 months | C16: =FrontPage!C176 -> 0 | E16: =-2-_xlfn.NORM.INV(E17/100,0,Rel!C31) -> 
B17: Total Mod. + Severe Underweight at 0-59 months | C17: =C14+C15 -> 0 | D17: =(C17-E17)/C17 ->  | E17: =FrontPage!E179 -> 0
B19: Mild Stunting at 24-35 months (% Height/Age -1 to -2 SD) | C19: =100*_xlfn.NORM.DIST(-1-C22,0,Rel!C28,TRUE)-C20-C21 -> 22.26247282 | E19: =100*_xlfn.NORM.DIST(-1-E22,0,Rel!C32,TRUE)-E20-E21 -> 
B20: Mod. Stunting at 24-35 months (% Height/Age -2 to -3 SD) | C20: =FrontPage!C132 -> 0 | E20: =100*_xlfn.NORM.DIST(-2-E22,0,Rel!C32,TRUE)-E21 -> 
B21: Severe Stunting at 24-35 months (% Height/Age < -3 SD) | C21: =FrontPage!C133 -> 0 | E21: =100*_xlfn.NORM.DIST(-3-E22,0,Rel!C32,TRUE) -> 
B22: Mean Height/Age Z-score at 24-35 months | C22: =FrontPage!C134 -> 0 | E22: =-2-_xlfn.NORM.INV(E23/100,0,Rel!C32) -> 
B23: Total Mod. + Severe Stunting at 24-35 months | C23: =C20+C21 -> 0 | D23: =(C23-E23)/C23 ->  | E23: =FrontPage!E137 -> 0
B25: Mild Stunting at 0-59 months (% Height/Age -1 to -2 SD) | C25: =100*_xlfn.NORM.DIST(-1-C28,0,Rel!C29,TRUE)-C26-C27 -> 22.26247282 | E25: =100*_xlfn.NORM.DIST(-1-E28,0,Rel!C33,TRUE)-E26-E27 -> 
B26: Mod. Stunting at 0-59 months (% Height/Age -2 to -3 SD) | C26: =FrontPage!C115 -> 0 | E26: =100*_xlfn.NORM.DIST(-2-E28,0,Rel!C33,TRUE)-E27 -> 
B27: Severe Stunting at 0-59 months (% Height/Age < -3 SD) | C27: =FrontPage!C116 -> 0 | E27: =100*_xlfn.NORM.DIST(-3-E28,0,Rel!C33,TRUE) -> 
B28: Mean Height/Age Z-score at 0-59 months | C28: =FrontPage!C117 -> 0 | E28: =-2-_xlfn.NORM.INV(E29/100,0,Rel!C33) -> 
B29: Total Mod. + Severe Stunting at 0-59 months | C29: =C26+C27 -> 0 | D29: =(C29-E29)/C29 ->  | E29: =FrontPage!E120 -> 0
B31: Mild Wasting at 0-59 months (% Weight/Height -1 to -2 SD) | C31: =100*_xlfn.NORM.DIST(-1-C34,0,Rel!C30,TRUE)-C32-C33 -> 17.94583668 | E31: =100*_xlfn.NORM.DIST(-1-E34,0,Rel!C34,TRUE)-E32-E33 -> 
B32: Mod. Wasting at 0-59 months (% Weight/Height -2 to -3 SD) | C32: =FrontPage!C153 -> 0 | E32: =100*_xlfn.NORM.DIST(-2-E34,0,Rel!C34,TRUE)-E33 -> 
B33: Severe Wasting at 0-59 months (% Weight/Height < -3 SD) | C33: =FrontPage!C154 -> 0 | E33: =100*_xlfn.NORM.DIST(-3-E34,0,Rel!C34,TRUE) -> 
B34: Mean Weight/Height Z-score at 0-59 months | C34: =FrontPage!C155 -> 0 | E34: =-2-_xlfn.NORM.INV(E35/100,0,Rel!C34) -> 
B35: Total Mod. + Severe Wasting at 0-59 months | C35: =C32+C33 -> 0 | D35: =(C35-E35)/C35 ->  | E35: =FrontPage!E158 -> 0
B37: VITAMIN A
B38: Population 6-59 months with subclinical VAD (SR<20) (%) | C38: =FrontPage!C291 -> 0 | D38: =(C38-E38)/C38 ->  | E38: =FrontPage!E291 -> 0
B39: Prevalence of Night Blindness among pregnant women | E39: =C39*(1-D39) -> 0 | F39: no info
B41: IODINE
B42: Population with Goitre (%) | C42: =FrontPage!C335 -> 0 | D42: =(C42-E42)/C42 ->  | E42: =FrontPage!E335 -> 0
B44: IRON
B45: Pregnant women with anemia (Hgb<11) (%) | C45: =FrontPage!C306 -> 0 | D45: =(C45-E45)/C45 ->  | E45: =FrontPage!E306 -> 0
B46: Children <5 years with anemia (Hgb<11) (%) | C46: =FrontPage!C391 -> 0 | D46: =(C46-E46)/C46 ->  | E46: =FrontPage!E391 -> 0
B47: Children 5-14 years with anemia (Hgb<12) (%) | C47: =FrontPage!C392 -> 0 | D47: =(C47-E47)/C47 ->  | E47: =FrontPage!E392 -> 0
B48: Non-pregnant women 15-49 years with anemia (Hgb<12) (%) | C48: =FrontPage!C373 -> 0 | D48: =(C48-E48)/C48 ->  | E48: =FrontPage!E373 -> 0
B49: Men 15-64 years with anemia (Hgb<13) (%) | C49: =FrontPage!C374 -> 0 | D49: =(C49-E49)/C49 ->  | E49: =FrontPage!E374 -> 0
B51: LOW BIRTH WEIGHT
B52: Babies weighing <2500 g at birth (%) | C52: =FrontPage!C272 -> 0 | D52: =(C52-E52)/C52 ->  | E52: =FrontPage!E272 -> 0
B54: OVERWEIGHT & OBESITY
B55: Overweight + obesity at 48-59 months (% Weight/Height > +2 SD) | C55: =FrontPage!C194 -> 0
B57: BREASTFEEDING PREVALENCE
B58: Exclusive breastfeeding 0-5 months | C58: =FrontPage!C249 -> 0 | E58: =FrontPage!E249 -> 0
B59: Predominant breastfeeding 0-5 months | C59: =FrontPage!C250 -> 0 | E59: =FrontPage!E250 -> 0
B60: Partial breastfeeding 0-5 months | C60: =FrontPage!C251 -> 0 | E60: =FrontPage!E251 -> 0
B61: No breastfeeding 0-5 months | C61: =FrontPage!C252 ->  | E61: =FrontPage!E252 -> 
B62: Some breastfeeding 6-23 months | C62: =FrontPage!C254 -> 0 | E62: =FrontPage!E254 -> 0
B63: No breastfeeding 6-23 months | C63: =FrontPage!C255 ->  | E63: =FrontPage!E255 -> 
B65: Exclusive breastfeeding 4-5 months | C65: =FrontPage!C208 -> 0 | E65: =FrontPage!E208 -> 0
B66: Started breastfeeding within 1 hour of birth | C66: =FrontPage!C224 -> 0 | E66: =FrontPage!E224 -> 0
B67: Ever breastfed | C67: =FrontPage!C226 -> 0 | E67: =FrontPage!E226 -> 0
B69: FACTORS RELATED TO CHILD STUNTING
B70: Not meeting minimum dietary diversity (<4 out of 7 food groups) | C70: =FrontPage!G483 -> 0 | E70: =FrontPage!J483 -> 0
B71: Births to a mother <20 years old | C71: =FrontPage!G505 -> 0 | E71: =FrontPage!J505 -> 0

Sheet Countries (hidden)
C9: Major area, region, country or area *
C10: Afghanistan
C11: Algeria
C12: Angola
C13: Antigua and Barbuda
C14: Argentina
C15: Armenia
C16: Aruba
C17: Azerbaijan
C18: Bahamas
C19: Bahrain
C20: Bangladesh
C21: Barbados
C22: Belize
C23: Benin
C24: Bhutan
C25: Bolivia (Plurinational State of)
C26: Botswana
C27: Brazil
C28: Brunei Darussalam
C29: Burkina Faso
C30: Burundi
C31: Cabo Verde
C32: Cambodia
C33: Cameroon
C34: Central African Republic
C35: Chad
C36: Chile
C37: China
C38: China, Hong Kong SAR
C39: China, Macao SAR
C40: Colombia
C41: Comoros
C42: Congo
C43: Costa Rica
C44: Côte d'Ivoire
C45: Cuba
C46: Curaçao
C47: Cyprus
C48: Dem. People's Republic of Korea
C49: Democratic Republic of the Congo
C50: Djibouti
C51: Dominican Republic
C52: Ecuador
C53: Egypt
C54: El Salvador
C55: Equatorial Guinea
C56: Eritrea
C57: Ethiopia
C58: Fiji
C59: French Guiana
C60: French Polynesia
C61: Gabon
C62: Gambia
C63: Georgia
C64: Ghana
C65: Grenada
C66: Guadeloupe
C67: Guam
C68: Guatemala
C69: Guinea
C70: Guinea-Bissau
C71: Guyana
C72: Haiti
C73: Honduras
C74: India
C75: Indonesia
C76: Iran (Islamic Republic of)
C77: Iraq
C78: Israel
C79: Jamaica
C80: Jordan
C81: Kazakhstan
C82: Kenya
C83: Kiribati
C84: Kuwait
C85: Kyrgyzstan
C86: Lao People's Democratic Republic
C87: Lebanon
C88: Lesotho
C89: Liberia
C90: Libya
C91: Madagascar
C92: Malawi
C93: Malaysia
C94: Maldives
C95: Mali
C96: Martinique
C97: Mauritania
C98: Mauritius
C99: Mayotte
C100: Mexico
C101: Micronesia (Fed. States of)
C102: Mongolia
C103: Morocco
C104: Mozambique
C105: Myanmar
C106: Namibia
C107: Nepal
C108: New Caledonia
C109: Nicaragua
C110: Niger
C111: Nigeria
C112: Oman
C113: Pakistan
C114: Panama
C115: Papua New Guinea
C116: Paraguay
C117: Peru
C118: Philippines
C119: Puerto Rico
C120: Qatar
C121: Republic of Korea
C122: Réunion
C123: Rwanda
C124: Saint Lucia
C125: Saint Vincent and the Grenadines
C126: Samoa
C127: Sao Tome and Principe
C128: Saudi Arabia
C129: Senegal
C130: Seychelles
C131: Sierra Leone
C132: Singapore
C133: Solomon Islands
C134: Somalia
C135: South Africa
C136: South Sudan
C137: Sri Lanka
C138: State of Palestine
C139: Sudan
C140: Suriname
C141: Swaziland
C142: Syrian Arab Republic
C143: Tajikistan
C144: Thailand
C145: Timor-Leste
C146: Togo
C147: Tonga
C148: Trinidad and Tobago
C149: Tunisia
C150: Turkey
C151: Turkmenistan
C152: Uganda
C153: United Arab Emirates
C154: United Republic of Tanzania
C155: United States Virgin Islands
C156: Uruguay
C157: Uzbekistan
C158: Vanuatu
C159: Venezuela (Bolivarian Republic of)
C160: Viet Nam
C161: Western Sahara
C162: Yemen
C163: Zambia
C164: Zimbabwe

Sheet AllCountries (hidden)
D16: Year | E16: Total | F16: Reprod. | G16: Age 15-64y | I16: Births | J16: 2-yr pop | K16: u5 pop | L16: 6-59m pop | M16: 48-59m pop | N16: Children | O16: Adolescents - female | P16: Life expect
E17: Pop | F17: Pop 15-49y | G17: Women | H17: Men | N17: 0-14y | O17: 15-19y | P17: at birth
A18: 1 | B18: For_Profiles | C18: Burundi | D18: 2015 | E18: 11.178921 | F18: 2.623657 | G18: 3.002511 | H18: 2.891844 | I18: 0.487731 | J18: 0.412889 | K18: 2.061897 | L18: 1.839985 | M18: 0.379916 | N18: 5.008304 | O18: 0.562518 | P18: 57.118
A19: 2 | B19: For_Profiles | C19: Burundi | D19: 2016 | E19: 11.552561 | F19: 2.699495 | G19: 3.089985 | H19: 2.97307 | I19: 0.498332 | J19: 0.425191 | K19: 2.123782 | L19: 1.8962595 | M19: 0.393725 | N19: 5.200414 | O19: 0.57244 | P19: 57.506
A20: 3 | B20: For_Profiles | C20: Burundi | D20: 2017 | E20: 11.936481 | F20: 2.777698 | G20: 3.179843 | H20: 3.056951 | I20: 0.507688 | J20: 0.436512 | K20: 2.184304 | L20: 1.950843 | M20: 0.406467 | N20: 5.396124 | O20: 0.585292 | P20: 57.874
A21: 4 | B21: For_Profiles | C21: Burundi | D21: 2018 | E21: 12.32856 | F21: 2.8596 | G21: 3.273188 | H21: 3.144647 | I21: 0.515835 | J21: 0.449066 | K21: 2.24276 | L21: 2.003496 | M21: 0.41825 | N21: 5.591261 | O21: 0.601374 | P21: 58.228
A22: 5 | B22: For_Profiles | C22: Burundi | D22: 2019 | E22: 12.72587 | F22: 2.947547 | G22: 3.372023 | H22: 3.238214 | I22: 0.522873 | J22: 0.459365 | K22: 2.295921 | L22: 2.0516125 | M22: 0.429377 | N22: 5.779066 | O22: 0.621142 | P22: 58.573
A23: 6 | B23: For_Profiles | C23: Burundi | D23: 2020 | E23: 13.126273 | F23: 3.042922 | G23: 3.477578 | H23: 3.338928 | I23: 0.528932 | J23: 0.468537 | K23: 2.342072 | L23: 2.093897 | M23: 0.440235 | N23: 5.955024 | O23: 0.644831 | P23: 58.913
A24: 7 | B24: For_Profiles | C24: Burundi | D24: 2021 | E24: 13.529245 | F24: 3.14035 | G24: 3.582731 | H24: 3.439086 | I24: 0.534194 | J24: 0.478532 | K24: 2.387785 | L24: 2.1374325 | M24: 0.451738 | N24: 6.132755 | O24: 0.671559 | P24: 59.252
A25: 8 | B25: For_Profiles | C25: Burundi | D25: 2022 | E25: 13.93533 | F25: 3.246594 | G25: 3.696656 | H25: 3.548177 | I25: 0.539002 | J25: 0.487088 | K25: 2.420364 | L25: 2.1688115 | M25: 0.462259 | N25: 6.295017 | O25: 0.702666 | P25: 59.594
A26: 9 | B26: For_Profiles | C26: Burundi | D26: 2023 | E26: 14.344811 | F26: 3.360189 | G26: 3.818571 | H26: 3.665615 | I26: 0.543733 | J26: 0.488298 | K26: 2.444047 | L26: 2.1917205 | M26: 0.471368 | N26: 6.443895 | O26: 0.736726 | P26: 59.941
A27: 10 | B27: For_Profiles | C27: Burundi | D27: 2024 | E27: 14.758336 | F27: 3.478685 | G27: 3.94699 | H27: 3.790104 | I27: 0.548712 | J27: 0.493729 | K27: 2.465609 | L27: 2.212167 | M27: 0.478543 | N27: 6.583493 | O27: 0.77161 | P27: 60.296
A28: 11 | B28: For_Profiles | C28: Burundi | D28: 2025 | E28: 15.176566 | F28: 3.600686 | G28: 4.081196 | H28: 3.920972 | I28: 0.554251 | J28: 0.498995 | K28: 2.490352 | L28: 2.2348645 | M28: 0.483316 | N28: 6.716198 | O28: 0.805978 | P28: 60.66
A29: 12 | B29: For_Profiles | C29: Burundi | D29: 2026 | E29: 15.599608 | F29: 3.725804 | G29: 4.219468 | H29: 4.054788 | I29: 0.560577 | J29: 0.502492 | K29: 2.512777 | L29: 2.2541335 | M29: 0.488652 | N29: 6.846688 | O29: 0.839823 | P29: 61.032
A30: 13 | B30: For_Profiles | C30: Burundi | D30: 2027 | E30: 16.027806 | F30: 3.853912 | G30: 4.363246 | H30: 4.194665 | I30: 0.567749 | J30: 0.505818 | K30: 2.540746 | L30: 2.277996 | M30: 0.492695 | N30: 6.97172 | O30: 0.872758 | P30: 61.41
A31: 14 | B31: For_Profiles | C31: Burundi | D31: 2028 | E31: 16.462425 | F31: 3.985124 | G31: 4.512991 | H31: 4.341097 | I31: 0.575815 | J31: 0.514754 | K31: 2.574265 | L31: 2.3065745 | M31: 0.496316 | N31: 7.091163 | O31: 0.904961 | P31: 61.79
A32: 15 | B32: For_Profiles | C32: Burundi | D32: 2029 | E32: 16.90507 | F32: 4.11968 | G32: 4.669357 | H32: 4.494664 | I32: 0.584861 | J32: 0.521192 | K32: 2.612038 | L32: 2.3388265 | M32: 0.500666 | N32: 7.204809 | O32: 0.936966 | P32: 62.17
A33: 16 | B33: For_Profiles | C33: Burundi | D33: 2030 | E33: 17.357072 | F33: 4.257243 | G33: 4.832245 | H33: 4.655176 | I33: 0.594983 | J33: 0.528872 | K33: 2.653732 | L33: 2.3746455 | M33: 0.50707 | N33: 7.313943 | O33: 0.968945 | P33: 62.549
A34: 17 | B34: For_Profiles | C34: Burundi | D34: 2031 | E34: 17.818924 | F34: 4.39361 | G34: 4.995407 | H34: 4.81435 | I34: 0.606219 | J34: 0.539186 | K34: 2.704731 | L34: 2.41971 | M34: 0.515133 | N34: 7.433777 | O34: 0.999832 | P34: 62.925
A35: 18 | B35: For_Profiles | C35: Burundi | D35: 2032 | E35: 18.290939 | F35: 4.532707 | G35: 5.164728 | H35: 4.980222 | I35: 0.618409 | J35: 0.550105 | K35: 2.756287 | L35: 2.4649705 | M35: 0.523837 | N35: 7.550585 | O35: 1.030515 | P35: 63.296
A36: 19 | B36: For_Profiles | C36: Burundi | D36: 2033 | E36: 18.774021 | F36: 4.67351 | G36: 5.33947 | H36: 5.151883 | I36: 0.63134 | J36: 0.558422 | K36: 2.809388 | L36: 2.5114565 | M36: 0.533028 | N36: 7.667241 | O36: 1.060046 | P36: 63.662
A37: 20 | B37: For_Profiles | C37: Burundi | D37: 2034 | E37: 19.269123 | F37: 4.814411 | G37: 5.518433 | H37: 5.327888 | I37: 0.644824 | J37: 0.570549 | K37: 2.866027 | L37: 2.5612095 | M37: 0.542461 | N37: 7.787968 | O37: 1.086993 | P37: 64.021
A38: 21 | B38: For_Profiles | C38: Burundi | D38: 2035 | E38: 19.776916 | F38: 4.954397 | G38: 5.700641 | H38: 5.507101 | I38: 0.658691 | J38: 0.583509 | K38: 2.928341 | L38: 2.6164275 | M38: 0.551826 | N38: 7.915725 | O38: 1.110544 | P38: 64.372
A39: =A38+1 -> 22 | B39: For_Profiles | C39: Burundi | D39: 2036 | E39: 20.297671 | F39: 5.089604 | G39: 5.879451 | H39: 5.680946 | I39: 0.672792 | J39: 0.599367 | K39: 3.003147 | L39: 2.6841835 | M39: 0.56506 | N39: 8.065843 | O39: 1.130086 | P39: 64.716
A40: =A39+1 -> 23 | B40: For_Profiles | C40: Burundi | D40: 2037 | E40: 20.831273 | F40: 5.225054 | G40: 6.062383 | H40: 5.858996 | I40: 0.686948 | J40: 0.615411 | K40: 3.074089 | L40: 2.747917 | M40: 0.57918 | N40: 8.220928 | O40: 1.146739 | P40: 65.054
A41: 24 | B41: For_Profiles | C41: Burundi | D41: 2038 | E41: 21.377433 | F41: 5.360948 | G41: 6.248246 | H41: 6.040072 | I41: 0.700942 | J41: 0.625699 | K41: 3.142799 | L41: 2.809431 | M41: 0.593551 | N41: 8.381957 | O41: 1.161357 | P41: 65.384
A42: 25 | B42: For_Profiles | C42: Burundi | D42: 2039 | E42: 21.935631 | F42: 5.498159 | G42: 6.436036 | H42: 6.223126 | I42: 0.714548 | J42: 0.640515 | K42: 3.210863 | L42: 2.870497 | M42: 0.607393 | N42: 8.548894 | O42: 1.175416 | P42: 65.709
A43: 26 | B43: For_Profiles | C43: Burundi | D43: 2040 | E43: 22.505297 | F43: 5.637447 | G43: 6.625201 | H43: 6.407589 | I43: 0.727545 | J43: 0.655172 | K43: 3.280232 | L43: 2.933205 | M43: 0.61979 | N43: 8.721155 | O43: 1.19 | P43: 66.026
A44: 27 | B44: For_Profiles | C44: Burundi | D44: 2041 | E44: 23.086182 | F44: 5.775984 | G44: 6.809953 | H44: 6.585339 | I44: 0.739778 | J44: 0.671421 | K44: 3.356741 | L44: 3.003576 | M44: 0.635472 | N44: 8.912177 | O44: 1.204535 | P44: 66.336
A45: 28 | B45: For_Profiles | C45: Burundi | D45: 2042 | E45: 23.677805 | F45: 5.917811 | G45: 6.997642 | H45: 6.766261 | I45: 0.751222 | J45: 0.686937 | K45: 3.425406 | L45: 3.0664215 | M45: 0.65117 | N45: 9.10499 | O45: 1.219967 | P45: 66.638
A46: 29 | B46: For_Profiles | C46: Burundi | D46: 2043 | E46: 24.279023 | F46: 6.063216 | G46: 7.1876 | H46: 6.950065 | I46: 0.761863 | J46: 0.696625 | K46: 3.488023 | L46: 3.123623 | M46: 0.666272 | N46: 9.298769 | O46: 1.236735 | P46: 66.933
A47: 30 | B47: For_Profiles | C47: Burundi | D47: 2044 | E47: 24.88842 | F47: 6.213026 | G47: 7.379502 | H47: 7.136855 | I47: 0.77166 | J47: 0.709288 | K47: 3.546261 | L47: 3.1769115 | M47: 0.680091 | N47: 9.491526 | O47: 1.255421 | P47: 67.219
A48: 31 | B48: For_Profiles | C48: Burundi | D48: 2045 | E48: 25.504777 | F48: 6.367919 | G48: 7.573357 | H48: 7.326871 | I48: 0.780558 | J48: 0.72102 | K48: 3.601899 | L48: 3.228091 | M48: 0.691864 | N48: 9.681195 | O48: 1.276453 | P48: 67.497
A49: 32 | B49: For_Profiles | C49: Comoros | D49: 2015 | E49: 0.788474 | F49: 0.19306 | G49: 0.222794 | H49: 0.226106 | I49: 0.026375 | J49: 0.023853 | K49: 0.119289 | L49: 0.106787 | M49: 0.02272 | N49: 0.317548 | O49: 0.040529 | P49: 63.567
A50: 33 | B50: For_Profiles | C50: Comoros | D50: 2016 | E50: 0.807118 | F50: 0.197829 | G50: 0.228587 | H50: 0.232014 | I50: 0.0266 | J50: 0.024275 | K50: 0.121191 | L50: 0.1085925 | M50: 0.023174 | N50: 0.323686 | O50: 0.041296 | P50: 63.839
A51: 34 | B51: For_Profiles | C51: Comoros | D51: 2017 | E51: 0.82592 | F51: 0.202767 | G51: 0.234556 | H51: 0.238121 | I51: 0.026803 | J51: 0.024649 | K51: 0.122633 | L51: 0.1099685 | M51: 0.023605 | N51: 0.329517 | O51: 0.04211 | P51: 64.096
A52: 35 | B52: For_Profiles | C52: Comoros | D52: 2018 | E52: 0.844866 | F52: 0.207848 | G52: 0.240684 | H52: 0.244405 | I52: 0.026991 | J52: 0.024744 | K52: 0.123761 | L52: 0.111045 | M52: 0.023994 | N52: 0.33508 | O52: 0.042971 | P52: 64.346
A53: 36 | B53: For_Profiles | C53: Comoros | D53: 2019 | E53: 0.863949 | F53: 0.213047 | G53: 0.24695 | H53: 0.250848 | I53: 0.027169 | J53: 0.024985 | K53: 0.124768 | L53: 0.111997 | M53: 0.024315 | N53: 0.340427 | O53: 0.043877 | P53: 64.591
A54: 37 | B54: For_Profiles | C54: Comoros | D54: 2020 | E54: 0.883162 | F54: 0.218355 | G54: 0.253356 | H54: 0.257445 | I54: 0.027343 | J54: 0.02521 | K54: 0.125808 | L54: 0.1129655 | M54: 0.024541 | N54: 0.345568 | O54: 0.044829 | P54: 64.835
A55: 38 | B55: For_Profiles | C55: Comoros | D55: 2021 | E55: 0.902492 | F55: 0.223775 | G55: 0.2598 | H55: 0.264036 | I55: 0.027513 | J55: 0.025362 | K55: 0.126704 | L55: 0.113763 | M55: 0.024778 | N55: 0.350597 | O55: 0.045823 | P55: 65.078
A56: 39 | B56: For_Profiles | C56: Comoros | D56: 2022 | E56: 0.921925 | F56: 0.22928 | G56: 0.26637 | H56: 0.270767 | I56: 0.027682 | J56: 0.025491 | K56: 0.127698 | L56: 0.11464 | M56: 0.024967 | N56: 0.355441 | O56: 0.046848 | P56: 65.32
A57: 40 | B57: For_Profiles | C57: Comoros | D57: 2023 | E57: 0.941463 | F57: 0.234881 | G57: 0.273097 | H57: 0.277671 | I57: 0.02785 | J57: 0.025787 | K57: 0.128768 | L57: 0.1155805 | M57: 0.025128 | N57: 0.360038 | O57: 0.047905 | P57: 65.559
A58: 41 | B58: For_Profiles | C58: Comoros | D58: 2024 | E58: 0.961109 | F58: 0.240592 | G58: 0.280017 | H58: 0.284786 | I58: 0.028021 | J58: 0.025967 | K58: 0.12984 | L58: 0.116521 | M58: 0.025295 | N58: 0.364309 | O58: 0.04899 | P58: 65.797
A59: 42 | B59: For_Profiles | C59: Comoros | D59: 2025 | E59: 0.980865 | F59: 0.246404 | G59: 0.287142 | H59: 0.292129 | I59: 0.028198 | J59: 0.026154 | K59: 0.130867 | L59: 0.117426 | M59: 0.025505 | N59: 0.368228 | O59: 0.050096 | P59: 66.031
A60: 43 | B60: For_Profiles | C60: Comoros | D60: 2026 | E60: 1.000728 | F60: 0.25223 | G60: 0.29425 | H60: 0.299388 | I60: 0.028382 | J60: 0.026388 | K60: 0.132021 | L60: 0.118469 | M60: 0.02573 | N60: 0.372218 | O60: 0.051203 | P60: 66.262
A61: 44 | B61: For_Profiles | C61: Comoros | D61: 2027 | E61: 1.020693 | F61: 0.258157 | G61: 0.301571 | H61: 0.306879 | I61: 0.028573 | J61: 0.026616 | K61: 0.133057 | L61: 0.1194035 | M61: 0.025952 | N61: 0.375861 | O61: 0.052328 | P61: 66.488
A62: 45 | B62: For_Profiles | C62: Comoros | D62: 2028 | E62: 1.040764 | F62: 0.264137 | G62: 0.309068 | H62: 0.314563 | I62: 0.028772 | J62: 0.026749 | K62: 0.134019 | L62: 0.1202645 | M62: 0.026163 | N62: 0.379231 | O62: 0.053438 | P62: 66.708
A63: 46 | B63: For_Profiles | C63: Comoros | D63: 2029 | E63: 1.060948 | F63: 0.270098 | G63: 0.316681 | H63: 0.322376 | I63: 0.028977 | J63: 0.026964 | K63: 0.134989 | L63: 0.1211305 | M63: 0.026356 | N63: 0.382456 | O63: 0.05448 | P63: 66.923
A64: 47 | B64: For_Profiles | C64: Comoros | D64: 2030 | E64: 1.081248 | F64: 0.275986 | G64: 0.324364 | H64: 0.330276 | I64: 0.02919 | J64: 0.027185 | K64: 0.136038 | L64: 0.122071 | M64: 0.026528 | N64: 0.38562 | O64: 0.055417 | P64: 67.131
A65: 48 | B65: For_Profiles | C65: Comoros | D65: 2031 | E65: 1.101661 | F65: 0.281775 | G65: 0.331937 | H65: 0.33798 | I65: 0.029409 | J65: 0.027442 | K65: 0.137284 | L65: 0.123201 | M65: 0.026765 | N65: 0.389094 | O65: 0.056253 | P65: 67.335
A66: 49 | B66: For_Profiles | C66: Comoros | D66: 2032 | E66: 1.122185 | F66: 0.287509 | G66: 0.339601 | H66: 0.345786 | I66: 0.029633 | J66: 0.027697 | K66: 0.138467 | L66: 0.1242615 | M66: 0.027004 | N66: 0.392486 | O66: 0.056985 | P66: 67.534
A67: 50 | B67: For_Profiles | C67: Comoros | D67: 2033 | E67: 1.142818 | F67: 0.293182 | G67: 0.347331 | H67: 0.35368 | I67: 0.02986 | J67: 0.027882 | K67: 0.139619 | L67: 0.125288 | M67: 0.027237 | N67: 0.39582 | O67: 0.057638 | P67: 67.73
A68: 51 | B68: For_Profiles | C68: Comoros | D68: 2034 | E68: 1.163558 | F68: 0.298803 | G68: 0.355118 | H68: 0.361651 | I68: 0.030087 | J68: 0.028126 | K68: 0.140768 | L68: 0.1263125 | M68: 0.02746 | N68: 0.39911 | O68: 0.058245 | P68: 67.924
A69: 52 | B69: For_Profiles | C69: Comoros | D69: 2035 | E69: 1.184404 | F69: 0.304381 | G69: 0.362951 | H69: 0.369683 | I69: 0.030311 | J69: 0.028368 | K69: 0.141948 | L69: 0.127371 | M69: 0.027665 | N69: 0.402365 | O69: 0.058836 | P69: 68.116
A70: 53 | B70: For_Profiles | C70: Comoros | D70: 2036 | E70: 1.205349 | F70: 0.309891 | G70: 0.370633 | H70: 0.377468 | I70: 0.030533 | J70: 0.028656 | K70: 0.143316 | L70: 0.1286195 | M70: 0.027938 | N70: 0.405993 | O70: 0.059405 | P70: 68.308
A71: 54 | B71: For_Profiles | C71: Comoros | D71: 2037 | E71: 1.226384 | F71: 0.315366 | G71: 0.378376 | H71: 0.385332 | I71: 0.03075 | J71: 0.028932 | K71: 0.144562 | L71: 0.129749 | M71: 0.028205 | N71: 0.409557 | O71: 0.059956 | P71: 68.499
A72: 55 | B72: For_Profiles | C72: Comoros | D72: 2038 | E72: 1.2475 | F72: 0.320817 | G72: 0.386155 | H72: 0.393255 | I72: 0.03096 | J72: 0.029113 | K72: 0.145727 | L72: 0.1308015 | M72: 0.028466 | N72: 0.41307 | O72: 0.060494 | P72: 68.689
A73: 56 | B73: For_Profiles | C73: Comoros | D73: 2039 | E73: 1.268687 | F73: 0.326263 | G73: 0.39394 | H73: 0.401203 | I73: 0.031161 | J73: 0.029353 | K73: 0.146844 | L73: 0.131811 | M73: 0.028708 | N73: 0.416532 | O73: 0.061025 | P73: 68.878
A74: 57 | B74: For_Profiles | C74: Comoros | D74: 2040 | E74: 1.289934 | F74: 0.331714 | G74: 0.401709 | H74: 0.409156 | I74: 0.03135 | J74: 0.029587 | K74: 0.147955 | L74: 0.1328195 | M74: 0.02892 | N74: 0.419944 | O74: 0.06155 | P74: 69.067
A75: 58 | B75: For_Profiles | C75: Comoros | D75: 2041 | E75: 1.311231 | F75: 0.337187 | G75: 0.409294 | H75: 0.416806 | I75: 0.031526 | J75: 0.029841 | K75: 0.149181 | L75: 0.1339465 | M75: 0.029183 | N75: 0.423662 | O75: 0.062083 | P75: 69.254
A76: 59 | B76: For_Profiles | C76: Comoros | D76: 2042 | E76: 1.332567 | F76: 0.342683 | G76: 0.416901 | H76: 0.424508 | I76: 0.031689 | J76: 0.03008 | K76: 0.150276 | L76: 0.134947 | M76: 0.029435 | N76: 0.427278 | O76: 0.062619 | P76: 69.439
A77: 60 | B77: For_Profiles | C77: Comoros | D77: 2043 | E77: 1.353916 | F77: 0.348187 | G77: 0.424508 | H77: 0.432236 | I77: 0.031837 | J77: 0.030242 | K77: 0.151267 | L77: 0.135852 | M77: 0.029672 | N77: 0.430779 | O77: 0.063162 | P77: 69.622
A78: 61 | B78: For_Profiles | C78: Comoros | D78: 2044 | E78: 1.37525 | F78: 0.353675 | G78: 0.432088 | H78: 0.439964 | I78: 0.031971 | J78: 0.030434 | K78: 0.152167 | L78: 0.136675 | M78: 0.029883 | N78: 0.434138 | O78: 0.063716 | P78: 69.802
A79: 62 | B79: For_Profiles | C79: Comoros | D79: 2045 | E79: 1.396544 | F79: 0.359131 | G79: 0.439624 | H79: 0.447675 | I79: 0.032092 | J79: 0.03061 | K79: 0.153007 | L79: 0.137447 | M79: 0.030065 | N79: 0.437332 | O79: 0.064283 | P79: 69.979
A80: 63 | B80: For_Profiles | C80: Djibouti | D80: 2015 | E80: 0.887861 | F80: 0.238649 | G80: 0.278663 | H80: 0.281382 | I80: 0.02196 | J80: 0.020366 | K80: 0.102054 | L80: 0.091495 | M80: 0.019794 | N80: 0.290645 | O80: 0.043735 | P80: 62.297
A81: 64 | B81: For_Profiles | C81: Djibouti | D81: 2016 | E81: 0.899598 | F81: 0.241756 | G81: 0.283171 | H81: 0.285957 | I81: 0.021899 | J81: 0.020569 | K81: 0.102768 | L81: 0.0922475 | M81: 0.01998 | N81: 0.29223 | O81: 0.04357 | P81: 62.518
A82: 65 | B82: For_Profiles | C82: Djibouti | D82: 2017 | E82: 0.911382 | F82: 0.244998 | G82: 0.287937 | H82: 0.290834 | I82: 0.021834 | J82: 0.02073 | K82: 0.102818 | L82: 0.092392 | M82: 0.020168 | N82: 0.293386 | O82: 0.043675 | P82: 62.713
A83: 66 | B83: For_Profiles | C83: Djibouti | D83: 2018 | E83: 0.923181 | F83: 0.248312 | G83: 0.29286 | H83: 0.295887 | I83: 0.021765 | J83: 0.02041 | K83: 0.102404 | L83: 0.092101 | M83: 0.020318 | N83: 0.294229 | O83: 0.043976 | P83: 62.9
A84: 67 | B84: For_Profiles | C84: Djibouti | D84: 2019 | E84: 0.934955 | F84: 0.251586 | G84: 0.297764 | H84: 0.300896 | I84: 0.021691 | J84: 0.020388 | K84: 0.101884 | L84: 0.0916945 | M84: 0.020376 | N84: 0.295 | O84: 0.044334 | P84: 63.088
A85: 68 | B85: For_Profiles | C85: Djibouti | D85: 2020 | E85: 0.946669 | F85: 0.254761 | G85: 0.302554 | H85: 0.30575 | I85: 0.021612 | J85: 0.020356 | K85: 0.101543 | L85: 0.091426 | M85: 0.020288 | N85: 0.295805 | O85: 0.044662 | P85: 63.283
A86: 69 | B86: For_Profiles | C86: Djibouti | D86: 2021 | E86: 0.958299 | F86: 0.258029 | G86: 0.307322 | H86: 0.310461 | I86: 0.021524 | J86: 0.020232 | K86: 0.101094 | L86: 0.0909985 | M86: 0.020249 | N86: 0.296479 | O86: 0.044906 | P86: 63.483
A87: 70 | B87: For_Profiles | C87: Djibouti | D87: 2022 | E87: 0.969816 | F87: 0.261189 | G87: 0.311974 | H87: 0.315021 | I87: 0.021425 | J87: 0.020089 | K87: 0.100854 | L87: 0.090744 | M87: 0.020157 | N87: 0.297195 | O87: 0.045107 | P87: 63.685
A88: 71 | B88: For_Profiles | C88: Djibouti | D88: 2023 | E88: 0.981179 | F88: 0.264236 | G88: 0.31655 | H88: 0.319481 | I88: 0.021313 | J88: 0.020183 | K88: 0.100754 | L88: 0.0906125 | M88: 0.020043 | N88: 0.297804 | O88: 0.045308 | P88: 63.884
A89: 72 | B89: For_Profiles | C89: Djibouti | D89: 2024 | E89: 0.99234 | F89: 0.267171 | G89: 0.32113 | H89: 0.323925 | I89: 0.021188 | J89: 0.020105 | K89: 0.1006 | L89: 0.0904375 | M89: 0.019937 | N89: 0.298067 | O89: 0.045569 | P89: 64.08
A90: 73 | B90: For_Profiles | C90: Djibouti | D90: 2025 | E90: 1.00326 | F90: 0.269981 | G90: 0.32574 | H90: 0.328382 | I90: 0.02105 | J90: 0.02002 | K90: 0.100284 | L90: 0.0901355 | M90: 0.019891 | N90: 0.297876 | O90: 0.045922 | P90: 64.272
A91: 74 | B91: For_Profiles | C91: Djibouti | D91: 2026 | E91: 1.013915 | F91: 0.272572 | G91: 0.330124 | H91: 0.332495 | I91: 0.020897 | J91: 0.02003 | K91: 0.100194 | L91: 0.0901005 | M91: 0.019883 | N91: 0.297796 | O91: 0.046247 | P91: 64.462
A92: 75 | B92: For_Profiles | C92: Djibouti | D92: 2027 | E92: 1.024293 | F92: 0.275011 | G92: 0.334558 | H92: 0.336647 | I92: 0.020731 | J92: 0.020012 | K92: 0.099731 | L92: 0.089722 | M92: 0.019869 | N92: 0.29722 | O92: 0.046643 | P92: 64.648
A93: 76 | B93: For_Profiles | C93: Djibouti | D93: 2028 | E93: 1.034383 | F93: 0.277362 | G93: 0.338998 | H93: 0.340819 | I93: 0.020556 | J93: 0.019722 | K93: 0.098982 | L93: 0.089078 | M93: 0.019827 | N93: 0.296241 | O93: 0.047069 | P93: 64.831
A94: 77 | B94: For_Profiles | C94: Djibouti | D94: 2029 | E94: 1.044178 | F94: 0.279716 | G94: 0.343379 | H94: 0.344968 | I94: 0.020376 | J94: 0.019604 | K94: 0.098133 | L94: 0.08834 | M94: 0.019732 | N94: 0.295039 | O94: 0.047447 | P94: 65.012
A95: 78 | B95: For_Profiles | C95: Djibouti | D95: 2030 | E95: 1.053672 | F95: 0.282122 | G95: 0.347656 | H95: 0.349065 | I95: 0.020194 | J95: 0.019468 | K95: 0.097331 | L95: 0.0876425 | M95: 0.019551 | N95: 0.293708 | O95: 0.047727 | P95: 65.192
A96: 79 | B96: For_Profiles | C96: Djibouti | D96: 2031 | E96: 1.062856 | F96: 0.284616 | G96: 0.351731 | H96: 0.352904 | I96: 0.020013 | J96: 0.01934 | K96: 0.09666 | L96: 0.0870645 | M96: 0.019449 | N96: 0.292497 | O96: 0.047838 | P96: 65.373
A97: 80 | B97: For_Profiles | C97: Djibouti | D97: 2032 | E97: 1.071727 | F97: 0.287173 | G97: 0.355717 | H97: 0.356705 | I97: 0.019838 | J97: 0.019192 | K97: 0.095875 | L97: 0.0863665 | M97: 0.019321 | N97: 0.291131 | O97: 0.047844 | P97: 65.555
A98: 81 | B98: For_Profiles | C98: Djibouti | D98: 2033 | E98: 1.080296 | F98: 0.289628 | G98: 0.359615 | H98: 0.360467 | I98: 0.019669 | J98: 0.018994 | K98: 0.095042 | L98: 0.085613 | M98: 0.019172 | N98: 0.289616 | O98: 0.047789 | P98: 65.738
A99: 82 | B99: For_Profiles | C99: Djibouti | D99: 2034 | E99: 1.088584 | F99: 0.291729 | G99: 0.363435 | H99: 0.364199 | I99: 0.019512 | J99: 0.018828 | K99: 0.094211 | L99: 0.084854 | M99: 0.019003 | N99: 0.287937 | O99: 0.047727 | P99: 65.923
A100: 83 | B100: For_Profiles | C100: Djibouti | D100: 2035 | E100: 1.096605 | F100: 0.293326 | G100: 0.36717 | H100: 0.367899 | I100: 0.019367 | J100: 0.018672 | K100: 0.093437 | L100: 0.084143 | M100: 0.018818 | N100: 0.286101 | O100: 0.047693 | P100: 66.108
A101: 84 | B101: For_Profiles | C101: Djibouti | D101: 2036 | E101: 1.104362 | F101: 0.294531 | G101: 0.370718 | H101: 0.371348 | I101: 0.019236 | J101: 0.018547 | K101: 0.092833 | L101: 0.0835905 | M101: 0.018685 | N101: 0.284413 | O101: 0.047604 | P101: 66.292
A102: 85 | B102: For_Profiles | C102: Djibouti | D102: 2037 | E102: 1.111853 | F102: 0.295249 | G102: 0.374189 | H102: 0.37477 | I102: 0.019118 | J102: 0.018421 | K102: 0.092227 | L102: 0.083026 | M102: 0.018544 | N102: 0.282638 | O102: 0.047527 | P102: 66.473
A103: 86 | B103: For_Profiles | C103: Djibouti | D103: 2038 | E103: 1.119085 | F103: 0.295616 | G103: 0.377527 | H103: 0.378099 | I103: 0.019011 | J103: 0.018281 | K103: 0.091636 | L103: 0.082469 | M103: 0.018399 | N103: 0.280782 | O103: 0.047458 | P103: 66.65
A104: =A103+1 -> 87 | B104: For_Profiles | C104: Djibouti | D104: 2039 | E104: 1.126064 | F104: 0.295852 | G104: 0.380652 | H104: 0.381233 | I104: 0.018912 | J104: 0.018171 | K104: 0.091073 | L104: 0.081938 | M104: 0.018248 | N104: 0.278864 | O104: 0.047375 | P104: 66.824
A105: 88 | B105: For_Profiles | C105: Djibouti | D105: 2040 | E105: 1.132797 | F105: 0.296094 | G105: 0.383513 | H105: 0.38411 | I105: 0.01882 | J105: 0.018075 | K105: 0.09057 | L105: 0.0814675 | M105: 0.018101 | N105: 0.276912 | O105: 0.047259 | P105: 66.993
A106: 89 | B106: For_Profiles | C106: Djibouti | D106: 2041 | E106: 1.139287 | F106: 0.296387 | G106: 0.385979 | H106: 0.386459 | I106: 0.018734 | J106: 0.018049 | K106: 0.090362 | L106: 0.081289 | M106: 0.018033 | N106: 0.275333 | O106: 0.047045 | P106: 67.158
A107: 90 | B107: For_Profiles | C107: Djibouti | D107: 2042 | E107: 1.145532 | F107: 0.296663 | G107: 0.388194 | H107: 0.388578 | I107: 0.01865 | J107: 0.018016 | K107: 0.090037 | L107: 0.0809935 | M107: 0.017971 | N107: 0.273712 | O107: 0.046805 | P107: 67.321
A108: 91 | B108: For_Profiles | C108: Djibouti | D108: 2043 | E108: 1.151529 | F108: 0.296932 | G108: 0.390235 | H108: 0.390539 | I108: 0.018566 | J108: 0.017866 | K108: 0.089639 | L108: 0.0806275 | M108: 0.017905 | N108: 0.272083 | O108: 0.046547 | P108: 67.482
A109: 92 | B109: For_Profiles | C109: Djibouti | D109: 2044 | E109: 1.157268 | F109: 0.297194 | G109: 0.39222 | H109: 0.392469 | I109: 0.018481 | J109: 0.017804 | K109: 0.089215 | L109: 0.080239 | M109: 0.017824 | N109: 0.270471 | O109: 0.046278 | P109: 67.643
A110: 93 | B110: For_Profiles | C110: Djibouti | D110: 2045 | E110: 1.162745 | F110: 0.297453 | G110: 0.394212 | H110: 0.394422 | I110: 0.018391 | J110: 0.017739 | K110: 0.088819 | L110: 0.0798845 | M110: 0.017707 | N110: 0.268888 | O110: 0.045998 | P110: 67.802
A111: 94 | B111: For_Profiles | C111: Eritrea | D111: 2015 | E111: 5.227791 | F111: 1.269374 | G111: 1.432607 | H111: 1.4209 | I111: 0.175262 | J111: 0.163893 | K111: 0.814756 | L111: 0.733864 | M111: 0.162235 | N111: 2.236721 | O111: 0.258218 | P111: 64.186
A112: 95 | B112: For_Profiles | C112: Eritrea | D112: 2016 | E112: 5.35168 | F112: 1.305032 | G112: 1.471552 | H112: 1.46192 | I112: 0.175675 | J112: 0.163031 | K112: 0.814211 | L112: 0.7326155 | M112: 0.162738 | N112: 2.275162 | O112: 0.266781 | P112: 64.584
A113: 96 | B113: For_Profiles | C113: Eritrea | D113: 2017 | E113: 5.481906 | F113: 1.343242 | G113: 1.513711 | H113: 1.506278 | I113: 0.176114 | J113: 0.162237 | K113: 0.818902 | L113: 0.7361095 | M113: 0.162683 | N113: 2.314012 | O113: 0.277693 | P113: 64.956
A114: 97 | B114: For_Profiles | C114: Eritrea | D114: 2018 | E114: 5.616801 | F114: 1.384072 | G114: 1.55911 | H114: 1.554028 | I114: 0.176571 | J114: 0.166142 | K114: 0.827045 | L114: 0.7427875 | M114: 0.16254 | N114: 2.351262 | O114: 0.290329 | P114: 65.316
A115: 98 | B115: For_Profiles | C115: Eritrea | D115: 2019 | E115: 5.753934 | F115: 1.42739 | G115: 1.60752 | H115: 1.605005 | I115: 0.177092 | J115: 0.167033 | K115: 0.83564 | L115: 0.7499895 | M115: 0.162926 | N115: 2.384541 | O115: 0.30363 | P115: 65.67
A116: 99 | B116: For_Profiles | C116: Eritrea | D116: 2020 | E116: 5.8915 | F116: 1.472797 | G116: 1.658498 | H116: 1.658788 | I116: 0.17772 | J116: 0.167993 | K116: 0.842499 | L116: 0.755782 | M116: 0.164579 | N116: 2.412722 | O116: 0.316774 | P116: 66.022
A117: 100 | B117: For_Profiles | C117: Eritrea | D117: 2021 | E117: 6.028973 | F117: 1.519355 | G117: 1.710488 | H117: 1.7131 | I117: 0.178488 | J117: 0.169932 | K117: 0.850797 | L117: 0.763545 | M117: 0.166002 | N117: 2.438342 | O117: 0.329109 | P117: 66.372
A118: 101 | B118: For_Profiles | C118: Eritrea | D118: 2022 | E118: 6.166752 | F118: 1.56799 | G118: 1.765243 | H118: 1.770471 | I118: 0.179407 | J118: 0.171821 | K118: 0.856018 | L118: 0.768534 | M118: 0.1676 | N118: 2.458422 | O118: 0.34122 | P118: 66.717
A119: 102 | B119: For_Profiles | C119: Eritrea | D119: 2023 | E119: 6.305071 | F119: 1.617754 | G119: 1.822082 | H119: 1.830155 | I119: 0.180485 | J119: 0.170934 | K119: 0.859171 | L119: 0.7715955 | M119: 0.16915 | N119: 2.474708 | O119: 0.352642 | P119: 67.054
A120: 103 | B120: For_Profiles | C120: Eritrea | D120: 2024 | E120: 6.444476 | F120: 1.667192 | G120: 1.879901 | H120: 1.89093 | I120: 0.181734 | J120: 0.172151 | K120: 0.86251 | L120: 0.7747415 | M120: 0.17034 | N120: 2.490219 | O120: 0.36274 | P120: 67.383
A121: 104 | B121: For_Profiles | C121: Eritrea | D121: 2025 | E121: 6.585371 | F121: 1.715413 | G121: 1.938042 | H121: 1.952058 | I121: 0.18317 | J121: 0.173457 | K121: 0.867742 | L121: 0.7795045 | M121: 0.170805 | N121: 2.506782 | O121: 0.371134 | P121: 67.703
A122: 105 | B122: For_Profiles | C122: Eritrea | D122: 2026 | E122: 6.727657 | F122: 1.762496 | G122: 1.995933 | H122: 2.012361 | I122: 0.184804 | J122: 0.174708 | K122: 0.874298 | L122: 0.785232 | M122: 0.171916 | N122: 2.524634 | O122: 0.377488 | P122: 68.013
A123: 106 | B123: For_Profiles | C123: Eritrea | D123: 2027 | E123: 6.871123 | F123: 1.808135 | G123: 2.053849 | H123: 2.072681 | I123: 0.18661 | J123: 0.176063 | K123: 0.882141 | L123: 0.7919935 | M123: 0.17303 | N123: 2.543833 | O123: 0.381897 | P123: 68.313
A124: 107 | B124: For_Profiles | C124: Eritrea | D124: 2028 | E124: 7.01596 | F124: 1.852286 | G124: 2.111879 | H124: 2.133185 | I124: 0.188554 | J124: 0.178078 | K124: 0.891229 | L124: 0.799826 | M124: 0.174218 | N124: 2.564271 | O124: 0.38496 | P124: 68.603
A125: 108 | B125: For_Profiles | C125: Eritrea | D125: 2029 | E125: 7.162418 | F125: 1.895136 | G125: 2.170409 | H125: 2.194397 | I125: 0.190599 | J125: 0.179878 | K125: 0.900972 | L125: 0.8082575 | M125: 0.175578 | N125: 2.585243 | O125: 0.387649 | P125: 68.882
A126: 109 | B126: For_Profiles | C126: Eritrea | D126: 2030 | E126: 7.310664 | F126: 1.936768 | G126: 2.229588 | H126: 2.256526 | I126: 0.192717 | J126: 0.18185 | K126: 0.911102 | L126: 0.8171165 | M126: 0.177211 | N126: 2.606472 | O126: 0.390572 | P126: 69.152
A127: 110 | B127: For_Profiles | C127: Eritrea | D127: 2031 | E127: 7.460691 | F127: 1.976679 | G127: 2.287897 | H127: 2.317117 | I127: 0.194882 | J127: 0.184432 | K127: 0.92334 | L127: 0.828146 | M127: 0.179303 | N127: 2.630463 | O127: 0.393273 | P127: 69.412
A128: 111 | B128: For_Profiles | C128: Eritrea | D128: 2032 | E128: 7.612388 | F128: 2.015358 | G128: 2.346614 | H128: 2.378392 | I128: 0.197059 | J128: 0.187059 | K128: 0.934847 | L128: 0.838487 | M128: 0.181576 | N128: 2.654942 | O128: 0.396197 | P128: 69.665
A129: 112 | B129: For_Profiles | C129: Eritrea | D129: 2033 | E129: 7.765678 | F129: 2.052934 | G129: 2.405562 | H129: 2.440134 | I129: 0.199201 | J129: 0.188651 | K129: 0.945769 | L129: 0.8482965 | M129: 0.183908 | N129: 2.680113 | O129: 0.39927 | P129: 69.911
A130: 113 | B130: For_Profiles | C130: Eritrea | D130: 2034 | E130: 7.920439 | F130: 2.089607 | G130: 2.464529 | H130: 2.502042 | I130: 0.201258 | J130: 0.191024 | K130: 0.95646 | L130: 0.8579335 | M130: 0.186146 | N130: 2.706259 | O130: 0.402247 | P130: 70.151
A131: 114 | B131: For_Profiles | C131: Eritrea | D131: 2035 | E131: 8.076531 | F131: 2.125605 | G131: 2.52337 | H131: 2.563931 | I131: 0.20318 | J131: 0.193332 | K131: 0.96725 | L131: 0.867734 | M131: 0.188106 | N131: 2.733393 | O131: 0.404993 | P131: 70.384
A132: 115 | B132: For_Profiles | C132: Eritrea | D132: 2036 | E132: 8.233861 | F132: 2.160883 | G132: 2.580829 | H132: 2.623714 | I132: 0.204928 | J132: 0.195913 | K132: 0.979347 | L132: 0.8788835 | M132: 0.190601 | N132: 2.763294 | O132: 0.407331 | P132: 70.611
A133: 116 | B133: For_Profiles | C133: Eritrea | D133: 2037 | E133: 8.39226 | F133: 2.195706 | G133: 2.638327 | H133: 2.683664 | I133: 0.206491 | J133: 0.198349 | K133: 0.990068 | L133: 0.8887315 | M133: 0.193098 | N133: 2.793556 | O133: 0.409623 | P133: 70.831
A134: 117 | B134: For_Profiles | C134: Eritrea | D134: 2038 | E134: 8.551392 | F134: 2.230518 | G134: 2.695576 | H134: 2.743513 | I134: 0.207857 | J134: 0.199842 | K134: 0.999603 | L134: 0.8974965 | M134: 0.195481 | N134: 2.823908 | O134: 0.412026 | P134: 71.044
A135: 118 | B135: For_Profiles | C135: Eritrea | D135: 2039 | E135: 8.710848 | F135: 2.266054 | G135: 2.752318 | H135: 2.803026 | I135: 0.209014 | J135: 0.201683 | K135: 1.008046 | L135: 0.905298 | M135: 0.197621 | N135: 2.853789 | O135: 0.414747 | P135: 71.251
A136: 119 | B136: For_Profiles | C136: Eritrea | D136: 2040 | E136: 8.870271 | F136: 2.302818 | G136: 2.808428 | H136: 2.862088 | I136: 0.209947 | J136: 0.203282 | K136: 1.015537 | L136: 0.912292 | M136: 0.199377 | N136: 2.882646 | O136: 0.417918 | P136: 71.452
A137: 120 | B137: For_Profiles | C137: Eritrea | D137: 2041 | E137: 9.029483 | F137: 2.341149 | G137: 2.863054 | H137: 2.918738 | I137: 0.210652 | J137: 0.204849 | K137: 1.02295 | L137: 0.919308 | M137: 0.20132 | N137: 2.912063 | O137: 0.421325 | P137: 71.647
A138: 121 | B138: For_Profiles | C138: Eritrea | D138: 2042 | E138: 9.18834 | F138: 2.380702 | G138: 2.917326 | H138: 2.975339 | I138: 0.211156 | J138: 0.206139 | K138: 1.028693 | L138: 0.9247885 | M138: 0.203051 | N138: 2.939913 | O138: 0.42516 | P138: 71.837
A139: 122 | B139: For_Profiles | C139: Eritrea | D139: 2043 | E139: 9.346577 | F139: 2.421268 | G139: 2.971098 | H139: 3.031765 | I139: 0.211496 | J139: 0.206838 | K139: 1.033035 | L139: 0.92898 | M139: 0.204524 | N139: 2.965941 | O139: 0.429435 | P139: 72.024
A140: 123 | B140: For_Profiles | C140: Eritrea | D140: 2044 | E140: 9.503918 | F140: 2.462513 | G140: 3.024174 | H140: 3.087807 | I140: 0.211703 | J140: 0.207538 | K140: 1.036279 | L140: 0.93215 | M140: 0.205704 | N140: 2.989852 | O140: 0.434103 | P140: 72.206
A141: 124 | B141: For_Profiles | C141: Eritrea | D141: 2045 | E141: 9.660141 | F141: 2.504161 | G141: 3.076466 | H141: 3.143359 | I141: 0.211808 | J141: 0.20802 | K141: 1.038641 | L141: 0.9344835 | M141: 0.20656 | N141: 3.011339 | O141: 0.439104 | P141: 72.386
A142: 125 | B142: For_Profiles | C142: Ethiopia | D142: 2015 | E142: 99.39075 | F142: 24.10316 | G142: 27.57093 | H142: 27.169402 | I142: 3.17648 | J142: 2.910032 | K142: 14.601687 | L142: 13.077763 | M142: 2.813437 | N142: 41.187753 | O142: 5.818781 | P142: 64.602
A143: 126 | B143: For_Profiles | C143: Ethiopia | D143: 2016 | E143: 101.853268 | F143: 24.950743 | G143: 28.517723 | H143: 28.119724 | I143: 3.203712 | J143: 2.958833 | K143: 14.816113 | L143: 13.276725 | M143: 2.851125 | N143: 41.63777 | O143: 5.961893 | P143: 65.104
A144: 127 | B144: For_Profiles | C144: Ethiopia | D144: 2017 | E144: 104.344901 | F144: 25.818135 | G144: 29.498342 | H144: 29.100672 | I144: 3.230017 | J144: 3.006876 | K144: 14.986528 | L144: 13.4338445 | M144: 2.892733 | N144: 42.054951 | O144: 6.088417 | P144: 65.571
A145: 128 | B145: For_Profiles | C145: Ethiopia | D145: 2018 | E145: 106.863442 | F145: 26.696574 | G145: 30.500741 | H145: 30.103363 | I145: 3.255213 | J145: 3.010251 | K145: 15.126572 | L145: 13.5623855 | M145: 2.933897 | N145: 42.454918 | O145: 6.198106 | P145: 66.013
A146: 129 | B146: For_Profiles | C146: Ethiopia | D146: 2019 | E146: 109.406328 | F146: 27.575948 | G146: 31.510029 | H146: 31.117337 | I146: 3.278896 | J146: 3.045216 | K146: 15.257296 | L146: 13.6825675 | M146: 2.968967 | N146: 42.856072 | O146: 6.292223 | P146: 66.436
A147: 130 | B147: For_Profiles | C147: Ethiopia | D147: 2020 | E147: 111.971051 | F147: 28.450786 | G147: 32.518188 | H147: 32.136965 | I147: 3.300741 | J147: 3.078222 | K147: 15.397332 | L147: 13.8123225 | M147: 2.991405 | N147: 43.26667 | O147: 6.372873 | P147: 66.845
A148: 131 | B148: For_Profiles | C148: Ethiopia | D148: 2021 | E148: 114.555595 | F148: 29.311738 | G148: 33.507737 | H148: 33.135291 | I148: 3.320568 | J148: 3.113837 | K148: 15.559481 | L148: 13.9648225 | M148: 3.027924 | N148: 43.726471 | O148: 6.438588 | P148: 67.244
A149: 132 | B149: For_Profiles | C149: Ethiopia | D149: 2022 | E149: 117.157895 | F149: 30.168928 | G149: 34.500831 | H149: 34.143097 | I149: 3.338401 | J149: 3.146273 | K149: 15.694722 | L149: 14.090657 | M149: 3.063147 | N149: 44.184252 | O149: 6.491679 | P149: 67.629
A150: 133 | B150: For_Profiles | C150: Ethiopia | D150: 2023 | E150: 119.775259 | F150: 31.022765 | G150: 35.498677 | H150: 35.160572 | I150: 3.354229 | J150: 3.161133 | K150: 15.811935 | L150: 14.198936 | M150: 3.095473 | N150: 44.63788 | O150: 6.53796 | P150: 68.002
A151: 134 | B151: For_Profiles | C151: Ethiopia | D151: 2024 | E151: 122.404797 | F151: 31.877768 | G151: 36.507399 | H151: 36.191449 | I151: 3.367935 | J151: 3.184402 | K151: 15.91689 | L151: 14.2956735 | M151: 3.123278 | N151: 45.077832 | O151: 6.586469 | P151: 68.365
A152: 135 | B152: For_Profiles | C152: Ethiopia | D152: 2025 | E152: 125.043752 | F152: 32.736562 | G152: 37.530817 | H152: 37.237715 | I152: 3.379326 | J152: 3.205453 | K152: 16.015985 | L152: 14.3874385 | M152: 3.144792 | N152: 45.496607 | O152: 6.643242 | P152: 68.72
A153: 136 | B153: For_Profiles | C153: Ethiopia | D153: 2026 | E153: 127.690009 | F153: 33.595453 | G153: 38.556327 | H153: 38.276051 | I153: 3.388244 | J153: 3.225388 | K153: 16.114192 | L153: 14.479176 | M153: 3.170359 | N153: 45.924445 | O153: 6.707258 | P153: 69.069
A154: 137 | B154: For_Profiles | C154: Ethiopia | D154: 2027 | E154: 130.341375 | F154: 34.456835 | G154: 39.595891 | H154: 39.329274 | I154: 3.394774 | J154: 3.241853 | K154: 16.196307 | L154: 14.5555405 | M154: 3.192469 | N154: 46.327986 | O154: 6.780525 | P154: 69.412
A155: 138 | B155: For_Profiles | C155: Ethiopia | D155: 2028 | E155: 132.994955 | F155: 35.316333 | G155: 40.64806 | H155: 40.39579 | I155: 3.399112 | J155: 3.254236 | K155: 16.264668 | L155: 14.6190625 | M155: 3.211139 | N155: 46.703248 | O155: 6.861173 | P155: 69.748
A156: 139 | B156: For_Profiles | C156: Ethiopia | D156: 2029 | E156: 135.647685 | F156: 36.167394 | G156: 41.710991 | H156: 41.473465 | I156: 3.401483 | J156: 3.265719 | K156: 16.32044 | L156: 14.67115 | M156: 3.226623 | N156: 47.045499 | O156: 6.94527 | P156: 70.078
A157: 140 | B157: For_Profiles | C157: Ethiopia | D157: 2030 | E157: 138.29689 | F157: 37.005738 | G157: 42.783029 | H157: 42.560113 | I157: 3.402147 | J157: 3.274872 | K157: 16.365558 | L157: 14.713885 | M157: 3.239357 | N157: 47.351666 | O157: 7.030097 | P157: 70.401
A158: 141 | B158: For_Profiles | C158: Ethiopia | D158: 2031 | E158: 140.940367 | F158: 37.828359 | G158: 43.85058 | H158: 43.632133 | I158: 3.401383 | J158: 3.284344 | K158: 16.410394 | L158: 14.757674 | M158: 3.253679 | N158: 47.654069 | O158: 7.1153 | P158: 70.717
A159: 142 | B159: For_Profiles | C159: Ethiopia | D159: 2032 | E159: 143.576554 | F159: 38.636508 | G159: 44.928594 | H159: 44.715491 | I159: 3.399521 | J159: 3.290746 | K159: 16.436263 | L159: 14.7837065 | M159: 3.264956 | N159: 47.915958 | O159: 7.202396 | P159: 71.024
A160: 143 | B160: For_Profiles | C160: Ethiopia | D160: 2033 | E160: 146.204276 | F160: 39.434395 | G160: 46.014805 | H160: 45.806594 | I160: 3.396901 | J160: 3.289824 | K160: 16.44794 | L160: 14.7963045 | M160: 3.273077 | N160: 48.139252 | O160: 7.289607 | P160: 71.321
A161: 144 | B161: For_Profiles | C161: Ethiopia | D161: 2034 | E161: 148.822725 | F161: 40.228886 | G161: 47.105913 | H161: 46.899806 | I161: 3.393819 | J161: 3.291541 | K161: 16.4522 | L161: 14.8016395 | M161: 3.277992 | N161: 48.328692 | O161: 7.374378 | P161: 71.608
A162: 145 | B162: For_Profiles | C162: Ethiopia | D162: 2035 | E162: 151.430963 | F162: 41.023129 | G162: 48.199046 | H162: 47.990995 | I162: 3.390521 | J162: 3.292216 | K162: 16.454688 | L162: 14.804917 | M162: 3.279778 | N162: 48.487782 | O162: 7.454856 | P162: 71.882
A163: 146 | B163: For_Profiles | C163: Ethiopia | D163: 2036 | E163: 154.027525 | F163: 41.817673 | G163: 49.284316 | H163: 49.06124 | I163: 3.387144 | J163: 3.292472 | K163: 16.459517 | L163: 14.8096195 | M163: 3.283282 | N163: 48.643789 | O163: 7.530806 | P163: 72.142
A164: 147 | B164: For_Profiles | C164: Ethiopia | D164: 2037 | E164: 156.610837 | F164: 42.608015 | G164: 50.369183 | H164: 50.127994 | I164: 3.383631 | J164: 3.291241 | K164: 16.461251 | L164: 14.8109095 | M164: 3.284417 | N164: 48.771367 | O164: 7.601494 | P164: 72.39
A165: 148 | B165: For_Profiles | C165: Ethiopia | D165: 2038 | E165: 159.179769 | F165: 43.386395 | G165: 51.452383 | H165: 51.193532 | I165: 3.379933 | J165: 3.291687 | K165: 16.460255 | L165: 14.809405 | M165: 3.28375 | N165: 48.870567 | O165: 7.666784 | P165: 72.625
A166: 149 | B166: For_Profiles | C166: Ethiopia | D166: 2039 | E166: 161.733277 | F166: 44.141359 | G166: 52.53327 | H166: 52.261551 | I166: 3.37608 | J166: 3.290197 | K166: 16.45556 | L166: 14.8045375 | M166: 3.282061 | N166: 48.941679 | O166: 7.726768 | P166: 72.85
A167: 150 | B167: For_Profiles | C167: Ethiopia | D167: 2040 | E167: 164.270263 | F167: 44.864774 | G167: 53.609994 | H167: 53.332357 | I167: 3.372089 | J167: 3.288264 | K167: 16.447397 | L167: 14.7968435 | M167: 3.280282 | N167: 48.986423 | O167: 7.78135 | P167: 73.064
A168: =A167+1 -> 151 | B168: For_Profiles | C168: Ethiopia | D168: 2041 | E168: 166.78943 | F168: 45.559246 | G168: 54.669555 | H168: 54.382687 | I168: 3.367938 | J168: 3.289989 | K168: 16.45259 | L168: 14.80273 | M168: 3.281637 | N168: 49.044264 | O168: 7.830346 | P168: 73.27
A169: 152 | B169: For_Profiles | C169: Ethiopia | D169: 2042 | E169: 169.289462 | F169: 46.222594 | G169: 55.724762 | H169: 55.435356 | I169: 3.363523 | J169: 3.290519 | K169: 16.446163 | L169: 14.7976105 | M169: 3.28224 | N169: 49.075944 | O169: 7.873609 | P169: 73.47
A170: 153 | B170: For_Profiles | C170: Ethiopia | D170: 2043 | E170: 171.769213 | F170: 46.851846 | G170: 56.768302 | H170: 56.483023 | I170: 3.358727 | J170: 3.283283 | K170: 16.430841 | L170: 14.784137 | M170: 3.2816 | N170: 49.08488 | O170: 7.911008 | P170: 73.666
A171: 154 | B171: For_Profiles | C171: Ethiopia | D171: 2044 | E171: 174.227572 | F171: 47.443643 | G171: 57.790107 | H171: 57.515265 | I171: 3.353462 | J171: 3.280622 | K171: 16.410776 | L171: 14.7663375 | M171: 3.279068 | N171: 49.075829 | O171: 7.942246 | P171: 73.859
A172: 155 | B172: For_Profiles | C172: Ethiopia | D172: 2045 | E172: 176.663351 | F172: 47.995956 | G172: 58.783424 | H172: 58.524941 | I172: 3.347662 | J172: 3.277218 | K172: 16.389994 | L172: 14.748152 | M172: 3.273876 | N172: 49.051967 | O172: 7.967196 | P172: 74.05
A173: 156 | B173: For_Profiles | C173: Kenya | D173: 2015 | E173: 46.050302 | F173: 11.175156 | G173: 12.745802 | H173: 12.714716 | I173: 1.571032 | J173: 1.435415 | K173: 7.166489 | L173: 6.4282725 | M173: 1.385927 | N173: 19.29925 | O173: 2.363955 | P173: 62.164
A174: 157 | B174: For_Profiles | C174: Kenya | D174: 2016 | E174: 47.251449 | F174: 11.515772 | G174: 13.124191 | H174: 13.088753 | I174: 1.586294 | J174: 1.450824 | K174: 7.250069 | L174: 6.50329 | M174: 1.40587 | N174: 19.686867 | O174: 2.435902 | P174: 62.647
A175: 158 | B175: For_Profiles | C175: Kenya | D175: 2017 | E175: 48.466928 | F175: 11.872166 | G175: 13.517687 | H175: 13.478168 | I175: 1.601353 | J175: 1.464746 | K175: 7.333628 | L175: 6.578019 | M175: 1.423042 | N175: 20.054248 | O175: 2.517323 | P175: 63.062
A176: 159 | B176: For_Profiles | C176: Kenya | D176: 2018 | E176: 49.695319 | F176: 12.242942 | G176: 13.926613 | H176: 13.883756 | I176: 1.616334 | J176: 1.483711 | K176: 7.416781 | L176: 6.6521485 | M176: 1.438418 | N176: 20.399588 | O176: 2.604967 | P176: 63.416
A177: 160 | B177: For_Profiles | C177: Kenya | D177: 2019 | E177: 50.935499 | F177: 12.625299 | G177: 14.350493 | H177: 14.305489 | I177: 1.63147 | J177: 1.499194 | K177: 7.498972 | L177: 6.725283 | M177: 1.453327 | N177: 20.723385 | O177: 2.694077 | P177: 63.718
A178: 161 | B178: For_Profiles | C178: Kenya | D178: 2020 | E178: 52.186722 | F178: 13.016638 | G178: 14.788372 | H178: 14.742611 | I178: 1.64703 | J178: 1.514856 | K178: 7.580488 | L178: 6.7978495 | M178: 1.469403 | N178: 21.027199 | O178: 2.781346 | P178: 63.984
A179: 162 | B179: For_Profiles | C179: Kenya | D179: 2021 | E179: 53.447861 | F179: 13.408693 | G179: 15.227423 | H179: 15.178093 | I179: 1.663241 | J179: 1.533191 | K179: 7.670823 | L179: 6.8796055 | M179: 1.487396 | N179: 21.338896 | O179: 2.865407 | P179: 64.226
A180: 163 | B180: For_Profiles | C180: Kenya | D180: 2022 | E180: 54.718816 | F180: 13.809386 | G180: 15.68138 | H180: 15.629476 | I180: 1.680172 | J180: 1.550931 | K180: 7.754195 | L180: 6.9544645 | M180: 1.504723 | N180: 21.628906 | O180: 2.94759 | P180: 64.46
A181: 164 | B181: For_Profiles | C181: Kenya | D181: 2023 | E181: 56.001265 | F181: 14.21569 | G181: 16.148785 | H181: 16.095193 | I181: 1.697849 | J181: 1.563192 | K181: 7.834051 | L181: 7.025639 | M181: 1.521269 | N181: 21.901903 | O181: 3.02673 | P181: 64.698
A182: 165 | B182: For_Profiles | C182: Kenya | D182: 2024 | E182: 57.297751 | F182: 14.62324 | G182: 16.627331 | H182: 16.572557 | I182: 1.716289 | J182: 1.58067 | K182: 7.916008 | L182: 7.0984315 | M182: 1.536877 | N182: 22.165595 | O182: 3.101707 | P182: 64.949
A183: 166 | B183: For_Profiles | C183: Kenya | D183: 2025 | E183: 58.61017 | F183: 15.028909 | G183: 17.115282 | H183: 17.05936 | I183: 1.735495 | J183: 1.599034 | K183: 8.005364 | L183: 7.1779425 | M183: 1.551379 | N183: 22.425768 | O183: 3.171812 | P183: 65.217
A184: 167 | B184: For_Profiles | C184: Kenya | D184: 2026 | E184: 59.938788 | F184: 15.427381 | G184: 17.60267 | H184: 17.539342 | I184: 1.755415 | J184: 1.620459 | K184: 8.110238 | L184: 7.272268 | M184: 1.570782 | N184: 22.70929 | O184: 3.235347 | P184: 65.503
A185: 168 | B185: For_Profiles | C185: Kenya | D185: 2027 | E185: 61.28311 | F185: 15.823429 | G185: 18.099249 | H185: 18.028879 | I185: 1.775837 | J185: 1.641935 | K185: 8.213006 | L185: 7.363826 | M185: 1.590399 | N185: 22.989281 | O185: 3.293579 | P185: 65.798
A186: 169 | B186: For_Profiles | C186: Kenya | D186: 2028 | E186: 62.643362 | F186: 16.215897 | G186: 18.604382 | H186: 18.526753 | I186: 1.796512 | J186: 1.659375 | K186: 8.315486 | L186: 7.4547345 | M186: 1.609955 | N186: 23.267429 | O186: 3.347379 | P186: 66.097
A187: 170 | B187: For_Profiles | C187: Kenya | D187: 2029 | E187: 64.019644 | F187: 16.603991 | G187: 19.118116 | H187: 19.031937 | I187: 1.817232 | J187: 1.680902 | K187: 8.41876 | L187: 7.5464805 | M187: 1.629138 | N187: 23.544593 | O187: 3.398416 | P187: 66.397
A188: 171 | B188: For_Profiles | C188: Kenya | D188: 2030 | E188: 65.411901 | F188: 16.98711 | G188: 19.639983 | H188: 19.543219 | I188: 1.837808 | J188: 1.702761 | K188: 8.52497 | L188: 7.6415225 | M188: 1.647558 | N188: 23.821754 | O188: 3.447815 | P188: 66.698
A189: 172 | B189: For_Profiles | C189: Kenya | D189: 2031 | E189: 66.820057 | F189: 17.359807 | G189: 20.158459 | H189: 20.042923 | I189: 1.858092 | J189: 1.728703 | K189: 8.647686 | L189: 7.753606 | M189: 1.671367 | N189: 24.129027 | O189: 3.493792 | P189: 67
A190: 173 | B190: For_Profiles | C190: Kenya | D190: 2032 | E190: 68.24376 | F190: 17.729047 | G190: 20.685632 | H190: 20.550063 | I190: 1.877981 | J190: 1.753986 | K190: 8.759325 | L190: 7.8549515 | M190: 1.695574 | N190: 24.433559 | O190: 3.538733 | P190: 67.303
A191: 174 | B191: For_Profiles | C191: Kenya | D191: 2033 | E191: 69.682242 | F191: 18.0949 | G191: 21.219239 | H191: 21.062624 | I191: 1.897354 | J191: 1.769414 | K191: 8.863287 | L191: 7.9490015 | M191: 1.719253 | N191: 24.73676 | O191: 3.582864 | P191: 67.606
A192: 175 | B192: For_Profiles | C192: Kenya | D192: 2034 | E192: 71.134501 | F192: 18.457871 | G192: 21.756814 | H192: 21.578396 | I192: 1.916067 | J192: 1.791339 | K192: 8.963635 | L192: 8.0398105 | M192: 1.741277 | N192: 25.03945 | O192: 3.626464 | P192: 67.909
A193: 176 | B193: For_Profiles | C193: Kenya | D193: 2035 | E193: 72.599575 | F193: 18.818855 | G193: 22.296711 | H193: 22.095903 | I193: 1.934002 | J193: 1.81256 | K193: 9.064356 | L193: 8.131352 | M193: 1.760356 | N193: 25.341338 | O193: 3.669866 | P193: 68.211
A194: 177 | B194: For_Profiles | C194: Kenya | D194: 2036 | E194: 74.076771 | F194: 19.175942 | G194: 22.830342 | H194: 22.600519 | I194: 1.9511 | J194: 1.835286 | K194: 9.173505 | L194: 8.2315975 | M194: 1.783683 | N194: 25.665517 | O194: 3.71224 | P194: 68.513
A195: 178 | B195: For_Profiles | C195: Kenya | D195: 2037 | E195: 75.565437 | F195: 19.532204 | G195: 23.367687 | H195: 23.108951 | I195: 1.967394 | J195: 1.856672 | K195: 9.272408 | L195: 8.3219605 | M195: 1.806248 | N195: 25.985093 | O195: 3.75527 | P195: 68.814
A196: 179 | B196: For_Profiles | C196: Kenya | D196: 2038 | E196: 77.064651 | F196: 19.891097 | G196: 23.907157 | H196: 23.620606 | I196: 1.982914 | J196: 1.87209 | K196: 9.3638 | L196: 8.405184 | M196: 1.827577 | N196: 26.299129 | O196: 3.799418 | P196: 69.113
A197: 180 | B197: For_Profiles | C197: Kenya | D197: 2039 | E197: 78.573415 | F197: 20.257943 | G197: 24.447186 | H197: 24.135076 | I197: 1.997645 | J197: 1.890257 | K197: 9.450224 | L197: 8.483799 | M197: 1.84719 | N197: 26.60569 | O197: 3.845343 | P197: 69.409
A198: 181 | B198: For_Profiles | C198: Kenya | D198: 2040 | E198: 80.090725 | F198: 20.63598 | G198: 24.986657 | H198: 24.651877 | I198: 2.011553 | J198: 1.907525 | K198: 9.534259 | L198: 8.560374 | M198: 1.864587 | N198: 26.903127 | O198: 3.893429 | P198: 69.701
A199: 182 | B199: For_Profiles | C199: Kenya | D199: 2041 | E199: 81.615766 | F199: 21.025157 | G199: 25.518816 | H199: 25.158537 | I199: 2.024613 | J199: 1.925108 | K199: 9.621282 | L199: 8.6400005 | M199: 1.884106 | N199: 27.211466 | O199: 3.943019 | P199: 69.988
A200: 183 | B200: For_Profiles | C200: Kenya | D200: 2042 | E200: 83.147596 | F200: 21.42522 | G200: 26.051664 | H200: 25.669247 | I200: 2.036872 | J200: 1.94127 | K200: 9.701231 | L200: 8.7128655 | M200: 1.902251 | N200: 27.50873 | O200: 3.995069 | P200: 70.268
A201: 184 | B201: For_Profiles | C201: Kenya | D201: 2043 | E201: 84.684918 | F201: 21.833857 | G201: 26.584349 | H201: 26.183355 | I201: 2.048408 | J201: 1.955257 | K201: 9.775261 | L201: 8.7801915 | M201: 1.918978 | N201: 27.79349 | O201: 4.049024 | P201: 70.541
A202: 185 | B202: For_Profiles | C202: Kenya | D202: 2044 | E202: 86.226306 | F202: 22.247322 | G202: 27.115883 | H202: 26.699825 | I202: 2.059309 | J202: 1.969244 | K202: 9.844103 | L202: 8.842794 | M202: 1.934324 | N202: 28.064215 | O202: 4.103979 | P202: 70.806
A203: 186 | B203: For_Profiles | C203: Kenya | D203: 2045 | E203: 87.770496 | F203: 22.662763 | G203: 27.645532 | H203: 27.217745 | I203: 2.069682 | J203: 1.982254 | K203: 9.908711 | L203: 8.901679 | M203: 1.948397 | N203: 28.319934 | O203: 4.159223 | P203: 71.061
A204: 187 | B204: For_Profiles | C204: Madagascar | D204: 2015 | E204: 24.23539 | F204: 5.866996 | G204: 6.76474 | H204: 6.674474 | I204: 0.831396 | J204: 0.752127 | K204: 3.77013 | L204: 3.370549 | M204: 0.71269 | N204: 10.10842 | O204: 1.353789 | P204: 65.515
A205: 188 | B205: For_Profiles | C205: Madagascar | D205: 2016 | E205: 24.915822 | F205: 6.053451 | G205: 6.983211 | H205: 6.89014 | I205: 0.848539 | J205: 0.772025 | K205: 3.86477 | L205: 3.456406 | M205: 0.730199 | N205: 10.325365 | O205: 1.385305 | P205: 65.898
A206: 189 | B206: For_Profiles | C206: Madagascar | D206: 2017 | E206: 25.612972 | F206: 6.24351 | G206: 7.205872 | H206: 7.111112 | I206: 0.865588 | J206: 0.792076 | K206: 3.954684 | L206: 3.537594 | M206: 0.748643 | N206: 10.546151 | O206: 1.413479 | P206: 66.268
A207: 190 | B207: For_Profiles | C207: Madagascar | D207: 2018 | E207: 26.326352 | F207: 6.436205 | G207: 7.43239 | H207: 7.336926 | I207: 0.882432 | J207: 0.805992 | K207: 4.041529 | L207: 3.6158515 | M207: 0.76732 | N207: 10.771891 | O207: 1.439332 | P207: 66.63
A208: 191 | B208: For_Profiles | C208: Madagascar | D208: 2019 | E208: 27.055233 | F208: 6.630712 | G208: 7.662956 | H208: 7.567427 | I208: 0.898942 | J208: 0.82437 | K208: 4.127252 | L208: 3.6931865 | M208: 0.78536 | N208: 11.00297 | O208: 1.46459 | P208: 66.984
A209: 192 | B209: For_Profiles | C209: Madagascar | D209: 2020 | E209: 27.798964 | F209: 6.826656 | G209: 7.897767 | H209: 7.802627 | I209: 0.915017 | J209: 0.842461 | K209: 4.213887 | L209: 3.7716625 | M209: 0.801738 | N209: 11.23902 | O209: 1.490433 | P209: 67.33
A210: 193 | B210: For_Profiles | C210: Madagascar | D210: 2021 | E210: 28.557276 | F210: 7.022758 | G210: 8.131754 | H210: 8.035698 | I210: 0.930612 | J210: 0.861358 | K210: 4.304982 | L210: 3.8549 | M210: 0.82058 | N210: 11.489498 | O210: 1.51637 | P210: 67.67
A211: 194 | B211: For_Profiles | C211: Madagascar | D211: 2022 | E211: 29.329933 | F211: 7.221621 | G211: 8.371448 | H211: 8.274642 | I211: 0.945781 | J211: 0.879683 | K211: 4.39053 | L211: 3.9328005 | M211: 0.839326 | N211: 11.742172 | O211: 1.543009 | P211: 68.003
A212: 195 | B212: For_Profiles | C212: Madagascar | D212: 2023 | E212: 30.116332 | F212: 7.423094 | G212: 8.616578 | H212: 8.51952 | I212: 0.960576 | J212: 0.894264 | K212: 4.472151 | L212: 4.0069755 | M212: 0.857599 | N212: 11.996302 | O212: 1.570876 | P212: 68.329
A213: 196 | B213: For_Profiles | C213: Madagascar | D213: 2024 | E213: 30.91578 | F213: 7.627327 | G213: 8.867225 | H213: 8.770886 | I213: 0.975009 | J213: 0.910658 | K213: 4.551296 | L213: 4.0788335 | M213: 0.874991 | N213: 12.250168 | O213: 1.600581 | P213: 68.648
A214: 197 | B214: For_Profiles | C214: Madagascar | D214: 2025 | E214: 31.72767 | F214: 7.834699 | G214: 9.123606 | H214: 9.029141 | I214: 0.989085 | J214: 0.926543 | K214: 4.629275 | L214: 4.149641 | M214: 0.891068 | N214: 12.502176 | O214: 1.632505 | P214: 68.96
A215: 198 | B215: For_Profiles | C215: Madagascar | D215: 2026 | E215: 32.551606 | F215: 8.045834 | G215: 9.382827 | H215: 9.288478 | I215: 1.002817 | J215: 0.941917 | K215: 4.706425 | L215: 4.219623 | M215: 0.907773 | N215: 12.758812 | O215: 1.666876 | P215: 69.264
... 4607 more rows

Sheet AllCountriesResults (hidden)
D1: Prior year: | E1: =H1-1 -> -1 | G1: 1st year: | H1: =FrontPage!E47 -> 0 | J1: Final year: | K1: =FrontPage!E48 -> 0 | M1: N years: | N1: =(K1-H1)+1 -> 1 | O1: Year tot pop: | P1: =FrontPage!J65 ->  | Z1: ↓array-entered formula
D2: Year | E2: Total | F2: Reprod. | G2: Age 15-64y | I2: Births | J2: 2-yr pop | K2: u5 pop | L2: 6-59m pop | M2: 48-59m pop | N2: Children | O2: Adolescents - female | P2: Life expect | T2: ↓IncludeYr | U2: ↓YrNumInDemSheet | V2: ↓RowNum | Z2: =INDEX(Z4:Z34,MATCH(TRUE,Z4:Z34<>0,0)) ->  | AA2: =INDEX(AA4:AA34,MATCH(TRUE,AA4:AA34<>0,0)) -> 
E3: Pop | F3: Pop 15-49y | G3: Women | H3: Men | N3: 0-14y | O3: 15-19y | P3: at birth | T3: 1=yes; 0=no
A4: =IF(ROW()-3<=COUNTIF(AllCountries!$C$18:$C$4822,"="&selected_country),OFFSET(AllCountries!$A18,MATCH(selected_country, AllCountries!$C$18:$C$4822,0)-1,COLUMN()-1),"") ->  | B4: =IF(ROW()-3<=COUNTIF(AllCountries!$C$18:$C$4822,"="&selected_country),OFFSET(AllCountries!$A18,MATCH(selected_country, AllCountries!$C$18:$C$4822,0)-1,COLUMN()-1),"") ->  | C4: =IF(ROW()-3<=COUNTIF(AllCountries!$C$18:$C$4822,"="&selected_country),OFFSET(AllCountries!$A18,MATCH(selected_country, AllCountries!$C$18:$C$4822,0)-1,COLUMN()-1),"") ->  | D4: =IF(ROW()-3<=COUNTIF(AllCountries!$C$18:$C$4822,"="&selected_country),OFFSET(AllCountries!$A18,MATCH(selected_country, AllCountries!$C$18:$C$4822,0)-1,COLUMN()-1),"") ->  | E4: =IF(ROW()-3<=COUNTIF(AllCountries!$C$18:$C$4822,"="&selected_country),OFFSET(AllCountries!$A18,MATCH(selected_country, AllCountries!$C$18:$C$4822,0)-1,COLUMN()-1),"") ->  | F4: =IF(ROW()-3<=COUNTIF(AllCountries!$C$18:$C$4822,"="&selected_country),OFFSET(AllCountries!$A18,MATCH(selected_country, AllCountries!$C$18:$C$4822,0)-1,COLUMN()-1),"") ->  | G4: =IF(ROW()-3<=COUNTIF(AllCountries!$C$18:$C$4822,"="&selected_country),OFFSET(AllCountries!$A18,MATCH(selected_country, AllCountries!$C$18:$C$4822,0)-1,COLUMN()-1),"") ->  | H4: =IF(ROW()-3<=COUNTIF(AllCountries!$C$18:$C$4822,"="&selected_country),OFFSET(AllCountries!$A18,MATCH(selected_country, AllCountries!$C$18:$C$4822,0)-1,COLUMN()-1),"") ->  | I4: =IF(ROW()-3<=COUNTIF(AllCountries!$C$18:$C$4822,"="&selected_country),OFFSET(AllCountries!$A18,MATCH(selected_country, AllCountries!$C$18:$C$4822,0)-1,COLUMN()-1),"") ->  | J4: =IF(ROW()-3<=COUNTIF(AllCountries!$C$18:$C$4822,"="&selected_country),OFFSET(AllCountries!$A18,MATCH(selected_country, AllCountries!$C$18:$C$4822,0)-1,COLUMN()-1),"") ->  | K4: =IF(ROW()-3<=COUNTIF(AllCountries!$C$18:$C$4822,"="&selected_country),OFFSET(AllCountries!$A18,MATCH(selected_country, AllCountries!$C$18:$C$4822,0)-1,COLUMN()-1),"") ->  | L4: =IF(ROW()-3<=COUNTIF(AllCountries!$C$18:$C$4822,"="&selected_country),OFFSET(AllCountries!$A18,MATCH(selected_country, AllCountries!$C$18:$C$4822,0)-1,COLUMN()-1),"") ->  | M4: =IF(ROW()-3<=COUNTIF(AllCountries!$C$18:$C$4822,"="&selected_country),OFFSET(AllCountries!$A18,MATCH(selected_country, AllCountries!$C$18:$C$4822,0)-1,COLUMN()-1),"") ->  | N4: =IF(ROW()-3<=COUNTIF(AllCountries!$C$18:$C$4822,"="&selected_country),OFFSET(AllCountries!$A18,MATCH(selected_country, AllCountries!$C$18:$C$4822,0)-1,COLUMN()-1),"") ->  | O4: =IF(ROW()-3<=COUNTIF(AllCountries!$C$18:$C$4822,"="&selected_country),OFFSET(AllCountries!$A18,MATCH(selected_country, AllCountries!$C$18:$C$4822,0)-1,COLUMN()-1),"") ->  | P4: =IF(ROW()-3<=COUNTIF(AllCountries!$C$18:$C$4822,"="&selected_country),OFFSET(AllCountries!$A18,MATCH(selected_country, AllCountries!$C$18:$C$4822,0)-1,COLUMN()-1),"") ->  | T4: =IF(ISNUMBER(D4),IF(AND(D4>=E$1,D4<=K$1),1,0),"") ->  | U4: =IF(T4=1,1,0) -> 0 | V4: =IF(ISNUMBER(D4),IF(AND(D4>=E$1,D4<=K$1),ROW(),"NotUsed")) -> FALSE | W4: =ROW()-1 -> 3 | X4: UseInFormula | Z4: =IF(D4=$P$1,D4,0) ->  | AA4: =IF(D4=$P$1,E4,0) -> 
A5: =IF(ROW()-3<=COUNTIF(AllCountries!$C$18:$C$4822,"="&selected_country),OFFSET(AllCountries!$A19,MATCH(selected_country, AllCountries!$C$18:$C$4822,0)-1,COLUMN()-1),"") ->  | B5: =IF(ROW()-3<=COUNTIF(AllCountries!$C$18:$C$4822,"="&selected_country),OFFSET(AllCountries!$A19,MATCH(selected_country, AllCountries!$C$18:$C$4822,0)-1,COLUMN()-1),"") ->  | C5: =IF(ROW()-3<=COUNTIF(AllCountries!$C$18:$C$4822,"="&selected_country),OFFSET(AllCountries!$A19,MATCH(selected_country, AllCountries!$C$18:$C$4822,0)-1,COLUMN()-1),"") ->  | D5: =IF(ROW()-3<=COUNTIF(AllCountries!$C$18:$C$4822,"="&selected_country),OFFSET(AllCountries!$A19,MATCH(selected_country, AllCountries!$C$18:$C$4822,0)-1,COLUMN()-1),"") ->  | E5: =IF(ROW()-3<=COUNTIF(AllCountries!$C$18:$C$4822,"="&selected_country),OFFSET(AllCountries!$A19,MATCH(selected_country, AllCountries!$C$18:$C$4822,0)-1,COLUMN()-1),"") ->  | F5: =IF(ROW()-3<=COUNTIF(AllCountries!$C$18:$C$4822,"="&selected_country),OFFSET(AllCountries!$A19,MATCH(selected_country, AllCountries!$C$18:$C$4822,0)-1,COLUMN()-1),"") ->  | G5: =IF(ROW()-3<=COUNTIF(AllCountries!$C$18:$C$4822,"="&selected_country),OFFSET(AllCountries!$A19,MATCH(selected_country, AllCountries!$C$18:$C$4822,0)-1,COLUMN()-1),"") ->  | H5: =IF(ROW()-3<=COUNTIF(AllCountries!$C$18:$C$4822,"="&selected_country),OFFSET(AllCountries!$A19,MATCH(selected_country, AllCountries!$C$18:$C$4822,0)-1,COLUMN()-1),"") ->  | I5: =IF(ROW()-3<=COUNTIF(AllCountries!$C$18:$C$4822,"="&selected_country),OFFSET(AllCountries!$A19,MATCH(selected_country, AllCountries!$C$18:$C$4822,0)-1,COLUMN()-1),"") ->  | J5: =IF(ROW()-3<=COUNTIF(AllCountries!$C$18:$C$4822,"="&selected_country),OFFSET(AllCountries!$A19,MATCH(selected_country, AllCountries!$C$18:$C$4822,0)-1,COLUMN()-1),"") ->  | K5: =IF(ROW()-3<=COUNTIF(AllCountries!$C$18:$C$4822,"="&selected_country),OFFSET(AllCountries!$A19,MATCH(selected_country, AllCountries!$C$18:$C$4822,0)-1,COLUMN()-1),"") ->  | L5: =IF(ROW()-3<=COUNTIF(AllCountries!$C$18:$C$4822,"="&selected_country),OFFSET(AllCountries!$A19,MATCH(selected_country, AllCountries!$C$18:$C$4822,0)-1,COLUMN()-1),"") ->  | M5: =IF(ROW()-3<=COUNTIF(AllCountries!$C$18:$C$4822,"="&selected_country),OFFSET(AllCountries!$A19,MATCH(selected_country, AllCountries!$C$18:$C$4822,0)-1,COLUMN()-1),"") ->  | N5: =IF(ROW()-3<=COUNTIF(AllCountries!$C$18:$C$4822,"="&selected_country),OFFSET(AllCountries!$A19,MATCH(selected_country, AllCountries!$C$18:$C$4822,0)-1,COLUMN()-1),"") ->  | O5: =IF(ROW()-3<=COUNTIF(AllCountries!$C$18:$C$4822,"="&selected_country),OFFSET(AllCountries!$A19,MATCH(selected_country, AllCountries!$C$18:$C$4822,0)-1,COLUMN()-1),"") ->  | P5: =IF(ROW()-3<=COUNTIF(AllCountries!$C$18:$C$4822,"="&selected_country),OFFSET(AllCountries!$A19,MATCH(selected_country, AllCountries!$C$18:$C$4822,0)-1,COLUMN()-1),"") ->  | U5: =IF(T5=1,U4+1,0) -> 0 | V5: FALSE | Z5: =IF(D5=$P$1,D5,0) ->  | AA5: =IF(D5=$P$1,E5,0) -> 
A6: =IF(ROW()-3<=COUNTIF(AllCountries!$C$18:$C$4822,"="&selected_country),OFFSET(AllCountries!$A20,MATCH(selected_country, AllCountries!$C$18:$C$4822,0)-1,COLUMN()-1),"") ->  | B6: =IF(ROW()-3<=COUNTIF(AllCountries!$C$18:$C$4822,"="&selected_country),OFFSET(AllCountries!$A20,MATCH(selected_country, AllCountries!$C$18:$C$4822,0)-1,COLUMN()-1),"") ->  | C6: =IF(ROW()-3<=COUNTIF(AllCountries!$C$18:$C$4822,"="&selected_country),OFFSET(AllCountries!$A20,MATCH(selected_country, AllCountries!$C$18:$C$4822,0)-1,COLUMN()-1),"") ->  | D6: =IF(ROW()-3<=COUNTIF(AllCountries!$C$18:$C$4822,"="&selected_country),OFFSET(AllCountries!$A20,MATCH(selected_country, AllCountries!$C$18:$C$4822,0)-1,COLUMN()-1),"") ->  | E6: =IF(ROW()-3<=COUNTIF(AllCountries!$C$18:$C$4822,"="&selected_country),OFFSET(AllCountries!$A20,MATCH(selected_country, AllCountries!$C$18:$C$4822,0)-1,COLUMN()-1),"") ->  | F6: =IF(ROW()-3<=COUNTIF(AllCountries!$C$18:$C$4822,"="&selected_country),OFFSET(AllCountries!$A20,MATCH(selected_country, AllCountries!$C$18:$C$4822,0)-1,COLUMN()-1),"") ->  | G6: =IF(ROW()-3<=COUNTIF(AllCountries!$C$18:$C$4822,"="&selected_country),OFFSET(AllCountries!$A20,MATCH(selected_country, AllCountries!$C$18:$C$4822,0)-1,COLUMN()-1),"") ->  | H6: =IF(ROW()-3<=COUNTIF(AllCountries!$C$18:$C$4822,"="&selected_country),OFFSET(AllCountries!$A20,MATCH(selected_country, AllCountries!$C$18:$C$4822,0)-1,COLUMN()-1),"") ->  | I6: =IF(ROW()-3<=COUNTIF(AllCountries!$C$18:$C$4822,"="&selected_country),OFFSET(AllCountries!$A20,MATCH(selected_country, AllCountries!$C$18:$C$4822,0)-1,COLUMN()-1),"") ->  | J6: =IF(ROW()-3<=COUNTIF(AllCountries!$C$18:$C$4822,"="&selected_country),OFFSET(AllCountries!$A20,MATCH(selected_country, AllCountries!$C$18:$C$4822,0)-1,COLUMN()-1),"") ->  | K6: =IF(ROW()-3<=COUNTIF(AllCountries!$C$18:$C$4822,"="&selected_country),OFFSET(AllCountries!$A20,MATCH(selected_country, AllCountries!$C$18:$C$4822,0)-1,COLUMN()-1),"") ->  | L6: =IF(ROW()-3<=COUNTIF(AllCountries!$C$18:$C$4822,"="&selected_country),OFFSET(AllCountries!$A20,MATCH(selected_country, AllCountries!$C$18:$C$4822,0)-1,COLUMN()-1),"") ->  | M6: =IF(ROW()-3<=COUNTIF(AllCountries!$C$18:$C$4822,"="&selected_country),OFFSET(AllCountries!$A20,MATCH(selected_country, AllCountries!$C$18:$C$4822,0)-1,COLUMN()-1),"") ->  | N6: =IF(ROW()-3<=COUNTIF(AllCountries!$C$18:$C$4822,"="&selected_country),OFFSET(AllCountries!$A20,MATCH(selected_country, AllCountries!$C$18:$C$4822,0)-1,COLUMN()-1),"") ->  | O6: =IF(ROW()-3<=COUNTIF(AllCountries!$C$18:$C$4822,"="&selected_country),OFFSET(AllCountries!$A20,MATCH(selected_country, AllCountries!$C$18:$C$4822,0)-1,COLUMN()-1),"") ->  | P6: =IF(ROW()-3<=COUNTIF(AllCountries!$C$18:$C$4822,"="&selected_country),OFFSET(AllCountries!$A20,MATCH(selected_country, AllCountries!$C$18:$C$4822,0)-1,COLUMN()-1),"") ->  | U6: 0 | V6: FALSE | Z6: =IF(D6=$P$1,D6,0) ->  | AA6: =IF(D6=$P$1,E6,0) -> 
A7: =IF(ROW()-3<=COUNTIF(AllCountries!$C$18:$C$4822,"="&selected_country),OFFSET(AllCountries!$A21,MATCH(selected_country, AllCountries!$C$18:$C$4822,0)-1,COLUMN()-1),"") ->  | B7: =IF(ROW()-3<=COUNTIF(AllCountries!$C$18:$C$4822,"="&selected_country),OFFSET(AllCountries!$A21,MATCH(selected_country, AllCountries!$C$18:$C$4822,0)-1,COLUMN()-1),"") ->  | C7: =IF(ROW()-3<=COUNTIF(AllCountries!$C$18:$C$4822,"="&selected_country),OFFSET(AllCountries!$A21,MATCH(selected_country, AllCountries!$C$18:$C$4822,0)-1,COLUMN()-1),"") ->  | D7: =IF(ROW()-3<=COUNTIF(AllCountries!$C$18:$C$4822,"="&selected_country),OFFSET(AllCountries!$A21,MATCH(selected_country, AllCountries!$C$18:$C$4822,0)-1,COLUMN()-1),"") ->  | E7: =IF(ROW()-3<=COUNTIF(AllCountries!$C$18:$C$4822,"="&selected_country),OFFSET(AllCountries!$A21,MATCH(selected_country, AllCountries!$C$18:$C$4822,0)-1,COLUMN()-1),"") ->  | F7: =IF(ROW()-3<=COUNTIF(AllCountries!$C$18:$C$4822,"="&selected_country),OFFSET(AllCountries!$A21,MATCH(selected_country, AllCountries!$C$18:$C$4822,0)-1,COLUMN()-1),"") ->  | G7: =IF(ROW()-3<=COUNTIF(AllCountries!$C$18:$C$4822,"="&selected_country),OFFSET(AllCountries!$A21,MATCH(selected_country, AllCountries!$C$18:$C$4822,0)-1,COLUMN()-1),"") ->  | H7: =IF(ROW()-3<=COUNTIF(AllCountries!$C$18:$C$4822,"="&selected_country),OFFSET(AllCountries!$A21,MATCH(selected_country, AllCountries!$C$18:$C$4822,0)-1,COLUMN()-1),"") ->  | I7: =IF(ROW()-3<=COUNTIF(AllCountries!$C$18:$C$4822,"="&selected_country),OFFSET(AllCountries!$A21,MATCH(selected_country, AllCountries!$C$18:$C$4822,0)-1,COLUMN()-1),"") ->  | J7: =IF(ROW()-3<=COUNTIF(AllCountries!$C$18:$C$4822,"="&selected_country),OFFSET(AllCountries!$A21,MATCH(selected_country, AllCountries!$C$18:$C$4822,0)-1,COLUMN()-1),"") ->  | K7: =IF(ROW()-3<=COUNTIF(AllCountries!$C$18:$C$4822,"="&selected_country),OFFSET(AllCountries!$A21,MATCH(selected_country, AllCountries!$C$18:$C$4822,0)-1,COLUMN()-1),"") ->  | L7: =IF(ROW()-3<=COUNTIF(AllCountries!$C$18:$C$4822,"="&selected_country),OFFSET(AllCountries!$A21,MATCH(selected_country, AllCountries!$C$18:$C$4822,0)-1,COLUMN()-1),"") ->  | M7: =IF(ROW()-3<=COUNTIF(AllCountries!$C$18:$C$4822,"="&selected_country),OFFSET(AllCountries!$A21,MATCH(selected_country, AllCountries!$C$18:$C$4822,0)-1,COLUMN()-1),"") ->  | N7: =IF(ROW()-3<=COUNTIF(AllCountries!$C$18:$C$4822,"="&selected_country),OFFSET(AllCountries!$A21,MATCH(selected_country, AllCountries!$C$18:$C$4822,0)-1,COLUMN()-1),"") ->  | O7: =IF(ROW()-3<=COUNTIF(AllCountries!$C$18:$C$4822,"="&selected_country),OFFSET(AllCountries!$A21,MATCH(selected_country, AllCountries!$C$18:$C$4822,0)-1,COLUMN()-1),"") ->  | P7: =IF(ROW()-3<=COUNTIF(AllCountries!$C$18:$C$4822,"="&selected_country),OFFSET(AllCountries!$A21,MATCH(selected_country, AllCountries!$C$18:$C$4822,0)-1,COLUMN()-1),"") ->  | U7: 0 | V7: FALSE
A8: =IF(ROW()-3<=COUNTIF(AllCountries!$C$18:$C$4822,"="&selected_country),OFFSET(AllCountries!$A22,MATCH(selected_country, AllCountries!$C$18:$C$4822,0)-1,COLUMN()-1),"") ->  | B8: =IF(ROW()-3<=COUNTIF(AllCountries!$C$18:$C$4822,"="&selected_country),OFFSET(AllCountries!$A22,MATCH(selected_country, AllCountries!$C$18:$C$4822,0)-1,COLUMN()-1),"") ->  | C8: =IF(ROW()-3<=COUNTIF(AllCountries!$C$18:$C$4822,"="&selected_country),OFFSET(AllCountries!$A22,MATCH(selected_country, AllCountries!$C$18:$C$4822,0)-1,COLUMN()-1),"") ->  | D8: =IF(ROW()-3<=COUNTIF(AllCountries!$C$18:$C$4822,"="&selected_country),OFFSET(AllCountries!$A22,MATCH(selected_country, AllCountries!$C$18:$C$4822,0)-1,COLUMN()-1),"") ->  | E8: =IF(ROW()-3<=COUNTIF(AllCountries!$C$18:$C$4822,"="&selected_country),OFFSET(AllCountries!$A22,MATCH(selected_country, AllCountries!$C$18:$C$4822,0)-1,COLUMN()-1),"") ->  | F8: =IF(ROW()-3<=COUNTIF(AllCountries!$C$18:$C$4822,"="&selected_country),OFFSET(AllCountries!$A22,MATCH(selected_country, AllCountries!$C$18:$C$4822,0)-1,COLUMN()-1),"") ->  | G8: =IF(ROW()-3<=COUNTIF(AllCountries!$C$18:$C$4822,"="&selected_country),OFFSET(AllCountries!$A22,MATCH(selected_country, AllCountries!$C$18:$C$4822,0)-1,COLUMN()-1),"") ->  | H8: =IF(ROW()-3<=COUNTIF(AllCountries!$C$18:$C$4822,"="&selected_country),OFFSET(AllCountries!$A22,MATCH(selected_country, AllCountries!$C$18:$C$4822,0)-1,COLUMN()-1),"") ->  | I8: =IF(ROW()-3<=COUNTIF(AllCountries!$C$18:$C$4822,"="&selected_country),OFFSET(AllCountries!$A22,MATCH(selected_country, AllCountries!$C$18:$C$4822,0)-1,COLUMN()-1),"") ->  | J8: =IF(ROW()-3<=COUNTIF(AllCountries!$C$18:$C$4822,"="&selected_country),OFFSET(AllCountries!$A22,MATCH(selected_country, AllCountries!$C$18:$C$4822,0)-1,COLUMN()-1),"") ->  | K8: =IF(ROW()-3<=COUNTIF(AllCountries!$C$18:$C$4822,"="&selected_country),OFFSET(AllCountries!$A22,MATCH(selected_country, AllCountries!$C$18:$C$4822,0)-1,COLUMN()-1),"") ->  | L8: =IF(ROW()-3<=COUNTIF(AllCountries!$C$18:$C$4822,"="&selected_country),OFFSET(AllCountries!$A22,MATCH(selected_country, AllCountries!$C$18:$C$4822,0)-1,COLUMN()-1),"") ->  | M8: =IF(ROW()-3<=COUNTIF(AllCountries!$C$18:$C$4822,"="&selected_country),OFFSET(AllCountries!$A22,MATCH(selected_country, AllCountries!$C$18:$C$4822,0)-1,COLUMN()-1),"") ->  | N8: =IF(ROW()-3<=COUNTIF(AllCountries!$C$18:$C$4822,"="&selected_country),OFFSET(AllCountries!$A22,MATCH(selected_country, AllCountries!$C$18:$C$4822,0)-1,COLUMN()-1),"") ->  | O8: =IF(ROW()-3<=COUNTIF(AllCountries!$C$18:$C$4822,"="&selected_country),OFFSET(AllCountries!$A22,MATCH(selected_country, AllCountries!$C$18:$C$4822,0)-1,COLUMN()-1),"") ->  | P8: =IF(ROW()-3<=COUNTIF(AllCountries!$C$18:$C$4822,"="&selected_country),OFFSET(AllCountries!$A22,MATCH(selected_country, AllCountries!$C$18:$C$4822,0)-1,COLUMN()-1),"") ->  | U8: 0 | V8: FALSE
A9: =IF(ROW()-3<=COUNTIF(AllCountries!$C$18:$C$4822,"="&selected_country),OFFSET(AllCountries!$A23,MATCH(selected_country, AllCountries!$C$18:$C$4822,0)-1,COLUMN()-1),"") ->  | B9: =IF(ROW()-3<=COUNTIF(AllCountries!$C$18:$C$4822,"="&selected_country),OFFSET(AllCountries!$A23,MATCH(selected_country, AllCountries!$C$18:$C$4822,0)-1,COLUMN()-1),"") ->  | C9: =IF(ROW()-3<=COUNTIF(AllCountries!$C$18:$C$4822,"="&selected_country),OFFSET(AllCountries!$A23,MATCH(selected_country, AllCountries!$C$18:$C$4822,0)-1,COLUMN()-1),"") ->  | D9: =IF(ROW()-3<=COUNTIF(AllCountries!$C$18:$C$4822,"="&selected_country),OFFSET(AllCountries!$A23,MATCH(selected_country, AllCountries!$C$18:$C$4822,0)-1,COLUMN()-1),"") ->  | E9: =IF(ROW()-3<=COUNTIF(AllCountries!$C$18:$C$4822,"="&selected_country),OFFSET(AllCountries!$A23,MATCH(selected_country, AllCountries!$C$18:$C$4822,0)-1,COLUMN()-1),"") ->  | F9: =IF(ROW()-3<=COUNTIF(AllCountries!$C$18:$C$4822,"="&selected_country),OFFSET(AllCountries!$A23,MATCH(selected_country, AllCountries!$C$18:$C$4822,0)-1,COLUMN()-1),"") ->  | G9: =IF(ROW()-3<=COUNTIF(AllCountries!$C$18:$C$4822,"="&selected_country),OFFSET(AllCountries!$A23,MATCH(selected_country, AllCountries!$C$18:$C$4822,0)-1,COLUMN()-1),"") ->  | H9: =IF(ROW()-3<=COUNTIF(AllCountries!$C$18:$C$4822,"="&selected_country),OFFSET(AllCountries!$A23,MATCH(selected_country, AllCountries!$C$18:$C$4822,0)-1,COLUMN()-1),"") ->  | I9: =IF(ROW()-3<=COUNTIF(AllCountries!$C$18:$C$4822,"="&selected_country),OFFSET(AllCountries!$A23,MATCH(selected_country, AllCountries!$C$18:$C$4822,0)-1,COLUMN()-1),"") ->  | J9: =IF(ROW()-3<=COUNTIF(AllCountries!$C$18:$C$4822,"="&selected_country),OFFSET(AllCountries!$A23,MATCH(selected_country, AllCountries!$C$18:$C$4822,0)-1,COLUMN()-1),"") ->  | K9: =IF(ROW()-3<=COUNTIF(AllCountries!$C$18:$C$4822,"="&selected_country),OFFSET(AllCountries!$A23,MATCH(selected_country, AllCountries!$C$18:$C$4822,0)-1,COLUMN()-1),"") ->  | L9: =IF(ROW()-3<=COUNTIF(AllCountries!$C$18:$C$4822,"="&selected_country),OFFSET(AllCountries!$A23,MATCH(selected_country, AllCountries!$C$18:$C$4822,0)-1,COLUMN()-1),"") ->  | M9: =IF(ROW()-3<=COUNTIF(AllCountries!$C$18:$C$4822,"="&selected_country),OFFSET(AllCountries!$A23,MATCH(selected_country, AllCountries!$C$18:$C$4822,0)-1,COLUMN()-1),"") ->  | N9: =IF(ROW()-3<=COUNTIF(AllCountries!$C$18:$C$4822,"="&selected_country),OFFSET(AllCountries!$A23,MATCH(selected_country, AllCountries!$C$18:$C$4822,0)-1,COLUMN()-1),"") ->  | O9: =IF(ROW()-3<=COUNTIF(AllCountries!$C$18:$C$4822,"="&selected_country),OFFSET(AllCountries!$A23,MATCH(selected_country, AllCountries!$C$18:$C$4822,0)-1,COLUMN()-1),"") ->  | P9: =IF(ROW()-3<=COUNTIF(AllCountries!$C$18:$C$4822,"="&selected_country),OFFSET(AllCountries!$A23,MATCH(selected_country, AllCountries!$C$18:$C$4822,0)-1,COLUMN()-1),"") ->  | U9: 0 | V9: FALSE
A10: =IF(ROW()-3<=COUNTIF(AllCountries!$C$18:$C$4822,"="&selected_country),OFFSET(AllCountries!$A24,MATCH(selected_country, AllCountries!$C$18:$C$4822,0)-1,COLUMN()-1),"") ->  | B10: =IF(ROW()-3<=COUNTIF(AllCountries!$C$18:$C$4822,"="&selected_country),OFFSET(AllCountries!$A24,MATCH(selected_country, AllCountries!$C$18:$C$4822,0)-1,COLUMN()-1),"") ->  | C10: =IF(ROW()-3<=COUNTIF(AllCountries!$C$18:$C$4822,"="&selected_country),OFFSET(AllCountries!$A24,MATCH(selected_country, AllCountries!$C$18:$C$4822,0)-1,COLUMN()-1),"") ->  | D10: =IF(ROW()-3<=COUNTIF(AllCountries!$C$18:$C$4822,"="&selected_country),OFFSET(AllCountries!$A24,MATCH(selected_country, AllCountries!$C$18:$C$4822,0)-1,COLUMN()-1),"") ->  | E10: =IF(ROW()-3<=COUNTIF(AllCountries!$C$18:$C$4822,"="&selected_country),OFFSET(AllCountries!$A24,MATCH(selected_country, AllCountries!$C$18:$C$4822,0)-1,COLUMN()-1),"") ->  | F10: =IF(ROW()-3<=COUNTIF(AllCountries!$C$18:$C$4822,"="&selected_country),OFFSET(AllCountries!$A24,MATCH(selected_country, AllCountries!$C$18:$C$4822,0)-1,COLUMN()-1),"") ->  | G10: =IF(ROW()-3<=COUNTIF(AllCountries!$C$18:$C$4822,"="&selected_country),OFFSET(AllCountries!$A24,MATCH(selected_country, AllCountries!$C$18:$C$4822,0)-1,COLUMN()-1),"") ->  | H10: =IF(ROW()-3<=COUNTIF(AllCountries!$C$18:$C$4822,"="&selected_country),OFFSET(AllCountries!$A24,MATCH(selected_country, AllCountries!$C$18:$C$4822,0)-1,COLUMN()-1),"") ->  | I10: =IF(ROW()-3<=COUNTIF(AllCountries!$C$18:$C$4822,"="&selected_country),OFFSET(AllCountries!$A24,MATCH(selected_country, AllCountries!$C$18:$C$4822,0)-1,COLUMN()-1),"") ->  | J10: =IF(ROW()-3<=COUNTIF(AllCountries!$C$18:$C$4822,"="&selected_country),OFFSET(AllCountries!$A24,MATCH(selected_country, AllCountries!$C$18:$C$4822,0)-1,COLUMN()-1),"") ->  | K10: =IF(ROW()-3<=COUNTIF(AllCountries!$C$18:$C$4822,"="&selected_country),OFFSET(AllCountries!$A24,MATCH(selected_country, AllCountries!$C$18:$C$4822,0)-1,COLUMN()-1),"") ->  | L10: =IF(ROW()-3<=COUNTIF(AllCountries!$C$18:$C$4822,"="&selected_country),OFFSET(AllCountries!$A24,MATCH(selected_country, AllCountries!$C$18:$C$4822,0)-1,COLUMN()-1),"") ->  | M10: =IF(ROW()-3<=COUNTIF(AllCountries!$C$18:$C$4822,"="&selected_country),OFFSET(AllCountries!$A24,MATCH(selected_country, AllCountries!$C$18:$C$4822,0)-1,COLUMN()-1),"") ->  | N10: =IF(ROW()-3<=COUNTIF(AllCountries!$C$18:$C$4822,"="&selected_country),OFFSET(AllCountries!$A24,MATCH(selected_country, AllCountries!$C$18:$C$4822,0)-1,COLUMN()-1),"") ->  | O10: =IF(ROW()-3<=COUNTIF(AllCountries!$C$18:$C$4822,"="&selected_country),OFFSET(AllCountries!$A24,MATCH(selected_country, AllCountries!$C$18:$C$4822,0)-1,COLUMN()-1),"") ->  | P10: =IF(ROW()-3<=COUNTIF(AllCountries!$C$18:$C$4822,"="&selected_country),OFFSET(AllCountries!$A24,MATCH(selected_country, AllCountries!$C$18:$C$4822,0)-1,COLUMN()-1),"") ->  | U10: 0 | V10: FALSE
A11: =IF(ROW()-3<=COUNTIF(AllCountries!$C$18:$C$4822,"="&selected_country),OFFSET(AllCountries!$A25,MATCH(selected_country, AllCountries!$C$18:$C$4822,0)-1,COLUMN()-1),"") ->  | B11: =IF(ROW()-3<=COUNTIF(AllCountries!$C$18:$C$4822,"="&selected_country),OFFSET(AllCountries!$A25,MATCH(selected_country, AllCountries!$C$18:$C$4822,0)-1,COLUMN()-1),"") ->  | C11: =IF(ROW()-3<=COUNTIF(AllCountries!$C$18:$C$4822,"="&selected_country),OFFSET(AllCountries!$A25,MATCH(selected_country, AllCountries!$C$18:$C$4822,0)-1,COLUMN()-1),"") ->  | D11: =IF(ROW()-3<=COUNTIF(AllCountries!$C$18:$C$4822,"="&selected_country),OFFSET(AllCountries!$A25,MATCH(selected_country, AllCountries!$C$18:$C$4822,0)-1,COLUMN()-1),"") ->  | E11: =IF(ROW()-3<=COUNTIF(AllCountries!$C$18:$C$4822,"="&selected_country),OFFSET(AllCountries!$A25,MATCH(selected_country, AllCountries!$C$18:$C$4822,0)-1,COLUMN()-1),"") ->  | F11: =IF(ROW()-3<=COUNTIF(AllCountries!$C$18:$C$4822,"="&selected_country),OFFSET(AllCountries!$A25,MATCH(selected_country, AllCountries!$C$18:$C$4822,0)-1,COLUMN()-1),"") ->  | G11: =IF(ROW()-3<=COUNTIF(AllCountries!$C$18:$C$4822,"="&selected_country),OFFSET(AllCountries!$A25,MATCH(selected_country, AllCountries!$C$18:$C$4822,0)-1,COLUMN()-1),"") ->  | H11: =IF(ROW()-3<=COUNTIF(AllCountries!$C$18:$C$4822,"="&selected_country),OFFSET(AllCountries!$A25,MATCH(selected_country, AllCountries!$C$18:$C$4822,0)-1,COLUMN()-1),"") ->  | I11: =IF(ROW()-3<=COUNTIF(AllCountries!$C$18:$C$4822,"="&selected_country),OFFSET(AllCountries!$A25,MATCH(selected_country, AllCountries!$C$18:$C$4822,0)-1,COLUMN()-1),"") ->  | J11: =IF(ROW()-3<=COUNTIF(AllCountries!$C$18:$C$4822,"="&selected_country),OFFSET(AllCountries!$A25,MATCH(selected_country, AllCountries!$C$18:$C$4822,0)-1,COLUMN()-1),"") ->  | K11: =IF(ROW()-3<=COUNTIF(AllCountries!$C$18:$C$4822,"="&selected_country),OFFSET(AllCountries!$A25,MATCH(selected_country, AllCountries!$C$18:$C$4822,0)-1,COLUMN()-1),"") ->  | L11: =IF(ROW()-3<=COUNTIF(AllCountries!$C$18:$C$4822,"="&selected_country),OFFSET(AllCountries!$A25,MATCH(selected_country, AllCountries!$C$18:$C$4822,0)-1,COLUMN()-1),"") ->  | M11: =IF(ROW()-3<=COUNTIF(AllCountries!$C$18:$C$4822,"="&selected_country),OFFSET(AllCountries!$A25,MATCH(selected_country, AllCountries!$C$18:$C$4822,0)-1,COLUMN()-1),"") ->  | N11: =IF(ROW()-3<=COUNTIF(AllCountries!$C$18:$C$4822,"="&selected_country),OFFSET(AllCountries!$A25,MATCH(selected_country, AllCountries!$C$18:$C$4822,0)-1,COLUMN()-1),"") ->  | O11: =IF(ROW()-3<=COUNTIF(AllCountries!$C$18:$C$4822,"="&selected_country),OFFSET(AllCountries!$A25,MATCH(selected_country, AllCountries!$C$18:$C$4822,0)-1,COLUMN()-1),"") ->  | P11: =IF(ROW()-3<=COUNTIF(AllCountries!$C$18:$C$4822,"="&selected_country),OFFSET(AllCountries!$A25,MATCH(selected_country, AllCountries!$C$18:$C$4822,0)-1,COLUMN()-1),"") ->  | U11: 0 | V11: FALSE
A12: =IF(ROW()-3<=COUNTIF(AllCountries!$C$18:$C$4822,"="&selected_country),OFFSET(AllCountries!$A26,MATCH(selected_country, AllCountries!$C$18:$C$4822,0)-1,COLUMN()-1),"") ->  | B12: =IF(ROW()-3<=COUNTIF(AllCountries!$C$18:$C$4822,"="&selected_country),OFFSET(AllCountries!$A26,MATCH(selected_country, AllCountries!$C$18:$C$4822,0)-1,COLUMN()-1),"") ->  | C12: =IF(ROW()-3<=COUNTIF(AllCountries!$C$18:$C$4822,"="&selected_country),OFFSET(AllCountries!$A26,MATCH(selected_country, AllCountries!$C$18:$C$4822,0)-1,COLUMN()-1),"") ->  | D12: =IF(ROW()-3<=COUNTIF(AllCountries!$C$18:$C$4822,"="&selected_country),OFFSET(AllCountries!$A26,MATCH(selected_country, AllCountries!$C$18:$C$4822,0)-1,COLUMN()-1),"") ->  | E12: =IF(ROW()-3<=COUNTIF(AllCountries!$C$18:$C$4822,"="&selected_country),OFFSET(AllCountries!$A26,MATCH(selected_country, AllCountries!$C$18:$C$4822,0)-1,COLUMN()-1),"") ->  | F12: =IF(ROW()-3<=COUNTIF(AllCountries!$C$18:$C$4822,"="&selected_country),OFFSET(AllCountries!$A26,MATCH(selected_country, AllCountries!$C$18:$C$4822,0)-1,COLUMN()-1),"") ->  | G12: =IF(ROW()-3<=COUNTIF(AllCountries!$C$18:$C$4822,"="&selected_country),OFFSET(AllCountries!$A26,MATCH(selected_country, AllCountries!$C$18:$C$4822,0)-1,COLUMN()-1),"") ->  | H12: =IF(ROW()-3<=COUNTIF(AllCountries!$C$18:$C$4822,"="&selected_country),OFFSET(AllCountries!$A26,MATCH(selected_country, AllCountries!$C$18:$C$4822,0)-1,COLUMN()-1),"") ->  | I12: =IF(ROW()-3<=COUNTIF(AllCountries!$C$18:$C$4822,"="&selected_country),OFFSET(AllCountries!$A26,MATCH(selected_country, AllCountries!$C$18:$C$4822,0)-1,COLUMN()-1),"") ->  | J12: =IF(ROW()-3<=COUNTIF(AllCountries!$C$18:$C$4822,"="&selected_country),OFFSET(AllCountries!$A26,MATCH(selected_country, AllCountries!$C$18:$C$4822,0)-1,COLUMN()-1),"") ->  | K12: =IF(ROW()-3<=COUNTIF(AllCountries!$C$18:$C$4822,"="&selected_country),OFFSET(AllCountries!$A26,MATCH(selected_country, AllCountries!$C$18:$C$4822,0)-1,COLUMN()-1),"") ->  | L12: =IF(ROW()-3<=COUNTIF(AllCountries!$C$18:$C$4822,"="&selected_country),OFFSET(AllCountries!$A26,MATCH(selected_country, AllCountries!$C$18:$C$4822,0)-1,COLUMN()-1),"") ->  | M12: =IF(ROW()-3<=COUNTIF(AllCountries!$C$18:$C$4822,"="&selected_country),OFFSET(AllCountries!$A26,MATCH(selected_country, AllCountries!$C$18:$C$4822,0)-1,COLUMN()-1),"") ->  | N12: =IF(ROW()-3<=COUNTIF(AllCountries!$C$18:$C$4822,"="&selected_country),OFFSET(AllCountries!$A26,MATCH(selected_country, AllCountries!$C$18:$C$4822,0)-1,COLUMN()-1),"") ->  | O12: =IF(ROW()-3<=COUNTIF(AllCountries!$C$18:$C$4822,"="&selected_country),OFFSET(AllCountries!$A26,MATCH(selected_country, AllCountries!$C$18:$C$4822,0)-1,COLUMN()-1),"") ->  | P12: =IF(ROW()-3<=COUNTIF(AllCountries!$C$18:$C$4822,"="&selected_country),OFFSET(AllCountries!$A26,MATCH(selected_country, AllCountries!$C$18:$C$4822,0)-1,COLUMN()-1),"") ->  | U12: 0 | V12: FALSE
A13: =IF(ROW()-3<=COUNTIF(AllCountries!$C$18:$C$4822,"="&selected_country),OFFSET(AllCountries!$A27,MATCH(selected_country, AllCountries!$C$18:$C$4822,0)-1,COLUMN()-1),"") ->  | B13: =IF(ROW()-3<=COUNTIF(AllCountries!$C$18:$C$4822,"="&selected_country),OFFSET(AllCountries!$A27,MATCH(selected_country, AllCountries!$C$18:$C$4822,0)-1,COLUMN()-1),"") ->  | C13: =IF(ROW()-3<=COUNTIF(AllCountries!$C$18:$C$4822,"="&selected_country),OFFSET(AllCountries!$A27,MATCH(selected_country, AllCountries!$C$18:$C$4822,0)-1,COLUMN()-1),"") ->  | D13: =IF(ROW()-3<=COUNTIF(AllCountries!$C$18:$C$4822,"="&selected_country),OFFSET(AllCountries!$A27,MATCH(selected_country, AllCountries!$C$18:$C$4822,0)-1,COLUMN()-1),"") ->  | E13: =IF(ROW()-3<=COUNTIF(AllCountries!$C$18:$C$4822,"="&selected_country),OFFSET(AllCountries!$A27,MATCH(selected_country, AllCountries!$C$18:$C$4822,0)-1,COLUMN()-1),"") ->  | F13: =IF(ROW()-3<=COUNTIF(AllCountries!$C$18:$C$4822,"="&selected_country),OFFSET(AllCountries!$A27,MATCH(selected_country, AllCountries!$C$18:$C$4822,0)-1,COLUMN()-1),"") ->  | G13: =IF(ROW()-3<=COUNTIF(AllCountries!$C$18:$C$4822,"="&selected_country),OFFSET(AllCountries!$A27,MATCH(selected_country, AllCountries!$C$18:$C$4822,0)-1,COLUMN()-1),"") ->  | H13: =IF(ROW()-3<=COUNTIF(AllCountries!$C$18:$C$4822,"="&selected_country),OFFSET(AllCountries!$A27,MATCH(selected_country, AllCountries!$C$18:$C$4822,0)-1,COLUMN()-1),"") ->  | I13: =IF(ROW()-3<=COUNTIF(AllCountries!$C$18:$C$4822,"="&selected_country),OFFSET(AllCountries!$A27,MATCH(selected_country, AllCountries!$C$18:$C$4822,0)-1,COLUMN()-1),"") ->  | J13: =IF(ROW()-3<=COUNTIF(AllCountries!$C$18:$C$4822,"="&selected_country),OFFSET(AllCountries!$A27,MATCH(selected_country, AllCountries!$C$18:$C$4822,0)-1,COLUMN()-1),"") ->  | K13: =IF(ROW()-3<=COUNTIF(AllCountries!$C$18:$C$4822,"="&selected_country),OFFSET(AllCountries!$A27,MATCH(selected_country, AllCountries!$C$18:$C$4822,0)-1,COLUMN()-1),"") ->  | L13: =IF(ROW()-3<=COUNTIF(AllCountries!$C$18:$C$4822,"="&selected_country),OFFSET(AllCountries!$A27,MATCH(selected_country, AllCountries!$C$18:$C$4822,0)-1,COLUMN()-1),"") ->  | M13: =IF(ROW()-3<=COUNTIF(AllCountries!$C$18:$C$4822,"="&selected_country),OFFSET(AllCountries!$A27,MATCH(selected_country, AllCountries!$C$18:$C$4822,0)-1,COLUMN()-1),"") ->  | N13: =IF(ROW()-3<=COUNTIF(AllCountries!$C$18:$C$4822,"="&selected_country),OFFSET(AllCountries!$A27,MATCH(selected_country, AllCountries!$C$18:$C$4822,0)-1,COLUMN()-1),"") ->  | O13: =IF(ROW()-3<=COUNTIF(AllCountries!$C$18:$C$4822,"="&selected_country),OFFSET(AllCountries!$A27,MATCH(selected_country, AllCountries!$C$18:$C$4822,0)-1,COLUMN()-1),"") ->  | P13: =IF(ROW()-3<=COUNTIF(AllCountries!$C$18:$C$4822,"="&selected_country),OFFSET(AllCountries!$A27,MATCH(selected_country, AllCountries!$C$18:$C$4822,0)-1,COLUMN()-1),"") ->  | U13: 0 | V13: FALSE
A14: =IF(ROW()-3<=COUNTIF(AllCountries!$C$18:$C$4822,"="&selected_country),OFFSET(AllCountries!$A28,MATCH(selected_country, AllCountries!$C$18:$C$4822,0)-1,COLUMN()-1),"") ->  | B14: =IF(ROW()-3<=COUNTIF(AllCountries!$C$18:$C$4822,"="&selected_country),OFFSET(AllCountries!$A28,MATCH(selected_country, AllCountries!$C$18:$C$4822,0)-1,COLUMN()-1),"") ->  | C14: =IF(ROW()-3<=COUNTIF(AllCountries!$C$18:$C$4822,"="&selected_country),OFFSET(AllCountries!$A28,MATCH(selected_country, AllCountries!$C$18:$C$4822,0)-1,COLUMN()-1),"") ->  | D14: =IF(ROW()-3<=COUNTIF(AllCountries!$C$18:$C$4822,"="&selected_country),OFFSET(AllCountries!$A28,MATCH(selected_country, AllCountries!$C$18:$C$4822,0)-1,COLUMN()-1),"") ->  | E14: =IF(ROW()-3<=COUNTIF(AllCountries!$C$18:$C$4822,"="&selected_country),OFFSET(AllCountries!$A28,MATCH(selected_country, AllCountries!$C$18:$C$4822,0)-1,COLUMN()-1),"") ->  | F14: =IF(ROW()-3<=COUNTIF(AllCountries!$C$18:$C$4822,"="&selected_country),OFFSET(AllCountries!$A28,MATCH(selected_country, AllCountries!$C$18:$C$4822,0)-1,COLUMN()-1),"") ->  | G14: =IF(ROW()-3<=COUNTIF(AllCountries!$C$18:$C$4822,"="&selected_country),OFFSET(AllCountries!$A28,MATCH(selected_country, AllCountries!$C$18:$C$4822,0)-1,COLUMN()-1),"") ->  | H14: =IF(ROW()-3<=COUNTIF(AllCountries!$C$18:$C$4822,"="&selected_country),OFFSET(AllCountries!$A28,MATCH(selected_country, AllCountries!$C$18:$C$4822,0)-1,COLUMN()-1),"") ->  | I14: =IF(ROW()-3<=COUNTIF(AllCountries!$C$18:$C$4822,"="&selected_country),OFFSET(AllCountries!$A28,MATCH(selected_country, AllCountries!$C$18:$C$4822,0)-1,COLUMN()-1),"") ->  | J14: =IF(ROW()-3<=COUNTIF(AllCountries!$C$18:$C$4822,"="&selected_country),OFFSET(AllCountries!$A28,MATCH(selected_country, AllCountries!$C$18:$C$4822,0)-1,COLUMN()-1),"") ->  | K14: =IF(ROW()-3<=COUNTIF(AllCountries!$C$18:$C$4822,"="&selected_country),OFFSET(AllCountries!$A28,MATCH(selected_country, AllCountries!$C$18:$C$4822,0)-1,COLUMN()-1),"") ->  | L14: =IF(ROW()-3<=COUNTIF(AllCountries!$C$18:$C$4822,"="&selected_country),OFFSET(AllCountries!$A28,MATCH(selected_country, AllCountries!$C$18:$C$4822,0)-1,COLUMN()-1),"") ->  | M14: =IF(ROW()-3<=COUNTIF(AllCountries!$C$18:$C$4822,"="&selected_country),OFFSET(AllCountries!$A28,MATCH(selected_country, AllCountries!$C$18:$C$4822,0)-1,COLUMN()-1),"") ->  | N14: =IF(ROW()-3<=COUNTIF(AllCountries!$C$18:$C$4822,"="&selected_country),OFFSET(AllCountries!$A28,MATCH(selected_country, AllCountries!$C$18:$C$4822,0)-1,COLUMN()-1),"") ->  | O14: =IF(ROW()-3<=COUNTIF(AllCountries!$C$18:$C$4822,"="&selected_country),OFFSET(AllCountries!$A28,MATCH(selected_country, AllCountries!$C$18:$C$4822,0)-1,COLUMN()-1),"") ->  | P14: =IF(ROW()-3<=COUNTIF(AllCountries!$C$18:$C$4822,"="&selected_country),OFFSET(AllCountries!$A28,MATCH(selected_country, AllCountries!$C$18:$C$4822,0)-1,COLUMN()-1),"") ->  | U14: 0 | V14: FALSE
A15: =IF(ROW()-3<=COUNTIF(AllCountries!$C$18:$C$4822,"="&selected_country),OFFSET(AllCountries!$A29,MATCH(selected_country, AllCountries!$C$18:$C$4822,0)-1,COLUMN()-1),"") ->  | B15: =IF(ROW()-3<=COUNTIF(AllCountries!$C$18:$C$4822,"="&selected_country),OFFSET(AllCountries!$A29,MATCH(selected_country, AllCountries!$C$18:$C$4822,0)-1,COLUMN()-1),"") ->  | C15: =IF(ROW()-3<=COUNTIF(AllCountries!$C$18:$C$4822,"="&selected_country),OFFSET(AllCountries!$A29,MATCH(selected_country, AllCountries!$C$18:$C$4822,0)-1,COLUMN()-1),"") ->  | D15: =IF(ROW()-3<=COUNTIF(AllCountries!$C$18:$C$4822,"="&selected_country),OFFSET(AllCountries!$A29,MATCH(selected_country, AllCountries!$C$18:$C$4822,0)-1,COLUMN()-1),"") ->  | E15: =IF(ROW()-3<=COUNTIF(AllCountries!$C$18:$C$4822,"="&selected_country),OFFSET(AllCountries!$A29,MATCH(selected_country, AllCountries!$C$18:$C$4822,0)-1,COLUMN()-1),"") ->  | F15: =IF(ROW()-3<=COUNTIF(AllCountries!$C$18:$C$4822,"="&selected_country),OFFSET(AllCountries!$A29,MATCH(selected_country, AllCountries!$C$18:$C$4822,0)-1,COLUMN()-1),"") ->  | G15: =IF(ROW()-3<=COUNTIF(AllCountries!$C$18:$C$4822,"="&selected_country),OFFSET(AllCountries!$A29,MATCH(selected_country, AllCountries!$C$18:$C$4822,0)-1,COLUMN()-1),"") ->  | H15: =IF(ROW()-3<=COUNTIF(AllCountries!$C$18:$C$4822,"="&selected_country),OFFSET(AllCountries!$A29,MATCH(selected_country, AllCountries!$C$18:$C$4822,0)-1,COLUMN()-1),"") ->  | I15: =IF(ROW()-3<=COUNTIF(AllCountries!$C$18:$C$4822,"="&selected_country),OFFSET(AllCountries!$A29,MATCH(selected_country, AllCountries!$C$18:$C$4822,0)-1,COLUMN()-1),"") ->  | J15: =IF(ROW()-3<=COUNTIF(AllCountries!$C$18:$C$4822,"="&selected_country),OFFSET(AllCountries!$A29,MATCH(selected_country, AllCountries!$C$18:$C$4822,0)-1,COLUMN()-1),"") ->  | K15: =IF(ROW()-3<=COUNTIF(AllCountries!$C$18:$C$4822,"="&selected_country),OFFSET(AllCountries!$A29,MATCH(selected_country, AllCountries!$C$18:$C$4822,0)-1,COLUMN()-1),"") ->  | L15: =IF(ROW()-3<=COUNTIF(AllCountries!$C$18:$C$4822,"="&selected_country),OFFSET(AllCountries!$A29,MATCH(selected_country, AllCountries!$C$18:$C$4822,0)-1,COLUMN()-1),"") ->  | M15: =IF(ROW()-3<=COUNTIF(AllCountries!$C$18:$C$4822,"="&selected_country),OFFSET(AllCountries!$A29,MATCH(selected_country, AllCountries!$C$18:$C$4822,0)-1,COLUMN()-1),"") ->  | N15: =IF(ROW()-3<=COUNTIF(AllCountries!$C$18:$C$4822,"="&selected_country),OFFSET(AllCountries!$A29,MATCH(selected_country, AllCountries!$C$18:$C$4822,0)-1,COLUMN()-1),"") ->  | O15: =IF(ROW()-3<=COUNTIF(AllCountries!$C$18:$C$4822,"="&selected_country),OFFSET(AllCountries!$A29,MATCH(selected_country, AllCountries!$C$18:$C$4822,0)-1,COLUMN()-1),"") ->  | P15: =IF(ROW()-3<=COUNTIF(AllCountries!$C$18:$C$4822,"="&selected_country),OFFSET(AllCountries!$A29,MATCH(selected_country, AllCountries!$C$18:$C$4822,0)-1,COLUMN()-1),"") ->  | U15: 0 | V15: FALSE
A16: =IF(ROW()-3<=COUNTIF(AllCountries!$C$18:$C$4822,"="&selected_country),OFFSET(AllCountries!$A30,MATCH(selected_country, AllCountries!$C$18:$C$4822,0)-1,COLUMN()-1),"") ->  | B16: =IF(ROW()-3<=COUNTIF(AllCountries!$C$18:$C$4822,"="&selected_country),OFFSET(AllCountries!$A30,MATCH(selected_country, AllCountries!$C$18:$C$4822,0)-1,COLUMN()-1),"") ->  | C16: =IF(ROW()-3<=COUNTIF(AllCountries!$C$18:$C$4822,"="&selected_country),OFFSET(AllCountries!$A30,MATCH(selected_country, AllCountries!$C$18:$C$4822,0)-1,COLUMN()-1),"") ->  | D16: =IF(ROW()-3<=COUNTIF(AllCountries!$C$18:$C$4822,"="&selected_country),OFFSET(AllCountries!$A30,MATCH(selected_country, AllCountries!$C$18:$C$4822,0)-1,COLUMN()-1),"") ->  | E16: =IF(ROW()-3<=COUNTIF(AllCountries!$C$18:$C$4822,"="&selected_country),OFFSET(AllCountries!$A30,MATCH(selected_country, AllCountries!$C$18:$C$4822,0)-1,COLUMN()-1),"") ->  | F16: =IF(ROW()-3<=COUNTIF(AllCountries!$C$18:$C$4822,"="&selected_country),OFFSET(AllCountries!$A30,MATCH(selected_country, AllCountries!$C$18:$C$4822,0)-1,COLUMN()-1),"") ->  | G16: =IF(ROW()-3<=COUNTIF(AllCountries!$C$18:$C$4822,"="&selected_country),OFFSET(AllCountries!$A30,MATCH(selected_country, AllCountries!$C$18:$C$4822,0)-1,COLUMN()-1),"") ->  | H16: =IF(ROW()-3<=COUNTIF(AllCountries!$C$18:$C$4822,"="&selected_country),OFFSET(AllCountries!$A30,MATCH(selected_country, AllCountries!$C$18:$C$4822,0)-1,COLUMN()-1),"") ->  | I16: =IF(ROW()-3<=COUNTIF(AllCountries!$C$18:$C$4822,"="&selected_country),OFFSET(AllCountries!$A30,MATCH(selected_country, AllCountries!$C$18:$C$4822,0)-1,COLUMN()-1),"") ->  | J16: =IF(ROW()-3<=COUNTIF(AllCountries!$C$18:$C$4822,"="&selected_country),OFFSET(AllCountries!$A30,MATCH(selected_country, AllCountries!$C$18:$C$4822,0)-1,COLUMN()-1),"") ->  | K16: =IF(ROW()-3<=COUNTIF(AllCountries!$C$18:$C$4822,"="&selected_country),OFFSET(AllCountries!$A30,MATCH(selected_country, AllCountries!$C$18:$C$4822,0)-1,COLUMN()-1),"") ->  | L16: =IF(ROW()-3<=COUNTIF(AllCountries!$C$18:$C$4822,"="&selected_country),OFFSET(AllCountries!$A30,MATCH(selected_country, AllCountries!$C$18:$C$4822,0)-1,COLUMN()-1),"") ->  | M16: =IF(ROW()-3<=COUNTIF(AllCountries!$C$18:$C$4822,"="&selected_country),OFFSET(AllCountries!$A30,MATCH(selected_country, AllCountries!$C$18:$C$4822,0)-1,COLUMN()-1),"") ->  | N16: =IF(ROW()-3<=COUNTIF(AllCountries!$C$18:$C$4822,"="&selected_country),OFFSET(AllCountries!$A30,MATCH(selected_country, AllCountries!$C$18:$C$4822,0)-1,COLUMN()-1),"") ->  | O16: =IF(ROW()-3<=COUNTIF(AllCountries!$C$18:$C$4822,"="&selected_country),OFFSET(AllCountries!$A30,MATCH(selected_country, AllCountries!$C$18:$C$4822,0)-1,COLUMN()-1),"") ->  | P16: =IF(ROW()-3<=COUNTIF(AllCountries!$C$18:$C$4822,"="&selected_country),OFFSET(AllCountries!$A30,MATCH(selected_country, AllCountries!$C$18:$C$4822,0)-1,COLUMN()-1),"") ->  | U16: 0 | V16: FALSE
A17: =IF(ROW()-3<=COUNTIF(AllCountries!$C$18:$C$4822,"="&selected_country),OFFSET(AllCountries!$A31,MATCH(selected_country, AllCountries!$C$18:$C$4822,0)-1,COLUMN()-1),"") ->  | B17: =IF(ROW()-3<=COUNTIF(AllCountries!$C$18:$C$4822,"="&selected_country),OFFSET(AllCountries!$A31,MATCH(selected_country, AllCountries!$C$18:$C$4822,0)-1,COLUMN()-1),"") ->  | C17: =IF(ROW()-3<=COUNTIF(AllCountries!$C$18:$C$4822,"="&selected_country),OFFSET(AllCountries!$A31,MATCH(selected_country, AllCountries!$C$18:$C$4822,0)-1,COLUMN()-1),"") ->  | D17: =IF(ROW()-3<=COUNTIF(AllCountries!$C$18:$C$4822,"="&selected_country),OFFSET(AllCountries!$A31,MATCH(selected_country, AllCountries!$C$18:$C$4822,0)-1,COLUMN()-1),"") ->  | E17: =IF(ROW()-3<=COUNTIF(AllCountries!$C$18:$C$4822,"="&selected_country),OFFSET(AllCountries!$A31,MATCH(selected_country, AllCountries!$C$18:$C$4822,0)-1,COLUMN()-1),"") ->  | F17: =IF(ROW()-3<=COUNTIF(AllCountries!$C$18:$C$4822,"="&selected_country),OFFSET(AllCountries!$A31,MATCH(selected_country, AllCountries!$C$18:$C$4822,0)-1,COLUMN()-1),"") ->  | G17: =IF(ROW()-3<=COUNTIF(AllCountries!$C$18:$C$4822,"="&selected_country),OFFSET(AllCountries!$A31,MATCH(selected_country, AllCountries!$C$18:$C$4822,0)-1,COLUMN()-1),"") ->  | H17: =IF(ROW()-3<=COUNTIF(AllCountries!$C$18:$C$4822,"="&selected_country),OFFSET(AllCountries!$A31,MATCH(selected_country, AllCountries!$C$18:$C$4822,0)-1,COLUMN()-1),"") ->  | I17: =IF(ROW()-3<=COUNTIF(AllCountries!$C$18:$C$4822,"="&selected_country),OFFSET(AllCountries!$A31,MATCH(selected_country, AllCountries!$C$18:$C$4822,0)-1,COLUMN()-1),"") ->  | J17: =IF(ROW()-3<=COUNTIF(AllCountries!$C$18:$C$4822,"="&selected_country),OFFSET(AllCountries!$A31,MATCH(selected_country, AllCountries!$C$18:$C$4822,0)-1,COLUMN()-1),"") ->  | K17: =IF(ROW()-3<=COUNTIF(AllCountries!$C$18:$C$4822,"="&selected_country),OFFSET(AllCountries!$A31,MATCH(selected_country, AllCountries!$C$18:$C$4822,0)-1,COLUMN()-1),"") ->  | L17: =IF(ROW()-3<=COUNTIF(AllCountries!$C$18:$C$4822,"="&selected_country),OFFSET(AllCountries!$A31,MATCH(selected_country, AllCountries!$C$18:$C$4822,0)-1,COLUMN()-1),"") ->  | M17: =IF(ROW()-3<=COUNTIF(AllCountries!$C$18:$C$4822,"="&selected_country),OFFSET(AllCountries!$A31,MATCH(selected_country, AllCountries!$C$18:$C$4822,0)-1,COLUMN()-1),"") ->  | N17: =IF(ROW()-3<=COUNTIF(AllCountries!$C$18:$C$4822,"="&selected_country),OFFSET(AllCountries!$A31,MATCH(selected_country, AllCountries!$C$18:$C$4822,0)-1,COLUMN()-1),"") ->  | O17: =IF(ROW()-3<=COUNTIF(AllCountries!$C$18:$C$4822,"="&selected_country),OFFSET(AllCountries!$A31,MATCH(selected_country, AllCountries!$C$18:$C$4822,0)-1,COLUMN()-1),"") ->  | P17: =IF(ROW()-3<=COUNTIF(AllCountries!$C$18:$C$4822,"="&selected_country),OFFSET(AllCountries!$A31,MATCH(selected_country, AllCountries!$C$18:$C$4822,0)-1,COLUMN()-1),"") ->  | U17: 0 | V17: FALSE
A18: =IF(ROW()-3<=COUNTIF(AllCountries!$C$18:$C$4822,"="&selected_country),OFFSET(AllCountries!$A32,MATCH(selected_country, AllCountries!$C$18:$C$4822,0)-1,COLUMN()-1),"") ->  | B18: =IF(ROW()-3<=COUNTIF(AllCountries!$C$18:$C$4822,"="&selected_country),OFFSET(AllCountries!$A32,MATCH(selected_country, AllCountries!$C$18:$C$4822,0)-1,COLUMN()-1),"") ->  | C18: =IF(ROW()-3<=COUNTIF(AllCountries!$C$18:$C$4822,"="&selected_country),OFFSET(AllCountries!$A32,MATCH(selected_country, AllCountries!$C$18:$C$4822,0)-1,COLUMN()-1),"") ->  | D18: =IF(ROW()-3<=COUNTIF(AllCountries!$C$18:$C$4822,"="&selected_country),OFFSET(AllCountries!$A32,MATCH(selected_country, AllCountries!$C$18:$C$4822,0)-1,COLUMN()-1),"") ->  | E18: =IF(ROW()-3<=COUNTIF(AllCountries!$C$18:$C$4822,"="&selected_country),OFFSET(AllCountries!$A32,MATCH(selected_country, AllCountries!$C$18:$C$4822,0)-1,COLUMN()-1),"") ->  | F18: =IF(ROW()-3<=COUNTIF(AllCountries!$C$18:$C$4822,"="&selected_country),OFFSET(AllCountries!$A32,MATCH(selected_country, AllCountries!$C$18:$C$4822,0)-1,COLUMN()-1),"") ->  | G18: =IF(ROW()-3<=COUNTIF(AllCountries!$C$18:$C$4822,"="&selected_country),OFFSET(AllCountries!$A32,MATCH(selected_country, AllCountries!$C$18:$C$4822,0)-1,COLUMN()-1),"") ->  | H18: =IF(ROW()-3<=COUNTIF(AllCountries!$C$18:$C$4822,"="&selected_country),OFFSET(AllCountries!$A32,MATCH(selected_country, AllCountries!$C$18:$C$4822,0)-1,COLUMN()-1),"") ->  | I18: =IF(ROW()-3<=COUNTIF(AllCountries!$C$18:$C$4822,"="&selected_country),OFFSET(AllCountries!$A32,MATCH(selected_country, AllCountries!$C$18:$C$4822,0)-1,COLUMN()-1),"") ->  | J18: =IF(ROW()-3<=COUNTIF(AllCountries!$C$18:$C$4822,"="&selected_country),OFFSET(AllCountries!$A32,MATCH(selected_country, AllCountries!$C$18:$C$4822,0)-1,COLUMN()-1),"") ->  | K18: =IF(ROW()-3<=COUNTIF(AllCountries!$C$18:$C$4822,"="&selected_country),OFFSET(AllCountries!$A32,MATCH(selected_country, AllCountries!$C$18:$C$4822,0)-1,COLUMN()-1),"") ->  | L18: =IF(ROW()-3<=COUNTIF(AllCountries!$C$18:$C$4822,"="&selected_country),OFFSET(AllCountries!$A32,MATCH(selected_country, AllCountries!$C$18:$C$4822,0)-1,COLUMN()-1),"") ->  | M18: =IF(ROW()-3<=COUNTIF(AllCountries!$C$18:$C$4822,"="&selected_country),OFFSET(AllCountries!$A32,MATCH(selected_country, AllCountries!$C$18:$C$4822,0)-1,COLUMN()-1),"") ->  | N18: =IF(ROW()-3<=COUNTIF(AllCountries!$C$18:$C$4822,"="&selected_country),OFFSET(AllCountries!$A32,MATCH(selected_country, AllCountries!$C$18:$C$4822,0)-1,COLUMN()-1),"") ->  | O18: =IF(ROW()-3<=COUNTIF(AllCountries!$C$18:$C$4822,"="&selected_country),OFFSET(AllCountries!$A32,MATCH(selected_country, AllCountries!$C$18:$C$4822,0)-1,COLUMN()-1),"") ->  | P18: =IF(ROW()-3<=COUNTIF(AllCountries!$C$18:$C$4822,"="&selected_country),OFFSET(AllCountries!$A32,MATCH(selected_country, AllCountries!$C$18:$C$4822,0)-1,COLUMN()-1),"") ->  | U18: 0 | V18: FALSE
A19: =IF(ROW()-3<=COUNTIF(AllCountries!$C$18:$C$4822,"="&selected_country),OFFSET(AllCountries!$A33,MATCH(selected_country, AllCountries!$C$18:$C$4822,0)-1,COLUMN()-1),"") ->  | B19: =IF(ROW()-3<=COUNTIF(AllCountries!$C$18:$C$4822,"="&selected_country),OFFSET(AllCountries!$A33,MATCH(selected_country, AllCountries!$C$18:$C$4822,0)-1,COLUMN()-1),"") ->  | C19: =IF(ROW()-3<=COUNTIF(AllCountries!$C$18:$C$4822,"="&selected_country),OFFSET(AllCountries!$A33,MATCH(selected_country, AllCountries!$C$18:$C$4822,0)-1,COLUMN()-1),"") ->  | D19: =IF(ROW()-3<=COUNTIF(AllCountries!$C$18:$C$4822,"="&selected_country),OFFSET(AllCountries!$A33,MATCH(selected_country, AllCountries!$C$18:$C$4822,0)-1,COLUMN()-1),"") ->  | E19: =IF(ROW()-3<=COUNTIF(AllCountries!$C$18:$C$4822,"="&selected_country),OFFSET(AllCountries!$A33,MATCH(selected_country, AllCountries!$C$18:$C$4822,0)-1,COLUMN()-1),"") ->  | F19: =IF(ROW()-3<=COUNTIF(AllCountries!$C$18:$C$4822,"="&selected_country),OFFSET(AllCountries!$A33,MATCH(selected_country, AllCountries!$C$18:$C$4822,0)-1,COLUMN()-1),"") ->  | G19: =IF(ROW()-3<=COUNTIF(AllCountries!$C$18:$C$4822,"="&selected_country),OFFSET(AllCountries!$A33,MATCH(selected_country, AllCountries!$C$18:$C$4822,0)-1,COLUMN()-1),"") ->  | H19: =IF(ROW()-3<=COUNTIF(AllCountries!$C$18:$C$4822,"="&selected_country),OFFSET(AllCountries!$A33,MATCH(selected_country, AllCountries!$C$18:$C$4822,0)-1,COLUMN()-1),"") ->  | I19: =IF(ROW()-3<=COUNTIF(AllCountries!$C$18:$C$4822,"="&selected_country),OFFSET(AllCountries!$A33,MATCH(selected_country, AllCountries!$C$18:$C$4822,0)-1,COLUMN()-1),"") ->  | J19: =IF(ROW()-3<=COUNTIF(AllCountries!$C$18:$C$4822,"="&selected_country),OFFSET(AllCountries!$A33,MATCH(selected_country, AllCountries!$C$18:$C$4822,0)-1,COLUMN()-1),"") ->  | K19: =IF(ROW()-3<=COUNTIF(AllCountries!$C$18:$C$4822,"="&selected_country),OFFSET(AllCountries!$A33,MATCH(selected_country, AllCountries!$C$18:$C$4822,0)-1,COLUMN()-1),"") ->  | L19: =IF(ROW()-3<=COUNTIF(AllCountries!$C$18:$C$4822,"="&selected_country),OFFSET(AllCountries!$A33,MATCH(selected_country, AllCountries!$C$18:$C$4822,0)-1,COLUMN()-1),"") ->  | M19: =IF(ROW()-3<=COUNTIF(AllCountries!$C$18:$C$4822,"="&selected_country),OFFSET(AllCountries!$A33,MATCH(selected_country, AllCountries!$C$18:$C$4822,0)-1,COLUMN()-1),"") ->  | N19: =IF(ROW()-3<=COUNTIF(AllCountries!$C$18:$C$4822,"="&selected_country),OFFSET(AllCountries!$A33,MATCH(selected_country, AllCountries!$C$18:$C$4822,0)-1,COLUMN()-1),"") ->  | O19: =IF(ROW()-3<=COUNTIF(AllCountries!$C$18:$C$4822,"="&selected_country),OFFSET(AllCountries!$A33,MATCH(selected_country, AllCountries!$C$18:$C$4822,0)-1,COLUMN()-1),"") ->  | P19: =IF(ROW()-3<=COUNTIF(AllCountries!$C$18:$C$4822,"="&selected_country),OFFSET(AllCountries!$A33,MATCH(selected_country, AllCountries!$C$18:$C$4822,0)-1,COLUMN()-1),"") ->  | U19: 0 | V19: FALSE
A20: =IF(ROW()-3<=COUNTIF(AllCountries!$C$18:$C$4822,"="&selected_country),OFFSET(AllCountries!$A34,MATCH(selected_country, AllCountries!$C$18:$C$4822,0)-1,COLUMN()-1),"") ->  | B20: =IF(ROW()-3<=COUNTIF(AllCountries!$C$18:$C$4822,"="&selected_country),OFFSET(AllCountries!$A34,MATCH(selected_country, AllCountries!$C$18:$C$4822,0)-1,COLUMN()-1),"") ->  | C20: =IF(ROW()-3<=COUNTIF(AllCountries!$C$18:$C$4822,"="&selected_country),OFFSET(AllCountries!$A34,MATCH(selected_country, AllCountries!$C$18:$C$4822,0)-1,COLUMN()-1),"") ->  | D20: =IF(ROW()-3<=COUNTIF(AllCountries!$C$18:$C$4822,"="&selected_country),OFFSET(AllCountries!$A34,MATCH(selected_country, AllCountries!$C$18:$C$4822,0)-1,COLUMN()-1),"") ->  | E20: =IF(ROW()-3<=COUNTIF(AllCountries!$C$18:$C$4822,"="&selected_country),OFFSET(AllCountries!$A34,MATCH(selected_country, AllCountries!$C$18:$C$4822,0)-1,COLUMN()-1),"") ->  | F20: =IF(ROW()-3<=COUNTIF(AllCountries!$C$18:$C$4822,"="&selected_country),OFFSET(AllCountries!$A34,MATCH(selected_country, AllCountries!$C$18:$C$4822,0)-1,COLUMN()-1),"") ->  | G20: =IF(ROW()-3<=COUNTIF(AllCountries!$C$18:$C$4822,"="&selected_country),OFFSET(AllCountries!$A34,MATCH(selected_country, AllCountries!$C$18:$C$4822,0)-1,COLUMN()-1),"") ->  | H20: =IF(ROW()-3<=COUNTIF(AllCountries!$C$18:$C$4822,"="&selected_country),OFFSET(AllCountries!$A34,MATCH(selected_country, AllCountries!$C$18:$C$4822,0)-1,COLUMN()-1),"") ->  | I20: =IF(ROW()-3<=COUNTIF(AllCountries!$C$18:$C$4822,"="&selected_country),OFFSET(AllCountries!$A34,MATCH(selected_country, AllCountries!$C$18:$C$4822,0)-1,COLUMN()-1),"") ->  | J20: =IF(ROW()-3<=COUNTIF(AllCountries!$C$18:$C$4822,"="&selected_country),OFFSET(AllCountries!$A34,MATCH(selected_country, AllCountries!$C$18:$C$4822,0)-1,COLUMN()-1),"") ->  | K20: =IF(ROW()-3<=COUNTIF(AllCountries!$C$18:$C$4822,"="&selected_country),OFFSET(AllCountries!$A34,MATCH(selected_country, AllCountries!$C$18:$C$4822,0)-1,COLUMN()-1),"") ->  | L20: =IF(ROW()-3<=COUNTIF(AllCountries!$C$18:$C$4822,"="&selected_country),OFFSET(AllCountries!$A34,MATCH(selected_country, AllCountries!$C$18:$C$4822,0)-1,COLUMN()-1),"") ->  | M20: =IF(ROW()-3<=COUNTIF(AllCountries!$C$18:$C$4822,"="&selected_country),OFFSET(AllCountries!$A34,MATCH(selected_country, AllCountries!$C$18:$C$4822,0)-1,COLUMN()-1),"") ->  | N20: =IF(ROW()-3<=COUNTIF(AllCountries!$C$18:$C$4822,"="&selected_country),OFFSET(AllCountries!$A34,MATCH(selected_country, AllCountries!$C$18:$C$4822,0)-1,COLUMN()-1),"") ->  | O20: =IF(ROW()-3<=COUNTIF(AllCountries!$C$18:$C$4822,"="&selected_country),OFFSET(AllCountries!$A34,MATCH(selected_country, AllCountries!$C$18:$C$4822,0)-1,COLUMN()-1),"") ->  | P20: =IF(ROW()-3<=COUNTIF(AllCountries!$C$18:$C$4822,"="&selected_country),OFFSET(AllCountries!$A34,MATCH(selected_country, AllCountries!$C$18:$C$4822,0)-1,COLUMN()-1),"") ->  | U20: 0 | V20: FALSE
A21: =IF(ROW()-3<=COUNTIF(AllCountries!$C$18:$C$4822,"="&selected_country),OFFSET(AllCountries!$A35,MATCH(selected_country, AllCountries!$C$18:$C$4822,0)-1,COLUMN()-1),"") ->  | B21: =IF(ROW()-3<=COUNTIF(AllCountries!$C$18:$C$4822,"="&selected_country),OFFSET(AllCountries!$A35,MATCH(selected_country, AllCountries!$C$18:$C$4822,0)-1,COLUMN()-1),"") ->  | C21: =IF(ROW()-3<=COUNTIF(AllCountries!$C$18:$C$4822,"="&selected_country),OFFSET(AllCountries!$A35,MATCH(selected_country, AllCountries!$C$18:$C$4822,0)-1,COLUMN()-1),"") ->  | D21: =IF(ROW()-3<=COUNTIF(AllCountries!$C$18:$C$4822,"="&selected_country),OFFSET(AllCountries!$A35,MATCH(selected_country, AllCountries!$C$18:$C$4822,0)-1,COLUMN()-1),"") ->  | E21: =IF(ROW()-3<=COUNTIF(AllCountries!$C$18:$C$4822,"="&selected_country),OFFSET(AllCountries!$A35,MATCH(selected_country, AllCountries!$C$18:$C$4822,0)-1,COLUMN()-1),"") ->  | F21: =IF(ROW()-3<=COUNTIF(AllCountries!$C$18:$C$4822,"="&selected_country),OFFSET(AllCountries!$A35,MATCH(selected_country, AllCountries!$C$18:$C$4822,0)-1,COLUMN()-1),"") ->  | G21: =IF(ROW()-3<=COUNTIF(AllCountries!$C$18:$C$4822,"="&selected_country),OFFSET(AllCountries!$A35,MATCH(selected_country, AllCountries!$C$18:$C$4822,0)-1,COLUMN()-1),"") ->  | H21: =IF(ROW()-3<=COUNTIF(AllCountries!$C$18:$C$4822,"="&selected_country),OFFSET(AllCountries!$A35,MATCH(selected_country, AllCountries!$C$18:$C$4822,0)-1,COLUMN()-1),"") ->  | I21: =IF(ROW()-3<=COUNTIF(AllCountries!$C$18:$C$4822,"="&selected_country),OFFSET(AllCountries!$A35,MATCH(selected_country, AllCountries!$C$18:$C$4822,0)-1,COLUMN()-1),"") ->  | J21: =IF(ROW()-3<=COUNTIF(AllCountries!$C$18:$C$4822,"="&selected_country),OFFSET(AllCountries!$A35,MATCH(selected_country, AllCountries!$C$18:$C$4822,0)-1,COLUMN()-1),"") ->  | K21: =IF(ROW()-3<=COUNTIF(AllCountries!$C$18:$C$4822,"="&selected_country),OFFSET(AllCountries!$A35,MATCH(selected_country, AllCountries!$C$18:$C$4822,0)-1,COLUMN()-1),"") ->  | L21: =IF(ROW()-3<=COUNTIF(AllCountries!$C$18:$C$4822,"="&selected_country),OFFSET(AllCountries!$A35,MATCH(selected_country, AllCountries!$C$18:$C$4822,0)-1,COLUMN()-1),"") ->  | M21: =IF(ROW()-3<=COUNTIF(AllCountries!$C$18:$C$4822,"="&selected_country),OFFSET(AllCountries!$A35,MATCH(selected_country, AllCountries!$C$18:$C$4822,0)-1,COLUMN()-1),"") ->  | N21: =IF(ROW()-3<=COUNTIF(AllCountries!$C$18:$C$4822,"="&selected_country),OFFSET(AllCountries!$A35,MATCH(selected_country, AllCountries!$C$18:$C$4822,0)-1,COLUMN()-1),"") ->  | O21: =IF(ROW()-3<=COUNTIF(AllCountries!$C$18:$C$4822,"="&selected_country),OFFSET(AllCountries!$A35,MATCH(selected_country, AllCountries!$C$18:$C$4822,0)-1,COLUMN()-1),"") ->  | P21: =IF(ROW()-3<=COUNTIF(AllCountries!$C$18:$C$4822,"="&selected_country),OFFSET(AllCountries!$A35,MATCH(selected_country, AllCountries!$C$18:$C$4822,0)-1,COLUMN()-1),"") ->  | U21: 0 | V21: FALSE
A22: =IF(ROW()-3<=COUNTIF(AllCountries!$C$18:$C$4822,"="&selected_country),OFFSET(AllCountries!$A36,MATCH(selected_country, AllCountries!$C$18:$C$4822,0)-1,COLUMN()-1),"") ->  | B22: =IF(ROW()-3<=COUNTIF(AllCountries!$C$18:$C$4822,"="&selected_country),OFFSET(AllCountries!$A36,MATCH(selected_country, AllCountries!$C$18:$C$4822,0)-1,COLUMN()-1),"") ->  | C22: =IF(ROW()-3<=COUNTIF(AllCountries!$C$18:$C$4822,"="&selected_country),OFFSET(AllCountries!$A36,MATCH(selected_country, AllCountries!$C$18:$C$4822,0)-1,COLUMN()-1),"") ->  | D22: =IF(ROW()-3<=COUNTIF(AllCountries!$C$18:$C$4822,"="&selected_country),OFFSET(AllCountries!$A36,MATCH(selected_country, AllCountries!$C$18:$C$4822,0)-1,COLUMN()-1),"") ->  | E22: =IF(ROW()-3<=COUNTIF(AllCountries!$C$18:$C$4822,"="&selected_country),OFFSET(AllCountries!$A36,MATCH(selected_country, AllCountries!$C$18:$C$4822,0)-1,COLUMN()-1),"") ->  | F22: =IF(ROW()-3<=COUNTIF(AllCountries!$C$18:$C$4822,"="&selected_country),OFFSET(AllCountries!$A36,MATCH(selected_country, AllCountries!$C$18:$C$4822,0)-1,COLUMN()-1),"") ->  | G22: =IF(ROW()-3<=COUNTIF(AllCountries!$C$18:$C$4822,"="&selected_country),OFFSET(AllCountries!$A36,MATCH(selected_country, AllCountries!$C$18:$C$4822,0)-1,COLUMN()-1),"") ->  | H22: =IF(ROW()-3<=COUNTIF(AllCountries!$C$18:$C$4822,"="&selected_country),OFFSET(AllCountries!$A36,MATCH(selected_country, AllCountries!$C$18:$C$4822,0)-1,COLUMN()-1),"") ->  | I22: =IF(ROW()-3<=COUNTIF(AllCountries!$C$18:$C$4822,"="&selected_country),OFFSET(AllCountries!$A36,MATCH(selected_country, AllCountries!$C$18:$C$4822,0)-1,COLUMN()-1),"") ->  | J22: =IF(ROW()-3<=COUNTIF(AllCountries!$C$18:$C$4822,"="&selected_country),OFFSET(AllCountries!$A36,MATCH(selected_country, AllCountries!$C$18:$C$4822,0)-1,COLUMN()-1),"") ->  | K22: =IF(ROW()-3<=COUNTIF(AllCountries!$C$18:$C$4822,"="&selected_country),OFFSET(AllCountries!$A36,MATCH(selected_country, AllCountries!$C$18:$C$4822,0)-1,COLUMN()-1),"") ->  | L22: =IF(ROW()-3<=COUNTIF(AllCountries!$C$18:$C$4822,"="&selected_country),OFFSET(AllCountries!$A36,MATCH(selected_country, AllCountries!$C$18:$C$4822,0)-1,COLUMN()-1),"") ->  | M22: =IF(ROW()-3<=COUNTIF(AllCountries!$C$18:$C$4822,"="&selected_country),OFFSET(AllCountries!$A36,MATCH(selected_country, AllCountries!$C$18:$C$4822,0)-1,COLUMN()-1),"") ->  | N22: =IF(ROW()-3<=COUNTIF(AllCountries!$C$18:$C$4822,"="&selected_country),OFFSET(AllCountries!$A36,MATCH(selected_country, AllCountries!$C$18:$C$4822,0)-1,COLUMN()-1),"") ->  | O22: =IF(ROW()-3<=COUNTIF(AllCountries!$C$18:$C$4822,"="&selected_country),OFFSET(AllCountries!$A36,MATCH(selected_country, AllCountries!$C$18:$C$4822,0)-1,COLUMN()-1),"") ->  | P22: =IF(ROW()-3<=COUNTIF(AllCountries!$C$18:$C$4822,"="&selected_country),OFFSET(AllCountries!$A36,MATCH(selected_country, AllCountries!$C$18:$C$4822,0)-1,COLUMN()-1),"") ->  | U22: 0 | V22: FALSE
A23: =IF(ROW()-3<=COUNTIF(AllCountries!$C$18:$C$4822,"="&selected_country),OFFSET(AllCountries!$A37,MATCH(selected_country, AllCountries!$C$18:$C$4822,0)-1,COLUMN()-1),"") ->  | B23: =IF(ROW()-3<=COUNTIF(AllCountries!$C$18:$C$4822,"="&selected_country),OFFSET(AllCountries!$A37,MATCH(selected_country, AllCountries!$C$18:$C$4822,0)-1,COLUMN()-1),"") ->  | C23: =IF(ROW()-3<=COUNTIF(AllCountries!$C$18:$C$4822,"="&selected_country),OFFSET(AllCountries!$A37,MATCH(selected_country, AllCountries!$C$18:$C$4822,0)-1,COLUMN()-1),"") ->  | D23: =IF(ROW()-3<=COUNTIF(AllCountries!$C$18:$C$4822,"="&selected_country),OFFSET(AllCountries!$A37,MATCH(selected_country, AllCountries!$C$18:$C$4822,0)-1,COLUMN()-1),"") ->  | E23: =IF(ROW()-3<=COUNTIF(AllCountries!$C$18:$C$4822,"="&selected_country),OFFSET(AllCountries!$A37,MATCH(selected_country, AllCountries!$C$18:$C$4822,0)-1,COLUMN()-1),"") ->  | F23: =IF(ROW()-3<=COUNTIF(AllCountries!$C$18:$C$4822,"="&selected_country),OFFSET(AllCountries!$A37,MATCH(selected_country, AllCountries!$C$18:$C$4822,0)-1,COLUMN()-1),"") ->  | G23: =IF(ROW()-3<=COUNTIF(AllCountries!$C$18:$C$4822,"="&selected_country),OFFSET(AllCountries!$A37,MATCH(selected_country, AllCountries!$C$18:$C$4822,0)-1,COLUMN()-1),"") ->  | H23: =IF(ROW()-3<=COUNTIF(AllCountries!$C$18:$C$4822,"="&selected_country),OFFSET(AllCountries!$A37,MATCH(selected_country, AllCountries!$C$18:$C$4822,0)-1,COLUMN()-1),"") ->  | I23: =IF(ROW()-3<=COUNTIF(AllCountries!$C$18:$C$4822,"="&selected_country),OFFSET(AllCountries!$A37,MATCH(selected_country, AllCountries!$C$18:$C$4822,0)-1,COLUMN()-1),"") ->  | J23: =IF(ROW()-3<=COUNTIF(AllCountries!$C$18:$C$4822,"="&selected_country),OFFSET(AllCountries!$A37,MATCH(selected_country, AllCountries!$C$18:$C$4822,0)-1,COLUMN()-1),"") ->  | K23: =IF(ROW()-3<=COUNTIF(AllCountries!$C$18:$C$4822,"="&selected_country),OFFSET(AllCountries!$A37,MATCH(selected_country, AllCountries!$C$18:$C$4822,0)-1,COLUMN()-1),"") ->  | L23: =IF(ROW()-3<=COUNTIF(AllCountries!$C$18:$C$4822,"="&selected_country),OFFSET(AllCountries!$A37,MATCH(selected_country, AllCountries!$C$18:$C$4822,0)-1,COLUMN()-1),"") ->  | M23: =IF(ROW()-3<=COUNTIF(AllCountries!$C$18:$C$4822,"="&selected_country),OFFSET(AllCountries!$A37,MATCH(selected_country, AllCountries!$C$18:$C$4822,0)-1,COLUMN()-1),"") ->  | N23: =IF(ROW()-3<=COUNTIF(AllCountries!$C$18:$C$4822,"="&selected_country),OFFSET(AllCountries!$A37,MATCH(selected_country, AllCountries!$C$18:$C$4822,0)-1,COLUMN()-1),"") ->  | O23: =IF(ROW()-3<=COUNTIF(AllCountries!$C$18:$C$4822,"="&selected_country),OFFSET(AllCountries!$A37,MATCH(selected_country, AllCountries!$C$18:$C$4822,0)-1,COLUMN()-1),"") ->  | P23: =IF(ROW()-3<=COUNTIF(AllCountries!$C$18:$C$4822,"="&selected_country),OFFSET(AllCountries!$A37,MATCH(selected_country, AllCountries!$C$18:$C$4822,0)-1,COLUMN()-1),"") ->  | U23: 0 | V23: FALSE
A24: =IF(ROW()-3<=COUNTIF(AllCountries!$C$18:$C$4822,"="&selected_country),OFFSET(AllCountries!$A38,MATCH(selected_country, AllCountries!$C$18:$C$4822,0)-1,COLUMN()-1),"") ->  | B24: =IF(ROW()-3<=COUNTIF(AllCountries!$C$18:$C$4822,"="&selected_country),OFFSET(AllCountries!$A38,MATCH(selected_country, AllCountries!$C$18:$C$4822,0)-1,COLUMN()-1),"") ->  | C24: =IF(ROW()-3<=COUNTIF(AllCountries!$C$18:$C$4822,"="&selected_country),OFFSET(AllCountries!$A38,MATCH(selected_country, AllCountries!$C$18:$C$4822,0)-1,COLUMN()-1),"") ->  | D24: =IF(ROW()-3<=COUNTIF(AllCountries!$C$18:$C$4822,"="&selected_country),OFFSET(AllCountries!$A38,MATCH(selected_country, AllCountries!$C$18:$C$4822,0)-1,COLUMN()-1),"") ->  | E24: =IF(ROW()-3<=COUNTIF(AllCountries!$C$18:$C$4822,"="&selected_country),OFFSET(AllCountries!$A38,MATCH(selected_country, AllCountries!$C$18:$C$4822,0)-1,COLUMN()-1),"") ->  | F24: =IF(ROW()-3<=COUNTIF(AllCountries!$C$18:$C$4822,"="&selected_country),OFFSET(AllCountries!$A38,MATCH(selected_country, AllCountries!$C$18:$C$4822,0)-1,COLUMN()-1),"") ->  | G24: =IF(ROW()-3<=COUNTIF(AllCountries!$C$18:$C$4822,"="&selected_country),OFFSET(AllCountries!$A38,MATCH(selected_country, AllCountries!$C$18:$C$4822,0)-1,COLUMN()-1),"") ->  | H24: =IF(ROW()-3<=COUNTIF(AllCountries!$C$18:$C$4822,"="&selected_country),OFFSET(AllCountries!$A38,MATCH(selected_country, AllCountries!$C$18:$C$4822,0)-1,COLUMN()-1),"") ->  | I24: =IF(ROW()-3<=COUNTIF(AllCountries!$C$18:$C$4822,"="&selected_country),OFFSET(AllCountries!$A38,MATCH(selected_country, AllCountries!$C$18:$C$4822,0)-1,COLUMN()-1),"") ->  | J24: =IF(ROW()-3<=COUNTIF(AllCountries!$C$18:$C$4822,"="&selected_country),OFFSET(AllCountries!$A38,MATCH(selected_country, AllCountries!$C$18:$C$4822,0)-1,COLUMN()-1),"") ->  | K24: =IF(ROW()-3<=COUNTIF(AllCountries!$C$18:$C$4822,"="&selected_country),OFFSET(AllCountries!$A38,MATCH(selected_country, AllCountries!$C$18:$C$4822,0)-1,COLUMN()-1),"") ->  | L24: =IF(ROW()-3<=COUNTIF(AllCountries!$C$18:$C$4822,"="&selected_country),OFFSET(AllCountries!$A38,MATCH(selected_country, AllCountries!$C$18:$C$4822,0)-1,COLUMN()-1),"") ->  | M24: =IF(ROW()-3<=COUNTIF(AllCountries!$C$18:$C$4822,"="&selected_country),OFFSET(AllCountries!$A38,MATCH(selected_country, AllCountries!$C$18:$C$4822,0)-1,COLUMN()-1),"") ->  | N24: =IF(ROW()-3<=COUNTIF(AllCountries!$C$18:$C$4822,"="&selected_country),OFFSET(AllCountries!$A38,MATCH(selected_country, AllCountries!$C$18:$C$4822,0)-1,COLUMN()-1),"") ->  | O24: =IF(ROW()-3<=COUNTIF(AllCountries!$C$18:$C$4822,"="&selected_country),OFFSET(AllCountries!$A38,MATCH(selected_country, AllCountries!$C$18:$C$4822,0)-1,COLUMN()-1),"") ->  | P24: =IF(ROW()-3<=COUNTIF(AllCountries!$C$18:$C$4822,"="&selected_country),OFFSET(AllCountries!$A38,MATCH(selected_country, AllCountries!$C$18:$C$4822,0)-1,COLUMN()-1),"") ->  | U24: 0 | V24: FALSE
A25: =IF(ROW()-3<=COUNTIF(AllCountries!$C$18:$C$4822,"="&selected_country),OFFSET(AllCountries!$A39,MATCH(selected_country, AllCountries!$C$18:$C$4822,0)-1,COLUMN()-1),"") ->  | B25: =IF(ROW()-3<=COUNTIF(AllCountries!$C$18:$C$4822,"="&selected_country),OFFSET(AllCountries!$A39,MATCH(selected_country, AllCountries!$C$18:$C$4822,0)-1,COLUMN()-1),"") ->  | C25: =IF(ROW()-3<=COUNTIF(AllCountries!$C$18:$C$4822,"="&selected_country),OFFSET(AllCountries!$A39,MATCH(selected_country, AllCountries!$C$18:$C$4822,0)-1,COLUMN()-1),"") ->  | D25: =IF(ROW()-3<=COUNTIF(AllCountries!$C$18:$C$4822,"="&selected_country),OFFSET(AllCountries!$A39,MATCH(selected_country, AllCountries!$C$18:$C$4822,0)-1,COLUMN()-1),"") ->  | E25: =IF(ROW()-3<=COUNTIF(AllCountries!$C$18:$C$4822,"="&selected_country),OFFSET(AllCountries!$A39,MATCH(selected_country, AllCountries!$C$18:$C$4822,0)-1,COLUMN()-1),"") ->  | F25: =IF(ROW()-3<=COUNTIF(AllCountries!$C$18:$C$4822,"="&selected_country),OFFSET(AllCountries!$A39,MATCH(selected_country, AllCountries!$C$18:$C$4822,0)-1,COLUMN()-1),"") ->  | G25: =IF(ROW()-3<=COUNTIF(AllCountries!$C$18:$C$4822,"="&selected_country),OFFSET(AllCountries!$A39,MATCH(selected_country, AllCountries!$C$18:$C$4822,0)-1,COLUMN()-1),"") ->  | H25: =IF(ROW()-3<=COUNTIF(AllCountries!$C$18:$C$4822,"="&selected_country),OFFSET(AllCountries!$A39,MATCH(selected_country, AllCountries!$C$18:$C$4822,0)-1,COLUMN()-1),"") ->  | I25: =IF(ROW()-3<=COUNTIF(AllCountries!$C$18:$C$4822,"="&selected_country),OFFSET(AllCountries!$A39,MATCH(selected_country, AllCountries!$C$18:$C$4822,0)-1,COLUMN()-1),"") ->  | J25: =IF(ROW()-3<=COUNTIF(AllCountries!$C$18:$C$4822,"="&selected_country),OFFSET(AllCountries!$A39,MATCH(selected_country, AllCountries!$C$18:$C$4822,0)-1,COLUMN()-1),"") ->  | K25: =IF(ROW()-3<=COUNTIF(AllCountries!$C$18:$C$4822,"="&selected_country),OFFSET(AllCountries!$A39,MATCH(selected_country, AllCountries!$C$18:$C$4822,0)-1,COLUMN()-1),"") ->  | L25: =IF(ROW()-3<=COUNTIF(AllCountries!$C$18:$C$4822,"="&selected_country),OFFSET(AllCountries!$A39,MATCH(selected_country, AllCountries!$C$18:$C$4822,0)-1,COLUMN()-1),"") ->  | M25: =IF(ROW()-3<=COUNTIF(AllCountries!$C$18:$C$4822,"="&selected_country),OFFSET(AllCountries!$A39,MATCH(selected_country, AllCountries!$C$18:$C$4822,0)-1,COLUMN()-1),"") ->  | N25: =IF(ROW()-3<=COUNTIF(AllCountries!$C$18:$C$4822,"="&selected_country),OFFSET(AllCountries!$A39,MATCH(selected_country, AllCountries!$C$18:$C$4822,0)-1,COLUMN()-1),"") ->  | O25: =IF(ROW()-3<=COUNTIF(AllCountries!$C$18:$C$4822,"="&selected_country),OFFSET(AllCountries!$A39,MATCH(selected_country, AllCountries!$C$18:$C$4822,0)-1,COLUMN()-1),"") ->  | P25: =IF(ROW()-3<=COUNTIF(AllCountries!$C$18:$C$4822,"="&selected_country),OFFSET(AllCountries!$A39,MATCH(selected_country, AllCountries!$C$18:$C$4822,0)-1,COLUMN()-1),"") ->  | U25: 0 | V25: FALSE
A26: =IF(ROW()-3<=COUNTIF(AllCountries!$C$18:$C$4822,"="&selected_country),OFFSET(AllCountries!$A40,MATCH(selected_country, AllCountries!$C$18:$C$4822,0)-1,COLUMN()-1),"") ->  | B26: =IF(ROW()-3<=COUNTIF(AllCountries!$C$18:$C$4822,"="&selected_country),OFFSET(AllCountries!$A40,MATCH(selected_country, AllCountries!$C$18:$C$4822,0)-1,COLUMN()-1),"") ->  | C26: =IF(ROW()-3<=COUNTIF(AllCountries!$C$18:$C$4822,"="&selected_country),OFFSET(AllCountries!$A40,MATCH(selected_country, AllCountries!$C$18:$C$4822,0)-1,COLUMN()-1),"") ->  | D26: =IF(ROW()-3<=COUNTIF(AllCountries!$C$18:$C$4822,"="&selected_country),OFFSET(AllCountries!$A40,MATCH(selected_country, AllCountries!$C$18:$C$4822,0)-1,COLUMN()-1),"") ->  | E26: =IF(ROW()-3<=COUNTIF(AllCountries!$C$18:$C$4822,"="&selected_country),OFFSET(AllCountries!$A40,MATCH(selected_country, AllCountries!$C$18:$C$4822,0)-1,COLUMN()-1),"") ->  | F26: =IF(ROW()-3<=COUNTIF(AllCountries!$C$18:$C$4822,"="&selected_country),OFFSET(AllCountries!$A40,MATCH(selected_country, AllCountries!$C$18:$C$4822,0)-1,COLUMN()-1),"") ->  | G26: =IF(ROW()-3<=COUNTIF(AllCountries!$C$18:$C$4822,"="&selected_country),OFFSET(AllCountries!$A40,MATCH(selected_country, AllCountries!$C$18:$C$4822,0)-1,COLUMN()-1),"") ->  | H26: =IF(ROW()-3<=COUNTIF(AllCountries!$C$18:$C$4822,"="&selected_country),OFFSET(AllCountries!$A40,MATCH(selected_country, AllCountries!$C$18:$C$4822,0)-1,COLUMN()-1),"") ->  | I26: =IF(ROW()-3<=COUNTIF(AllCountries!$C$18:$C$4822,"="&selected_country),OFFSET(AllCountries!$A40,MATCH(selected_country, AllCountries!$C$18:$C$4822,0)-1,COLUMN()-1),"") ->  | J26: =IF(ROW()-3<=COUNTIF(AllCountries!$C$18:$C$4822,"="&selected_country),OFFSET(AllCountries!$A40,MATCH(selected_country, AllCountries!$C$18:$C$4822,0)-1,COLUMN()-1),"") ->  | K26: =IF(ROW()-3<=COUNTIF(AllCountries!$C$18:$C$4822,"="&selected_country),OFFSET(AllCountries!$A40,MATCH(selected_country, AllCountries!$C$18:$C$4822,0)-1,COLUMN()-1),"") ->  | L26: =IF(ROW()-3<=COUNTIF(AllCountries!$C$18:$C$4822,"="&selected_country),OFFSET(AllCountries!$A40,MATCH(selected_country, AllCountries!$C$18:$C$4822,0)-1,COLUMN()-1),"") ->  | M26: =IF(ROW()-3<=COUNTIF(AllCountries!$C$18:$C$4822,"="&selected_country),OFFSET(AllCountries!$A40,MATCH(selected_country, AllCountries!$C$18:$C$4822,0)-1,COLUMN()-1),"") ->  | N26: =IF(ROW()-3<=COUNTIF(AllCountries!$C$18:$C$4822,"="&selected_country),OFFSET(AllCountries!$A40,MATCH(selected_country, AllCountries!$C$18:$C$4822,0)-1,COLUMN()-1),"") ->  | O26: =IF(ROW()-3<=COUNTIF(AllCountries!$C$18:$C$4822,"="&selected_country),OFFSET(AllCountries!$A40,MATCH(selected_country, AllCountries!$C$18:$C$4822,0)-1,COLUMN()-1),"") ->  | P26: =IF(ROW()-3<=COUNTIF(AllCountries!$C$18:$C$4822,"="&selected_country),OFFSET(AllCountries!$A40,MATCH(selected_country, AllCountries!$C$18:$C$4822,0)-1,COLUMN()-1),"") ->  | U26: 0 | V26: FALSE
A27: =IF(ROW()-3<=COUNTIF(AllCountries!$C$18:$C$4822,"="&selected_country),OFFSET(AllCountries!$A41,MATCH(selected_country, AllCountries!$C$18:$C$4822,0)-1,COLUMN()-1),"") ->  | B27: =IF(ROW()-3<=COUNTIF(AllCountries!$C$18:$C$4822,"="&selected_country),OFFSET(AllCountries!$A41,MATCH(selected_country, AllCountries!$C$18:$C$4822,0)-1,COLUMN()-1),"") ->  | C27: =IF(ROW()-3<=COUNTIF(AllCountries!$C$18:$C$4822,"="&selected_country),OFFSET(AllCountries!$A41,MATCH(selected_country, AllCountries!$C$18:$C$4822,0)-1,COLUMN()-1),"") ->  | D27: =IF(ROW()-3<=COUNTIF(AllCountries!$C$18:$C$4822,"="&selected_country),OFFSET(AllCountries!$A41,MATCH(selected_country, AllCountries!$C$18:$C$4822,0)-1,COLUMN()-1),"") ->  | E27: =IF(ROW()-3<=COUNTIF(AllCountries!$C$18:$C$4822,"="&selected_country),OFFSET(AllCountries!$A41,MATCH(selected_country, AllCountries!$C$18:$C$4822,0)-1,COLUMN()-1),"") ->  | F27: =IF(ROW()-3<=COUNTIF(AllCountries!$C$18:$C$4822,"="&selected_country),OFFSET(AllCountries!$A41,MATCH(selected_country, AllCountries!$C$18:$C$4822,0)-1,COLUMN()-1),"") ->  | G27: =IF(ROW()-3<=COUNTIF(AllCountries!$C$18:$C$4822,"="&selected_country),OFFSET(AllCountries!$A41,MATCH(selected_country, AllCountries!$C$18:$C$4822,0)-1,COLUMN()-1),"") ->  | H27: =IF(ROW()-3<=COUNTIF(AllCountries!$C$18:$C$4822,"="&selected_country),OFFSET(AllCountries!$A41,MATCH(selected_country, AllCountries!$C$18:$C$4822,0)-1,COLUMN()-1),"") ->  | I27: =IF(ROW()-3<=COUNTIF(AllCountries!$C$18:$C$4822,"="&selected_country),OFFSET(AllCountries!$A41,MATCH(selected_country, AllCountries!$C$18:$C$4822,0)-1,COLUMN()-1),"") ->  | J27: =IF(ROW()-3<=COUNTIF(AllCountries!$C$18:$C$4822,"="&selected_country),OFFSET(AllCountries!$A41,MATCH(selected_country, AllCountries!$C$18:$C$4822,0)-1,COLUMN()-1),"") ->  | K27: =IF(ROW()-3<=COUNTIF(AllCountries!$C$18:$C$4822,"="&selected_country),OFFSET(AllCountries!$A41,MATCH(selected_country, AllCountries!$C$18:$C$4822,0)-1,COLUMN()-1),"") ->  | L27: =IF(ROW()-3<=COUNTIF(AllCountries!$C$18:$C$4822,"="&selected_country),OFFSET(AllCountries!$A41,MATCH(selected_country, AllCountries!$C$18:$C$4822,0)-1,COLUMN()-1),"") ->  | M27: =IF(ROW()-3<=COUNTIF(AllCountries!$C$18:$C$4822,"="&selected_country),OFFSET(AllCountries!$A41,MATCH(selected_country, AllCountries!$C$18:$C$4822,0)-1,COLUMN()-1),"") ->  | N27: =IF(ROW()-3<=COUNTIF(AllCountries!$C$18:$C$4822,"="&selected_country),OFFSET(AllCountries!$A41,MATCH(selected_country, AllCountries!$C$18:$C$4822,0)-1,COLUMN()-1),"") ->  | O27: =IF(ROW()-3<=COUNTIF(AllCountries!$C$18:$C$4822,"="&selected_country),OFFSET(AllCountries!$A41,MATCH(selected_country, AllCountries!$C$18:$C$4822,0)-1,COLUMN()-1),"") ->  | P27: =IF(ROW()-3<=COUNTIF(AllCountries!$C$18:$C$4822,"="&selected_country),OFFSET(AllCountries!$A41,MATCH(selected_country, AllCountries!$C$18:$C$4822,0)-1,COLUMN()-1),"") ->  | U27: 0 | V27: FALSE
A28: =IF(ROW()-3<=COUNTIF(AllCountries!$C$18:$C$4822,"="&selected_country),OFFSET(AllCountries!$A42,MATCH(selected_country, AllCountries!$C$18:$C$4822,0)-1,COLUMN()-1),"") ->  | B28: =IF(ROW()-3<=COUNTIF(AllCountries!$C$18:$C$4822,"="&selected_country),OFFSET(AllCountries!$A42,MATCH(selected_country, AllCountries!$C$18:$C$4822,0)-1,COLUMN()-1),"") ->  | C28: =IF(ROW()-3<=COUNTIF(AllCountries!$C$18:$C$4822,"="&selected_country),OFFSET(AllCountries!$A42,MATCH(selected_country, AllCountries!$C$18:$C$4822,0)-1,COLUMN()-1),"") ->  | D28: =IF(ROW()-3<=COUNTIF(AllCountries!$C$18:$C$4822,"="&selected_country),OFFSET(AllCountries!$A42,MATCH(selected_country, AllCountries!$C$18:$C$4822,0)-1,COLUMN()-1),"") ->  | E28: =IF(ROW()-3<=COUNTIF(AllCountries!$C$18:$C$4822,"="&selected_country),OFFSET(AllCountries!$A42,MATCH(selected_country, AllCountries!$C$18:$C$4822,0)-1,COLUMN()-1),"") ->  | F28: =IF(ROW()-3<=COUNTIF(AllCountries!$C$18:$C$4822,"="&selected_country),OFFSET(AllCountries!$A42,MATCH(selected_country, AllCountries!$C$18:$C$4822,0)-1,COLUMN()-1),"") ->  | G28: =IF(ROW()-3<=COUNTIF(AllCountries!$C$18:$C$4822,"="&selected_country),OFFSET(AllCountries!$A42,MATCH(selected_country, AllCountries!$C$18:$C$4822,0)-1,COLUMN()-1),"") ->  | H28: =IF(ROW()-3<=COUNTIF(AllCountries!$C$18:$C$4822,"="&selected_country),OFFSET(AllCountries!$A42,MATCH(selected_country, AllCountries!$C$18:$C$4822,0)-1,COLUMN()-1),"") ->  | I28: =IF(ROW()-3<=COUNTIF(AllCountries!$C$18:$C$4822,"="&selected_country),OFFSET(AllCountries!$A42,MATCH(selected_country, AllCountries!$C$18:$C$4822,0)-1,COLUMN()-1),"") ->  | J28: =IF(ROW()-3<=COUNTIF(AllCountries!$C$18:$C$4822,"="&selected_country),OFFSET(AllCountries!$A42,MATCH(selected_country, AllCountries!$C$18:$C$4822,0)-1,COLUMN()-1),"") ->  | K28: =IF(ROW()-3<=COUNTIF(AllCountries!$C$18:$C$4822,"="&selected_country),OFFSET(AllCountries!$A42,MATCH(selected_country, AllCountries!$C$18:$C$4822,0)-1,COLUMN()-1),"") ->  | L28: =IF(ROW()-3<=COUNTIF(AllCountries!$C$18:$C$4822,"="&selected_country),OFFSET(AllCountries!$A42,MATCH(selected_country, AllCountries!$C$18:$C$4822,0)-1,COLUMN()-1),"") ->  | M28: =IF(ROW()-3<=COUNTIF(AllCountries!$C$18:$C$4822,"="&selected_country),OFFSET(AllCountries!$A42,MATCH(selected_country, AllCountries!$C$18:$C$4822,0)-1,COLUMN()-1),"") ->  | N28: =IF(ROW()-3<=COUNTIF(AllCountries!$C$18:$C$4822,"="&selected_country),OFFSET(AllCountries!$A42,MATCH(selected_country, AllCountries!$C$18:$C$4822,0)-1,COLUMN()-1),"") ->  | O28: =IF(ROW()-3<=COUNTIF(AllCountries!$C$18:$C$4822,"="&selected_country),OFFSET(AllCountries!$A42,MATCH(selected_country, AllCountries!$C$18:$C$4822,0)-1,COLUMN()-1),"") ->  | P28: =IF(ROW()-3<=COUNTIF(AllCountries!$C$18:$C$4822,"="&selected_country),OFFSET(AllCountries!$A42,MATCH(selected_country, AllCountries!$C$18:$C$4822,0)-1,COLUMN()-1),"") ->  | U28: 0 | V28: FALSE
A29: =IF(ROW()-3<=COUNTIF(AllCountries!$C$18:$C$4822,"="&selected_country),OFFSET(AllCountries!$A43,MATCH(selected_country, AllCountries!$C$18:$C$4822,0)-1,COLUMN()-1),"") ->  | B29: =IF(ROW()-3<=COUNTIF(AllCountries!$C$18:$C$4822,"="&selected_country),OFFSET(AllCountries!$A43,MATCH(selected_country, AllCountries!$C$18:$C$4822,0)-1,COLUMN()-1),"") ->  | C29: =IF(ROW()-3<=COUNTIF(AllCountries!$C$18:$C$4822,"="&selected_country),OFFSET(AllCountries!$A43,MATCH(selected_country, AllCountries!$C$18:$C$4822,0)-1,COLUMN()-1),"") ->  | D29: =IF(ROW()-3<=COUNTIF(AllCountries!$C$18:$C$4822,"="&selected_country),OFFSET(AllCountries!$A43,MATCH(selected_country, AllCountries!$C$18:$C$4822,0)-1,COLUMN()-1),"") ->  | E29: =IF(ROW()-3<=COUNTIF(AllCountries!$C$18:$C$4822,"="&selected_country),OFFSET(AllCountries!$A43,MATCH(selected_country, AllCountries!$C$18:$C$4822,0)-1,COLUMN()-1),"") ->  | F29: =IF(ROW()-3<=COUNTIF(AllCountries!$C$18:$C$4822,"="&selected_country),OFFSET(AllCountries!$A43,MATCH(selected_country, AllCountries!$C$18:$C$4822,0)-1,COLUMN()-1),"") ->  | G29: =IF(ROW()-3<=COUNTIF(AllCountries!$C$18:$C$4822,"="&selected_country),OFFSET(AllCountries!$A43,MATCH(selected_country, AllCountries!$C$18:$C$4822,0)-1,COLUMN()-1),"") ->  | H29: =IF(ROW()-3<=COUNTIF(AllCountries!$C$18:$C$4822,"="&selected_country),OFFSET(AllCountries!$A43,MATCH(selected_country, AllCountries!$C$18:$C$4822,0)-1,COLUMN()-1),"") ->  | I29: =IF(ROW()-3<=COUNTIF(AllCountries!$C$18:$C$4822,"="&selected_country),OFFSET(AllCountries!$A43,MATCH(selected_country, AllCountries!$C$18:$C$4822,0)-1,COLUMN()-1),"") ->  | J29: =IF(ROW()-3<=COUNTIF(AllCountries!$C$18:$C$4822,"="&selected_country),OFFSET(AllCountries!$A43,MATCH(selected_country, AllCountries!$C$18:$C$4822,0)-1,COLUMN()-1),"") ->  | K29: =IF(ROW()-3<=COUNTIF(AllCountries!$C$18:$C$4822,"="&selected_country),OFFSET(AllCountries!$A43,MATCH(selected_country, AllCountries!$C$18:$C$4822,0)-1,COLUMN()-1),"") ->  | L29: =IF(ROW()-3<=COUNTIF(AllCountries!$C$18:$C$4822,"="&selected_country),OFFSET(AllCountries!$A43,MATCH(selected_country, AllCountries!$C$18:$C$4822,0)-1,COLUMN()-1),"") ->  | M29: =IF(ROW()-3<=COUNTIF(AllCountries!$C$18:$C$4822,"="&selected_country),OFFSET(AllCountries!$A43,MATCH(selected_country, AllCountries!$C$18:$C$4822,0)-1,COLUMN()-1),"") ->  | N29: =IF(ROW()-3<=COUNTIF(AllCountries!$C$18:$C$4822,"="&selected_country),OFFSET(AllCountries!$A43,MATCH(selected_country, AllCountries!$C$18:$C$4822,0)-1,COLUMN()-1),"") ->  | O29: =IF(ROW()-3<=COUNTIF(AllCountries!$C$18:$C$4822,"="&selected_country),OFFSET(AllCountries!$A43,MATCH(selected_country, AllCountries!$C$18:$C$4822,0)-1,COLUMN()-1),"") ->  | P29: =IF(ROW()-3<=COUNTIF(AllCountries!$C$18:$C$4822,"="&selected_country),OFFSET(AllCountries!$A43,MATCH(selected_country, AllCountries!$C$18:$C$4822,0)-1,COLUMN()-1),"") ->  | U29: 0 | V29: FALSE
A30: =IF(ROW()-3<=COUNTIF(AllCountries!$C$18:$C$4822,"="&selected_country),OFFSET(AllCountries!$A44,MATCH(selected_country, AllCountries!$C$18:$C$4822,0)-1,COLUMN()-1),"") ->  | B30: =IF(ROW()-3<=COUNTIF(AllCountries!$C$18:$C$4822,"="&selected_country),OFFSET(AllCountries!$A44,MATCH(selected_country, AllCountries!$C$18:$C$4822,0)-1,COLUMN()-1),"") ->  | C30: =IF(ROW()-3<=COUNTIF(AllCountries!$C$18:$C$4822,"="&selected_country),OFFSET(AllCountries!$A44,MATCH(selected_country, AllCountries!$C$18:$C$4822,0)-1,COLUMN()-1),"") ->  | D30: =IF(ROW()-3<=COUNTIF(AllCountries!$C$18:$C$4822,"="&selected_country),OFFSET(AllCountries!$A44,MATCH(selected_country, AllCountries!$C$18:$C$4822,0)-1,COLUMN()-1),"") ->  | E30: =IF(ROW()-3<=COUNTIF(AllCountries!$C$18:$C$4822,"="&selected_country),OFFSET(AllCountries!$A44,MATCH(selected_country, AllCountries!$C$18:$C$4822,0)-1,COLUMN()-1),"") ->  | F30: =IF(ROW()-3<=COUNTIF(AllCountries!$C$18:$C$4822,"="&selected_country),OFFSET(AllCountries!$A44,MATCH(selected_country, AllCountries!$C$18:$C$4822,0)-1,COLUMN()-1),"") ->  | G30: =IF(ROW()-3<=COUNTIF(AllCountries!$C$18:$C$4822,"="&selected_country),OFFSET(AllCountries!$A44,MATCH(selected_country, AllCountries!$C$18:$C$4822,0)-1,COLUMN()-1),"") ->  | H30: =IF(ROW()-3<=COUNTIF(AllCountries!$C$18:$C$4822,"="&selected_country),OFFSET(AllCountries!$A44,MATCH(selected_country, AllCountries!$C$18:$C$4822,0)-1,COLUMN()-1),"") ->  | I30: =IF(ROW()-3<=COUNTIF(AllCountries!$C$18:$C$4822,"="&selected_country),OFFSET(AllCountries!$A44,MATCH(selected_country, AllCountries!$C$18:$C$4822,0)-1,COLUMN()-1),"") ->  | J30: =IF(ROW()-3<=COUNTIF(AllCountries!$C$18:$C$4822,"="&selected_country),OFFSET(AllCountries!$A44,MATCH(selected_country, AllCountries!$C$18:$C$4822,0)-1,COLUMN()-1),"") ->  | K30: =IF(ROW()-3<=COUNTIF(AllCountries!$C$18:$C$4822,"="&selected_country),OFFSET(AllCountries!$A44,MATCH(selected_country, AllCountries!$C$18:$C$4822,0)-1,COLUMN()-1),"") ->  | L30: =IF(ROW()-3<=COUNTIF(AllCountries!$C$18:$C$4822,"="&selected_country),OFFSET(AllCountries!$A44,MATCH(selected_country, AllCountries!$C$18:$C$4822,0)-1,COLUMN()-1),"") ->  | M30: =IF(ROW()-3<=COUNTIF(AllCountries!$C$18:$C$4822,"="&selected_country),OFFSET(AllCountries!$A44,MATCH(selected_country, AllCountries!$C$18:$C$4822,0)-1,COLUMN()-1),"") ->  | N30: =IF(ROW()-3<=COUNTIF(AllCountries!$C$18:$C$4822,"="&selected_country),OFFSET(AllCountries!$A44,MATCH(selected_country, AllCountries!$C$18:$C$4822,0)-1,COLUMN()-1),"") ->  | O30: =IF(ROW()-3<=COUNTIF(AllCountries!$C$18:$C$4822,"="&selected_country),OFFSET(AllCountries!$A44,MATCH(selected_country, AllCountries!$C$18:$C$4822,0)-1,COLUMN()-1),"") ->  | P30: =IF(ROW()-3<=COUNTIF(AllCountries!$C$18:$C$4822,"="&selected_country),OFFSET(AllCountries!$A44,MATCH(selected_country, AllCountries!$C$18:$C$4822,0)-1,COLUMN()-1),"") ->  | U30: 0 | V30: FALSE
A31: =IF(ROW()-3<=COUNTIF(AllCountries!$C$18:$C$4822,"="&selected_country),OFFSET(AllCountries!$A45,MATCH(selected_country, AllCountries!$C$18:$C$4822,0)-1,COLUMN()-1),"") ->  | B31: =IF(ROW()-3<=COUNTIF(AllCountries!$C$18:$C$4822,"="&selected_country),OFFSET(AllCountries!$A45,MATCH(selected_country, AllCountries!$C$18:$C$4822,0)-1,COLUMN()-1),"") ->  | C31: =IF(ROW()-3<=COUNTIF(AllCountries!$C$18:$C$4822,"="&selected_country),OFFSET(AllCountries!$A45,MATCH(selected_country, AllCountries!$C$18:$C$4822,0)-1,COLUMN()-1),"") ->  | D31: =IF(ROW()-3<=COUNTIF(AllCountries!$C$18:$C$4822,"="&selected_country),OFFSET(AllCountries!$A45,MATCH(selected_country, AllCountries!$C$18:$C$4822,0)-1,COLUMN()-1),"") ->  | E31: =IF(ROW()-3<=COUNTIF(AllCountries!$C$18:$C$4822,"="&selected_country),OFFSET(AllCountries!$A45,MATCH(selected_country, AllCountries!$C$18:$C$4822,0)-1,COLUMN()-1),"") ->  | F31: =IF(ROW()-3<=COUNTIF(AllCountries!$C$18:$C$4822,"="&selected_country),OFFSET(AllCountries!$A45,MATCH(selected_country, AllCountries!$C$18:$C$4822,0)-1,COLUMN()-1),"") ->  | G31: =IF(ROW()-3<=COUNTIF(AllCountries!$C$18:$C$4822,"="&selected_country),OFFSET(AllCountries!$A45,MATCH(selected_country, AllCountries!$C$18:$C$4822,0)-1,COLUMN()-1),"") ->  | H31: =IF(ROW()-3<=COUNTIF(AllCountries!$C$18:$C$4822,"="&selected_country),OFFSET(AllCountries!$A45,MATCH(selected_country, AllCountries!$C$18:$C$4822,0)-1,COLUMN()-1),"") ->  | I31: =IF(ROW()-3<=COUNTIF(AllCountries!$C$18:$C$4822,"="&selected_country),OFFSET(AllCountries!$A45,MATCH(selected_country, AllCountries!$C$18:$C$4822,0)-1,COLUMN()-1),"") ->  | J31: =IF(ROW()-3<=COUNTIF(AllCountries!$C$18:$C$4822,"="&selected_country),OFFSET(AllCountries!$A45,MATCH(selected_country, AllCountries!$C$18:$C$4822,0)-1,COLUMN()-1),"") ->  | K31: =IF(ROW()-3<=COUNTIF(AllCountries!$C$18:$C$4822,"="&selected_country),OFFSET(AllCountries!$A45,MATCH(selected_country, AllCountries!$C$18:$C$4822,0)-1,COLUMN()-1),"") ->  | L31: =IF(ROW()-3<=COUNTIF(AllCountries!$C$18:$C$4822,"="&selected_country),OFFSET(AllCountries!$A45,MATCH(selected_country, AllCountries!$C$18:$C$4822,0)-1,COLUMN()-1),"") ->  | M31: =IF(ROW()-3<=COUNTIF(AllCountries!$C$18:$C$4822,"="&selected_country),OFFSET(AllCountries!$A45,MATCH(selected_country, AllCountries!$C$18:$C$4822,0)-1,COLUMN()-1),"") ->  | N31: =IF(ROW()-3<=COUNTIF(AllCountries!$C$18:$C$4822,"="&selected_country),OFFSET(AllCountries!$A45,MATCH(selected_country, AllCountries!$C$18:$C$4822,0)-1,COLUMN()-1),"") ->  | O31: =IF(ROW()-3<=COUNTIF(AllCountries!$C$18:$C$4822,"="&selected_country),OFFSET(AllCountries!$A45,MATCH(selected_country, AllCountries!$C$18:$C$4822,0)-1,COLUMN()-1),"") ->  | P31: =IF(ROW()-3<=COUNTIF(AllCountries!$C$18:$C$4822,"="&selected_country),OFFSET(AllCountries!$A45,MATCH(selected_country, AllCountries!$C$18:$C$4822,0)-1,COLUMN()-1),"") ->  | U31: 0 | V31: FALSE
A32: =IF(ROW()-3<=COUNTIF(AllCountries!$C$18:$C$4822,"="&selected_country),OFFSET(AllCountries!$A46,MATCH(selected_country, AllCountries!$C$18:$C$4822,0)-1,COLUMN()-1),"") ->  | B32: =IF(ROW()-3<=COUNTIF(AllCountries!$C$18:$C$4822,"="&selected_country),OFFSET(AllCountries!$A46,MATCH(selected_country, AllCountries!$C$18:$C$4822,0)-1,COLUMN()-1),"") ->  | C32: =IF(ROW()-3<=COUNTIF(AllCountries!$C$18:$C$4822,"="&selected_country),OFFSET(AllCountries!$A46,MATCH(selected_country, AllCountries!$C$18:$C$4822,0)-1,COLUMN()-1),"") ->  | D32: =IF(ROW()-3<=COUNTIF(AllCountries!$C$18:$C$4822,"="&selected_country),OFFSET(AllCountries!$A46,MATCH(selected_country, AllCountries!$C$18:$C$4822,0)-1,COLUMN()-1),"") ->  | E32: =IF(ROW()-3<=COUNTIF(AllCountries!$C$18:$C$4822,"="&selected_country),OFFSET(AllCountries!$A46,MATCH(selected_country, AllCountries!$C$18:$C$4822,0)-1,COLUMN()-1),"") ->  | F32: =IF(ROW()-3<=COUNTIF(AllCountries!$C$18:$C$4822,"="&selected_country),OFFSET(AllCountries!$A46,MATCH(selected_country, AllCountries!$C$18:$C$4822,0)-1,COLUMN()-1),"") ->  | G32: =IF(ROW()-3<=COUNTIF(AllCountries!$C$18:$C$4822,"="&selected_country),OFFSET(AllCountries!$A46,MATCH(selected_country, AllCountries!$C$18:$C$4822,0)-1,COLUMN()-1),"") ->  | H32: =IF(ROW()-3<=COUNTIF(AllCountries!$C$18:$C$4822,"="&selected_country),OFFSET(AllCountries!$A46,MATCH(selected_country, AllCountries!$C$18:$C$4822,0)-1,COLUMN()-1),"") ->  | I32: =IF(ROW()-3<=COUNTIF(AllCountries!$C$18:$C$4822,"="&selected_country),OFFSET(AllCountries!$A46,MATCH(selected_country, AllCountries!$C$18:$C$4822,0)-1,COLUMN()-1),"") ->  | J32: =IF(ROW()-3<=COUNTIF(AllCountries!$C$18:$C$4822,"="&selected_country),OFFSET(AllCountries!$A46,MATCH(selected_country, AllCountries!$C$18:$C$4822,0)-1,COLUMN()-1),"") ->  | K32: =IF(ROW()-3<=COUNTIF(AllCountries!$C$18:$C$4822,"="&selected_country),OFFSET(AllCountries!$A46,MATCH(selected_country, AllCountries!$C$18:$C$4822,0)-1,COLUMN()-1),"") ->  | L32: =IF(ROW()-3<=COUNTIF(AllCountries!$C$18:$C$4822,"="&selected_country),OFFSET(AllCountries!$A46,MATCH(selected_country, AllCountries!$C$18:$C$4822,0)-1,COLUMN()-1),"") ->  | M32: =IF(ROW()-3<=COUNTIF(AllCountries!$C$18:$C$4822,"="&selected_country),OFFSET(AllCountries!$A46,MATCH(selected_country, AllCountries!$C$18:$C$4822,0)-1,COLUMN()-1),"") ->  | N32: =IF(ROW()-3<=COUNTIF(AllCountries!$C$18:$C$4822,"="&selected_country),OFFSET(AllCountries!$A46,MATCH(selected_country, AllCountries!$C$18:$C$4822,0)-1,COLUMN()-1),"") ->  | O32: =IF(ROW()-3<=COUNTIF(AllCountries!$C$18:$C$4822,"="&selected_country),OFFSET(AllCountries!$A46,MATCH(selected_country, AllCountries!$C$18:$C$4822,0)-1,COLUMN()-1),"") ->  | P32: =IF(ROW()-3<=COUNTIF(AllCountries!$C$18:$C$4822,"="&selected_country),OFFSET(AllCountries!$A46,MATCH(selected_country, AllCountries!$C$18:$C$4822,0)-1,COLUMN()-1),"") ->  | U32: 0 | V32: FALSE
A33: =IF(ROW()-3<=COUNTIF(AllCountries!$C$18:$C$4822,"="&selected_country),OFFSET(AllCountries!$A47,MATCH(selected_country, AllCountries!$C$18:$C$4822,0)-1,COLUMN()-1),"") ->  | B33: =IF(ROW()-3<=COUNTIF(AllCountries!$C$18:$C$4822,"="&selected_country),OFFSET(AllCountries!$A47,MATCH(selected_country, AllCountries!$C$18:$C$4822,0)-1,COLUMN()-1),"") ->  | C33: =IF(ROW()-3<=COUNTIF(AllCountries!$C$18:$C$4822,"="&selected_country),OFFSET(AllCountries!$A47,MATCH(selected_country, AllCountries!$C$18:$C$4822,0)-1,COLUMN()-1),"") ->  | D33: =IF(ROW()-3<=COUNTIF(AllCountries!$C$18:$C$4822,"="&selected_country),OFFSET(AllCountries!$A47,MATCH(selected_country, AllCountries!$C$18:$C$4822,0)-1,COLUMN()-1),"") ->  | E33: =IF(ROW()-3<=COUNTIF(AllCountries!$C$18:$C$4822,"="&selected_country),OFFSET(AllCountries!$A47,MATCH(selected_country, AllCountries!$C$18:$C$4822,0)-1,COLUMN()-1),"") ->  | F33: =IF(ROW()-3<=COUNTIF(AllCountries!$C$18:$C$4822,"="&selected_country),OFFSET(AllCountries!$A47,MATCH(selected_country, AllCountries!$C$18:$C$4822,0)-1,COLUMN()-1),"") ->  | G33: =IF(ROW()-3<=COUNTIF(AllCountries!$C$18:$C$4822,"="&selected_country),OFFSET(AllCountries!$A47,MATCH(selected_country, AllCountries!$C$18:$C$4822,0)-1,COLUMN()-1),"") ->  | H33: =IF(ROW()-3<=COUNTIF(AllCountries!$C$18:$C$4822,"="&selected_country),OFFSET(AllCountries!$A47,MATCH(selected_country, AllCountries!$C$18:$C$4822,0)-1,COLUMN()-1),"") ->  | I33: =IF(ROW()-3<=COUNTIF(AllCountries!$C$18:$C$4822,"="&selected_country),OFFSET(AllCountries!$A47,MATCH(selected_country, AllCountries!$C$18:$C$4822,0)-1,COLUMN()-1),"") ->  | J33: =IF(ROW()-3<=COUNTIF(AllCountries!$C$18:$C$4822,"="&selected_country),OFFSET(AllCountries!$A47,MATCH(selected_country, AllCountries!$C$18:$C$4822,0)-1,COLUMN()-1),"") ->  | K33: =IF(ROW()-3<=COUNTIF(AllCountries!$C$18:$C$4822,"="&selected_country),OFFSET(AllCountries!$A47,MATCH(selected_country, AllCountries!$C$18:$C$4822,0)-1,COLUMN()-1),"") ->  | L33: =IF(ROW()-3<=COUNTIF(AllCountries!$C$18:$C$4822,"="&selected_country),OFFSET(AllCountries!$A47,MATCH(selected_country, AllCountries!$C$18:$C$4822,0)-1,COLUMN()-1),"") ->  | M33: =IF(ROW()-3<=COUNTIF(AllCountries!$C$18:$C$4822,"="&selected_country),OFFSET(AllCountries!$A47,MATCH(selected_country, AllCountries!$C$18:$C$4822,0)-1,COLUMN()-1),"") ->  | N33: =IF(ROW()-3<=COUNTIF(AllCountries!$C$18:$C$4822,"="&selected_country),OFFSET(AllCountries!$A47,MATCH(selected_country, AllCountries!$C$18:$C$4822,0)-1,COLUMN()-1),"") ->  | O33: =IF(ROW()-3<=COUNTIF(AllCountries!$C$18:$C$4822,"="&selected_country),OFFSET(AllCountries!$A47,MATCH(selected_country, AllCountries!$C$18:$C$4822,0)-1,COLUMN()-1),"") ->  | P33: =IF(ROW()-3<=COUNTIF(AllCountries!$C$18:$C$4822,"="&selected_country),OFFSET(AllCountries!$A47,MATCH(selected_country, AllCountries!$C$18:$C$4822,0)-1,COLUMN()-1),"") ->  | U33: 0 | V33: FALSE
A34: =IF(ROW()-3<=COUNTIF(AllCountries!$C$18:$C$4822,"="&selected_country),OFFSET(AllCountries!$A48,MATCH(selected_country, AllCountries!$C$18:$C$4822,0)-1,COLUMN()-1),"") ->  | B34: =IF(ROW()-3<=COUNTIF(AllCountries!$C$18:$C$4822,"="&selected_country),OFFSET(AllCountries!$A48,MATCH(selected_country, AllCountries!$C$18:$C$4822,0)-1,COLUMN()-1),"") ->  | C34: =IF(ROW()-3<=COUNTIF(AllCountries!$C$18:$C$4822,"="&selected_country),OFFSET(AllCountries!$A48,MATCH(selected_country, AllCountries!$C$18:$C$4822,0)-1,COLUMN()-1),"") ->  | D34: =IF(ROW()-3<=COUNTIF(AllCountries!$C$18:$C$4822,"="&selected_country),OFFSET(AllCountries!$A48,MATCH(selected_country, AllCountries!$C$18:$C$4822,0)-1,COLUMN()-1),"") ->  | E34: =IF(ROW()-3<=COUNTIF(AllCountries!$C$18:$C$4822,"="&selected_country),OFFSET(AllCountries!$A48,MATCH(selected_country, AllCountries!$C$18:$C$4822,0)-1,COLUMN()-1),"") ->  | F34: =IF(ROW()-3<=COUNTIF(AllCountries!$C$18:$C$4822,"="&selected_country),OFFSET(AllCountries!$A48,MATCH(selected_country, AllCountries!$C$18:$C$4822,0)-1,COLUMN()-1),"") ->  | G34: =IF(ROW()-3<=COUNTIF(AllCountries!$C$18:$C$4822,"="&selected_country),OFFSET(AllCountries!$A48,MATCH(selected_country, AllCountries!$C$18:$C$4822,0)-1,COLUMN()-1),"") ->  | H34: =IF(ROW()-3<=COUNTIF(AllCountries!$C$18:$C$4822,"="&selected_country),OFFSET(AllCountries!$A48,MATCH(selected_country, AllCountries!$C$18:$C$4822,0)-1,COLUMN()-1),"") ->  | I34: =IF(ROW()-3<=COUNTIF(AllCountries!$C$18:$C$4822,"="&selected_country),OFFSET(AllCountries!$A48,MATCH(selected_country, AllCountries!$C$18:$C$4822,0)-1,COLUMN()-1),"") ->  | J34: =IF(ROW()-3<=COUNTIF(AllCountries!$C$18:$C$4822,"="&selected_country),OFFSET(AllCountries!$A48,MATCH(selected_country, AllCountries!$C$18:$C$4822,0)-1,COLUMN()-1),"") ->  | K34: =IF(ROW()-3<=COUNTIF(AllCountries!$C$18:$C$4822,"="&selected_country),OFFSET(AllCountries!$A48,MATCH(selected_country, AllCountries!$C$18:$C$4822,0)-1,COLUMN()-1),"") ->  | L34: =IF(ROW()-3<=COUNTIF(AllCountries!$C$18:$C$4822,"="&selected_country),OFFSET(AllCountries!$A48,MATCH(selected_country, AllCountries!$C$18:$C$4822,0)-1,COLUMN()-1),"") ->  | M34: =IF(ROW()-3<=COUNTIF(AllCountries!$C$18:$C$4822,"="&selected_country),OFFSET(AllCountries!$A48,MATCH(selected_country, AllCountries!$C$18:$C$4822,0)-1,COLUMN()-1),"") ->  | N34: =IF(ROW()-3<=COUNTIF(AllCountries!$C$18:$C$4822,"="&selected_country),OFFSET(AllCountries!$A48,MATCH(selected_country, AllCountries!$C$18:$C$4822,0)-1,COLUMN()-1),"") ->  | O34: =IF(ROW()-3<=COUNTIF(AllCountries!$C$18:$C$4822,"="&selected_country),OFFSET(AllCountries!$A48,MATCH(selected_country, AllCountries!$C$18:$C$4822,0)-1,COLUMN()-1),"") ->  | P34: =IF(ROW()-3<=COUNTIF(AllCountries!$C$18:$C$4822,"="&selected_country),OFFSET(AllCountries!$A48,MATCH(selected_country, AllCountries!$C$18:$C$4822,0)-1,COLUMN()-1),"") ->  | U34: 0 | V34: FALSE
D41: =D1 -> Prior year: | E41: =E1 -> -1 | G41: =G1 -> 1st year: | H41: =H1 -> 0 | J41: =J1 -> Final year: | K41: =K1 -> 0 | M41: =M1 -> N years: | N41: =N1 -> 1
A42: ↓YearInDemSheet | B42: ↓YearInProfilesTimePeriod | D42: Year | E42: Total | F42: Reprod. | G42: Age 15-64y | I42: Births | J42: 2-yr pop | K42: u5 pop | L42: 6-59m pop | M42: 48-59m pop | N42: Children | O42: Adolescents - female | P42: Life expect | V42: ↓RowNumAbove
E43: Pop | F43: Pop 15-49y | G43: Women | H43: Men | N43: 0-14y | O43: 15-19y | P43: at birth
A44: 1 | B44: =A44-1 -> 0 | D44: =IF(ISNUMBER($V44),INDIRECT(ADDRESS($V44,COLUMN())),"") ->  | V44: =(MATCH(A44,U$4:U$34,0))+W$4 -> 
A45: 2 | B45: =A45-1 -> 1 | D45: =IF(ISNUMBER($V45),INDIRECT(ADDRESS($V45,COLUMN())),"") ->  | O45: =IF(ISNUMBER($V45),INDIRECT(ADDRESS($V45,COLUMN())),"") -> 
A46: 3 | B46: 2
A47: 4 | B47: 3
A48: 5 | B48: 4
A49: 6 | B49: 5
A50: 7 | B50: 6
A51: 8 | B51: 7
A52: 9 | B52: 8
A53: 10 | B53: 9
A54: 11 | B54: 10
A55: 12 | B55: 11 | D55: =IF(ISNUMBER($V55),INDIRECT(ADDRESS($V55,COLUMN())),"") -> 
A56: 13 | B56: 12
A57: 14 | B57: 13
A58: 15 | B58: 14
A59: 16 | B59: 15
A60: 17 | B60: 16
A61: 18 | B61: 17
A62: 19 | B62: 18
A63: 20 | B63: 19
A64: 21 | B64: 20
A65: 22 | B65: 21 | D65: =IF(ISNUMBER($V65),INDIRECT(ADDRESS($V65,COLUMN())),"") -> 
A66: 23 | B66: 22
A67: 24 | B67: 23
A68: 25 | B68: 24
A69: 26 | B69: 25
A70: 27 | B70: 26
A71: 28 | B71: 27
A72: 29 | B72: 28
A73: 30 | B73: 29
A74: 31 | B74: 30

Sheet Dem (hidden)
A2: =Prev!A4 ->  | E2: The facilitator does not need to do anything in this sheet.
A3: Demographic Data
A4: Section A. Information used by the workbook and instructions to user (also see instructions in the facilitator guide)
A5: Section A.1 | F5: Section A.2 | H5: Time period (decided during | L5: Section A.3
C6: Total population estimate and year from "FrontPage": | F6: stakeholder meeting/PROFILES workshop) | M6: Adjustment factor
C7: Population
B8: Year | C8: (millions) | H8: First year | I8: =FrontPage!E47 -> 0 | J8: =IF(I8<>B27,"Differs from Sec. B","") -> Differs from Sec. B | M8: =C9/C16 -> 
B9: =FrontPage!J65 ->  | C9: =FrontPage!J64 ->  | H9: Last (final) year | I9: =FrontPage!E48 -> 0
H10: Number of years in time period | I10: =I9-I8+1 -> 1 | J10: =IF(I10<>(I9-I8+1),"check","") -> 
A12: Section A.4 | B12: Total population estimate and year from Panel C
C13: (same year as the year in Section A.1)
C14: Population
B15: Year | C15: (millions)
B16: =AllCountriesResults!Z2 ->  | C16: =AllCountriesResults!AA2 -> 
A22: Section B. Demographic information used by the workbook
A23: Number of years in projection: | D23: =I10 -> 1
A24: =CONCATENATE("Number of births in ",B54," (millions):") -> Number of births in (millions): | D24: =G54*$M$8 ->  | F24: Demographic data in millions | U24: (millions)
B25: Year | C25: Total | D25: Reprod. | E25: Age 15-64y | G25: Births | H25: 2-yr pop | I25: u5 pop | J25: 6-59m pop | K25: 48-59m pop | L25: Children | N25: Child Deaths | U25: Adolescents - female | V25: Life expect | X25: 1=in time period
C26: Pop | D26: Pop 15-49y | E26: Women | F26: Men | L26: 0-14y | M26: 0-5y | N26: <1m | O26: 1-5m | P26: 6-11m | Q26: 6-23m | R26: <1y | S26: 1-5y | T26: 6-59m | U26: 15-19y | V26: at birth | X26: 0=not in time period
A27: 1 | B27: =B55 ->  | C27: =IF($X27=1,C55*$M$8,0) -> 0 | D27: 0 | E27: 0 | F27: 0 | G27: 0 | H27: 0 | I27: 0 | J27: 0 | K27: 0 | L27: 0 | M27: =IF(X27=1,R27+S27,0) -> 0 | N27: =IF(X27=1,((Rel!$C$85/Rel!$C$83)*R27),0) -> 0 | O27: =IF(X27=1,((R27-N27)*(5/11)),0) -> 0 | P27: =IF(X27=1,((R27-N27)*(6/11)),0) -> 0 | Q27: =IF(X27=1,(P27+(S27*1/4)),0) -> 0 | R27: =IF(X27=1,(Rel!$C$83*D24*1000),0) -> 0 | S27: =IF(X27=1,(D24*(Rel!$C$84-Rel!$C$83)*1000),0) -> 0 | T27: =IF(X27=1,(P27+S27),0) -> 0 | U27: =IF($X27=1,M55*$M$8,0) -> 0 | V27: =IF($X27=1,N55,0) -> 0 | X27: =IF(AND(B27>=$I$8,B27<=$I$9),1,0) -> 0
A28: 2 | B28: =B56 ->  | C28: =IF($X28=1,C56*$M$8,0) -> 0 | D28: 0 | E28: 0 | F28: 0 | G28: 0 | H28: 0 | I28: 0 | J28: 0 | K28: 0 | L28: 0 | M28: 0 | N28: =IF(X28=1,((Rel!$C$85/Rel!$C$83)*R28),0) -> 0 | O28: 0 | P28: 0 | Q28: 0 | R28: =IF(X28=1,(Rel!$C$83*G27*1000),0) -> 0 | S28: =IF(X28=1,(G27*(Rel!$C$84-Rel!$C$83)*1000),0) -> 0 | T28: 0 | U28: 0 | V28: 0 | X28: 0
A29: 3 | C29: =IF($X29=1,C57*$M$8,0) -> 0 | D29: 0 | E29: 0 | F29: 0 | G29: 0 | H29: 0 | I29: 0 | J29: 0 | K29: 0 | L29: 0 | M29: 0 | N29: =IF(X29=1,((Rel!$C$85/Rel!$C$83)*R29),0) -> 0 | O29: 0 | P29: 0 | Q29: 0 | R29: =IF(X29=1,(Rel!$C$83*G28*1000),0) -> 0 | S29: =IF(X29=1,(G28*(Rel!$C$84-Rel!$C$83)*1000),0) -> 0 | T29: 0 | U29: 0 | V29: 0 | X29: 0
A30: 4 | C30: =IF($X30=1,C58*$M$8,0) -> 0 | D30: 0 | E30: 0 | F30: 0 | G30: 0 | H30: 0 | I30: 0 | J30: 0 | K30: 0 | L30: 0 | M30: 0 | N30: =IF(X30=1,((Rel!$C$85/Rel!$C$83)*R30),0) -> 0 | O30: 0 | P30: 0 | Q30: 0 | R30: =IF(X30=1,(Rel!$C$83*G29*1000),0) -> 0 | S30: =IF(X30=1,(G29*(Rel!$C$84-Rel!$C$83)*1000),0) -> 0 | T30: 0 | U30: 0 | V30: 0 | X30: 0
A31: 5 | C31: =IF($X31=1,C59*$M$8,0) -> 0 | D31: 0 | E31: 0 | F31: 0 | G31: 0 | H31: 0 | I31: 0 | J31: 0 | K31: 0 | L31: 0 | M31: 0 | N31: =IF(X31=1,((Rel!$C$85/Rel!$C$83)*R31),0) -> 0 | O31: 0 | P31: 0 | Q31: 0 | R31: =IF(X31=1,(Rel!$C$83*G30*1000),0) -> 0 | S31: =IF(X31=1,(G30*(Rel!$C$84-Rel!$C$83)*1000),0) -> 0 | T31: 0 | U31: 0 | V31: 0 | X31: 0
A32: 6 | C32: =IF($X32=1,C60*$M$8,0) -> 0 | D32: 0 | E32: 0 | F32: 0 | G32: 0 | H32: 0 | I32: 0 | J32: 0 | K32: 0 | L32: 0 | M32: 0 | N32: =IF(X32=1,((Rel!$C$85/Rel!$C$83)*R32),0) -> 0 | O32: 0 | P32: 0 | Q32: 0 | R32: =IF(X32=1,(Rel!$C$83*G31*1000),0) -> 0 | S32: =IF(X32=1,(G31*(Rel!$C$84-Rel!$C$83)*1000),0) -> 0 | T32: 0 | U32: 0 | V32: 0 | X32: 0
A33: 7 | C33: =IF($X33=1,C61*$M$8,0) -> 0 | D33: 0 | E33: 0 | F33: 0 | G33: 0 | H33: 0 | I33: 0 | J33: 0 | K33: 0 | L33: 0 | M33: =IF(X33=1,R33+S33,0) -> 0 | N33: =IF(X33=1,((Rel!$C$85/Rel!$C$83)*R33),0) -> 0 | O33: =IF(X33=1,((R33-N33)*(5/11)),0) -> 0 | P33: =IF(X33=1,((R33-N33)*(6/11)),0) -> 0 | Q33: =IF(X33=1,(P33+(S33*1/4)),0) -> 0 | R33: =IF(X33=1,(Rel!$C$83*G32*1000),0) -> 0 | S33: =IF(X33=1,(G32*(Rel!$C$84-Rel!$C$83)*1000),0) -> 0 | T33: =IF(X33=1,(P33+S33),0) -> 0 | U33: 0 | V33: 0 | X33: 0
A34: 8 | C34: =IF($X34=1,C62*$M$8,0) -> 0 | D34: 0 | E34: 0 | F34: 0 | G34: 0 | H34: 0 | I34: 0 | J34: 0 | K34: 0 | L34: 0 | M34: =IF(X34=1,R34+S34,0) -> 0 | N34: =IF(X34=1,((Rel!$C$85/Rel!$C$83)*R34),0) -> 0 | O34: =IF(X34=1,((R34-N34)*(5/11)),0) -> 0 | P34: =IF(X34=1,((R34-N34)*(6/11)),0) -> 0 | Q34: =IF(X34=1,(P34+(S34*1/4)),0) -> 0 | R34: =IF(X34=1,(Rel!$C$83*G33*1000),0) -> 0 | S34: =IF(X34=1,(G33*(Rel!$C$84-Rel!$C$83)*1000),0) -> 0 | T34: =IF(X34=1,(P34+S34),0) -> 0 | U34: 0 | V34: 0 | X34: 0
A35: 9 | C35: =IF($X35=1,C63*$M$8,0) -> 0 | D35: 0 | E35: 0 | F35: 0 | G35: 0 | H35: 0 | I35: 0 | J35: 0 | K35: 0 | L35: 0 | M35: =IF(X35=1,R35+S35,0) -> 0 | N35: =IF(X35=1,((Rel!$C$85/Rel!$C$83)*R35),0) -> 0 | O35: =IF(X35=1,((R35-N35)*(5/11)),0) -> 0 | P35: =IF(X35=1,((R35-N35)*(6/11)),0) -> 0 | Q35: =IF(X35=1,(P35+(S35*1/4)),0) -> 0 | R35: =IF(X35=1,(Rel!$C$83*G34*1000),0) -> 0 | S35: =IF(X35=1,(G34*(Rel!$C$84-Rel!$C$83)*1000),0) -> 0 | T35: =IF(X35=1,(P35+S35),0) -> 0 | U35: 0 | V35: 0 | X35: 0
A36: 10 | C36: =IF($X36=1,C64*$M$8,0) -> 0 | D36: 0 | E36: 0 | F36: 0 | G36: 0 | H36: 0 | I36: 0 | J36: 0 | K36: 0 | L36: 0 | M36: =IF(X36=1,R36+S36,0) -> 0 | N36: =IF(X36=1,((Rel!$C$85/Rel!$C$83)*R36),0) -> 0 | O36: =IF(X36=1,((R36-N36)*(5/11)),0) -> 0 | P36: =IF(X36=1,((R36-N36)*(6/11)),0) -> 0 | Q36: =IF(X36=1,(P36+(S36*1/4)),0) -> 0 | R36: =IF(X36=1,(Rel!$C$83*G35*1000),0) -> 0 | S36: =IF(X36=1,(G35*(Rel!$C$84-Rel!$C$83)*1000),0) -> 0 | T36: =IF(X36=1,(P36+S36),0) -> 0 | U36: 0 | V36: 0 | X36: 0
A37: 11 | C37: =IF($X37=1,C65*$M$8,0) -> 0 | D37: 0 | E37: 0 | F37: 0 | G37: 0 | H37: 0 | I37: 0 | J37: 0 | K37: 0 | L37: 0 | M37: =IF(X37=1,R37+S37,0) -> 0 | N37: =IF(X37=1,((Rel!$C$85/Rel!$C$83)*R37),0) -> 0 | O37: =IF(X37=1,((R37-N37)*(5/11)),0) -> 0 | P37: =IF(X37=1,((R37-N37)*(6/11)),0) -> 0 | Q37: =IF(X37=1,(P37+(S37*1/4)),0) -> 0 | R37: =IF(X37=1,(Rel!$C$83*G36*1000),0) -> 0 | S37: =IF(X37=1,(G36*(Rel!$C$84-Rel!$C$83)*1000),0) -> 0 | T37: =IF(X37=1,(P37+S37),0) -> 0 | U37: 0 | V37: 0 | X37: 0
A38: 12 | C38: =IF($X38=1,C66*$M$8,0) -> 0 | D38: 0 | E38: 0 | F38: 0 | G38: 0 | H38: 0 | I38: 0 | J38: 0 | K38: 0 | L38: 0 | M38: =IF(X38=1,R38+S38,0) -> 0 | N38: =IF(X38=1,((Rel!$C$85/Rel!$C$83)*R38),0) -> 0 | O38: =IF(X38=1,((R38-N38)*(5/11)),0) -> 0 | P38: =IF(X38=1,((R38-N38)*(6/11)),0) -> 0 | Q38: =IF(X38=1,(P38+(S38*1/4)),0) -> 0 | R38: =IF(X38=1,(Rel!$C$83*G37*1000),0) -> 0 | S38: =IF(X38=1,(G37*(Rel!$C$84-Rel!$C$83)*1000),0) -> 0 | T38: =IF(X38=1,(P38+S38),0) -> 0 | U38: 0 | V38: 0 | X38: 0
A39: 13 | C39: =IF($X39=1,C67*$M$8,0) -> 0 | D39: 0 | E39: 0 | F39: 0 | G39: 0 | H39: 0 | I39: 0 | J39: 0 | K39: 0 | L39: 0 | M39: =IF(X39=1,R39+S39,0) -> 0 | N39: =IF(X39=1,((Rel!$C$85/Rel!$C$83)*R39),0) -> 0 | O39: =IF(X39=1,((R39-N39)*(5/11)),0) -> 0 | P39: =IF(X39=1,((R39-N39)*(6/11)),0) -> 0 | Q39: =IF(X39=1,(P39+(S39*1/4)),0) -> 0 | R39: =IF(X39=1,(Rel!$C$83*G38*1000),0) -> 0 | S39: =IF(X39=1,(G38*(Rel!$C$84-Rel!$C$83)*1000),0) -> 0 | T39: =IF(X39=1,(P39+S39),0) -> 0 | U39: 0 | V39: 0 | X39: 0
A40: 14 | C40: =IF($X40=1,C68*$M$8,0) -> 0 | D40: 0 | E40: 0 | F40: 0 | G40: 0 | H40: 0 | I40: 0 | J40: 0 | K40: 0 | L40: 0 | M40: =IF(X40=1,R40+S40,0) -> 0 | N40: =IF(X40=1,((Rel!$C$85/Rel!$C$83)*R40),0) -> 0 | O40: =IF(X40=1,((R40-N40)*(5/11)),0) -> 0 | P40: =IF(X40=1,((R40-N40)*(6/11)),0) -> 0 | Q40: =IF(X40=1,(P40+(S40*1/4)),0) -> 0 | R40: =IF(X40=1,(Rel!$C$83*G39*1000),0) -> 0 | S40: =IF(X40=1,(G39*(Rel!$C$84-Rel!$C$83)*1000),0) -> 0 | T40: =IF(X40=1,(P40+S40),0) -> 0 | U40: 0 | V40: 0 | X40: 0
A41: 15 | C41: =IF($X41=1,C69*$M$8,0) -> 0 | D41: 0 | E41: 0 | F41: 0 | G41: 0 | H41: 0 | I41: 0 | J41: 0 | K41: 0 | L41: 0 | M41: 0 | N41: =IF(X41=1,((Rel!$C$85/Rel!$C$83)*R41),0) -> 0 | O41: 0 | P41: 0 | Q41: 0 | R41: =IF(X41=1,(Rel!$C$83*G40*1000),0) -> 0 | S41: =IF(X41=1,(G40*(Rel!$C$84-Rel!$C$83)*1000),0) -> 0 | T41: 0 | U41: 0 | V41: 0 | X41: 0
A42: 16 | C42: =IF($X42=1,C70*$M$8,0) -> 0 | D42: 0 | E42: 0 | F42: 0 | G42: 0 | H42: 0 | I42: 0 | J42: 0 | K42: 0 | L42: 0 | M42: 0 | N42: =IF(X42=1,((Rel!$C$85/Rel!$C$83)*R42),0) -> 0 | O42: 0 | P42: 0 | Q42: 0 | R42: =IF(X42=1,(Rel!$C$83*G41*1000),0) -> 0 | S42: =IF(X42=1,(G41*(Rel!$C$84-Rel!$C$83)*1000),0) -> 0 | T42: 0 | U42: 0 | V42: 0 | X42: 0
A43: 17 | C43: =IF($X43=1,C71*$M$8,0) -> 0 | D43: 0 | E43: 0 | F43: 0 | G43: 0 | H43: 0 | I43: 0 | J43: 0 | K43: 0 | L43: 0 | M43: 0 | N43: =IF(X43=1,((Rel!$C$85/Rel!$C$83)*R43),0) -> 0 | O43: 0 | P43: 0 | Q43: 0 | R43: =IF(X43=1,(Rel!$C$83*G42*1000),0) -> 0 | S43: =IF(X43=1,(G42*(Rel!$C$84-Rel!$C$83)*1000),0) -> 0 | T43: 0 | U43: 0 | V43: 0 | X43: 0
A44: 18 | C44: =IF($X44=1,C72*$M$8,0) -> 0 | D44: 0 | E44: 0 | F44: 0 | G44: 0 | H44: 0 | I44: 0 | J44: 0 | K44: 0 | L44: 0 | M44: 0 | N44: =IF(X44=1,((Rel!$C$85/Rel!$C$83)*R44),0) -> 0 | O44: 0 | P44: 0 | Q44: 0 | R44: =IF(X44=1,(Rel!$C$83*G43*1000),0) -> 0 | S44: =IF(X44=1,(G43*(Rel!$C$84-Rel!$C$83)*1000),0) -> 0 | T44: 0 | U44: 0 | V44: 0 | X44: 0
A45: 19 | C45: =IF($X45=1,C73*$M$8,0) -> 0 | D45: 0 | E45: 0 | F45: 0 | G45: 0 | H45: 0 | I45: 0 | J45: 0 | K45: 0 | L45: 0 | M45: 0 | N45: =IF(X45=1,((Rel!$C$85/Rel!$C$83)*R45),0) -> 0 | O45: 0 | P45: 0 | Q45: 0 | R45: =IF(X45=1,(Rel!$C$83*G44*1000),0) -> 0 | S45: =IF(X45=1,(G44*(Rel!$C$84-Rel!$C$83)*1000),0) -> 0 | T45: 0 | U45: 0 | V45: 0 | X45: 0
A46: 20 | C46: =IF($X46=1,C74*$M$8,0) -> 0 | D46: 0 | E46: 0 | F46: 0 | G46: 0 | H46: 0 | I46: 0 | J46: 0 | K46: 0 | L46: 0 | M46: 0 | N46: =IF(X46=1,((Rel!$C$85/Rel!$C$83)*R46),0) -> 0 | O46: 0 | P46: 0 | Q46: 0 | R46: =IF(X46=1,(Rel!$C$83*G45*1000),0) -> 0 | S46: =IF(X46=1,(G45*(Rel!$C$84-Rel!$C$83)*1000),0) -> 0 | T46: 0 | U46: 0 | V46: 0 | X46: 0
A50: Section C. Information copied from population file
B52: Year | C52: Total | D52: Reprod. | E52: Age 15-64y | G52: Births | H52: 2-yr pop | I52: u5 pop | J52: 6-59m pop | K52: 48-59m pop | L52: Children | M52: Adolescents - female | N52: Life expect
C53: Pop | D53: Pop 15-49y | E53: Women | F53: Men | L53: 0-14y | M53: 15-19y | N53: at birth
B54: =AllCountriesResults!D44 ->  | C54: =AllCountriesResults!E44 ->  | D54: =AllCountriesResults!F44 ->  | E54: =AllCountriesResults!G44 ->  | F54: =AllCountriesResults!H44 ->  | G54: =AllCountriesResults!I44 ->  | H54: =AllCountriesResults!J44 ->  | I54: =AllCountriesResults!K44 ->  | J54: =AllCountriesResults!L44 ->  | K54: =AllCountriesResults!M44 ->  | L54: =AllCountriesResults!N44 ->  | M54: =AllCountriesResults!O44 ->  | N54: =AllCountriesResults!P44 -> 
B55: =AllCountriesResults!D45 ->  | C55: =AllCountriesResults!E45 ->  | D55: =AllCountriesResults!F45 ->  | E55: =AllCountriesResults!G45 ->  | F55: =AllCountriesResults!H45 ->  | G55: =AllCountriesResults!I45 ->  | H55: =AllCountriesResults!J45 ->  | I55: =AllCountriesResults!K45 ->  | J55: =AllCountriesResults!L45 ->  | K55: =AllCountriesResults!M45 ->  | L55: =AllCountriesResults!N45 ->  | M55: =AllCountriesResults!O45 ->  | N55: =AllCountriesResults!P45 -> 
B56: =AllCountriesResults!D46 ->  | C56: =AllCountriesResults!E46 ->  | D56: =AllCountriesResults!F46 ->  | E56: =AllCountriesResults!G46 ->  | F56: =AllCountriesResults!H46 ->  | G56: =AllCountriesResults!I46 ->  | H56: =AllCountriesResults!J46 ->  | I56: =AllCountriesResults!K46 ->  | J56: =AllCountriesResults!L46 ->  | K56: =AllCountriesResults!M46 ->  | L56: =AllCountriesResults!N46 ->  | M56: =AllCountriesResults!O46 ->  | N56: =AllCountriesResults!P46 -> 
B57: =AllCountriesResults!D47 ->  | C57: =AllCountriesResults!E47 ->  | D57: =AllCountriesResults!F47 ->  | E57: =AllCountriesResults!G47 ->  | F57: =AllCountriesResults!H47 ->  | G57: =AllCountriesResults!I47 ->  | H57: =AllCountriesResults!J47 ->  | I57: =AllCountriesResults!K47 ->  | J57: =AllCountriesResults!L47 ->  | K57: =AllCountriesResults!M47 ->  | L57: =AllCountriesResults!N47 ->  | M57: =AllCountriesResults!O47 ->  | N57: =AllCountriesResults!P47 -> 
B58: =AllCountriesResults!D48 ->  | C58: =AllCountriesResults!E48 ->  | D58: =AllCountriesResults!F48 ->  | E58: =AllCountriesResults!G48 ->  | F58: =AllCountriesResults!H48 ->  | G58: =AllCountriesResults!I48 ->  | H58: =AllCountriesResults!J48 ->  | I58: =AllCountriesResults!K48 ->  | J58: =AllCountriesResults!L48 ->  | K58: =AllCountriesResults!M48 ->  | L58: =AllCountriesResults!N48 ->  | M58: =AllCountriesResults!O48 ->  | N58: =AllCountriesResults!P48 -> 
B59: =AllCountriesResults!D49 ->  | C59: =AllCountriesResults!E49 ->  | D59: =AllCountriesResults!F49 ->  | E59: =AllCountriesResults!G49 ->  | F59: =AllCountriesResults!H49 ->  | G59: =AllCountriesResults!I49 ->  | H59: =AllCountriesResults!J49 ->  | I59: =AllCountriesResults!K49 ->  | J59: =AllCountriesResults!L49 ->  | K59: =AllCountriesResults!M49 ->  | L59: =AllCountriesResults!N49 ->  | M59: =AllCountriesResults!O49 ->  | N59: =AllCountriesResults!P49 -> 
B60: =AllCountriesResults!D50 ->  | C60: =AllCountriesResults!E50 ->  | D60: =AllCountriesResults!F50 ->  | E60: =AllCountriesResults!G50 ->  | F60: =AllCountriesResults!H50 ->  | G60: =AllCountriesResults!I50 ->  | H60: =AllCountriesResults!J50 ->  | I60: =AllCountriesResults!K50 ->  | J60: =AllCountriesResults!L50 ->  | K60: =AllCountriesResults!M50 ->  | L60: =AllCountriesResults!N50 ->  | M60: =AllCountriesResults!O50 ->  | N60: =AllCountriesResults!P50 -> 
B61: =AllCountriesResults!D51 ->  | C61: =AllCountriesResults!E51 ->  | D61: =AllCountriesResults!F51 ->  | E61: =AllCountriesResults!G51 ->  | F61: =AllCountriesResults!H51 ->  | G61: =AllCountriesResults!I51 ->  | H61: =AllCountriesResults!J51 ->  | I61: =AllCountriesResults!K51 ->  | J61: =AllCountriesResults!L51 ->  | K61: =AllCountriesResults!M51 ->  | L61: =AllCountriesResults!N51 ->  | M61: =AllCountriesResults!O51 ->  | N61: =AllCountriesResults!P51 -> 
B62: =AllCountriesResults!D52 ->  | C62: =AllCountriesResults!E52 ->  | D62: =AllCountriesResults!F52 ->  | E62: =AllCountriesResults!G52 ->  | F62: =AllCountriesResults!H52 ->  | G62: =AllCountriesResults!I52 ->  | H62: =AllCountriesResults!J52 ->  | I62: =AllCountriesResults!K52 ->  | J62: =AllCountriesResults!L52 ->  | K62: =AllCountriesResults!M52 ->  | L62: =AllCountriesResults!N52 ->  | M62: =AllCountriesResults!O52 ->  | N62: =AllCountriesResults!P52 -> 
B63: =AllCountriesResults!D53 ->  | C63: =AllCountriesResults!E53 ->  | D63: =AllCountriesResults!F53 ->  | E63: =AllCountriesResults!G53 ->  | F63: =AllCountriesResults!H53 ->  | G63: =AllCountriesResults!I53 ->  | H63: =AllCountriesResults!J53 ->  | I63: =AllCountriesResults!K53 ->  | J63: =AllCountriesResults!L53 ->  | K63: =AllCountriesResults!M53 ->  | L63: =AllCountriesResults!N53 ->  | M63: =AllCountriesResults!O53 ->  | N63: =AllCountriesResults!P53 -> 
B64: =AllCountriesResults!D54 ->  | C64: =AllCountriesResults!E54 ->  | D64: =AllCountriesResults!F54 ->  | E64: =AllCountriesResults!G54 ->  | F64: =AllCountriesResults!H54 ->  | G64: =AllCountriesResults!I54 ->  | H64: =AllCountriesResults!J54 ->  | I64: =AllCountriesResults!K54 ->  | J64: =AllCountriesResults!L54 ->  | K64: =AllCountriesResults!M54 ->  | L64: =AllCountriesResults!N54 ->  | M64: =AllCountriesResults!O54 ->  | N64: =AllCountriesResults!P54 -> 
B65: =AllCountriesResults!D55 ->  | C65: =AllCountriesResults!E55 ->  | D65: =AllCountriesResults!F55 ->  | E65: =AllCountriesResults!G55 ->  | F65: =AllCountriesResults!H55 ->  | G65: =AllCountriesResults!I55 ->  | H65: =AllCountriesResults!J55 ->  | I65: =AllCountriesResults!K55 ->  | J65: =AllCountriesResults!L55 ->  | K65: =AllCountriesResults!M55 ->  | L65: =AllCountriesResults!N55 ->  | M65: =AllCountriesResults!O55 ->  | N65: =AllCountriesResults!P55 -> 
B66: =AllCountriesResults!D56 ->  | C66: =AllCountriesResults!E56 ->  | D66: =AllCountriesResults!F56 ->  | E66: =AllCountriesResults!G56 ->  | F66: =AllCountriesResults!H56 ->  | G66: =AllCountriesResults!I56 ->  | H66: =AllCountriesResults!J56 ->  | I66: =AllCountriesResults!K56 ->  | J66: =AllCountriesResults!L56 ->  | K66: =AllCountriesResults!M56 ->  | L66: =AllCountriesResults!N56 ->  | M66: =AllCountriesResults!O56 ->  | N66: =AllCountriesResults!P56 -> 
B67: =AllCountriesResults!D57 ->  | C67: =AllCountriesResults!E57 ->  | D67: =AllCountriesResults!F57 ->  | E67: =AllCountriesResults!G57 ->  | F67: =AllCountriesResults!H57 ->  | G67: =AllCountriesResults!I57 ->  | H67: =AllCountriesResults!J57 ->  | I67: =AllCountriesResults!K57 ->  | J67: =AllCountriesResults!L57 ->  | K67: =AllCountriesResults!M57 ->  | L67: =AllCountriesResults!N57 ->  | M67: =AllCountriesResults!O57 ->  | N67: =AllCountriesResults!P57 -> 
B68: =AllCountriesResults!D58 ->  | C68: =AllCountriesResults!E58 ->  | D68: =AllCountriesResults!F58 ->  | E68: =AllCountriesResults!G58 ->  | F68: =AllCountriesResults!H58 ->  | G68: =AllCountriesResults!I58 ->  | H68: =AllCountriesResults!J58 ->  | I68: =AllCountriesResults!K58 ->  | J68: =AllCountriesResults!L58 ->  | K68: =AllCountriesResults!M58 ->  | L68: =AllCountriesResults!N58 ->  | M68: =AllCountriesResults!O58 ->  | N68: =AllCountriesResults!P58 -> 
B69: =AllCountriesResults!D59 ->  | C69: =AllCountriesResults!E59 ->  | D69: =AllCountriesResults!F59 ->  | E69: =AllCountriesResults!G59 ->  | F69: =AllCountriesResults!H59 ->  | G69: =AllCountriesResults!I59 ->  | H69: =AllCountriesResults!J59 ->  | I69: =AllCountriesResults!K59 ->  | J69: =AllCountriesResults!L59 ->  | K69: =AllCountriesResults!M59 ->  | L69: =AllCountriesResults!N59 ->  | M69: =AllCountriesResults!O59 ->  | N69: =AllCountriesResults!P59 -> 
B70: =AllCountriesResults!D60 ->  | C70: =AllCountriesResults!E60 ->  | D70: =AllCountriesResults!F60 ->  | E70: =AllCountriesResults!G60 ->  | F70: =AllCountriesResults!H60 ->  | G70: =AllCountriesResults!I60 ->  | H70: =AllCountriesResults!J60 ->  | I70: =AllCountriesResults!K60 ->  | J70: =AllCountriesResults!L60 ->  | K70: =AllCountriesResults!M60 ->  | L70: =AllCountriesResults!N60 ->  | M70: =AllCountriesResults!O60 ->  | N70: =AllCountriesResults!P60 -> 
B71: =AllCountriesResults!D61 ->  | C71: =AllCountriesResults!E61 ->  | D71: =AllCountriesResults!F61 ->  | E71: =AllCountriesResults!G61 ->  | F71: =AllCountriesResults!H61 ->  | G71: =AllCountriesResults!I61 ->  | H71: =AllCountriesResults!J61 ->  | I71: =AllCountriesResults!K61 ->  | J71: =AllCountriesResults!L61 ->  | K71: =AllCountriesResults!M61 ->  | L71: =AllCountriesResults!N61 ->  | M71: =AllCountriesResults!O61 ->  | N71: =AllCountriesResults!P61 -> 
B72: =AllCountriesResults!D62 ->  | C72: =AllCountriesResults!E62 ->  | D72: =AllCountriesResults!F62 ->  | E72: =AllCountriesResults!G62 ->  | F72: =AllCountriesResults!H62 ->  | G72: =AllCountriesResults!I62 ->  | H72: =AllCountriesResults!J62 ->  | I72: =AllCountriesResults!K62 ->  | J72: =AllCountriesResults!L62 ->  | K72: =AllCountriesResults!M62 ->  | L72: =AllCountriesResults!N62 ->  | M72: =AllCountriesResults!O62 ->  | N72: =AllCountriesResults!P62 -> 
B73: =AllCountriesResults!D63 ->  | C73: =AllCountriesResults!E63 ->  | D73: =AllCountriesResults!F63 ->  | E73: =AllCountriesResults!G63 ->  | F73: =AllCountriesResults!H63 ->  | G73: =AllCountriesResults!I63 ->  | H73: =AllCountriesResults!J63 ->  | I73: =AllCountriesResults!K63 ->  | J73: =AllCountriesResults!L63 ->  | K73: =AllCountriesResults!M63 ->  | L73: =AllCountriesResults!N63 ->  | M73: =AllCountriesResults!O63 ->  | N73: =AllCountriesResults!P63 -> 
B74: =AllCountriesResults!D64 ->  | C74: =AllCountriesResults!E64 ->  | D74: =AllCountriesResults!F64 ->  | E74: =AllCountriesResults!G64 ->  | F74: =AllCountriesResults!H64 ->  | G74: =AllCountriesResults!I64 ->  | H74: =AllCountriesResults!J64 ->  | I74: =AllCountriesResults!K64 ->  | J74: =AllCountriesResults!L64 ->  | K74: =AllCountriesResults!M64 ->  | L74: =AllCountriesResults!N64 ->  | M74: =AllCountriesResults!O64 ->  | N74: =AllCountriesResults!P64 -> 

Sheet Rel (hidden)
A2: =Prev!A4 -> 
A3: Relational Variables
B10: Growth Faltering | C10: data | D10: source
B11: Deficit in child height due to mild stunting 24-35 m (%) | C11: 5.7 | D11: WHO Growth Standards
B12: Deficit in child height due to moderate stunting 24-35 m (%) | C12: 8.7 | D12: WHO Growth Standards
B13: Deficit in child height due to severe stunting 24-35 m (%) | C13: 12.1 | D13: WHO Growth Standards
B14: Correction in mild stunting to account for normal prevalence of short stature | C14: =NORMSDIST(-1)-(C15+C16) -> 0.135905122 | D14: standard normal distribution
B15: Correction in moderate stunting to account for normal prevalence of short stature | C15: =NORMSDIST(-2)-C16 -> 0.02140023392 | D15: standard normal distribution
B16: Correction in severe stunting to account for normal prevalence of short stature | C16: =NORMSDIST(-3) -> 0.001349898032 | D16: standard normal distribution
B17: Elasticity of productivity with respect to adult height | C17: 2.7 | D17: Alderman et al. 2006 | G17: OLD:
B18: RR of mortality due to mild underweight | C18: 1.5 | D18: Olofin et al. 2013 as cited in Black et al. 2013 | G18: 1.8 | H18: Black et al. 2008
B19: RR of mortality due to moderate underweight | C19: 2.6 | D19: Olofin et al. 2013 as cited in Black et al. 2013 | G19: 2.5 | H19: Black et al. 2008
B20: RR of mortality due to severe underweight | C20: 9.4 | D20: Olofin et al. 2013 as cited in Black et al. 2013 | G20: 9.7 | H20: Black et al. 2008
B21: RR of mortality due to mild stunting | C21: 1.5 | D21: Olofin et al. 2013 as cited in Black et al. 2013 | G21: 1.2 | H21: Black et al. 2008
B22: RR of mortality due to moderate stunting | C22: 2.3 | D22: Olofin et al. 2013 as cited in Black et al. 2013 | G22: 1.6 | H22: Black et al. 2008
B23: RR of mortality due to severe stunting | C23: 5.5 | D23: Olofin et al. 2013 as cited in Black et al. 2013 | G23: 4.1 | H23: Black et al. 2008
B24: RR of mortality due to mild wasting | C24: 1.6 | D24: Olofin et al. 2013 as cited in Black et al. 2013 | G24: 1.5 | H24: Black et al. 2008
B25: RR of mortality due to moderate wasting | C25: 3.4 | D25: Olofin et al. 2013 as cited in Black et al. 2013 | G25: 3 | H25: Black et al. 2008
B26: RR of mortality due to severe wasting | C26: 11.6 | D26: Olofin et al. 2013 as cited in Black et al. 2013 | G26: 9.4 | H26: Black et al. 2008
B27: SD of W/A z-zcores 0-59 months, for estimation of mild prevalence | C27: 0.99 | D27: PROFILES analysis of DHS informaton
B28: SD of H/A z-zcores 24-35 months, for estimation of mild prevalence | C28: 1.31 | D28: PROFILES analysis of DHS informaton
B29: SD of H/A z-scores 0-59 months, for estimation of mild prevalence | C29: 1.31 | D29: PROFILES analysis of DHS informaton
B30: SD of W/H z-scores 0-59 months, for estimation of mild prevalence | C30: 1.09 | D30: PROFILES analysis of DHS informaton
B31: SD of W/A z-zcores 0-59 months, for estimation of target prevalence | C31: =(1+C27)/2 -> 0.995 | D31: see PROFILES guide
B32: SD of H/A z-zcores 24-35 months, for estimation of target prevalence | C32: =(1+C28)/2 -> 1.155 | D32: see PROFILES guide
B33: SD of H/A z-scores 0-59 months, for estimation of target prevalence | C33: 1.155 | D33: see PROFILES guide
B34: SD of W/H z-scores 0-59 months, for estimation of target prevalence | C34: 1.045 | D34: see PROFILES guide
B36: VITAMIN A DEFICIENCY
B37: RR of mortality due to mild VAD > 6 months | C37: 1.75 | D37: Ross, 1994
B38: RR of maternal mortality associated with night blindness | C38: =1/0.26 -> 3.846153846 | D38: Christian et al., 2000 (Nepal)
B40: IDD
B41: Proportion of infants born to mothers with goitre who become cretins | C41: 0.0343 | D41: Clugston et al./Burkhalter
B42: Proportion of infants born to mothers with goitre who are severely impaired | C42: 0.1029 | D42: Clugston et al./Burkhalter
B43: Productivity reduction factor for cretins | C43: 1 | D43: Burkhalter et al.
B44: Productivity reduction factor for severely impaired infants | C44: 0.25 | D44: Burkhalter et al.
B45: Productivity reduction factor for mildly impaired infants | C45: 0.054 | D45: Burkhalter et al.
B47: IRON DEFICIENCY
B48: Hemoglobin cutoff level to define anemia in pregancy (g/dL) | C48: 11 | D48: WHO
B49: Standard deviation of hemoglobin when anemia prevalence <=10% | C49: 1 | D49: Stoltzfus et al., 2003
B50: Standard deviation of hemoglobin when anemia prevalence =22.5% | C50: 1.2 | D50: Stoltzfus et al., 2003
B51: Standard deviation of hemoglobin when anemia prevalence >=35% | C51: 1.5 | D51: Stoltzfus et al., 2003
B52: Lower anemia prevalence cutoff for calculating hemoglobin SD | C52: 10 | D52: Stoltzfus et al., 2003
B53: Middle inflection point for calculating hemoglobin SD | C53: 22.5 | D53: derived from Stoltzfus et al., 2003
B54: Upper anemia prevalence cutoff for calculating hemoglobin SD | C54: 35 | D54: Stoltzfus et al., 2003
B55: Standard deviation of hemoglobin (current prevalence) | C55: =IF(Prev!C45<C$52,C$49,IF(Prev!C45<=C$53,C$49+((Prev!C45-C$52)*(C$50-C$49)/(C$53-C$52)),IF(Prev!C45<=C$54,C50+((Prev!C$45-C$53)*(C$51-C$50)/(C$54-C$53)),C$51))) -> 1 | D55: calculated
B56: Standard deviation of hemoglobin (target prevalence) | C56: =IF(Prev!E45<C$52,C$49,IF(Prev!E45<=C$53,C$49+((Prev!E45-C$52)*(C$50-C$49)/(C$53-C$52)),IF(Prev!E45<=C$54,C51+((Prev!E45-C$53)*(C$51-C$50)/(C$54-C$53)),C$51))) -> 1 | D56: calculated
B57: Standard deviation of hemoglobin (no iron deficiency) | C57: =IF(Prev!C45*(1-Rel!C60)<C$52,C$49,IF(Prev!C45*(1-Rel!C60)<=C$53,C$49+((Prev!C45*(1-Rel!C60)-C$52)*(C$50-C$49)/(C$53-C$52)),IF(Prev!C45*(1-Rel!C60)<=C$54,C50+((Prev!C45*(1-Rel!C60)-C$53)*(C$51-C$50)/(C$54-C$53)),C$51))) -> 1 | D57: calculated
B58: RR of maternal mortality associated with a 1 g/dL increase in hemoglobin | C58: 0.71 | D58: Black et al. 2013 | G58: 0.8 | H58: Stoltzfus et al., 2003
B59: RR of perinatal mortality associated with a 1 g/dL increase in maternal hemoglobin | C59: 0.84 | D59: Stoltzfus et al., 2003
B60: proportion of maternal anemia due to iron deficiency | C60: 0.5 | D60: Stoltzfus et al., 2003
B61: % reduction in future productivity of anemic children | C61: 2.5 | D61: Horton and Ross (2003)
B62: % Reduction in productivity among anemic workers in manual ("blue collar") labor | C62: 5 | D62: Horton and Ross (2003)
B63: % Reduction in productivity among anemic workers in heavy manual labor | C63: 17 | D63: Horton and Ross (2003)
B65: LOW BIRTHWEIGHT
B66: RR of neonatal death due to LBW | C66: 4 | D66: Ashworth (1998)
B67: RR of post-neonatal infant death due to LBW | C67: 2 | D67: Ashworth (1998)
B68: Postneonatal infant mortality (per 1000 neonatal survivors) | C68: =1000*(C83-C85)/(1000-C85) -> 0 | D68: calculated
B69: Cost of saving an infant life by alternative means (measles immunization) ($) | C69: 1250 | D69: Alderman and Behrman (2004)
B70: Proportion reduction in future productivity due to LBW | C70: 0.07 | D70: Alderman and Behrman (2004)
B71: Proportion of productivity losses due to stunting (1 minus proportion due to abilility) | C71: 0.29 | D71: Alderman and Behrman (2004)
B72: Cost of LBW-related neonatal care for infants born in health facilities ($/year) | C72: 209 | D72: Alderman and Behrman (2004)
B73: Cost of medical treatment LBW related morbidity for for infants and children ($/year) | C73: =40 -> 40 | D73: Alderman and Behrman (2004)
B74: Proportion of LBW births in facilities | C74: 0.1 | D74: Alderman and Behrman (2004)
B75: Cost of LBW-related neonatal care for infants born at home (proportion of facility costs) | C75: 0.1 | D75: Alderman and Behrman (2004)
B76: Increased probability of experiencing chronic diseases for LBW versus non-LBW | C76: 0.087 | D76: Alderman and Behrman (2004)
B77: Projected future Total Fertility Rate (25 years hence) | C77: =FrontPage!J66 -> 0
B78: Net total fertility factor (discounted and corrected for maternal survival) | C78: =#REF! ->  | D78: calculated
B79: Increase in risk of LBW if mother LBW at birth | C79: 0.1 | D79: Alderman and Behrman (2004)
B81: MORTALITY
B82: Maternal deaths/100,000 live births (Maternal Mortality Ratio) | C82: =FrontPage!J67 -> 0
B83: Deaths <1 year/1,000 live births (Infant Mortality Rate) | C83: =FrontPage!J68 -> 0
B84: Deaths <5 years/1,000 live births (Under 5 Mortality Rate) | C84: =FrontPage!J69 -> 0
B85: Deaths <1 month /1,000 live births (Neonatal Mortality Rate) | C85: =FrontPage!J70 -> 0
B86: Proportion of neonatal deaths occurring in the first 48 hours | C86: 0.545 | D86: Sankar (2016)
B87: Perinatal Deaths /1,000 live births | C87: =FrontPage!J71 -> 0
B88: Average life expectancy at birth ( years ) | C88: =FrontPage!J72 -> 0
B89: Cumulative Survival at Life Expectancy (click button to recalibrate to 0.5) | C89: =LDFcalc!U4 -> 1
B91: ECONOMIC VARIABLES
B92: Exchange rate (local currrency/$US) (enter 1 for results in local currency) | C92: =FrontPage!J77 -> 0
B93: GDP per capita ($) | C93: =FrontPage!J78 -> 0
B94: A. employed/population (%) (economic activity rate) (in manual labor) | C94: =FrontPage!J79 -> 0
B95: B. employed/population (%) (economic activity rate) (all sectors) | C95: =FrontPage!J80 -> 0
B97: FEMALES employed/population (%) (economic activity rate) (in manual labor) | C97: =FrontPage!J82 -> 0
B98: MALES employed/population (%) (economic activity rate) (in manual labor) | C98: =FrontPage!J83 -> 0
B99: Proportion of manual labor heavy: | C99: =FrontPage!J84 -> 0 | D99: Previous
B101: A. average annual wage, manual labor (local currency) | C101: =FrontPage!J86 -> 0
B102: B. average annual wage, all sectors (local currency) | C102: =FrontPage!J87 -> 0
B104: Annual Social Discount Rate (%) | C104: 3
B105: Labor force entry age (years) | C105: 15 | D105: typical
B106: Labor force exit age (years) | C106: 64 | D106: typical
B107: Lifetime Discounting Factor at Birth (calculated in LDFCalc sheet) | C107: =LDFcalc!B18 -> 13.86259703
B108: Lifetime Discounting Factor at Age 2 (calculated in LDFCalc sheet) | C108: =LDFcalc!B19 -> 14.70682919
B109: Lifetime Discounting Factor: Mean over Age 0-4 (click LDF button to recalculate) | C109: =LDFcalc!B27 -> 14.68559415
B110: Lifetime Discounting Factor: Mean over Age 5-14 (click LDF button to recalculate) | C110: =LDFcalc!B28 -> 19.50003369
B111: Years 55-64 Discounting Factor at Birth (calculated in LDFCalc sheet) | C111: =LDFcalc!B21 -> 0.9379684781
B113: EDUCATION
B114: Mean age of school entry (years) | C114: =FrontPage!J90+0.5 -> 0.5
B115: Duration of universal schooling (years) | C115: =FrontPage!J91 -> 0
B116: Grade equivalents lost per 1 SD reduction in H/A z-score (years) | C116: 0.8
B117: Universal schooling discount factor (click LDF button to recalculate) | C117: =LDFcalc!B24 -> 0
B120: BREASTFEEDING
B122: Relative Risk (RR)
B123: RR all-cause mortality, predominant BF vs exclusive BF (0-5 months) | C123: 1.48 | D123: Lamberti et al. (2011)
B124: RR all-cause mortality, partial BF vs exclusive BF (0-5 months) | C124: 2.84 | D124: Lamberti et al. (2011)
B125: RR all-cause mortality, no BF vs exclusive BF (0-5 months) | C125: 14.4 | D125: Lamberti et al. (2011)
B126: RR all-cause mortality, no BF vs partial BF (6-23 months) | C126: 3.69 | D126: Lamberti et al. (2011)
B127: RR overweight + obesity (48-59 months), non-exclusive BF vs exclusive BF (0-5 months) | C127: 1.33 | D127: Horta et al. (2015)
B128: RR neonatal mortality, not breastfeeding within 1 hour of birth | C128: 1.53 | D128: Khan (2008) and NEOVITA (2016)
B129: RR neonatal mortality, never breastfed | C129: 1.53 | D129: probably higher but how much?
B131: FACTORS RELATED TO CHILD STUNTING
B132: Relative risk of stunting related to not meeting minimum dietary diversity | C132: 1.22 | D132: Marriot et al., 2011
B133: Relative risk of stunting related to being born to a mother less than 20 years old | C133: 1.2 | D133: Fink et al., 2014

Sheet PAFcalc (hidden)
A2: =Prev!A4 -> 
A4: Population Attributable Fraction of U-5 Mortality Due to Underweight
A6: PEM | E6: Status Quo | I6: Improved
A7: level | B7: W/A z-score | C7: RR | D7: Prevalence | E7: Prev*(RR-1) | F7: PAF* | G7: % deaths | H7: Prevalence | I7: Prev*(RR-1) | J7: PAF* | K7: % deaths
A8: normal | B8: ≥–1 | C8: 1 | D8: =1-SUM(D9:D11) -> 0.8437765508 | E8: =D8*($C8-1) -> 0 | F8: =E8/(1+E$12) -> 0 | G8: =(F8/F$12)*100 -> 0 | H8: =1-SUM(H9:H11) ->  | I8: =H8*($C8-1) ->  | J8: =I8/(1+I$12) ->  | K8: =(J8/J$12)*100 -> 
A9: mild | B9: –2 to <–1 | C9: =Rel!C18 -> 1.5 | D9: =Prev!C13/100 -> 0.1562234492 | E9: =D9*($C9-1) -> 0.07811172459 | F9: =E9/(1+$E$12) -> 0.07245234683 | G9: =(F9/F$12)*100 -> 100 | H9: =Prev!E13/100 ->  | I9: =H9*($C9-1) ->  | J9: =I9/(1+$E$12) ->  | K9: =(J9/J$12)*100 -> 
A10: moderate | B10: –3 to <–2 | C10: =Rel!C19 -> 2.6 | D10: =Prev!C14/100 -> 0 | E10: =D10*($C10-1) -> 0 | F10: =E10/(1+$E$12) -> 0 | G10: =(F10/F$12)*100 -> 0 | H10: =Prev!E14/100 ->  | I10: =H10*($C10-1) ->  | J10: =I10/(1+$E$12) ->  | K10: =(J10/J$12)*100 -> 
A11: severe | B11: <–3 | C11: =Rel!C20 -> 9.4 | D11: =Prev!C15/100 -> 0 | E11: =D11*($C11-1) -> 0 | F11: =E11/(1+$E$12) -> 0 | G11: =(F11/F$12)*100 -> 0 | H11: =Prev!E15/100 ->  | I11: =H11*($C11-1) ->  | J11: =I11/(1+$E$12) ->  | K11: =(J11/J$12)*100 -> 
A12: total | E12: =SUM(E8:E11) -> 0.07811172459 | F12: =SUM(F9:F11) -> 0.07245234683 | G12: =SUM(G8:G11) -> 100 | I12: =SUM(I8:I11) ->  | J12: =SUM(J9:J11) ->  | K12: =SUM(K8:K11) -> 
A14: Population Attributable Fraction of U-5 Mortality Due to Stunting
A16: PEM | E16: Status Quo | I16: Improved
A17: level | B17: H/A z-score | C17: RR | D17: Prevalence | E17: Prev*(RR-1) | F17: PAF* | G17: % deaths | H17: Prevalence | I17: Prev*(RR-1) | J17: PAF* | K17: % deaths
A18: normal | B18: ≥–1 | C18: 1 | D18: =1-SUM(D19:D21) -> 0.7773752718 | E18: =D18*($C18-1) -> 0 | F18: =E18/(1+E$22) -> 0 | G18: =(F18/F$22)*100 -> 0 | H18: =1-SUM(H19:H21) ->  | I18: =H18*($C18-1) ->  | J18: =I18/(1+I$12) ->  | K18: =(J18/J$22)*100 -> 
A19: mild | B19: –2 to <–1 | C19: =Rel!C21 -> 1.5 | D19: =Prev!C25/100 -> 0.2226247282 | E19: =D19*($C19-1) -> 0.1113123641 | F19: =E19/(1+$E$22) -> 0.1001629854 | G19: =(F19/F$22)*100 -> 100 | H19: =Prev!E25/100 ->  | I19: =H19*($C19-1) ->  | J19: =I19/(1+$E$12) ->  | K19: =(J19/J$22)*100 -> 
A20: moderate | B20: –3 to <–2 | C20: =Rel!C22 -> 2.3 | D20: =Prev!C26/100 -> 0 | E20: =D20*($C20-1) -> 0 | F20: =E20/(1+$E$22) -> 0 | G20: =(F20/F$22)*100 -> 0 | H20: =Prev!E26/100 ->  | I20: =H20*($C20-1) ->  | J20: =I20/(1+$E$12) ->  | K20: =(J20/J$22)*100 -> 
A21: severe | B21: <–3 | C21: =Rel!C23 -> 5.5 | D21: =Prev!C27/100 -> 0 | E21: =D21*($C21-1) -> 0 | F21: =E21/(1+$E$22) -> 0 | G21: =(F21/F$22)*100 -> 0 | H21: =Prev!E21/100 ->  | I21: =H21*($C21-1) ->  | J21: =I21/(1+$E$12) ->  | K21: =(J21/J$22)*100 -> 
A22: total | E22: =SUM(E18:E21) -> 0.1113123641 | F22: =SUM(F19:F21) -> 0.1001629854 | G22: =SUM(G18:G21) -> 100 | I22: =SUM(I18:I21) ->  | J22: =SUM(J19:J21) ->  | K22: =SUM(K18:K21) -> 
A24: Population Attributable Fraction of U-5 Mortality Due to Wasting
A26: PEM | E26: Status Quo | I26: Improved
A27: level | B27: W/H z-score | C27: RR | D27: Prevalence | E27: Prev*(RR-1) | F27: PAF* | G27: % deaths | H27: Prevalence | I27: Prev*(RR-1) | J27: PAF* | K27: % deaths
A28: normal | B28: ≥–1 | C28: 1 | D28: =1-SUM(D29:D31) -> 0.8205416332 | E28: =D28*($C28-1) -> 0 | F28: =E28/(1+E$32) -> 0 | G28: =(F28/F$32)*100 -> 0 | H28: =1-SUM(H29:H31) ->  | I28: =H28*($C28-1) ->  | J28: =I28/(1+I$12) ->  | K28: =(J28/J$32)*100 -> 
A29: mild | B29: –2 to <–1 | C29: =Rel!C24 -> 1.6 | D29: =Prev!C31/100 -> 0.1794583668 | E29: =D29*($C29-1) -> 0.1076750201 | F29: =E29/(1+$E$32) -> 0.09720813246 | G29: =(F29/F$32)*100 -> 100 | H29: =Prev!E31/100 ->  | I29: =H29*($C29-1) ->  | J29: =I29/(1+$E$12) ->  | K29: =(J29/J$32)*100 -> 
A30: moderate | B30: –3 to <–2 | C30: =Rel!C25 -> 3.4 | D30: =Prev!C32/100 -> 0 | E30: =D30*($C30-1) -> 0 | F30: =E30/(1+$E$32) -> 0 | G30: =(F30/F$32)*100 -> 0 | H30: =Prev!E32/100 ->  | I30: =H30*($C30-1) ->  | J30: =I30/(1+$E$12) ->  | K30: =(J30/J$32)*100 -> 
A31: severe | B31: <–3 | C31: =Rel!C26 -> 11.6 | D31: =Prev!C33/100 -> 0 | E31: =D31*($C31-1) -> 0 | F31: =E31/(1+$E$32) -> 0 | G31: =(F31/F$32)*100 -> 0 | H31: =Prev!E33/100 ->  | I31: =H31*($C31-1) ->  | J31: =I31/(1+$E$12) ->  | K31: =(J31/J$32)*100 -> 
A32: total | E32: =SUM(E28:E31) -> 0.1076750201 | F32: =SUM(F29:F31) -> 0.09720813246 | G32: =SUM(G28:G31) -> 100 | I32: =SUM(I28:I31) ->  | J32: =SUM(J29:J31) ->  | K32: =SUM(K28:K31) -> 
A33: * Population Atributable Fraction computed as: (Prev*(RR-1))/(1+sum(Prev*(RR-1)))

Sheet WAMort (hidden)
A2: =Prev!A4 -> 
A3: Mortality due to Underweight (low weight-for-age)
B5: year | C5: 6-59m | D5: Underweight | H5: Status Quo | M5: Lives saved from reducing
C6: Deaths | D6: Prevalence | E6: (%) | H6: Deaths Due to Underweight | M6: underweight | X6: =Dem!X25 -> 1=in time period
D7: mild | E7: moderate | F7: severe | H7: mild | I7: moderate | J7: severe | K7: total | M7: mild | N7: moderate | O7: severe | P7: total | X7: =Dem!X26 -> 0=not in time period
A8: =Dem!A27 -> 1 | B8: =Dem!B27 ->  | C8: =Dem!T27 -> 0 | D8: =IF(X8=1,($H$34-((A8-1)*($H$34-$H$37)/($H$33-1))),0) -> 0 | E8: =IF(X8=1,(($H$35-((A8-1)*($H$35-$H$38)/($H$33-1)))),0) -> 0 | F8: =IF(X8=1,(($H$36-(($A8-1)*($H$36-$H$39)/($H$33-1)))),0) -> 0 | H8: =C8*PAFcalc!$F$9 -> 0 | I8: =C8*PAFcalc!$F$10 -> 0 | J8: =C8*PAFcalc!$F$11 -> 0 | K8: =SUM(H8:J8) -> 0 | M8: =H8*(1-(D8/$H$34)) -> 0 | N8: =I8*(1-(E8/$H$35)) ->  | O8: =J8*(1-(F8/$H$36)) ->  | P8: =SUM(M8:O8) ->  | X8: =Dem!X27 -> 0
A9: =Dem!A28 -> 2 | B9: =Dem!B28 ->  | C9: =Dem!T28 -> 0 | D9: 0 | E9: 0 | F9: 0 | H9: =C9*PAFcalc!$F$9 -> 0 | I9: =C9*PAFcalc!$F$10 -> 0 | J9: =C9*PAFcalc!$F$11 -> 0 | K9: =SUM(H9:J9) -> 0 | M9: 0 | X9: =Dem!X28 -> 0
A10: =Dem!A29 -> 3 | B10: =Dem!B29 ->  | C10: =Dem!T29 -> 0 | D10: 0 | E10: 0 | F10: 0 | H10: =C10*PAFcalc!$F$9 -> 0 | I10: =C10*PAFcalc!$F$10 -> 0 | J10: =C10*PAFcalc!$F$11 -> 0 | K10: 0 | M10: 0 | X10: =Dem!X29 -> 0
A11: =Dem!A30 -> 4 | B11: =Dem!B30 ->  | C11: =Dem!T30 -> 0 | D11: 0 | E11: 0 | F11: 0 | H11: =C11*PAFcalc!$F$9 -> 0 | I11: =C11*PAFcalc!$F$10 -> 0 | J11: =C11*PAFcalc!$F$11 -> 0 | K11: 0 | M11: 0 | X11: =Dem!X30 -> 0
A12: =Dem!A31 -> 5 | B12: =Dem!B31 ->  | C12: =Dem!T31 -> 0 | D12: 0 | E12: 0 | F12: 0 | H12: =C12*PAFcalc!$F$9 -> 0 | I12: =C12*PAFcalc!$F$10 -> 0 | J12: =C12*PAFcalc!$F$11 -> 0 | K12: 0 | M12: 0 | X12: =Dem!X31 -> 0
A13: =Dem!A32 -> 6 | B13: =Dem!B32 ->  | C13: =Dem!T32 -> 0 | D13: 0 | E13: 0 | F13: 0 | H13: =C13*PAFcalc!$F$9 -> 0 | I13: =C13*PAFcalc!$F$10 -> 0 | J13: =C13*PAFcalc!$F$11 -> 0 | K13: 0 | M13: 0 | X13: =Dem!X32 -> 0
A14: =Dem!A33 -> 7 | B14: =Dem!B33 ->  | C14: =Dem!T33 -> 0 | D14: 0 | E14: 0 | F14: 0 | H14: =C14*PAFcalc!$F$9 -> 0 | I14: =C14*PAFcalc!$F$10 -> 0 | J14: =C14*PAFcalc!$F$11 -> 0 | K14: 0 | M14: 0 | X14: =Dem!X33 -> 0
A15: =Dem!A34 -> 8 | B15: =Dem!B34 ->  | C15: =Dem!T34 -> 0 | D15: 0 | E15: 0 | F15: 0 | H15: =C15*PAFcalc!$F$9 -> 0 | I15: =C15*PAFcalc!$F$10 -> 0 | J15: =C15*PAFcalc!$F$11 -> 0 | K15: 0 | M15: 0 | X15: =Dem!X34 -> 0
A16: =Dem!A35 -> 9 | B16: =Dem!B35 ->  | C16: =Dem!T35 -> 0 | D16: 0 | E16: 0 | F16: 0 | H16: =C16*PAFcalc!$F$9 -> 0 | I16: =C16*PAFcalc!$F$10 -> 0 | J16: =C16*PAFcalc!$F$11 -> 0 | K16: =SUM(H16:J16) -> 0 | M16: =H16*(1-(D16/$H$34)) -> 0 | N16: =I16*(1-(E16/$H$35)) ->  | O16: =J16*(1-(F16/$H$36)) ->  | P16: =SUM(M16:O16) ->  | X16: =Dem!X35 -> 0
A17: =Dem!A36 -> 10 | B17: =Dem!B36 ->  | C17: =Dem!T36 -> 0 | D17: 0 | E17: 0 | F17: 0 | H17: =C17*PAFcalc!$F$9 -> 0 | I17: =C17*PAFcalc!$F$10 -> 0 | J17: =C17*PAFcalc!$F$11 -> 0 | K17: 0 | M17: 0 | N17: =I17*(1-(E17/$H$35)) ->  | O17: =J17*(1-(F17/$H$36)) ->  | P17: =SUM(M17:O17) ->  | X17: =Dem!X36 -> 0
A18: =Dem!A37 -> 11 | B18: =Dem!B37 ->  | C18: =Dem!T37 -> 0 | D18: 0 | E18: 0 | F18: 0 | H18: =C18*PAFcalc!$F$9 -> 0 | I18: =C18*PAFcalc!$F$10 -> 0 | J18: =C18*PAFcalc!$F$11 -> 0 | K18: 0 | M18: 0 | N18: =I18*(1-(E18/$H$35)) ->  | O18: =J18*(1-(F18/$H$36)) ->  | P18: =SUM(M18:O18) ->  | X18: =Dem!X37 -> 0
A19: =Dem!A38 -> 12 | B19: =Dem!B38 ->  | C19: =Dem!T38 -> 0 | D19: 0 | E19: 0 | F19: 0 | H19: =C19*PAFcalc!$F$9 -> 0 | I19: =C19*PAFcalc!$F$10 -> 0 | J19: =C19*PAFcalc!$F$11 -> 0 | K19: 0 | M19: 0 | N19: =I19*(1-(E19/$H$35)) ->  | O19: =J19*(1-(F19/$H$36)) ->  | P19: =SUM(M19:O19) ->  | X19: =Dem!X38 -> 0
A20: =Dem!A39 -> 13 | B20: =Dem!B39 ->  | C20: =Dem!T39 -> 0 | D20: 0 | E20: 0 | F20: 0 | H20: =C20*PAFcalc!$F$9 -> 0 | I20: =C20*PAFcalc!$F$10 -> 0 | J20: =C20*PAFcalc!$F$11 -> 0 | K20: 0 | M20: 0 | N20: =I20*(1-(E20/$H$35)) ->  | O20: =J20*(1-(F20/$H$36)) ->  | P20: =SUM(M20:O20) ->  | X20: =Dem!X39 -> 0
A21: =Dem!A40 -> 14 | B21: =Dem!B40 ->  | C21: =Dem!T40 -> 0 | D21: 0 | E21: 0 | F21: 0 | H21: =C21*PAFcalc!$F$9 -> 0 | I21: =C21*PAFcalc!$F$10 -> 0 | J21: =C21*PAFcalc!$F$11 -> 0 | K21: 0 | M21: 0 | N21: =I21*(1-(E21/$H$34)) -> 0 | O21: 0 | P21: 0 | X21: =Dem!X40 -> 0
A22: =Dem!A41 -> 15 | B22: =Dem!B41 ->  | C22: =Dem!T41 -> 0 | D22: 0 | E22: 0 | F22: 0 | H22: =C22*PAFcalc!$F$9 -> 0 | I22: =C22*PAFcalc!$F$10 -> 0 | J22: =C22*PAFcalc!$F$11 -> 0 | K22: 0 | M22: 0 | N22: 0 | O22: 0 | P22: 0 | X22: =Dem!X41 -> 0
A23: =Dem!A42 -> 16 | B23: =Dem!B42 ->  | C23: =Dem!T42 -> 0 | D23: 0 | E23: 0 | F23: 0 | H23: =C23*PAFcalc!$F$9 -> 0 | I23: =C23*PAFcalc!$F$10 -> 0 | J23: =C23*PAFcalc!$F$11 -> 0 | K23: 0 | M23: 0 | N23: 0 | O23: 0 | P23: 0 | X23: =Dem!X42 -> 0
A24: =Dem!A43 -> 17 | B24: =Dem!B43 ->  | C24: =Dem!T43 -> 0 | D24: 0 | E24: 0 | F24: 0 | H24: =C24*PAFcalc!$F$9 -> 0 | I24: =C24*PAFcalc!$F$10 -> 0 | J24: =C24*PAFcalc!$F$11 -> 0 | K24: 0 | M24: 0 | N24: 0 | O24: 0 | P24: 0 | X24: =Dem!X43 -> 0
A25: =Dem!A44 -> 18 | B25: =Dem!B44 ->  | C25: =Dem!T44 -> 0 | D25: 0 | E25: 0 | F25: 0 | H25: =C25*PAFcalc!$F$9 -> 0 | I25: =C25*PAFcalc!$F$10 -> 0 | J25: =C25*PAFcalc!$F$11 -> 0 | K25: 0 | M25: 0 | N25: 0 | O25: 0 | P25: 0 | X25: =Dem!X44 -> 0
A26: =Dem!A45 -> 19 | B26: =Dem!B45 ->  | C26: =Dem!T45 -> 0 | D26: 0 | E26: 0 | F26: 0 | H26: =C26*PAFcalc!$F$9 -> 0 | I26: =C26*PAFcalc!$F$10 -> 0 | J26: =C26*PAFcalc!$F$11 -> 0 | K26: 0 | M26: 0 | N26: 0 | O26: 0 | P26: 0 | X26: =Dem!X45 -> 0
A27: =Dem!A46 -> 20 | B27: =Dem!B46 ->  | C27: =Dem!T46 -> 0 | D27: 0 | E27: 0 | F27: 0 | H27: =C27*PAFcalc!$F$9 -> 0 | I27: =C27*PAFcalc!$F$10 -> 0 | J27: =C27*PAFcalc!$F$11 -> 0 | K27: 0 | M27: 0 | N27: 0 | O27: 0 | P27: 0 | X27: =Dem!X46 -> 0
B30: total | C30: =SUM(C8:C29) -> 0 | H30: =SUM(H8:H29) -> 0 | I30: =SUM(I8:I29) -> 0 | J30: =SUM(J8:J29) -> 0 | K30: =SUM(K8:K29) -> 0 | M30: =SUM(M8:M29) -> 0 | N30: =SUM(N8:N29) ->  | O30: =SUM(O8:O29) ->  | P30: =SUM(P8:P29) -> 
B32: ASSUMPTIONS:
B33: Number of years in projection: | H33: =Dem!D23 -> 1
B34: Underweight Prevalence: | E34: mild | H34: =Prev!C13/100 -> 0.1562234492
E35: moderate | H35: =Prev!C14/100 -> 0
E36: severe | H36: =Prev!C15/100 -> 0
B37: Targets: | E37: mild | H37: =Prev!E13/100 -> 
E38: moderate | H38: =Prev!E14/100 -> 
E39: severe | H39: =Prev!E15/100 -> 

Sheet HAMort (hidden)
A2: =Prev!A4 -> 
A3: Mortality due to Stunting (low height-for-age)
B5: year | C5: 6-59m | D5: Stunting | H5: Status Quo | M5: Lives saved from reducing
C6: Deaths | D6: Prevalence | E6: (%) | H6: Deaths Due to Stunting | M6: stunting | X6: =Dem!X25 -> 1=in time period
D7: mild | E7: moderate | F7: severe | H7: mild | I7: moderate | J7: severe | K7: total | M7: mild | N7: moderate | O7: severe | P7: total | X7: =Dem!X26 -> 0=not in time period
A8: =Dem!A27 -> 1 | B8: =Dem!B27 ->  | C8: =Dem!T27 -> 0 | D8: =IF(X8=1,($H$34-((A8-1)*($H$34-$H$37)/($H$33-1))),0) -> 0 | E8: =IF(X8=1,(($H$35-((A8-1)*($H$35-$H$38)/($H$33-1)))),0) -> 0 | F8: =IF(X8=1,(($H$36-(($A8-1)*($H$36-$H$39)/($H$33-1)))),0) -> 0 | H8: =C8*PAFcalc!$F$19 -> 0 | I8: =C8*PAFcalc!$F$20 -> 0 | J8: =C8*PAFcalc!$F$21 -> 0 | K8: =SUM(H8:J8) -> 0 | M8: =H8*(1-(D8/$H$34)) -> 0 | N8: =I8*(1-(E8/$H$35)) ->  | O8: =J8*(1-(F8/$H$36)) ->  | P8: =SUM(M8:O8) ->  | X8: =Dem!X27 -> 0
A9: =Dem!A28 -> 2 | B9: =Dem!B28 ->  | C9: =Dem!T28 -> 0 | D9: 0 | E9: 0 | F9: 0 | H9: =C9*PAFcalc!$F$19 -> 0 | I9: =C9*PAFcalc!$F$20 -> 0 | J9: =C9*PAFcalc!$F$21 -> 0 | K9: =SUM(H9:J9) -> 0 | M9: 0 | X9: =Dem!X28 -> 0
A10: =Dem!A29 -> 3 | B10: =Dem!B29 ->  | C10: =Dem!T29 -> 0 | D10: 0 | E10: 0 | F10: 0 | H10: =C10*PAFcalc!$F$19 -> 0 | I10: =C10*PAFcalc!$F$20 -> 0 | J10: =C10*PAFcalc!$F$21 -> 0 | K10: 0 | M10: 0 | X10: =Dem!X29 -> 0
A11: =Dem!A30 -> 4 | B11: =Dem!B30 ->  | C11: =Dem!T30 -> 0 | D11: 0 | E11: 0 | F11: 0 | H11: =C11*PAFcalc!$F$19 -> 0 | I11: =C11*PAFcalc!$F$20 -> 0 | J11: =C11*PAFcalc!$F$21 -> 0 | K11: 0 | M11: 0 | X11: =Dem!X30 -> 0
A12: =Dem!A31 -> 5 | B12: =Dem!B31 ->  | C12: =Dem!T31 -> 0 | D12: 0 | E12: 0 | F12: 0 | H12: =C12*PAFcalc!$F$19 -> 0 | I12: =C12*PAFcalc!$F$20 -> 0 | J12: =C12*PAFcalc!$F$21 -> 0 | K12: 0 | M12: 0 | X12: =Dem!X31 -> 0
A13: =Dem!A32 -> 6 | B13: =Dem!B32 ->  | C13: =Dem!T32 -> 0 | D13: 0 | E13: 0 | F13: 0 | H13: =C13*PAFcalc!$F$19 -> 0 | I13: =C13*PAFcalc!$F$20 -> 0 | J13: =C13*PAFcalc!$F$21 -> 0 | K13: 0 | M13: 0 | X13: =Dem!X32 -> 0
A14: =Dem!A33 -> 7 | B14: =Dem!B33 ->  | C14: =Dem!T33 -> 0 | D14: 0 | E14: 0 | F14: 0 | H14: =C14*PAFcalc!$F$19 -> 0 | I14: =C14*PAFcalc!$F$20 -> 0 | J14: =C14*PAFcalc!$F$21 -> 0 | K14: 0 | M14: 0 | X14: =Dem!X33 -> 0
A15: =Dem!A34 -> 8 | B15: =Dem!B34 ->  | C15: =Dem!T34 -> 0 | D15: 0 | E15: 0 | F15: 0 | H15: =C15*PAFcalc!$F$19 -> 0 | I15: =C15*PAFcalc!$F$20 -> 0 | J15: =C15*PAFcalc!$F$21 -> 0 | K15: 0 | M15: 0 | X15: =Dem!X34 -> 0
A16: =Dem!A35 -> 9 | B16: =Dem!B35 ->  | C16: =Dem!T35 -> 0 | D16: 0 | E16: 0 | F16: 0 | H16: =C16*PAFcalc!$F$19 -> 0 | I16: =C16*PAFcalc!$F$20 -> 0 | J16: =C16*PAFcalc!$F$21 -> 0 | K16: =SUM(H16:J16) -> 0 | M16: =H16*(1-(D16/$H$34)) -> 0 | N16: =I16*(1-(E16/$H$35)) ->  | O16: =J16*(1-(F16/$H$36)) ->  | P16: =SUM(M16:O16) ->  | X16: =Dem!X35 -> 0
A17: =Dem!A36 -> 10 | B17: =Dem!B36 ->  | C17: =Dem!T36 -> 0 | D17: 0 | E17: 0 | F17: 0 | H17: =C17*PAFcalc!$F$19 -> 0 | I17: =C17*PAFcalc!$F$20 -> 0 | J17: =C17*PAFcalc!$F$21 -> 0 | K17: 0 | M17: 0 | X17: =Dem!X36 -> 0
A18: =Dem!A37 -> 11 | B18: =Dem!B37 ->  | C18: =Dem!T37 -> 0 | D18: 0 | E18: 0 | F18: 0 | H18: =C18*PAFcalc!$F$19 -> 0 | I18: =C18*PAFcalc!$F$20 -> 0 | J18: =C18*PAFcalc!$F$21 -> 0 | K18: 0 | M18: 0 | X18: =Dem!X37 -> 0
A19: =Dem!A38 -> 12 | B19: =Dem!B38 ->  | C19: =Dem!T38 -> 0 | D19: 0 | E19: 0 | F19: 0 | H19: =C19*PAFcalc!$F$19 -> 0 | I19: =C19*PAFcalc!$F$20 -> 0 | J19: =C19*PAFcalc!$F$21 -> 0 | K19: 0 | M19: 0 | X19: =Dem!X38 -> 0
A20: =Dem!A39 -> 13 | B20: =Dem!B39 ->  | C20: =Dem!T39 -> 0 | D20: 0 | E20: 0 | F20: 0 | H20: =C20*PAFcalc!$F$19 -> 0 | I20: =C20*PAFcalc!$F$20 -> 0 | J20: =C20*PAFcalc!$F$21 -> 0 | K20: 0 | M20: 0 | X20: =Dem!X39 -> 0
A21: =Dem!A40 -> 14 | B21: =Dem!B40 ->  | C21: =Dem!T40 -> 0 | D21: 0 | E21: 0 | F21: 0 | H21: =C21*PAFcalc!$F$19 -> 0 | I21: =C21*PAFcalc!$F$20 -> 0 | J21: =C21*PAFcalc!$F$21 -> 0 | K21: 0 | M21: 0 | X21: =Dem!X40 -> 0
A22: =Dem!A41 -> 15 | B22: =Dem!B41 ->  | C22: =Dem!T41 -> 0 | D22: 0 | E22: 0 | F22: 0 | H22: =C22*PAFcalc!$F$19 -> 0 | I22: =C22*PAFcalc!$F$20 -> 0 | J22: =C22*PAFcalc!$F$21 -> 0 | K22: =SUM(H22:J22) -> 0 | M22: =H22*(1-(D22/$H$34)) -> 0 | N22: =I22*(1-(E22/$H$35)) ->  | O22: =J22*(1-(F22/$H$36)) ->  | P22: =SUM(M22:O22) ->  | X22: =Dem!X41 -> 0
A23: =Dem!A42 -> 16 | B23: =Dem!B42 ->  | C23: =Dem!T42 -> 0 | D23: 0 | E23: 0 | F23: 0 | H23: =C23*PAFcalc!$F$19 -> 0 | I23: =C23*PAFcalc!$F$20 -> 0 | J23: =C23*PAFcalc!$F$21 -> 0 | K23: 0 | M23: 0 | X23: =Dem!X42 -> 0
A24: =Dem!A43 -> 17 | B24: =Dem!B43 ->  | C24: =Dem!T43 -> 0 | D24: 0 | E24: 0 | F24: 0 | H24: =C24*PAFcalc!$F$19 -> 0 | I24: =C24*PAFcalc!$F$20 -> 0 | J24: =C24*PAFcalc!$F$21 -> 0 | K24: 0 | M24: 0 | X24: =Dem!X43 -> 0
A25: =Dem!A44 -> 18 | B25: =Dem!B44 ->  | C25: =Dem!T44 -> 0 | D25: 0 | E25: 0 | F25: 0 | H25: =C25*PAFcalc!$F$19 -> 0 | I25: =C25*PAFcalc!$F$20 -> 0 | J25: =C25*PAFcalc!$F$21 -> 0 | K25: 0 | M25: 0 | X25: =Dem!X44 -> 0
A26: =Dem!A45 -> 19 | B26: =Dem!B45 ->  | C26: =Dem!T45 -> 0 | D26: 0 | E26: 0 | F26: 0 | H26: =C26*PAFcalc!$F$19 -> 0 | I26: =C26*PAFcalc!$F$20 -> 0 | J26: =C26*PAFcalc!$F$21 -> 0 | K26: 0 | M26: 0 | X26: =Dem!X45 -> 0
A27: =Dem!A46 -> 20 | B27: =Dem!B46 ->  | C27: =Dem!T46 -> 0 | D27: 0 | E27: 0 | F27: 0 | H27: =C27*PAFcalc!$F$19 -> 0 | I27: =C27*PAFcalc!$F$20 -> 0 | J27: =C27*PAFcalc!$F$21 -> 0 | K27: 0 | M27: 0 | X27: =Dem!X46 -> 0
B30: total | C30: =SUM(C8:C27) -> 0 | H30: =SUM(H8:H29) -> 0 | I30: =SUM(I8:I29) -> 0 | J30: =SUM(J8:J29) -> 0 | K30: =SUM(K8:K29) -> 0 | M30: =SUM(M8:M29) -> 0 | N30: =SUM(N8:N29) ->  | O30: =SUM(O8:O29) ->  | P30: =SUM(P8:P29) -> 
B32: ASSUMPTIONS:
B33: Number of years in projection: | H33: =Dem!D23 -> 1
B34: Stunting Prevalence: | E34: mild | H34: =Prev!C25/100 -> 0.2226247282
E35: moderate | H35: =Prev!C26/100 -> 0
E36: severe | H36: =Prev!C27/100 -> 0
B37: Targets: | E37: mild | H37: =Prev!E25/100 -> 
E38: moderate | H38: =Prev!E26/100 -> 
E39: severe | H39: =Prev!E27/100 -> 

Sheet WHMort (hidden)
A2: =Prev!A4 -> 
A3: Mortality due to Wasting (low weight-for-height)
B5: year | C5: 6-59m | D5: Wasting | H5: Status Quo | M5: Lives saved from reducing
C6: Deaths | D6: Prevalence | E6: (%) | H6: Deaths Due to Wasting | M6: wasting | X6: =Dem!X25 -> 1=in time period
D7: mild | E7: moderate | F7: severe | H7: mild | I7: moderate | J7: severe | K7: total | M7: mild | N7: moderate | O7: severe | P7: total | X7: =Dem!X26 -> 0=not in time period
A8: =Dem!A27 -> 1 | B8: =Dem!B27 ->  | C8: =Dem!T27 -> 0 | D8: =IF(X8=1,($H$34-((A8-1)*($H$34-$H$37)/($H$33-1))),0) -> 0 | E8: =IF(X8=1,(($H$35-((A8-1)*($H$35-$H$38)/($H$33-1)))),0) -> 0 | F8: =IF(X8=1,(($H$36-(($A8-1)*($H$36-$H$39)/($H$33-1)))),0) -> 0 | H8: =C8*PAFcalc!$F$29 -> 0 | I8: =C8*PAFcalc!$F$30 -> 0 | J8: =C8*PAFcalc!$F$31 -> 0 | K8: =SUM(H8:J8) -> 0 | M8: =H8*(1-(D8/$H$34)) -> 0 | N8: =I8*(1-(E8/$H$35)) ->  | O8: =J8*(1-(F8/$H$36)) ->  | P8: =SUM(M8:O8) ->  | X8: =Dem!X27 -> 0
A9: =Dem!A28 -> 2 | B9: =Dem!B28 ->  | C9: =Dem!T28 -> 0 | D9: 0 | E9: 0 | F9: 0 | H9: =C9*PAFcalc!$F$29 -> 0 | I9: =C9*PAFcalc!$F$30 -> 0 | J9: =C9*PAFcalc!$F$31 -> 0 | K9: =SUM(H9:J9) -> 0 | M9: 0 | X9: =Dem!X28 -> 0
A10: =Dem!A29 -> 3 | B10: =Dem!B29 ->  | C10: =Dem!T29 -> 0 | D10: 0 | E10: 0 | F10: 0 | H10: =C10*PAFcalc!$F$29 -> 0 | I10: =C10*PAFcalc!$F$30 -> 0 | J10: =C10*PAFcalc!$F$31 -> 0 | K10: 0 | M10: 0 | X10: =Dem!X29 -> 0
A11: =Dem!A30 -> 4 | B11: =Dem!B30 ->  | C11: =Dem!T30 -> 0 | D11: 0 | E11: 0 | F11: 0 | H11: =C11*PAFcalc!$F$29 -> 0 | I11: =C11*PAFcalc!$F$30 -> 0 | J11: =C11*PAFcalc!$F$31 -> 0 | K11: 0 | M11: 0 | X11: =Dem!X30 -> 0
A12: =Dem!A31 -> 5 | B12: =Dem!B31 ->  | C12: =Dem!T31 -> 0 | D12: 0 | E12: 0 | F12: 0 | H12: =C12*PAFcalc!$F$29 -> 0 | I12: =C12*PAFcalc!$F$30 -> 0 | J12: =C12*PAFcalc!$F$31 -> 0 | K12: 0 | M12: 0 | X12: =Dem!X31 -> 0
A13: =Dem!A32 -> 6 | B13: =Dem!B32 ->  | C13: =Dem!T32 -> 0 | D13: 0 | E13: 0 | F13: 0 | H13: =C13*PAFcalc!$F$29 -> 0 | I13: =C13*PAFcalc!$F$30 -> 0 | J13: =C13*PAFcalc!$F$31 -> 0 | K13: 0 | M13: 0 | X13: =Dem!X32 -> 0
A14: =Dem!A33 -> 7 | B14: =Dem!B33 ->  | C14: =Dem!T33 -> 0 | D14: 0 | E14: 0 | F14: 0 | H14: =C14*PAFcalc!$F$29 -> 0 | I14: =C14*PAFcalc!$F$30 -> 0 | J14: =C14*PAFcalc!$F$31 -> 0 | K14: 0 | M14: 0 | X14: =Dem!X33 -> 0
A15: =Dem!A34 -> 8 | B15: =Dem!B34 ->  | C15: =Dem!T34 -> 0 | D15: 0 | E15: 0 | F15: 0 | H15: =C15*PAFcalc!$F$29 -> 0 | I15: =C15*PAFcalc!$F$30 -> 0 | J15: =C15*PAFcalc!$F$31 -> 0 | K15: 0 | M15: 0 | X15: =Dem!X34 -> 0
A16: =Dem!A35 -> 9 | B16: =Dem!B35 ->  | C16: =Dem!T35 -> 0 | D16: 0 | E16: 0 | F16: 0 | H16: =C16*PAFcalc!$F$29 -> 0 | I16: =C16*PAFcalc!$F$30 -> 0 | J16: =C16*PAFcalc!$F$31 -> 0 | K16: =SUM(H16:J16) -> 0 | M16: =H16*(1-(D16/$H$34)) -> 0 | N16: =I16*(1-(E16/$H$35)) ->  | O16: =J16*(1-(F16/$H$36)) ->  | P16: =SUM(M16:O16) ->  | X16: =Dem!X35 -> 0
A17: =Dem!A36 -> 10 | B17: =Dem!B36 ->  | C17: =Dem!T36 -> 0 | D17: 0 | E17: 0 | F17: 0 | H17: =C17*PAFcalc!$F$29 -> 0 | I17: =C17*PAFcalc!$F$30 -> 0 | J17: =C17*PAFcalc!$F$31 -> 0 | K17: 0 | M17: 0 | X17: =Dem!X36 -> 0
A18: =Dem!A37 -> 11 | B18: =Dem!B37 ->  | C18: =Dem!T37 -> 0 | D18: 0 | E18: 0 | F18: 0 | H18: =C18*PAFcalc!$F$29 -> 0 | I18: =C18*PAFcalc!$F$30 -> 0 | J18: =C18*PAFcalc!$F$31 -> 0 | K18: 0 | M18: 0 | X18: =Dem!X37 -> 0
A19: =Dem!A38 -> 12 | B19: =Dem!B38 ->  | C19: =Dem!T38 -> 0 | D19: 0 | E19: 0 | F19: 0 | H19: =C19*PAFcalc!$F$29 -> 0 | I19: =C19*PAFcalc!$F$30 -> 0 | J19: =C19*PAFcalc!$F$31 -> 0 | K19: 0 | M19: 0 | X19: =Dem!X38 -> 0
A20: =Dem!A39 -> 13 | B20: =Dem!B39 ->  | C20: =Dem!T39 -> 0 | D20: 0 | E20: 0 | F20: 0 | H20: =C20*PAFcalc!$F$29 -> 0 | I20: =C20*PAFcalc!$F$30 -> 0 | J20: =C20*PAFcalc!$F$31 -> 0 | K20: 0 | M20: 0 | X20: =Dem!X39 -> 0
A21: =Dem!A40 -> 14 | B21: =Dem!B40 ->  | C21: =Dem!T40 -> 0 | D21: 0 | E21: 0 | F21: 0 | H21: =C21*PAFcalc!$F$29 -> 0 | I21: =C21*PAFcalc!$F$30 -> 0 | J21: =C21*PAFcalc!$F$31 -> 0 | K21: 0 | M21: 0 | X21: =Dem!X40 -> 0
A22: =Dem!A41 -> 15 | B22: =Dem!B41 ->  | C22: =Dem!T41 -> 0 | D22: =IF(X22=1,($H$34-((A22-1)*($H$34-$H$37)/($H$33-1))),0) -> 0 | E22: =IF(X22=1,(($H$35-((A22-1)*($H$35-$H$38)/($H$33-1)))),0) -> 0 | F22: =IF(X22=1,(($H$36-(($A22-1)*($H$36-$H$39)/($H$33-1)))),0) -> 0 | H22: =C22*PAFcalc!$F$29 -> 0 | I22: =C22*PAFcalc!$F$30 -> 0 | J22: =C22*PAFcalc!$F$31 -> 0 | K22: =SUM(H22:J22) -> 0 | M22: =H22*(1-(D22/$H$34)) -> 0 | N22: =I22*(1-(E22/$H$35)) ->  | O22: =J22*(1-(F22/$H$36)) ->  | P22: =SUM(M22:O22) ->  | X22: =Dem!X41 -> 0
A23: =Dem!A42 -> 16 | B23: =Dem!B42 ->  | C23: =Dem!T42 -> 0 | D23: 0 | E23: 0 | F23: 0 | H23: =C23*PAFcalc!$F$29 -> 0 | I23: =C23*PAFcalc!$F$30 -> 0 | J23: =C23*PAFcalc!$F$31 -> 0 | K23: 0 | M23: 0 | X23: =Dem!X42 -> 0
A24: =Dem!A43 -> 17 | B24: =Dem!B43 ->  | C24: =Dem!T43 -> 0 | D24: 0 | E24: 0 | F24: 0 | H24: =C24*PAFcalc!$F$29 -> 0 | I24: =C24*PAFcalc!$F$30 -> 0 | J24: =C24*PAFcalc!$F$31 -> 0 | K24: 0 | M24: 0 | X24: =Dem!X43 -> 0
A25: =Dem!A44 -> 18 | B25: =Dem!B44 ->  | C25: =Dem!T44 -> 0 | D25: 0 | E25: 0 | F25: 0 | H25: =C25*PAFcalc!$F$29 -> 0 | I25: =C25*PAFcalc!$F$30 -> 0 | J25: =C25*PAFcalc!$F$31 -> 0 | K25: 0 | M25: 0 | X25: =Dem!X44 -> 0
A26: =Dem!A45 -> 19 | B26: =Dem!B45 ->  | C26: =Dem!T45 -> 0 | D26: 0 | E26: 0 | F26: 0 | H26: =C26*PAFcalc!$F$29 -> 0 | I26: =C26*PAFcalc!$F$30 -> 0 | J26: =C26*PAFcalc!$F$31 -> 0 | K26: 0 | M26: 0 | X26: =Dem!X45 -> 0
A27: =Dem!A46 -> 20 | B27: =Dem!B46 ->  | C27: =Dem!T46 -> 0 | D27: 0 | E27: 0 | F27: 0 | H27: =C27*PAFcalc!$F$29 -> 0 | I27: =C27*PAFcalc!$F$30 -> 0 | J27: =C27*PAFcalc!$F$31 -> 0 | K27: 0 | M27: 0 | X27: =Dem!X46 -> 0
B30: total | C30: =SUM(C8:C29) -> 0 | H30: =SUM(H8:H29) -> 0 | I30: =SUM(I8:I29) -> 0 | J30: =SUM(J8:J29) -> 0 | K30: =SUM(K8:K29) -> 0 | M30: =SUM(M8:M29) -> 0 | N30: =SUM(N8:N29) ->  | O30: =SUM(O8:O29) ->  | P30: =SUM(P8:P29) -> 
B32: ASSUMPTIONS:
B33: Number of years in projection: | H33: =Dem!D23 -> 1
B34: Wasting Prevalence: | E34: mild | H34: =Prev!C31/100 -> 0.1794583668
E35: moderate | H35: =Prev!C32/100 -> 0
E36: severe | H36: =Prev!C33/100 -> 0
B37: Targets: | E37: mild | H37: =Prev!E31/100 -> 
E38: moderate | H38: =Prev!E32/100 -> 
E39: severe | H39: =Prev!E33/100 -> 

Sheet VADmort (Child) (hidden)
A2: =Prev!A4 -> 
A3: The Effects of Vitamin A Deficiency on Child Mortality
G5: Mortality Calculations
B6: Year | C6: Child Deaths | E6: Prevalence | F6: Status Quo | H6: Improved | J6: Lives | X6: =Dem!X25 -> 1=in time period
C7: 0-59 m | D7: 6-59 m | E7: (Improved) | F7: non-VAD | G7: VAD | H7: non-VAD | I7: VAD | J7: Saved | X7: =Dem!X26 -> 0=not in time period
A8: =Dem!A27 -> 1 | B8: =Dem!B27 ->  | C8: =Dem!M27 -> 0 | D8: =Dem!T27 -> 0 | E8: =IF(X8=1,($F$33-(((A8-1)*($F$33-$F$35))/($F$34-1))),0) -> 0 | F8: =D8/((1-$F$33)+($F$36*$F$33)) -> 0 | G8: =($E$8*($F$36-1)/(1+($E$8*($F$36-1))))*D8 -> 0 | H8: =F8 -> 0 | I8: =($E8*($F$36-1)/(1+($E8*($F$36-1))))*D8 -> 0 | J8: =G8-I8 -> 0 | X8: =Dem!X27 -> 0
A9: =Dem!A28 -> 2 | B9: =Dem!B28 ->  | C9: =Dem!M28 -> 0 | D9: =Dem!T28 -> 0 | E9: 0 | F9: =D9/((1-$F$33)+($F$36*$F$33)) -> 0 | G9: =($E$8*($F$36-1)/(1+($E$8*($F$36-1))))*D9 -> 0 | H9: 0 | I9: 0 | J9: 0 | X9: =Dem!X28 -> 0
A10: =Dem!A29 -> 3 | B10: =Dem!B29 ->  | C10: =Dem!M29 -> 0 | D10: =Dem!T29 -> 0 | E10: 0 | F10: 0 | G10: 0 | H10: 0 | I10: 0 | J10: 0 | X10: =Dem!X29 -> 0
A11: =Dem!A30 -> 4 | B11: =Dem!B30 ->  | C11: =Dem!M30 -> 0 | D11: =Dem!T30 -> 0 | E11: 0 | F11: 0 | G11: 0 | H11: 0 | I11: 0 | J11: 0 | X11: =Dem!X30 -> 0
A12: =Dem!A31 -> 5 | B12: =Dem!B31 ->  | C12: =Dem!M31 -> 0 | D12: =Dem!T31 -> 0 | E12: 0 | F12: 0 | G12: 0 | H12: 0 | I12: 0 | J12: 0 | X12: =Dem!X31 -> 0
A13: =Dem!A32 -> 6 | B13: =Dem!B32 ->  | C13: =Dem!M32 -> 0 | D13: =Dem!T32 -> 0 | E13: 0 | F13: 0 | G13: 0 | H13: 0 | I13: 0 | J13: 0 | X13: =Dem!X32 -> 0
A14: =Dem!A33 -> 7 | B14: =Dem!B33 ->  | C14: =Dem!M33 -> 0 | D14: =Dem!T33 -> 0 | E14: 0 | F14: 0 | G14: 0 | H14: 0 | I14: 0 | J14: 0 | X14: =Dem!X33 -> 0
A15: =Dem!A34 -> 8 | B15: =Dem!B34 ->  | C15: =Dem!M34 -> 0 | D15: =Dem!T34 -> 0 | E15: 0 | F15: 0 | G15: 0 | H15: 0 | I15: 0 | J15: 0 | X15: =Dem!X34 -> 0
A16: =Dem!A35 -> 9 | B16: =Dem!B35 ->  | C16: =Dem!M35 -> 0 | D16: =Dem!T35 -> 0 | E16: 0 | F16: =D16/((1-$F$33)+($F$36*$F$33)) -> 0 | G16: =($E$8*($F$36-1)/(1+($E$8*($F$36-1))))*D16 -> 0 | H16: =F16 -> 0 | I16: =($E16*($F$36-1)/(1+($E16*($F$36-1))))*D16 -> 0 | J16: =G16-I16 -> 0 | X16: =Dem!X35 -> 0
A17: =Dem!A36 -> 10 | B17: =Dem!B36 ->  | C17: =Dem!M36 -> 0 | D17: =Dem!T36 -> 0 | E17: =IF(X17=1,($F$33-(((A17-1)*($F$33-$F$35))/($F$34-1))),0) -> 0 | F17: 0 | G17: 0 | H17: 0 | I17: 0 | J17: 0 | X17: =Dem!X36 -> 0
A18: =Dem!A37 -> 11 | B18: =Dem!B37 ->  | C18: =Dem!M37 -> 0 | D18: =Dem!T37 -> 0 | E18: =IF(X18=1,($F$33-(((A18-1)*($F$33-$F$35))/($F$34-1))),0) -> 0 | F18: 0 | G18: 0 | H18: 0 | I18: 0 | J18: 0 | X18: =Dem!X37 -> 0
A19: =Dem!A38 -> 12 | B19: =Dem!B38 ->  | C19: =Dem!M38 -> 0 | D19: =Dem!T38 -> 0 | E19: =IF(X19=1,($F$33-(((A19-1)*($F$33-$F$35))/($F$34-1))),0) -> 0 | F19: 0 | G19: 0 | H19: 0 | I19: 0 | J19: 0 | X19: =Dem!X38 -> 0
A20: =Dem!A39 -> 13 | B20: =Dem!B39 ->  | C20: =Dem!M39 -> 0 | D20: =Dem!T39 -> 0 | E20: =IF(X20=1,($F$33-(((A20-1)*($F$33-$F$35))/($F$34-1))),0) -> 0 | F20: 0 | G20: 0 | H20: 0 | I20: 0 | J20: 0 | X20: =Dem!X39 -> 0
A21: =Dem!A40 -> 14 | B21: =Dem!B40 ->  | C21: =Dem!M40 -> 0 | D21: =Dem!T40 -> 0 | E21: =IF(X21=1,($F$33-(((A21-1)*($F$33-$F$35))/($F$34-1))),0) -> 0 | F21: 0 | G21: 0 | H21: 0 | I21: 0 | J21: 0 | X21: =Dem!X40 -> 0
A22: =Dem!A41 -> 15 | B22: =Dem!B41 ->  | C22: =Dem!M41 -> 0 | D22: =Dem!T41 -> 0 | E22: =IF(X22=1,($F$33-(((A22-1)*($F$33-$F$35))/($F$34-1))),0) -> 0 | F22: 0 | G22: 0 | H22: 0 | I22: 0 | J22: 0 | X22: =Dem!X41 -> 0
A23: =Dem!A42 -> 16 | B23: =Dem!B42 ->  | C23: =Dem!M42 -> 0 | D23: =Dem!T42 -> 0 | E23: 0 | F23: 0 | G23: 0 | H23: 0 | I23: 0 | J23: 0 | X23: =Dem!X42 -> 0
A24: =Dem!A43 -> 17 | B24: =Dem!B43 ->  | C24: =Dem!M43 -> 0 | D24: =Dem!T43 -> 0 | E24: 0 | F24: 0 | G24: 0 | H24: 0 | I24: 0 | J24: 0 | X24: =Dem!X43 -> 0
A25: =Dem!A44 -> 18 | B25: =Dem!B44 ->  | C25: =Dem!M44 -> 0 | D25: =Dem!T44 -> 0 | E25: 0 | F25: 0 | G25: 0 | H25: 0 | I25: 0 | J25: 0 | X25: =Dem!X44 -> 0
A26: =Dem!A45 -> 19 | B26: =Dem!B45 ->  | C26: =Dem!M45 -> 0 | D26: =Dem!T45 -> 0 | E26: 0 | F26: 0 | G26: 0 | H26: 0 | I26: 0 | J26: 0 | X26: =Dem!X45 -> 0
A27: =Dem!A46 -> 20 | B27: =Dem!B46 ->  | C27: =Dem!M46 -> 0 | D27: =Dem!T46 -> 0 | E27: 0 | F27: 0 | G27: 0 | H27: 0 | I27: 0 | J27: 0 | X27: =Dem!X46 -> 0
B30: total | D30: =SUM(D8:D29) -> 0 | F30: =SUM(F8:F29) -> 0 | G30: =SUM(G8:G29) -> 0 | H30: =SUM(H8:H29) -> 0 | I30: =SUM(I8:I29) -> 0 | J30: =SUM(J8:J29) -> 0
B32: Assumptions:
B33: starting prevalence (retinol <20 ug/dl): | F33: =Prev!C38/100 -> 0
B34: number of years: | F34: =Dem!D23 -> 1
B35: Target prevalence: | F35: =Prev!E38/100 -> 0
B36: Relative Risk: | F36: =Rel!C37 -> 1.75
B37: Proportion of deaths attributable to VAD | F37: =($E$8*($F$36-1)/(1+($E$8*($F$36-1)))) -> 0

Sheet IDAmort (perinatal) (hidden)
A2: =Prev!A4 -> 
A3: The Effects of Iron Deficiency Anemia on Perinatal Mortality
H6: Perinatal Deaths
C7: Population (millions) | H7: Status Quo | K7: Improved | L7: Deaths | X7: =Dem!X25 -> 1=in time period
B8: Year | C8: Total | D8: Reprod. | E8: Births | F8: Prevalence | G8: mean Hg | H8: Total | I8: IDA | K8: Total | L8: Averted | X8: =Dem!X26 -> 0=not in time period
A9: =Dem!A27 -> 1 | B9: =Dem!B27 ->  | C9: =Dem!C27 -> 0 | D9: =Dem!D27 -> 0 | E9: =Dem!G27 -> 0 | F9: =IF(X9=1,($L$36-((A9-1)*($L$36-$L$37)/($L$46-1))),0) -> 0 | G9: =IF(X9=1,(Rel!$C$48-NORMINV(F9,0,IF(F9*100<=C$50,D$50,IF(F9*100<=C$51,D$50+((F9*100-C$50)*(D$51-D$50)/(C$51-C$50)),IF(F9*100<=C$52,D$51+((F9*100-C$51)*(D$52-D$51)/(C$52-C$51)),D$52))))),0) -> 0 | H9: =(E9*$L$35)*1000 -> 0 | I9: =H9*$L$38 ->  | K9: =H9*($L$39^(G9-$L$40)) ->  | L9: =H9-K9 ->  | X9: =Dem!X27 -> 0
A10: =Dem!A28 -> 2 | B10: =Dem!B28 ->  | C10: =Dem!C28 -> 0 | D10: =Dem!D28 -> 0 | E10: =Dem!G28 -> 0 | F10: 0 | G10: =IF(X10=1,(Rel!$C$48-NORMINV(F10,0,IF(F10*100<=C$50,D$50,IF(F10*100<=C$51,D$50+((F10*100-C$50)*(D$51-D$50)/(C$51-C$50)),IF(F10*100<=C$52,D$51+((F10*100-C$51)*(D$52-D$51)/(C$52-C$51)),D$52))))),0) -> 0 | H10: 0 | X10: =Dem!X28 -> 0
A11: =Dem!A29 -> 3 | B11: =Dem!B29 ->  | C11: =Dem!C29 -> 0 | D11: =Dem!D29 -> 0 | E11: =Dem!G29 -> 0 | F11: 0 | G11: =IF(X11=1,(Rel!$C$48-NORMINV(F11,0,IF(F11*100<=C$50,D$50,IF(F11*100<=C$51,D$50+((F11*100-C$50)*(D$51-D$50)/(C$51-C$50)),IF(F11*100<=C$52,D$51+((F11*100-C$51)*(D$52-D$51)/(C$52-C$51)),D$52))))),0) -> 0 | H11: 0 | X11: =Dem!X29 -> 0
A12: =Dem!A30 -> 4 | B12: =Dem!B30 ->  | C12: =Dem!C30 -> 0 | D12: =Dem!D30 -> 0 | E12: =Dem!G30 -> 0 | F12: 0 | G12: =IF(X12=1,(Rel!$C$48-NORMINV(F12,0,IF(F12*100<=C$50,D$50,IF(F12*100<=C$51,D$50+((F12*100-C$50)*(D$51-D$50)/(C$51-C$50)),IF(F12*100<=C$52,D$51+((F12*100-C$51)*(D$52-D$51)/(C$52-C$51)),D$52))))),0) -> 0 | H12: 0 | X12: =Dem!X30 -> 0
A13: =Dem!A31 -> 5 | B13: =Dem!B31 ->  | C13: =Dem!C31 -> 0 | D13: =Dem!D31 -> 0 | E13: =Dem!G31 -> 0 | F13: 0 | G13: =IF(X13=1,(Rel!$C$48-NORMINV(F13,0,IF(F13*100<=C$50,D$50,IF(F13*100<=C$51,D$50+((F13*100-C$50)*(D$51-D$50)/(C$51-C$50)),IF(F13*100<=C$52,D$51+((F13*100-C$51)*(D$52-D$51)/(C$52-C$51)),D$52))))),0) -> 0 | H13: 0 | X13: =Dem!X31 -> 0
A14: =Dem!A32 -> 6 | B14: =Dem!B32 ->  | C14: =Dem!C32 -> 0 | D14: =Dem!D32 -> 0 | E14: =Dem!G32 -> 0 | F14: 0 | G14: =IF(X14=1,(Rel!$C$48-NORMINV(F14,0,IF(F14*100<=C$50,D$50,IF(F14*100<=C$51,D$50+((F14*100-C$50)*(D$51-D$50)/(C$51-C$50)),IF(F14*100<=C$52,D$51+((F14*100-C$51)*(D$52-D$51)/(C$52-C$51)),D$52))))),0) -> 0 | H14: 0 | X14: =Dem!X32 -> 0
A15: =Dem!A33 -> 7 | B15: =Dem!B33 ->  | C15: =Dem!C33 -> 0 | D15: =Dem!D33 -> 0 | E15: =Dem!G33 -> 0 | F15: 0 | G15: =IF(X15=1,(Rel!$C$48-NORMINV(F15,0,IF(F15*100<=C$50,D$50,IF(F15*100<=C$51,D$50+((F15*100-C$50)*(D$51-D$50)/(C$51-C$50)),IF(F15*100<=C$52,D$51+((F15*100-C$51)*(D$52-D$51)/(C$52-C$51)),D$52))))),0) -> 0 | H15: 0 | X15: =Dem!X33 -> 0
A16: =Dem!A34 -> 8 | B16: =Dem!B34 ->  | C16: =Dem!C34 -> 0 | D16: =Dem!D34 -> 0 | E16: =Dem!G34 -> 0 | F16: 0 | G16: =IF(X16=1,(Rel!$C$48-NORMINV(F16,0,IF(F16*100<=C$50,D$50,IF(F16*100<=C$51,D$50+((F16*100-C$50)*(D$51-D$50)/(C$51-C$50)),IF(F16*100<=C$52,D$51+((F16*100-C$51)*(D$52-D$51)/(C$52-C$51)),D$52))))),0) -> 0 | H16: 0 | X16: =Dem!X34 -> 0
A17: =Dem!A35 -> 9 | B17: =Dem!B35 ->  | C17: =Dem!C35 -> 0 | D17: =Dem!D35 -> 0 | E17: =Dem!G35 -> 0 | F17: 0 | G17: =IF(X17=1,(Rel!$C$48-NORMINV(F17,0,IF(F17*100<=C$50,D$50,IF(F17*100<=C$51,D$50+((F17*100-C$50)*(D$51-D$50)/(C$51-C$50)),IF(F17*100<=C$52,D$51+((F17*100-C$51)*(D$52-D$51)/(C$52-C$51)),D$52))))),0) -> 0 | H17: =(E17*$L$35)*1000 -> 0 | K17: =H17*($L$39^(G17-$L$40)) ->  | L17: =H17-K17 ->  | X17: =Dem!X35 -> 0
A18: =Dem!A36 -> 10 | B18: =Dem!B36 ->  | C18: =Dem!C36 -> 0 | D18: =Dem!D36 -> 0 | E18: =Dem!G36 -> 0 | F18: 0 | G18: =IF(X18=1,(Rel!$C$48-NORMINV(F18,0,IF(F18*100<=C$50,D$50,IF(F18*100<=C$51,D$50+((F18*100-C$50)*(D$51-D$50)/(C$51-C$50)),IF(F18*100<=C$52,D$51+((F18*100-C$51)*(D$52-D$51)/(C$52-C$51)),D$52))))),0) -> 0 | H18: 0 | X18: =Dem!X36 -> 0
A19: =Dem!A37 -> 11 | B19: =Dem!B37 ->  | C19: =Dem!C37 -> 0 | D19: =Dem!D37 -> 0 | E19: =Dem!G37 -> 0 | F19: 0 | G19: =IF(X19=1,(Rel!$C$48-NORMINV(F19,0,IF(F19*100<=C$50,D$50,IF(F19*100<=C$51,D$50+((F19*100-C$50)*(D$51-D$50)/(C$51-C$50)),IF(F19*100<=C$52,D$51+((F19*100-C$51)*(D$52-D$51)/(C$52-C$51)),D$52))))),0) -> 0 | H19: 0 | I19: =H19*$L$38 ->  | X19: =Dem!X37 -> 0
A20: =Dem!A38 -> 12 | B20: =Dem!B38 ->  | C20: =Dem!C38 -> 0 | D20: =Dem!D38 -> 0 | E20: =Dem!G38 -> 0 | F20: 0 | G20: =IF(X20=1,(Rel!$C$48-NORMINV(F20,0,IF(F20*100<=C$50,D$50,IF(F20*100<=C$51,D$50+((F20*100-C$50)*(D$51-D$50)/(C$51-C$50)),IF(F20*100<=C$52,D$51+((F20*100-C$51)*(D$52-D$51)/(C$52-C$51)),D$52))))),0) -> 0 | H20: 0 | X20: =Dem!X38 -> 0
A21: =Dem!A39 -> 13 | B21: =Dem!B39 ->  | C21: =Dem!C39 -> 0 | D21: =Dem!D39 -> 0 | E21: =Dem!G39 -> 0 | F21: 0 | G21: =IF(X21=1,(Rel!$C$48-NORMINV(F21,0,IF(F21*100<=C$50,D$50,IF(F21*100<=C$51,D$50+((F21*100-C$50)*(D$51-D$50)/(C$51-C$50)),IF(F21*100<=C$52,D$51+((F21*100-C$51)*(D$52-D$51)/(C$52-C$51)),D$52))))),0) -> 0 | H21: 0 | X21: =Dem!X39 -> 0
A22: =Dem!A40 -> 14 | B22: =Dem!B40 ->  | C22: =Dem!C40 -> 0 | D22: =Dem!D40 -> 0 | E22: =Dem!G40 -> 0 | F22: 0 | G22: =IF(X22=1,(Rel!$C$48-NORMINV(F22,0,IF(F22*100<=C$50,D$50,IF(F22*100<=C$51,D$50+((F22*100-C$50)*(D$51-D$50)/(C$51-C$50)),IF(F22*100<=C$52,D$51+((F22*100-C$51)*(D$52-D$51)/(C$52-C$51)),D$52))))),0) -> 0 | H22: 0 | X22: =Dem!X40 -> 0
A23: =Dem!A41 -> 15 | B23: =Dem!B41 ->  | C23: =Dem!C41 -> 0 | D23: =Dem!D41 -> 0 | E23: =Dem!G41 -> 0 | F23: 0 | G23: =IF(X23=1,(Rel!$C$48-NORMINV(F23,0,IF(F23*100<=C$50,D$50,IF(F23*100<=C$51,D$50+((F23*100-C$50)*(D$51-D$50)/(C$51-C$50)),IF(F23*100<=C$52,D$51+((F23*100-C$51)*(D$52-D$51)/(C$52-C$51)),D$52))))),0) -> 0 | H23: 0 | X23: =Dem!X41 -> 0
A24: =Dem!A42 -> 16 | B24: =Dem!B42 ->  | C24: =Dem!C42 -> 0 | D24: =Dem!D42 -> 0 | E24: =Dem!G42 -> 0 | F24: 0 | G24: =IF(X24=1,(Rel!$C$48-NORMINV(F24,0,IF(F24*100<=C$50,D$50,IF(F24*100<=C$51,D$50+((F24*100-C$50)*(D$51-D$50)/(C$51-C$50)),IF(F24*100<=C$52,D$51+((F24*100-C$51)*(D$52-D$51)/(C$52-C$51)),D$52))))),0) -> 0 | H24: 0 | X24: =Dem!X42 -> 0
A25: =Dem!A43 -> 17 | B25: =Dem!B43 ->  | C25: =Dem!C43 -> 0 | D25: =Dem!D43 -> 0 | E25: =Dem!G43 -> 0 | F25: 0 | G25: =IF(X25=1,(Rel!$C$48-NORMINV(F25,0,IF(F25*100<=C$50,D$50,IF(F25*100<=C$51,D$50+((F25*100-C$50)*(D$51-D$50)/(C$51-C$50)),IF(F25*100<=C$52,D$51+((F25*100-C$51)*(D$52-D$51)/(C$52-C$51)),D$52))))),0) -> 0 | H25: 0 | X25: =Dem!X43 -> 0
A26: =Dem!A44 -> 18 | B26: =Dem!B44 ->  | C26: =Dem!C44 -> 0 | D26: =Dem!D44 -> 0 | E26: =Dem!G44 -> 0 | F26: 0 | G26: =IF(X26=1,(Rel!$C$48-NORMINV(F26,0,IF(F26*100<=C$50,D$50,IF(F26*100<=C$51,D$50+((F26*100-C$50)*(D$51-D$50)/(C$51-C$50)),IF(F26*100<=C$52,D$51+((F26*100-C$51)*(D$52-D$51)/(C$52-C$51)),D$52))))),0) -> 0 | H26: 0 | X26: =Dem!X44 -> 0
A27: =Dem!A45 -> 19 | B27: =Dem!B45 ->  | C27: =Dem!C45 -> 0 | D27: =Dem!D45 -> 0 | E27: =Dem!G45 -> 0 | F27: 0 | G27: =IF(X27=1,(Rel!$C$48-NORMINV(F27,0,IF(F27*100<=C$50,D$50,IF(F27*100<=C$51,D$50+((F27*100-C$50)*(D$51-D$50)/(C$51-C$50)),IF(F27*100<=C$52,D$51+((F27*100-C$51)*(D$52-D$51)/(C$52-C$51)),D$52))))),0) -> 0 | H27: 0 | X27: =Dem!X45 -> 0
A28: =Dem!A46 -> 20 | B28: =Dem!B46 ->  | C28: =Dem!C46 -> 0 | D28: =Dem!D46 -> 0 | E28: =Dem!G46 -> 0 | F28: 0 | G28: =IF(X28=1,(Rel!$C$48-NORMINV(F28,0,IF(F28*100<=C$50,D$50,IF(F28*100<=C$51,D$50+((F28*100-C$50)*(D$51-D$50)/(C$51-C$50)),IF(F28*100<=C$52,D$51+((F28*100-C$51)*(D$52-D$51)/(C$52-C$51)),D$52))))),0) -> 0 | H28: 0 | X28: =Dem!X46 -> 0
B31: total | H31: =SUM(H9:H30) -> 0 | I31: =SUM(I9:I30) ->  | K31: =SUM(K9:K30) ->  | L31: =SUM(L9:L30) -> 
B33: Assumptions:
B35: Perinatal Mortality: Deaths / 1000 live births: | L35: =Rel!C87 -> 0
B36: Prevalence of anemia among pregnant women: | L36: =Prev!C45/100 -> 0
B37: Target prevalence of anemia among pregnant women: | L37: =Prev!E45/100 -> 0
B38: Proportion of perinatal mortality due to iron deficiency anemia: | L38: =1-L39^L44 -> 
B39: RR of perinatal mortality associated with a 1 g/dL increase in hemoglobin: | L39: =Rel!C59 -> 0.84
B40: Mean hemoglobin level at current prevalence: | L40: =Rel!C48-NORMINV(L36,0,Rel!C55) -> 
B41: Mean hemoglobin level at target prevalence: | L41: =Rel!C48-NORMINV(L37,0,Rel!C56) -> 
B42: Mean hemoglobin level in absence of iron deficiency: | L42: =Rel!C48-NORMINV(L36*(1-Rel!C60),0,Rel!C57) -> 
B43: Difference in mean hemoglobin at target prevalence | L43: =L41-L40 -> 
B44: Difference in mean hemoglobin in absence of iron deficiency: | L44: =L42-L40 -> 
B46: Number of years in projection: | L46: =Dem!D23 -> 1
B48: SD Assumptions (derived from Stotzfus et al.)
B49: Prevalence (%) | D49: SD
B50: <= | C50: =Rel!C52 -> 10 | D50: =Rel!C49 -> 1
B51: = | C51: =Rel!C53 -> 22.5 | D51: =Rel!C50 -> 1.2
B52: >= | C52: =Rel!C54 -> 35 | D52: =Rel!C51 -> 1.5

Sheet IDAmort (Mother) (hidden)
A2: =Prev!A4 -> 
A3: The Effects of Iron Deficiency Anemia on Maternal Mortality
H6: Maternal Deaths
C7: Population (millions) | H7: Status Quo | K7: Improved | L7: Deaths | X7: =Dem!X25 -> 1=in time period
B8: Year | C8: Total | D8: Reprod. | E8: Births | F8: Prevalence | G8: mean Hg | H8: Total | I8: IDA | K8: Total | L8: Averted | X8: =Dem!X26 -> 0=not in time period
A9: =Dem!A27 -> 1 | B9: =Dem!B27 ->  | C9: =Dem!C27 -> 0 | D9: =Dem!D27 -> 0 | E9: =Dem!G27 -> 0 | F9: =IF(X9=1,($L$36-((A9-1)*($L$36-$L$37)/($L$46-1))),0) -> 0 | G9: =IF(X9=1,(Rel!$C$48-NORMINV(F9,0,IF(F9*100<=C$50,D$50,IF(F9*100<=C$51,D$50+((F9*100-C$50)*(D$51-D$50)/(C$51-C$50)),IF(F9*100<=C$52,D$51+((F9*100-C$51)*(D$52-D$51)/(C$52-C$51)),D$52))))),0) -> 0 | H9: =(E9*$L$35)*10 -> 0 | I9: =H9*$L$38 ->  | K9: =H9*($L$39^(G9-$L$40)) ->  | L9: =H9-K9 ->  | X9: =Dem!X27 -> 0
A10: =Dem!A28 -> 2 | B10: =Dem!B28 ->  | C10: =Dem!C28 -> 0 | D10: =Dem!D28 -> 0 | E10: =Dem!G28 -> 0 | F10: 0 | G10: =IF(X10=1,(Rel!$C$48-NORMINV(F10,0,IF(F10*100<=C$50,D$50,IF(F10*100<=C$51,D$50+((F10*100-C$50)*(D$51-D$50)/(C$51-C$50)),IF(F10*100<=C$52,D$51+((F10*100-C$51)*(D$52-D$51)/(C$52-C$51)),D$52))))),0) -> 0 | H10: 0 | X10: =Dem!X28 -> 0
A11: =Dem!A29 -> 3 | B11: =Dem!B29 ->  | C11: =Dem!C29 -> 0 | D11: =Dem!D29 -> 0 | E11: =Dem!G29 -> 0 | F11: 0 | G11: =IF(X11=1,(Rel!$C$48-NORMINV(F11,0,IF(F11*100<=C$50,D$50,IF(F11*100<=C$51,D$50+((F11*100-C$50)*(D$51-D$50)/(C$51-C$50)),IF(F11*100<=C$52,D$51+((F11*100-C$51)*(D$52-D$51)/(C$52-C$51)),D$52))))),0) -> 0 | H11: 0 | X11: =Dem!X29 -> 0
A12: =Dem!A30 -> 4 | B12: =Dem!B30 ->  | C12: =Dem!C30 -> 0 | D12: =Dem!D30 -> 0 | E12: =Dem!G30 -> 0 | F12: 0 | G12: =IF(X12=1,(Rel!$C$48-NORMINV(F12,0,IF(F12*100<=C$50,D$50,IF(F12*100<=C$51,D$50+((F12*100-C$50)*(D$51-D$50)/(C$51-C$50)),IF(F12*100<=C$52,D$51+((F12*100-C$51)*(D$52-D$51)/(C$52-C$51)),D$52))))),0) -> 0 | H12: 0 | X12: =Dem!X30 -> 0
A13: =Dem!A31 -> 5 | B13: =Dem!B31 ->  | C13: =Dem!C31 -> 0 | D13: =Dem!D31 -> 0 | E13: =Dem!G31 -> 0 | F13: 0 | G13: =IF(X13=1,(Rel!$C$48-NORMINV(F13,0,IF(F13*100<=C$50,D$50,IF(F13*100<=C$51,D$50+((F13*100-C$50)*(D$51-D$50)/(C$51-C$50)),IF(F13*100<=C$52,D$51+((F13*100-C$51)*(D$52-D$51)/(C$52-C$51)),D$52))))),0) -> 0 | H13: 0 | X13: =Dem!X31 -> 0
A14: =Dem!A32 -> 6 | B14: =Dem!B32 ->  | C14: =Dem!C32 -> 0 | D14: =Dem!D32 -> 0 | E14: =Dem!G32 -> 0 | F14: 0 | G14: =IF(X14=1,(Rel!$C$48-NORMINV(F14,0,IF(F14*100<=C$50,D$50,IF(F14*100<=C$51,D$50+((F14*100-C$50)*(D$51-D$50)/(C$51-C$50)),IF(F14*100<=C$52,D$51+((F14*100-C$51)*(D$52-D$51)/(C$52-C$51)),D$52))))),0) -> 0 | H14: 0 | X14: =Dem!X32 -> 0
A15: =Dem!A33 -> 7 | B15: =Dem!B33 ->  | C15: =Dem!C33 -> 0 | D15: =Dem!D33 -> 0 | E15: =Dem!G33 -> 0 | F15: 0 | G15: =IF(X15=1,(Rel!$C$48-NORMINV(F15,0,IF(F15*100<=C$50,D$50,IF(F15*100<=C$51,D$50+((F15*100-C$50)*(D$51-D$50)/(C$51-C$50)),IF(F15*100<=C$52,D$51+((F15*100-C$51)*(D$52-D$51)/(C$52-C$51)),D$52))))),0) -> 0 | H15: 0 | X15: =Dem!X33 -> 0
A16: =Dem!A34 -> 8 | B16: =Dem!B34 ->  | C16: =Dem!C34 -> 0 | D16: =Dem!D34 -> 0 | E16: =Dem!G34 -> 0 | F16: 0 | G16: =IF(X16=1,(Rel!$C$48-NORMINV(F16,0,IF(F16*100<=C$50,D$50,IF(F16*100<=C$51,D$50+((F16*100-C$50)*(D$51-D$50)/(C$51-C$50)),IF(F16*100<=C$52,D$51+((F16*100-C$51)*(D$52-D$51)/(C$52-C$51)),D$52))))),0) -> 0 | H16: 0 | X16: =Dem!X34 -> 0
A17: =Dem!A35 -> 9 | B17: =Dem!B35 ->  | C17: =Dem!C35 -> 0 | D17: =Dem!D35 -> 0 | E17: =Dem!G35 -> 0 | F17: 0 | G17: =IF(X17=1,(Rel!$C$48-NORMINV(F17,0,IF(F17*100<=C$50,D$50,IF(F17*100<=C$51,D$50+((F17*100-C$50)*(D$51-D$50)/(C$51-C$50)),IF(F17*100<=C$52,D$51+((F17*100-C$51)*(D$52-D$51)/(C$52-C$51)),D$52))))),0) -> 0 | H17: =(E17*$L$35)*10 -> 0 | K17: =H17*($L$39^(G17-$L$40)) ->  | L17: =H17-K17 ->  | X17: =Dem!X35 -> 0
A18: =Dem!A36 -> 10 | B18: =Dem!B36 ->  | C18: =Dem!C36 -> 0 | D18: =Dem!D36 -> 0 | E18: =Dem!G36 -> 0 | F18: 0 | G18: =IF(X18=1,(Rel!$C$48-NORMINV(F18,0,IF(F18*100<=C$50,D$50,IF(F18*100<=C$51,D$50+((F18*100-C$50)*(D$51-D$50)/(C$51-C$50)),IF(F18*100<=C$52,D$51+((F18*100-C$51)*(D$52-D$51)/(C$52-C$51)),D$52))))),0) -> 0 | H18: 0 | X18: =Dem!X36 -> 0
A19: =Dem!A37 -> 11 | B19: =Dem!B37 ->  | C19: =Dem!C37 -> 0 | D19: =Dem!D37 -> 0 | E19: =Dem!G37 -> 0 | F19: 0 | G19: =IF(X19=1,(Rel!$C$48-NORMINV(F19,0,IF(F19*100<=C$50,D$50,IF(F19*100<=C$51,D$50+((F19*100-C$50)*(D$51-D$50)/(C$51-C$50)),IF(F19*100<=C$52,D$51+((F19*100-C$51)*(D$52-D$51)/(C$52-C$51)),D$52))))),0) -> 0 | H19: 0 | I19: =H19*$L$38 ->  | X19: =Dem!X37 -> 0
A20: =Dem!A38 -> 12 | B20: =Dem!B38 ->  | C20: =Dem!C38 -> 0 | D20: =Dem!D38 -> 0 | E20: =Dem!G38 -> 0 | F20: 0 | G20: =IF(X20=1,(Rel!$C$48-NORMINV(F20,0,IF(F20*100<=C$50,D$50,IF(F20*100<=C$51,D$50+((F20*100-C$50)*(D$51-D$50)/(C$51-C$50)),IF(F20*100<=C$52,D$51+((F20*100-C$51)*(D$52-D$51)/(C$52-C$51)),D$52))))),0) -> 0 | H20: 0 | X20: =Dem!X38 -> 0
A21: =Dem!A39 -> 13 | B21: =Dem!B39 ->  | C21: =Dem!C39 -> 0 | D21: =Dem!D39 -> 0 | E21: =Dem!G39 -> 0 | F21: 0 | G21: =IF(X21=1,(Rel!$C$48-NORMINV(F21,0,IF(F21*100<=C$50,D$50,IF(F21*100<=C$51,D$50+((F21*100-C$50)*(D$51-D$50)/(C$51-C$50)),IF(F21*100<=C$52,D$51+((F21*100-C$51)*(D$52-D$51)/(C$52-C$51)),D$52))))),0) -> 0 | H21: 0 | X21: =Dem!X39 -> 0
A22: =Dem!A40 -> 14 | B22: =Dem!B40 ->  | C22: =Dem!C40 -> 0 | D22: =Dem!D40 -> 0 | E22: =Dem!G40 -> 0 | F22: 0 | G22: =IF(X22=1,(Rel!$C$48-NORMINV(F22,0,IF(F22*100<=C$50,D$50,IF(F22*100<=C$51,D$50+((F22*100-C$50)*(D$51-D$50)/(C$51-C$50)),IF(F22*100<=C$52,D$51+((F22*100-C$51)*(D$52-D$51)/(C$52-C$51)),D$52))))),0) -> 0 | H22: 0 | X22: =Dem!X40 -> 0
A23: =Dem!A41 -> 15 | B23: =Dem!B41 ->  | C23: =Dem!C41 -> 0 | D23: =Dem!D41 -> 0 | E23: =Dem!G41 -> 0 | F23: 0 | G23: =IF(X23=1,(Rel!$C$48-NORMINV(F23,0,IF(F23*100<=C$50,D$50,IF(F23*100<=C$51,D$50+((F23*100-C$50)*(D$51-D$50)/(C$51-C$50)),IF(F23*100<=C$52,D$51+((F23*100-C$51)*(D$52-D$51)/(C$52-C$51)),D$52))))),0) -> 0 | H23: 0 | X23: =Dem!X41 -> 0
A24: =Dem!A42 -> 16 | B24: =Dem!B42 ->  | C24: =Dem!C42 -> 0 | D24: =Dem!D42 -> 0 | E24: =Dem!G42 -> 0 | F24: 0 | G24: =IF(X24=1,(Rel!$C$48-NORMINV(F24,0,IF(F24*100<=C$50,D$50,IF(F24*100<=C$51,D$50+((F24*100-C$50)*(D$51-D$50)/(C$51-C$50)),IF(F24*100<=C$52,D$51+((F24*100-C$51)*(D$52-D$51)/(C$52-C$51)),D$52))))),0) -> 0 | H24: 0 | X24: =Dem!X42 -> 0
A25: =Dem!A43 -> 17 | B25: =Dem!B43 ->  | C25: =Dem!C43 -> 0 | D25: =Dem!D43 -> 0 | E25: =Dem!G43 -> 0 | F25: 0 | G25: =IF(X25=1,(Rel!$C$48-NORMINV(F25,0,IF(F25*100<=C$50,D$50,IF(F25*100<=C$51,D$50+((F25*100-C$50)*(D$51-D$50)/(C$51-C$50)),IF(F25*100<=C$52,D$51+((F25*100-C$51)*(D$52-D$51)/(C$52-C$51)),D$52))))),0) -> 0 | H25: 0 | X25: =Dem!X43 -> 0
A26: =Dem!A44 -> 18 | B26: =Dem!B44 ->  | C26: =Dem!C44 -> 0 | D26: =Dem!D44 -> 0 | E26: =Dem!G44 -> 0 | F26: 0 | G26: =IF(X26=1,(Rel!$C$48-NORMINV(F26,0,IF(F26*100<=C$50,D$50,IF(F26*100<=C$51,D$50+((F26*100-C$50)*(D$51-D$50)/(C$51-C$50)),IF(F26*100<=C$52,D$51+((F26*100-C$51)*(D$52-D$51)/(C$52-C$51)),D$52))))),0) -> 0 | H26: 0 | X26: =Dem!X44 -> 0
A27: =Dem!A45 -> 19 | B27: =Dem!B45 ->  | C27: =Dem!C45 -> 0 | D27: =Dem!D45 -> 0 | E27: =Dem!G45 -> 0 | F27: 0 | G27: =IF(X27=1,(Rel!$C$48-NORMINV(F27,0,IF(F27*100<=C$50,D$50,IF(F27*100<=C$51,D$50+((F27*100-C$50)*(D$51-D$50)/(C$51-C$50)),IF(F27*100<=C$52,D$51+((F27*100-C$51)*(D$52-D$51)/(C$52-C$51)),D$52))))),0) -> 0 | H27: 0 | X27: =Dem!X45 -> 0
A28: =Dem!A46 -> 20 | B28: =Dem!B46 ->  | C28: =Dem!C46 -> 0 | D28: =Dem!D46 -> 0 | E28: =Dem!G46 -> 0 | F28: 0 | G28: =IF(X28=1,(Rel!$C$48-NORMINV(F28,0,IF(F28*100<=C$50,D$50,IF(F28*100<=C$51,D$50+((F28*100-C$50)*(D$51-D$50)/(C$51-C$50)),IF(F28*100<=C$52,D$51+((F28*100-C$51)*(D$52-D$51)/(C$52-C$51)),D$52))))),0) -> 0 | H28: 0 | X28: =Dem!X46 -> 0
B31: total | H31: =SUM(H9:H30) -> 0 | I31: =SUM(I9:I30) ->  | K31: =SUM(K9:K30) ->  | L31: =SUM(L9:L30) -> 
B33: Assumptions:
B35: Maternal Mortality Ratio / 100 000 live births: | L35: =Rel!C82 -> 0
B36: Prevalence of anemia among pregnant women: | L36: =Prev!C45/100 -> 0
B37: Target prevalence of anemia among pregnant women: | L37: =Prev!E45/100 -> 0
B38: Proportion of maternal mortality due to iron deficiency anemia (PAF) (current prevalence): | L38: =1-L39^L44 -> 
B39: RR of maternal mortality associated with a 1 g/dL increase in hemoglobin: | L39: =Rel!C58 -> 0.71
B40: Mean hemoglobin level at current prevalence: | L40: =Rel!C48-NORMINV(L36,0,Rel!C55) -> 
B41: Mean hemoglobin level at target prevalence: | L41: =Rel!C48-NORMINV(L37,0,Rel!C56) -> 
B42: Mean hemoglobin level in absence of iron deficiency: | L42: =Rel!C48-NORMINV(L36*(1-Rel!C60),0,Rel!C57) -> 
B43: Difference in mean hemoglobin at target prevalence | L43: =L41-L40 -> 
B44: Difference in mean hemoglobin in absence of iron deficiency: | L44: =L42-L40 -> 
B46: Number of years in projection: | L46: =Dem!D23 -> 1
B48: SD Assumptions (derived from Stotzfus et al.)
B49: Prevalence (%) | D49: SD
B50: <= | C50: =Rel!C52 -> 10 | D50: =Rel!C49 -> 1
B51: = | C51: =Rel!C53 -> 22.5 | D51: =Rel!C50 -> 1.2
B52: >= | C52: =Rel!C54 -> 35 | D52: =Rel!C51 -> 1.5

Sheet SBmort (hidden)
A2: =Prev!A4 -> 
A3: The Effects of Suboptimal Breastfeeding on Mortality
H6: Deaths Attributable to Suboptimal Breastfeeding | P6: Intermediate Calculations | X6: Intermediate Calculations
H7: Status Quo | L7: Improved | P7: A. Breastfeeding Prevalences, Improved Scenario | X7: B. Population Attributable Fractions, Improved Scenario
D8: Deaths | N8: Deaths | P8: 0-5m | U8: 6-23m | X8: 0-5m | AB8: 6-23m | AJ8: =Dem!X25 -> 1=in time period
B9: Year | C9: U-5 | D9: 0-5m | E9: 6-23m | G9: 0-5m | H9: 6-23m | I9: Total | K9: 0-5m | L9: 6-23m | M9: Total | N9: Averted | P9: Exclusive | Q9: Predominant | R9: Partial | S9: None | U9: Some | V9: None | Y9: Predominant-Partial-None | AB9: None | AJ9: =Dem!X26 -> 0=not in time period
A10: =Dem!A27 -> 1 | B10: =Dem!B27 ->  | C10: =Dem!M27 -> 0 | D10: =Dem!N27+Dem!O27 -> 0 | E10: =Dem!Q27 -> 0 | G10: =$Y$10*D10 ->  | H10: =AB$10*E10 ->  | I10: =G10+H10 ->  | K10: =Y10*D10 ->  | L10: =AB10*E10 ->  | M10: =K10+L10 ->  | N10: =I10-M10 ->  | P10: =H38 -> 0 | Q10: =H39 -> 0 | R10: =H40 -> 0 | S10: =H41 ->  | U10: =H42 -> 0 | V10: =H43 ->  | Y10: =((Q10*($I$46-1))+(R10*($I$47-1))+(S10*($I$48-1)))/(1+Q10*($I$46-1)+R10*($I$47-1)+S10*($I$48-1)) ->  | AB10: =(V10*($I$49-1))/(1+(V10*($I$49-1))) ->  | AJ10: =Dem!X27 -> 0
A11: =Dem!A28 -> 2 | B11: =Dem!B28 ->  | C11: =Dem!M28 -> 0 | D11: =Dem!N28+Dem!O28 -> 0 | E11: =Dem!Q28 -> 0 | I11: =G11+H11 ->  | K11: =Y11*D11 -> 0 | L11: =AB11*E11 -> 0 | M11: =K11+L11 -> 0 | N11: =I11-M11 ->  | P11: =IF(AJ11=1,($H$38-((A11-1)*($H$38-$I$38)/($L$51-1))),0) -> 0 | Q11: =IF(AJ11=1,($H$39-((A11-1)*($H$39-$I$39)/($L$51-1))),0) -> 0 | R11: =IF(AJ11=1,($H$40-((A11-1)*($H$40-$I$40)/($L$51-1))),0) -> 0 | S11: =IF(AJ11=1,($H$41-((A11-1)*($H$41-$I$41)/($L$51-1))),0) -> 0 | U11: =IF(AJ11=1,($H$42-((A11-1)*($H$42-$I$42)/($L$51-1))),0) -> 0 | V11: =IF(AJ11=1,($H$43-((A11-1)*($H$43-$I$43)/($L$51-1))),0) -> 0 | Y11: =((Q11*($I$46-1))+(R11*($I$47-1))+(S11*($I$48-1)))/(1+Q11*($I$46-1)+R11*($I$47-1)+S11*($I$48-1)) -> 0 | AB11: 0 | AJ11: =Dem!X28 -> 0
A12: =Dem!A29 -> 3 | B12: =Dem!B29 ->  | C12: =Dem!M29 -> 0 | D12: =Dem!N29+Dem!O29 -> 0 | E12: =Dem!Q29 -> 0 | K12: 0 | L12: 0 | M12: 0 | P12: 0 | Q12: 0 | R12: 0 | S12: 0 | U12: 0 | V12: 0 | Y12: 0 | AB12: 0 | AJ12: =Dem!X29 -> 0
A13: =Dem!A30 -> 4 | B13: =Dem!B30 ->  | C13: =Dem!M30 -> 0 | D13: =Dem!N30+Dem!O30 -> 0 | E13: =Dem!Q30 -> 0 | K13: 0 | L13: 0 | M13: 0 | P13: 0 | Q13: 0 | R13: 0 | S13: 0 | U13: 0 | V13: 0 | Y13: 0 | AB13: 0 | AJ13: =Dem!X30 -> 0
A14: =Dem!A31 -> 5 | B14: =Dem!B31 ->  | C14: =Dem!M31 -> 0 | D14: =Dem!N31+Dem!O31 -> 0 | E14: =Dem!Q31 -> 0 | K14: 0 | L14: 0 | M14: 0 | P14: 0 | Q14: 0 | R14: 0 | S14: 0 | U14: 0 | V14: 0 | Y14: 0 | AB14: 0 | AJ14: =Dem!X31 -> 0
A15: =Dem!A32 -> 6 | B15: =Dem!B32 ->  | C15: =Dem!M32 -> 0 | D15: =Dem!N32+Dem!O32 -> 0 | E15: =Dem!Q32 -> 0 | K15: 0 | L15: 0 | M15: 0 | P15: 0 | Q15: 0 | R15: 0 | S15: 0 | U15: 0 | V15: 0 | Y15: 0 | AB15: 0 | AJ15: =Dem!X32 -> 0
A16: =Dem!A33 -> 7 | B16: =Dem!B33 ->  | C16: =Dem!M33 -> 0 | D16: =Dem!N33+Dem!O33 -> 0 | E16: =Dem!Q33 -> 0 | K16: 0 | L16: 0 | M16: 0 | P16: 0 | Q16: 0 | R16: 0 | S16: 0 | U16: 0 | V16: 0 | Y16: 0 | AB16: 0 | AJ16: =Dem!X33 -> 0
A17: =Dem!A34 -> 8 | B17: =Dem!B34 ->  | C17: =Dem!M34 -> 0 | D17: =Dem!N34+Dem!O34 -> 0 | E17: =Dem!Q34 -> 0 | K17: 0 | L17: 0 | M17: 0 | P17: 0 | Q17: 0 | R17: 0 | S17: 0 | U17: 0 | V17: 0 | Y17: 0 | AB17: 0 | AJ17: =Dem!X34 -> 0
A18: =Dem!A35 -> 9 | B18: =Dem!B35 ->  | C18: =Dem!M35 -> 0 | D18: =Dem!N35+Dem!O35 -> 0 | E18: =Dem!Q35 -> 0 | K18: 0 | L18: 0 | M18: 0 | P18: 0 | Q18: 0 | R18: 0 | S18: 0 | U18: 0 | V18: 0 | Y18: 0 | AB18: 0 | AJ18: =Dem!X35 -> 0
A19: =Dem!A36 -> 10 | B19: =Dem!B36 ->  | C19: =Dem!M36 -> 0 | D19: =Dem!N36+Dem!O36 -> 0 | E19: =Dem!Q36 -> 0 | K19: 0 | L19: 0 | M19: 0 | P19: 0 | Q19: 0 | R19: 0 | S19: 0 | U19: 0 | V19: 0 | Y19: 0 | AB19: 0 | AJ19: =Dem!X36 -> 0
A20: =Dem!A37 -> 11 | B20: =Dem!B37 ->  | C20: =Dem!M37 -> 0 | D20: =Dem!N37+Dem!O37 -> 0 | E20: =Dem!Q37 -> 0 | G20: =$Y$10*D20 ->  | K20: 0 | L20: 0 | M20: 0 | P20: 0 | Q20: 0 | R20: 0 | S20: 0 | U20: 0 | V20: 0 | Y20: 0 | AB20: 0 | AJ20: =Dem!X37 -> 0
A21: =Dem!A38 -> 12 | B21: =Dem!B38 ->  | C21: =Dem!M38 -> 0 | D21: =Dem!N38+Dem!O38 -> 0 | E21: =Dem!Q38 -> 0 | K21: 0 | L21: 0 | M21: 0 | P21: 0 | Q21: 0 | R21: 0 | S21: 0 | U21: 0 | V21: 0 | Y21: 0 | AB21: 0 | AJ21: =Dem!X38 -> 0
A22: =Dem!A39 -> 13 | B22: =Dem!B39 ->  | C22: =Dem!M39 -> 0 | D22: =Dem!N39+Dem!O39 -> 0 | E22: =Dem!Q39 -> 0 | K22: 0 | L22: 0 | M22: 0 | P22: 0 | Q22: 0 | R22: 0 | S22: 0 | U22: 0 | V22: 0 | Y22: 0 | AB22: 0 | AJ22: =Dem!X39 -> 0
A23: =Dem!A40 -> 14 | B23: =Dem!B40 ->  | C23: =Dem!M40 -> 0 | D23: =Dem!N40+Dem!O40 -> 0 | E23: =Dem!Q40 -> 0 | H23: =AB$10*E23 ->  | I23: =G23+H23 ->  | K23: 0 | L23: =AB23*E23 -> 0 | M23: =K23+L23 -> 0 | N23: =I23-M23 ->  | P23: 0 | Q23: 0 | R23: 0 | S23: 0 | U23: 0 | V23: 0 | Y23: 0 | AB23: =(V23*($I$49-1))/(1+(V23*($I$49-1))) -> 0 | AJ23: =Dem!X40 -> 0
A24: =Dem!A41 -> 15 | B24: =Dem!B41 ->  | C24: =Dem!M41 -> 0 | D24: =Dem!N41+Dem!O41 -> 0 | E24: =Dem!Q41 -> 0 | K24: 0 | L24: 0 | M24: 0 | P24: 0 | Q24: 0 | R24: 0 | S24: 0 | U24: 0 | V24: 0 | Y24: 0 | AB24: 0 | AJ24: =Dem!X41 -> 0
A25: =Dem!A42 -> 16 | B25: =Dem!B42 ->  | C25: =Dem!M42 -> 0 | D25: =Dem!N42+Dem!O42 -> 0 | E25: =Dem!Q42 -> 0 | K25: 0 | L25: 0 | M25: 0 | P25: 0 | Q25: 0 | R25: 0 | S25: 0 | U25: 0 | V25: 0 | Y25: 0 | AB25: 0 | AJ25: =Dem!X42 -> 0
A26: =Dem!A43 -> 17 | B26: =Dem!B43 ->  | C26: =Dem!M43 -> 0 | D26: =Dem!N43+Dem!O43 -> 0 | E26: =Dem!Q43 -> 0 | K26: 0 | L26: 0 | M26: 0 | P26: 0 | Q26: 0 | R26: 0 | S26: 0 | U26: 0 | V26: 0 | Y26: 0 | AB26: 0 | AJ26: =Dem!X43 -> 0
A27: =Dem!A44 -> 18 | B27: =Dem!B44 ->  | C27: =Dem!M44 -> 0 | D27: =Dem!N44+Dem!O44 -> 0 | E27: =Dem!Q44 -> 0 | K27: 0 | L27: 0 | M27: 0 | P27: 0 | Q27: 0 | R27: 0 | S27: 0 | U27: 0 | V27: 0 | Y27: 0 | AB27: 0 | AJ27: =Dem!X44 -> 0
A28: =Dem!A45 -> 19 | B28: =Dem!B45 ->  | C28: =Dem!M45 -> 0 | D28: =Dem!N45+Dem!O45 -> 0 | E28: =Dem!Q45 -> 0 | K28: 0 | L28: 0 | M28: 0 | P28: 0 | Q28: 0 | R28: 0 | S28: 0 | U28: 0 | V28: 0 | Y28: 0 | AB28: 0 | AJ28: =Dem!X45 -> 0
A29: =Dem!A46 -> 20 | B29: =Dem!B46 ->  | C29: =Dem!M46 -> 0 | D29: =Dem!N46+Dem!O46 -> 0 | E29: =Dem!Q46 -> 0 | K29: 0 | L29: 0 | M29: 0 | P29: 0 | Q29: 0 | R29: 0 | S29: 0 | U29: 0 | V29: 0 | Y29: 0 | AB29: 0 | AJ29: =Dem!X46 -> 0
B32: total | C32: =SUM(C10:C31) -> 0 | D32: =SUM(D10:D31) -> 0 | E32: =SUM(E10:E31) -> 0 | G32: =SUM(G10:G31) ->  | H32: =SUM(H10:H31) ->  | I32: =SUM(I10:I31) ->  | K32: =SUM(K10:K31) ->  | L32: =SUM(L10:L31) ->  | M32: =SUM(M10:M31) ->  | N32: =SUM(N10:N31) -> 
B34: Assumptions:
B37: Prevalence (Proportion) | H37: Prevalence | I37: Target
B38: =Prev!B58 -> Exclusive breastfeeding 0-5 months | H38: =Prev!C58/100 -> 0 | I38: =Prev!E58/100 -> 0
B39: =Prev!B59 -> Predominant breastfeeding 0-5 months | H39: =Prev!C59/100 -> 0 | I39: =Prev!E59/100 -> 0
B40: =Prev!B60 -> Partial breastfeeding 0-5 months | H40: =Prev!C60/100 -> 0 | I40: =Prev!E60/100 -> 0
B41: =Prev!B61 -> No breastfeeding 0-5 months | H41: =Prev!C61/100 ->  | I41: =Prev!E61/100 -> 
B42: =Prev!B62 -> Some breastfeeding 6-23 months | H42: =Prev!C62/100 -> 0 | I42: =Prev!E62/100 -> 0
B43: =Prev!B63 -> No breastfeeding 6-23 months | H43: =Prev!C63/100 ->  | I43: =Prev!E63/100 -> 
B45: Relative Risks
B46: =Rel!B123 -> RR all-cause mortality, predominant BF vs exclusive BF (0-5 months) | I46: =Rel!C123 -> 1.48
B47: =Rel!B124 -> RR all-cause mortality, partial BF vs exclusive BF (0-5 months) | I47: =Rel!C124 -> 2.84
B48: =Rel!B125 -> RR all-cause mortality, no BF vs exclusive BF (0-5 months) | I48: =Rel!C125 -> 14.4
B49: =Rel!B126 -> RR all-cause mortality, no BF vs partial BF (6-23 months) | I49: =Rel!C126 -> 3.69
B51: Number of years in projection: | L51: =Dem!D23 -> 1
B53: Proportion of child deaths attributable to suboptimal breasfeeding (status quo scenario): | L53: =I32/C32 -> 

Sheet SBowob (hidden)
A2: =Prev!A4 -> 
A3: The Effects of Suboptimal Breastfeeding on Child Overweight and Obesity
K6: Intermediate Calculations | R6: Intermediate Calculations
G7: Cases Attributable to | K7: A. Breastfeeding Prevalences, Improved Scenario | R7: B. Population Attributable Fraction, Improved Scenario
B8: Population (millions) | D8: Ow+Ob | G8: Suboptimal Breastfeeding | I8: Cases | K8: 0-5m | X8: =Dem!X25 -> 1=in time period
B9: Year | C9: 48-59m | D9: Cases | F9: Status Quo | H9: Improved | I9: Averted | K9: Exclusive | M9: Other (predominant, partial, none) | X9: =Dem!X26 -> 0=not in time period
A10: =Dem!A27 -> 1 | B10: =Dem!B27 ->  | C10: =Dem!K27 -> 0 | D10: =C10*P$39*1000000 -> 0 | F10: =R$10*D10 -> 0 | H10: =R10*D10 -> 0 | I10: =F10-H10 -> 0 | K10: =IF(X10=1,($P$36-((A10-1)*($P$36-$P$37)/($P$41-1))),0) -> 0 | M10: =IF(X10=1,(1-K10),0) -> 0 | R10: =(M10*($P$38-1))/(1+(M10*($P$38-1))) -> 0 | X10: =Dem!X27 -> 0
A11: =Dem!A28 -> 2 | B11: =Dem!B28 ->  | C11: =Dem!K28 -> 0 | D11: 0 | F11: 0 | H11: 0 | I11: 0 | K11: 0 | M11: 0 | R11: 0 | X11: =Dem!X28 -> 0
A12: =Dem!A29 -> 3 | B12: =Dem!B29 ->  | C12: =Dem!K29 -> 0 | D12: 0 | F12: 0 | H12: 0 | I12: 0 | K12: 0 | M12: 0 | R12: 0 | X12: =Dem!X29 -> 0
A13: =Dem!A30 -> 4 | B13: =Dem!B30 ->  | C13: =Dem!K30 -> 0 | D13: 0 | F13: 0 | H13: 0 | I13: 0 | K13: 0 | M13: 0 | R13: 0 | X13: =Dem!X30 -> 0
A14: =Dem!A31 -> 5 | B14: =Dem!B31 ->  | C14: =Dem!K31 -> 0 | D14: 0 | F14: 0 | H14: 0 | I14: 0 | K14: 0 | M14: 0 | R14: 0 | X14: =Dem!X31 -> 0
A15: =Dem!A32 -> 6 | B15: =Dem!B32 ->  | C15: =Dem!K32 -> 0 | D15: 0 | F15: 0 | H15: 0 | I15: 0 | K15: 0 | M15: 0 | R15: 0 | X15: =Dem!X32 -> 0
A16: =Dem!A33 -> 7 | B16: =Dem!B33 ->  | C16: =Dem!K33 -> 0 | D16: 0 | F16: 0 | H16: 0 | I16: 0 | K16: 0 | M16: 0 | R16: 0 | X16: =Dem!X33 -> 0
A17: =Dem!A34 -> 8 | B17: =Dem!B34 ->  | C17: =Dem!K34 -> 0 | D17: 0 | F17: 0 | H17: 0 | I17: 0 | K17: 0 | M17: 0 | R17: 0 | X17: =Dem!X34 -> 0
A18: =Dem!A35 -> 9 | B18: =Dem!B35 ->  | C18: =Dem!K35 -> 0 | D18: 0 | F18: 0 | H18: 0 | I18: 0 | K18: 0 | M18: 0 | R18: 0 | X18: =Dem!X35 -> 0
A19: =Dem!A36 -> 10 | B19: =Dem!B36 ->  | C19: =Dem!K36 -> 0 | D19: 0 | F19: 0 | H19: 0 | I19: 0 | K19: 0 | M19: 0 | R19: 0 | X19: =Dem!X36 -> 0
A20: =Dem!A37 -> 11 | B20: =Dem!B37 ->  | C20: =Dem!K37 -> 0 | D20: 0 | F20: 0 | H20: 0 | I20: 0 | K20: 0 | M20: 0 | R20: 0 | X20: =Dem!X37 -> 0
A21: =Dem!A38 -> 12 | B21: =Dem!B38 ->  | C21: =Dem!K38 -> 0 | D21: 0 | F21: 0 | H21: 0 | I21: 0 | K21: 0 | M21: 0 | R21: 0 | X21: =Dem!X38 -> 0
A22: =Dem!A39 -> 13 | B22: =Dem!B39 ->  | C22: =Dem!K39 -> 0 | D22: 0 | F22: 0 | H22: 0 | I22: 0 | K22: 0 | M22: 0 | R22: 0 | X22: =Dem!X39 -> 0
A23: =Dem!A40 -> 14 | B23: =Dem!B40 ->  | C23: =Dem!K40 -> 0 | D23: =C23*P$39*1000000 -> 0 | F23: =R$10*D23 -> 0 | H23: =R23*D23 -> 0 | I23: =F23-H23 -> 0 | K23: 0 | M23: 0 | R23: =(M23*($P$38-1))/(1+(M23*($P$38-1))) -> 0 | X23: =Dem!X40 -> 0
A24: =Dem!A41 -> 15 | B24: =Dem!B41 ->  | C24: =Dem!K41 -> 0 | D24: =C24*P$39*1000000 -> 0 | F24: =R$10*D24 -> 0 | H24: =R24*D24 -> 0 | I24: =F24-H24 -> 0 | K24: 0 | M24: 0 | R24: =(M24*($P$38-1))/(1+(M24*($P$38-1))) -> 0 | X24: =Dem!X41 -> 0
A25: =Dem!A42 -> 16 | B25: =Dem!B42 ->  | C25: =Dem!K42 -> 0 | D25: 0 | F25: 0 | H25: 0 | I25: 0 | K25: 0 | M25: 0 | R25: 0 | X25: =Dem!X42 -> 0
A26: =Dem!A43 -> 17 | B26: =Dem!B43 ->  | C26: =Dem!K43 -> 0 | D26: 0 | F26: 0 | H26: 0 | I26: 0 | K26: 0 | M26: 0 | R26: 0 | X26: =Dem!X43 -> 0
A27: =Dem!A44 -> 18 | B27: =Dem!B44 ->  | C27: =Dem!K44 -> 0 | D27: 0 | F27: 0 | H27: 0 | I27: 0 | K27: 0 | M27: 0 | R27: 0 | X27: =Dem!X44 -> 0
A28: =Dem!A45 -> 19 | B28: =Dem!B45 ->  | C28: =Dem!K45 -> 0 | D28: 0 | F28: 0 | H28: 0 | I28: 0 | K28: 0 | M28: 0 | R28: 0 | X28: =Dem!X45 -> 0
A29: =Dem!A46 -> 20 | B29: =Dem!B46 ->  | C29: =Dem!K46 -> 0 | D29: 0 | F29: 0 | H29: 0 | I29: 0 | K29: 0 | M29: 0 | R29: 0 | X29: =Dem!X46 -> 0
B32: total | D32: =SUM(D10:D31) -> 0 | F32: =SUM(F10:F31) -> 0 | H32: =SUM(H10:H31) -> 0 | I32: =SUM(I10:I31) -> 0
B34: Assumptions:
B36: Prevalence (proportion) of exclusive breastfeeding 4-5 months | P36: =Prev!C65/100 -> 0
B37: Target prevalence of exclusive breastfeeding 0-5 months | P37: =Prev!E65/100 -> 0
B38: =Rel!B127 -> RR overweight + obesity (48-59 months), non-exclusive BF vs exclusive BF (0-5 months) | P38: =Rel!C127 -> 1.33
B39: =Prev!B55 -> Overweight + obesity at 48-59 months (% Weight/Height > +2 SD) | P39: =Prev!C55/100 -> 0
B41: Number of years in projection: | P41: =Dem!D23 -> 1
B43: Proportion of child overweight and obesity at age 48-59m attributable to suboptimal breasfeeding (status quo scenario): | P43: =R10 -> 0

Sheet LIBmort (neonatal) (hidden)
A2: =Prev!A4 -> 
A3: The Effects of Late Initiation of Breastfeeding on Neonatal Mortality
D6: Prevalence of
D7: Late Initiation | F7: Neonatal Deaths Attributable to | I7: Neonatal Deaths Attributable to | P7: Intermediate Calculations | T7: Intermediate Calculations
C8: Neonatal | D8: (Improved | F8: Never Breastfeeding | I8: Late Initiation of Breastfeeding | M8: Neonatal Deaths Averted | P8: A. Breastfeeding Prevalences, Improved Scenario | T8: B. Population Attributable Fractions, Improved Scenario | AA8: =Dem!X25 -> 1=in time period
B9: Year | C9: Deaths | D9: Scenario) | F9: Status Quo | G9: Improved | I9: Status Quo | J9: Improved | L9: Never BF | M9: Late Initiation | N9: Total | P9: Within 1 hour | Q9: Late | R9: Never | T9: Late Initiation | U9: Never Breastfed | AA9: =Dem!X26 -> 0=not in time period
A10: =Dem!A27 -> 1 | B10: =Dem!B27 ->  | C10: =Dem!N27 -> 0 | D10: =IF(AA10=1,($G$38-((A10-1)*($G$38-$I$38)/($M$43-1))),0) -> 0 | F10: =(1-$M$42)*$M$46*C10 -> 0 | G10: =(1-$M$42)*U10*C10 -> 0 | I10: =(1-$M$42)*$M$45*C10 -> 0 | J10: =(1-$M$42)*T10*C10 -> 0 | L10: =F10-G10 -> 0 | M10: =I10-J10 -> 0 | N10: =L10+M10 -> 0 | P10: =IF(AA10=1,($G$36-((A10-1)*($G$36-$I$36)/($M$43-1))),0) -> 0 | Q10: =IF(AA10=1,($G$38-((A10-1)*($G$38-$I$38)/($M$43-1))),0) -> 0 | R10: =IF(AA10=1,1-($G$37-((A10-1)*($G$37-$I$37)/($M$43-1))),0) -> 0 | T10: =(Q10*($M$40-1))/(1+Q10*($M$40-1)+R10*($M$41-1)) -> 0 | U10: =(R10*($M$41-1))/(1+Q10*($M$40-1)+R10*($M$41-1)) -> 0 | AA10: =Dem!X27 -> 0
A11: =Dem!A28 -> 2 | B11: =Dem!B28 ->  | C11: =Dem!N28 -> 0 | D11: 0 | F11: 0 | G11: 0 | I11: 0 | J11: 0 | L11: =F11-G11 -> 0 | M11: =I11-J11 -> 0 | N11: =L11+M11 -> 0 | P11: 0 | Q11: 0 | R11: 0 | T11: 0 | U11: 0 | AA11: =Dem!X28 -> 0
A12: =Dem!A29 -> 3 | B12: =Dem!B29 ->  | C12: =Dem!N29 -> 0 | D12: 0 | F12: 0 | G12: 0 | I12: 0 | J12: 0 | L12: 0 | M12: 0 | N12: 0 | P12: 0 | Q12: 0 | R12: 0 | T12: 0 | U12: 0 | AA12: =Dem!X29 -> 0
A13: =Dem!A30 -> 4 | B13: =Dem!B30 ->  | C13: =Dem!N30 -> 0 | D13: 0 | F13: 0 | G13: 0 | I13: 0 | J13: 0 | L13: 0 | M13: 0 | N13: 0 | P13: 0 | Q13: 0 | R13: 0 | T13: 0 | U13: 0 | AA13: =Dem!X30 -> 0
A14: =Dem!A31 -> 5 | B14: =Dem!B31 ->  | C14: =Dem!N31 -> 0 | D14: 0 | F14: 0 | G14: 0 | I14: 0 | J14: 0 | L14: 0 | M14: 0 | N14: 0 | P14: 0 | Q14: 0 | R14: 0 | T14: 0 | U14: 0 | AA14: =Dem!X31 -> 0
A15: =Dem!A32 -> 6 | B15: =Dem!B32 ->  | C15: =Dem!N32 -> 0 | D15: 0 | F15: 0 | G15: 0 | I15: 0 | J15: 0 | L15: 0 | M15: 0 | N15: 0 | P15: 0 | Q15: 0 | R15: 0 | T15: 0 | U15: 0 | AA15: =Dem!X32 -> 0
A16: =Dem!A33 -> 7 | B16: =Dem!B33 ->  | C16: =Dem!N33 -> 0 | D16: 0 | F16: 0 | G16: 0 | I16: 0 | J16: 0 | L16: 0 | M16: 0 | N16: 0 | P16: 0 | Q16: 0 | R16: 0 | T16: 0 | U16: 0 | AA16: =Dem!X33 -> 0
A17: =Dem!A34 -> 8 | B17: =Dem!B34 ->  | C17: =Dem!N34 -> 0 | D17: 0 | F17: 0 | G17: 0 | I17: 0 | J17: 0 | L17: 0 | M17: 0 | N17: 0 | P17: 0 | Q17: 0 | R17: 0 | T17: 0 | U17: 0 | AA17: =Dem!X34 -> 0
A18: =Dem!A35 -> 9 | B18: =Dem!B35 ->  | C18: =Dem!N35 -> 0 | D18: 0 | F18: 0 | G18: 0 | I18: 0 | J18: 0 | L18: 0 | M18: 0 | N18: 0 | P18: 0 | Q18: 0 | R18: 0 | T18: 0 | U18: 0 | AA18: =Dem!X35 -> 0
A19: =Dem!A36 -> 10 | B19: =Dem!B36 ->  | C19: =Dem!N36 -> 0 | D19: 0 | F19: 0 | G19: 0 | I19: 0 | J19: 0 | L19: 0 | M19: 0 | N19: 0 | P19: 0 | Q19: 0 | R19: 0 | T19: 0 | U19: 0 | AA19: =Dem!X36 -> 0
A20: =Dem!A37 -> 11 | B20: =Dem!B37 ->  | C20: =Dem!N37 -> 0 | D20: 0 | F20: 0 | G20: 0 | I20: 0 | J20: 0 | L20: 0 | M20: 0 | N20: 0 | P20: 0 | Q20: 0 | R20: 0 | T20: 0 | U20: 0 | AA20: =Dem!X37 -> 0
A21: =Dem!A38 -> 12 | B21: =Dem!B38 ->  | C21: =Dem!N38 -> 0 | D21: 0 | F21: 0 | G21: 0 | I21: 0 | J21: 0 | L21: 0 | M21: 0 | N21: 0 | P21: 0 | Q21: 0 | R21: 0 | T21: 0 | U21: 0 | AA21: =Dem!X38 -> 0
A22: =Dem!A39 -> 13 | B22: =Dem!B39 ->  | C22: =Dem!N39 -> 0 | D22: 0 | F22: 0 | G22: 0 | I22: 0 | J22: 0 | L22: 0 | M22: 0 | N22: 0 | P22: 0 | Q22: 0 | R22: 0 | T22: 0 | U22: 0 | AA22: =Dem!X39 -> 0
A23: =Dem!A40 -> 14 | B23: =Dem!B40 ->  | C23: =Dem!N40 -> 0 | D23: 0 | F23: 0 | G23: 0 | I23: 0 | J23: 0 | L23: 0 | M23: 0 | N23: 0 | P23: 0 | Q23: 0 | R23: 0 | T23: 0 | U23: 0 | AA23: =Dem!X40 -> 0
A24: =Dem!A41 -> 15 | B24: =Dem!B41 ->  | C24: =Dem!N41 -> 0 | D24: 0 | F24: 0 | G24: 0 | I24: 0 | J24: 0 | L24: 0 | M24: 0 | N24: 0 | P24: 0 | Q24: 0 | R24: 0 | T24: 0 | U24: 0 | AA24: =Dem!X41 -> 0
A25: =Dem!A42 -> 16 | B25: =Dem!B42 ->  | C25: =Dem!N42 -> 0 | D25: 0 | F25: 0 | G25: 0 | I25: 0 | J25: 0 | L25: 0 | M25: 0 | N25: 0 | P25: 0 | Q25: 0 | R25: 0 | T25: 0 | U25: 0 | AA25: =Dem!X42 -> 0
A26: =Dem!A43 -> 17 | B26: =Dem!B43 ->  | C26: =Dem!N43 -> 0 | D26: 0 | F26: 0 | G26: 0 | I26: 0 | J26: 0 | L26: 0 | M26: 0 | N26: 0 | P26: 0 | Q26: 0 | R26: 0 | T26: 0 | U26: 0 | AA26: =Dem!X43 -> 0
A27: =Dem!A44 -> 18 | B27: =Dem!B44 ->  | C27: =Dem!N44 -> 0 | D27: 0 | F27: 0 | G27: 0 | I27: 0 | J27: 0 | L27: 0 | M27: 0 | N27: 0 | P27: 0 | Q27: 0 | R27: 0 | T27: 0 | U27: 0 | AA27: =Dem!X44 -> 0
A28: =Dem!A45 -> 19 | B28: =Dem!B45 ->  | C28: =Dem!N45 -> 0 | D28: 0 | F28: 0 | G28: 0 | I28: 0 | J28: 0 | L28: 0 | M28: 0 | N28: 0 | P28: 0 | Q28: 0 | R28: 0 | T28: 0 | U28: 0 | AA28: =Dem!X45 -> 0
A29: =Dem!A46 -> 20 | B29: =Dem!B46 ->  | C29: =Dem!N46 -> 0 | D29: 0 | F29: 0 | G29: 0 | I29: 0 | J29: 0 | L29: 0 | M29: 0 | N29: 0 | P29: 0 | Q29: 0 | R29: 0 | T29: 0 | U29: 0 | AA29: =Dem!X46 -> 0
B32: total | C32: =SUM(C10:C31) -> 0 | F32: =SUM(F10:F31) -> 0 | G32: 0 | I32: =SUM(I10:I31) -> 0 | J32: =SUM(J10:J31) -> 0 | L32: =SUM(L10:L31) -> 0 | M32: 0 | N32: =SUM(N10:N31) -> 0
B34: Assumptions:
B35: Prevalences | G35: Prevalence | I35: Target
B36: Started breastfeeding within 1 hour of birth | G36: =Prev!C66/100 -> 0 | I36: =Prev!E66/100 -> 0
B37: Ever breastfed | G37: =Prev!C67/100 -> 0 | I37: =Prev!E67/100 -> 0
B38: Late initiation of breastfeeding | G38: =G37-G36 -> 0 | I38: =I37-I36 -> 0
B40: Relative risk of neonatal mortality if not starting breastfeeding within 1 hour of birth (among infants ever breastfed) | M40: =Rel!C128 -> 1.53
B41: Relative risk of neonatal mortality if never breastfed | M41: =Rel!C129 -> 1.53
B42: Proportion of neonatal deaths occurring in the first 48 hours | M42: =Rel!C86 -> 0.545
B43: Number of years in projection: | M43: =Dem!D23 -> 1
B45: Proportion of neonatal deaths attributable to not starting breasfeeding within 1 hour of birth (status quo scenario): | M45: =(G38*(M40-1))/(1+(G38*(M40-1))+((1-G37)*(M41-1))) -> 0
B46: Proportion of neonatal deaths attributable to never breasfeeding (status quo scenario): | M46: =((1-G37)*(M41-1))/(1+(G38*(M40-1))+((1-G37)*(M41-1))) -> 0.3464052288

Sheet STUNTprod (hidden)
A2: =Prev!A4 -> 
A3: Benefits of Stunting Reduction for Economic Productivity
B5: year | C5: 2-yr pop | D5: lifetime | F5: prevalence | H5: Status Quo | J5: value of gains from reducing
C6: (millions) | D6: prod (ag) | F6: (%) | H6: Losses | J6: stunting (million $) | X6: =Dem!X25 -> 1=in time period
D7: (million $) | E7: mild | F7: moderate | G7: severe | H7: (Million $) | I7: mild | J7: moderate | K7: severe | L7: total | X7: =Dem!X26 -> 0=not in time period
A8: =Dem!A27 -> 1 | B8: =Dem!B27 ->  | C8: =Dem!H27 -> 0 | D8: =C8*$K$33*$K$34*$K$35 ->  | E8: =IF(X8=1,($K$37-((A8-1)*($K$37-$K$40)/($K$48-1))),0) -> 0 | F8: =IF(X8=1,($K$38-((A8-1)*($K$38-$K$41)/($K$48-1))),0) -> 0 | G8: =IF(X8=1,($K$39-((A8-1)*($K$39-$K$42)/($K$48-1))),0) -> 0 | H8: =D8*$K$50 ->  | I8: =D8*($K$37-E8)*$K$45*$K$44 ->  | J8: =D8*($K$38-F8)*$K$46*$K$44 ->  | K8: =D8*($K$39-G8)*$K$47*$K$44 ->  | L8: =J8+K8 ->  | X8: =Dem!X27 -> 0
A9: =Dem!A28 -> 2 | B9: =Dem!B28 ->  | C9: =Dem!H28 -> 0 | E9: 0 | F9: 0 | G9: 0 | H9: =D9*$K$50 ->  | I9: =D9*($K$37-E9)*$K$45*$K$44 ->  | J9: =D9*($K$38-F9)*$K$46*$K$44 ->  | K9: =D9*($K$39-G9)*$K$47*$K$44 ->  | X9: =Dem!X28 -> 0
A10: =Dem!A29 -> 3 | B10: =Dem!B29 ->  | C10: =Dem!H29 -> 0 | E10: 0 | F10: 0 | G10: 0 | X10: =Dem!X29 -> 0
A11: =Dem!A30 -> 4 | B11: =Dem!B30 ->  | C11: =Dem!H30 -> 0 | E11: 0 | F11: 0 | G11: 0 | X11: =Dem!X30 -> 0
A12: =Dem!A31 -> 5 | B12: =Dem!B31 ->  | C12: =Dem!H31 -> 0 | E12: 0 | F12: 0 | G12: 0 | X12: =Dem!X31 -> 0
A13: =Dem!A32 -> 6 | B13: =Dem!B32 ->  | C13: =Dem!H32 -> 0 | E13: 0 | F13: 0 | G13: 0 | X13: =Dem!X32 -> 0
A14: =Dem!A33 -> 7 | B14: =Dem!B33 ->  | C14: =Dem!H33 -> 0 | E14: 0 | F14: 0 | G14: 0 | X14: =Dem!X33 -> 0
A15: =Dem!A34 -> 8 | B15: =Dem!B34 ->  | C15: =Dem!H34 -> 0 | E15: 0 | F15: 0 | G15: 0 | X15: =Dem!X34 -> 0
A16: =Dem!A35 -> 9 | B16: =Dem!B35 ->  | C16: =Dem!H35 -> 0 | E16: 0 | F16: 0 | G16: 0 | H16: =D16*$K$50 ->  | I16: =D16*($K$37-E16)*$K$45*$K$44 ->  | J16: =D16*($K$38-F16)*$K$46*$K$44 ->  | K16: =D16*($K$39-G16)*$K$47*$K$44 ->  | L16: =J16+K16 ->  | X16: =Dem!X35 -> 0
A17: =Dem!A36 -> 10 | B17: =Dem!B36 ->  | C17: =Dem!H36 -> 0 | E17: 0 | F17: 0 | G17: 0 | X17: =Dem!X36 -> 0
A18: =Dem!A37 -> 11 | B18: =Dem!B37 ->  | C18: =Dem!H37 -> 0 | D18: =C18*$K$33*$K$34*$K$35 ->  | E18: 0 | F18: 0 | G18: 0 | X18: =Dem!X37 -> 0
A19: =Dem!A38 -> 12 | B19: =Dem!B38 ->  | C19: =Dem!H38 -> 0 | E19: 0 | F19: 0 | G19: 0 | X19: =Dem!X38 -> 0
A20: =Dem!A39 -> 13 | B20: =Dem!B39 ->  | C20: =Dem!H39 -> 0 | E20: 0 | F20: 0 | G20: 0 | X20: =Dem!X39 -> 0
A21: =Dem!A40 -> 14 | B21: =Dem!B40 ->  | C21: =Dem!H40 -> 0 | E21: 0 | F21: 0 | G21: 0 | X21: =Dem!X40 -> 0
A22: =Dem!A41 -> 15 | B22: =Dem!B41 ->  | C22: =Dem!H41 -> 0 | E22: 0 | F22: 0 | G22: 0 | X22: =Dem!X41 -> 0
A23: =Dem!A42 -> 16 | B23: =Dem!B42 ->  | C23: =Dem!H42 -> 0 | E23: 0 | F23: 0 | G23: 0 | X23: =Dem!X42 -> 0
A24: =Dem!A43 -> 17 | B24: =Dem!B43 ->  | C24: =Dem!H43 -> 0 | E24: 0 | F24: 0 | G24: 0 | X24: =Dem!X43 -> 0
A25: =Dem!A44 -> 18 | B25: =Dem!B44 ->  | C25: =Dem!H44 -> 0 | E25: 0 | F25: 0 | G25: 0 | X25: =Dem!X44 -> 0
A26: =Dem!A45 -> 19 | B26: =Dem!B45 ->  | C26: =Dem!H45 -> 0 | E26: 0 | F26: 0 | G26: 0 | X26: =Dem!X45 -> 0
A27: =Dem!A46 -> 20 | B27: =Dem!B46 ->  | C27: =Dem!H46 -> 0 | E27: 0 | F27: 0 | G27: 0 | X27: =Dem!X46 -> 0
B30: total | D30: =SUM(D8:D29) ->  | H30: =SUM(H8:H29) ->  | I30: =SUM(I8:I29) ->  | J30: =SUM(J8:J29) ->  | K30: =SUM(K8:K29) ->  | L30: =SUM(L8:L29) -> 
B32: ASSUMPTIONS:
B33: Annual wage ($): | K33: =Rel!C101/Rel!C92 -> 
B34: Lifetime discounting factor at age 2: | K34: =Rel!C108 -> 14.70682919
B35: Economic activity rate | K35: =Rel!C95/100 -> 0
J36: reported | K36: corrected (for normal prevalence)
B37: Prevalence of mild stunting in base year: | I37: mild | J37: =Prev!C19/100 -> 0.2226247282 | K37: =J37-Rel!C14 -> 0.08671960625
B38: Prevalence of moderate stunting in base year: | I38: moderate | J38: =Prev!C20/100 -> 0 | K38: =J38-Rel!C15 -> -0.02140023392
B39: Prevalence of severe stunting in base year: | I39: severe | J39: =Prev!C21/100 -> 0 | K39: =J39-Rel!C16 -> -0.001349898032
B40: Target prevalence of mild stunting: | I40: mild | J40: =Prev!E19/100 ->  | K40: =MAX(J40-Rel!C14,0) -> 
B41: Target prevalence of moderate stunting: | I41: moderate | J41: =Prev!E20/100 ->  | K41: =MAX(J41-Rel!C15,0) -> 
B42: Target prevalence of severe stunting: | I42: severe | J42: =Prev!E21/100 ->  | K42: =MAX(J42-Rel!C16,0) -> 
B44: Elasticity of future productivity with respect to child stature: | K44: =Rel!C17 -> 2.7
B45: prop. reduction in height from mild stunting: | I45: mild | K45: =Rel!C11/100 -> 0.057
B46: prop. reduction in height from moderate stunting: | I46: moderate | K46: =Rel!C12/100 -> 0.087
B47: prop. reduction in height from severe stunting: | I47: severe | K47: =Rel!C13/100 -> 0.121
B48: Number of years in projection: | K48: =Dem!D23 -> 1
B50: status quo overall reduction in value of future work affected (%) | K50: =((K38*K46)+(K39*K47))*K44 -> -0.005467926634

Sheet STUNTeduc (hidden)
Z1: For children 24–35 months in the final year, average number of equivalent school years of learning gained per child related to a reduction in stunting
A2: =Prev!A4 ->  | Y2: Final year: | Z2: ↓
A3: Benefits of Stunting Reduction for Education | Y3: =FrontPage!E48 -> 0
Y4: =INDEX(Y8:Y27,MATCH(TRUE,Y8:Y27<>0,0)) ->  | Z4: =INDEX(Z8:Z27,MATCH(TRUE,Z8:Z27<>0,0)) -> 
B5: year | C5: 2-yr pop | D5: school | E5: prevalence | G5: mean | H5: z-score | I5: Status Quo | J5: value of gains | L5: Improved scenario
C6: (millions) | D6: years | E6: (%) | G6: z-score | H6: shift | I6: Losses | J6: from reducing stunting | L6: Losses | X6: =Dem!X25 -> 1=in time period
D7: (millions) | E7: moderate | F7: severe | I7: (m years) | J7: (millions of school years) | L7: (m years) | X7: =Dem!X26 -> 0=not in time period
A8: =Dem!A27 -> 1 | B8: =Dem!B27 ->  | C8: =Dem!H27 -> 0 | D8: =C8*J$33 -> 0 | E8: =IF(X8=1,($J$35-((A8-1)*($J$35-$J$37)/($J$45-1))),0) -> 0 | F8: =IF(X8=1,($J$36-((A8-1)*($J$36-$J$38)/($J$45-1))),0) -> 0 | G8: =IF(X8=1,($J$42-((A8-1)*($J$42-$J$43)/($J$45-1))),0) -> 0 | H8: =IF(X8=1,(G8-G$8),0) -> 0 | I8: =D8*-$J$42*$J$40 -> 0 | J8: =D8*H8*J$40 -> 0 | L8: =D8*-G8*$J$40 -> 0 | X8: =Dem!X27 -> 0 | Y8: =IF(B8=$Y$3,B8,0) -> 0 | Z8: =IF(B8=$Y$3,J8/C8,0) -> 0
A9: =Dem!A28 -> 2 | B9: =Dem!B28 ->  | C9: =Dem!H28 -> 0 | D9: 0 | E9: 0 | F9: 0 | G9: 0 | H9: 0 | I9: =D9*-$J$42*$J$40 -> 0 | J9: =D9*H9*J$40 -> 0 | L9: =D9*-G9*$J$40 -> 0 | X9: =Dem!X28 -> 0 | Y9: 0 | Z9: 0
A10: =Dem!A29 -> 3 | B10: =Dem!B29 ->  | C10: =Dem!H29 -> 0 | D10: 0 | E10: 0 | F10: 0 | G10: 0 | H10: 0 | I10: 0 | J10: 0 | L10: 0 | X10: =Dem!X29 -> 0 | Y10: 0 | Z10: 0
A11: =Dem!A30 -> 4 | B11: =Dem!B30 ->  | C11: =Dem!H30 -> 0 | D11: 0 | E11: 0 | F11: 0 | G11: 0 | H11: 0 | I11: 0 | J11: 0 | L11: 0 | X11: =Dem!X30 -> 0 | Y11: 0 | Z11: 0
A12: =Dem!A31 -> 5 | B12: =Dem!B31 ->  | C12: =Dem!H31 -> 0 | D12: 0 | E12: 0 | F12: 0 | G12: 0 | H12: 0 | I12: 0 | J12: 0 | L12: 0 | X12: =Dem!X31 -> 0 | Y12: 0 | Z12: 0
A13: =Dem!A32 -> 6 | B13: =Dem!B32 ->  | C13: =Dem!H32 -> 0 | D13: 0 | E13: 0 | F13: 0 | G13: 0 | H13: 0 | I13: 0 | J13: 0 | L13: 0 | X13: =Dem!X32 -> 0 | Y13: 0 | Z13: 0
A14: =Dem!A33 -> 7 | B14: =Dem!B33 ->  | C14: =Dem!H33 -> 0 | D14: 0 | E14: 0 | F14: 0 | G14: 0 | H14: 0 | I14: 0 | J14: 0 | L14: 0 | X14: =Dem!X33 -> 0 | Y14: 0 | Z14: 0
A15: =Dem!A34 -> 8 | B15: =Dem!B34 ->  | C15: =Dem!H34 -> 0 | D15: 0 | E15: 0 | F15: 0 | G15: 0 | H15: 0 | I15: 0 | J15: 0 | L15: 0 | X15: =Dem!X34 -> 0 | Y15: 0 | Z15: 0
A16: =Dem!A35 -> 9 | B16: =Dem!B35 ->  | C16: =Dem!H35 -> 0 | D16: 0 | E16: 0 | F16: 0 | G16: 0 | H16: 0 | I16: 0 | J16: 0 | L16: 0 | X16: =Dem!X35 -> 0 | Y16: 0 | Z16: 0
